Workbook

Sheet Cover
B2: Nevada NEM Public Tool
B4: Prepared by:
B9: 101 Montgomery Street, Suite 1600
B10: San Francisco, CA 94104
B11: (415) 391-5100
B13: 2014-05-01
B15: Contents:
B17: User Interface:
B18: User Inputs | C18: Assumptions and inputs available for the user to modify
B19: Results | C19: Summary result charts and tables ; user can specify result filters
B21: Model Calculations:
B22: Installations | C22: Historical and forecasted installations by category and year
B23: Capacity | C23: Cumulative installed capacity by year (degraded and undegraded)
B24: Energy Generation | C24: Energy generation by category and year
B25: Avoided Costs | C25: Output from avoided cost calculator; avoided costs per kW installed by component and year
B26: Avoided Costs by Component | C26: Total avoided costs summarized by component
B27: Bill Savings Inputs | C27: Output from bill calculator; bill savings per kW installed by category
B28: Annual Bill Savings | C28: Total bill savings by category and year
B29: Integration Costs | C29: Integration costs by category and year
B30: Program Costs | C30: Program costs by category and year
B31: Owner Costs | C31: Output from pro forma finacial calculator; owner costs by category and year
B32: All Costs | C32: All cost test components by category; summarized in 25 yr NPV format
B33: NVE South RPS Value | C33: Avoided RPS generation by NEM systems in NVE South
B34: NVE North RPS Value | C34: Avoided RPS generation by NEM systems in NVE North
B35: 2013 RPS Compliance Report Data | C35: Historical and forecasted annual renewable energy production from NVE Energy RPS Compliance Report
B36: Load Forecasts | C36: Load forecasts used to calculate avoided RPS generation values
B38: Color Scheme:
B39: orange | C39: User Input
B40: gray | C40: Fixed Input
B41: white | C41: Calculation

Sheet User Inputs
B2: User Inputs
B4: General Inputs
B5: Annual Inflation Rate | C5: 0.02
B6: Societal Real Discount Rate | C6: 0.03
B7: Participant Real Discount Rate | C7: 0.047
B8: Utility Real Discount Rate | C8: 0.047
B9: Nominal Discount Rate | C9: =(1+inflation)*(1+C6)-1 -> 0.0506
B10: Participant Nominal Discount Rate | C10: =(1+inflation)*(1+C7)-1 -> 0.06794
B11: Utility Nomincal Discount Rate | C11: =(1+inflation)*(1+C8)-1 -> 0.06794
B12: PV Degradation Factor | C12: 0.005
B13: Wind Degradation Factor | C13: 0.005
B14: PV System Lifetime (years) | C14: 25
B15: Wind System Lifetime (years) | C15: 25
B16: Rate Scenario | C16: Current
B18: Avoided Costs* | D18: Avoided Cost Adjustor**
B19: Energy without Carbon Price | D19: 0
B20: Energy with Carbon Price | D20: 0
B21: Ancillary Services | D21: 0
B22: Losses | D22: 0
B23: System Capacity | D23: 0
B24: Transmission Capacity | D24: 0
B25: Distribution Capacity | D25: 0
B26: *select avoided cost components to include in analysis | D26: **manually scale avoided cost forecast up or down
B28: % of Forecasted Systems to Receive Utility Incentive
B29: PV | C29: 0.9
B30: Wind | C30: 0.99
B32: Utility Integration Cost
B33: Integration Cost (2014$/MWh) | C33: 2
B35: Demand Charge Reduction*
B36: Demand Charge Reduction (% of nameplate capacity) | C36: 0
B38: Assumed Utility Scale Solar PPA Price (2014$/MWh)
B39: NVE North | C39: 100
B40: NVE South | C40: 100
B42: Year-On-Year Rate Escalation (real) | C42: NVE North | D42: NVE South
B43: 2004 | C43: 0.005 | D43: 0.005
B44: 2005 | C44: 0.005 | D44: 0.005
B45: 2006 | C45: 0.005 | D45: 0.005
B46: 2007 | C46: 0.005 | D46: 0.005
B47: 2008 | C47: 0.005 | D47: 0.005
B48: 2009 | C48: 0.005 | D48: 0.005
B49: 2010 | C49: 0.005 | D49: 0.005
B50: 2011 | C50: 0.005 | D50: 0.005
B51: 2012 | C51: 0.005 | D51: 0.005
B52: 2013 | C52: 0.005 | D52: 0.005
B53: 2014 | C53: 0.005 | D53: 0.005
B54: 2015 | C54: 0.005 | D54: 0.005
B55: 2016 | C55: 0.005 | D55: 0.005
B56: 2017 | C56: 0.005 | D56: 0.005
B57: 2018 | C57: 0.005 | D57: 0.005
B58: 2019 | C58: 0.005 | D58: 0.005
B59: 2020 | C59: 0.005 | D59: 0.005
B60: 2021 | C60: 0.014 | D60: 0.014
B61: 2022 | C61: 0.014 | D61: 0.014
B62: 2023 | C62: 0.014 | D62: 0.014
B63: 2024 | C63: 0.014 | D63: 0.014
B64: 2025 | C64: 0.014 | D64: 0.014
B65: 2026 | C65: 0.014 | D65: 0.014
B66: 2027 | C66: 0.014 | D66: 0.014
B67: 2028 | C67: 0.014 | D67: 0.014
B68: 2029 | C68: 0.014 | D68: 0.014
B69: 2030 | C69: 0.014 | D69: 0.014
B70: 2031 | C70: 0.014 | D70: 0.014
B71: 2032 | C71: 0.014 | D71: 0.014
B72: 2033 | C72: 0.014 | D72: 0.014
B73: 2034 | C73: 0.014 | D73: 0.014
B74: 2035 | C74: 0.014 | D74: 0.014
B75: 2036 | C75: 0.014 | D75: 0.014
B76: 2037 | C76: 0.014 | D76: 0.014
B77: 2038 | C77: 0.014 | D77: 0.014
B78: 2039 | C78: 0.014 | D78: 0.014
B79: 2040 | C79: 0.014 | D79: 0.014
B80: 2041 | C80: 0.014 | D80: 0.014

Sheet Results
B3: Results Display Filter
B4: Residential | J4: avoided rps needs to get added to graph
B5: Non-Residential
B7: NVE North
B8: NVE South
B10: PV
B11: Wind
B14: Utility Incentivized
B15: Non-Incentivized
B17: Existing Installations
B18: 2014/2015 Installations
B19: 2016 Installations
B20: note: at least one option in each section must be checked
B24: To calculate: Press F9
D26: results in $2014
D27: Cost Test | E27: NPV Net Benefit | F27: Benefit/Cost Ratio | G27: Levelized Benefit ($/kWh) | H27: Annualized Net Benefit
D28: PCT Participant Cost Test | E28: =D135-C135 -> -135307951 | F28: =C149 -> 0.9223238829 | G28: =C150 -> -0.02417096504 | H28: =-PMT(participantNominalDiscountRate,25,E28) -> -11396198.46
D29: RIM Ratepayer Impact Measure | E29: =F135-E135 -> 35715626.12 | F29: =E149 -> 1.035621595 | G29: =E150 -> 0.006380121374 | H29: =-PMT(utilityNominalDiscountRate,25,E29) -> 3008118.595
D30: PACT Program Administrator Cost Test | E30: =J135-I135 -> 716411354.2 | F30: =I149 -> 3.225266992 | G30: =I150 -> 0.1279773558 | H30: =-PMT(utilityNominalDiscountRate,25,E30) -> 60339144.24
D31: TRC Total Resource Cost Test | E31: =H135-G135 -> -99592324.91 | F31: =G149 -> 0.9434181769 | G31: =G150 -> -0.01779084367 | H31: =-PMT(utilityNominalDiscountRate,25,E31) -> -8388079.868
D32: Societal Societal Cost Test | E32: =L135-K135 -> -75478740.91 | F32: =K149 -> 0.9639314156 | G32: =K150 -> -0.01135637098 | H32: =-PMT(nominalDiscountRate,25,E32) -> -5387652.6
C70: Normalized Costs/Benefits ($/kWh $2014), REARRANGED TO CREATE SUMMARY CHARTS
C71: Utility Avoided Costs | D71: Utility Incentives | E71: Criteria Pollutant (Social Cost/Benefit) | F71: NEM Customer Bill Savings | G71: Integration Costs | H71: Pre-Incentive Capital Cost | I71: Federal Incentives | J71: NEM Program Costs | K71: RPS Value
N72: 1
H73: =C144 -> 0.3111762785 | L73: PCT | M73: 1 | N73: 2
D74: =D147 -> 0.05426045291 | F74: =D142 -> 0.1215972345 | I74: =D145 -> 0.1111476261 | M74: 1 | N74: 3
N75: 4
D76: =E147 -> 0.05426045291 | F76: =E142 -> 0.1215972345 | G76: =E143 -> 0.002417135806 | J76: =E146 -> 0.0008334229096 | L76: RIM | M76: 2 | N76: 5
C77: =F140 -> 0.0967024492 | K77: =F148 -> 0.08878591826 | M77: 2 | N77: 6 | P77: Headings for chart
N78: 7 | P78: Particpant Cost Test | Q78: Cost
D79: =I147 -> 0.05426045291 | G79: =I143 -> 0.002417135806 | J79: =I146 -> 0.0008334229096 | L79: PACT | M79: 4 | N79: 11 | Q79: Benefit
C80: =J140 -> 0.0967024492 | K80: =J148 -> 0.08878591826 | M80: 4 | N80: 12 | P80: Ratepayer Impact Measure | Q80: Cost
N81: 13 | Q81: Benefit
G82: =G143 -> 0.002417135806 | H82: =G144 -> 0.3111762785 | J82: =G146 -> 0.0008334229096 | L82: TRC | M82: 3 | N82: 8 | P82: Program Administrator (Utility) Cost Test | Q82: Cost
C83: =H140 -> 0.0967024492 | I83: =H145 -> 0.1111476261 | K83: =H148 -> 0.08878591826 | M83: 3 | N83: 9 | Q83: Benefit
N84: 10 | P84: Total Resource Cost Test | Q84: Cost
E85: =MAX(-L141,0) -> 0.0007589342776 | G85: =K143 -> 0.002454354456 | H85: =K144 -> 0.3116290944 | J85: =K146 -> 0.0007714638093 | L85: Societal | M85: 5 | N85: 14 | Q85: Benefit
C86: =L140 -> 0.1006804064 | E86: =MAX(L141,0) -> 0 | I86: =L145 -> 0.1113565713 | K86: =L148 -> 0.09222049821 | M86: 5 | N86: 15 | P86: Societal Cost Test | Q86: Cost
N87: 16 | Q87: Benefit
C90: Aggregate Costs/Benefits ($2014), REARRANGED TO CREATE SUMMARY CHARTS
C91: Avoided Costs | D91: Utility Incentives | E91: Criteria Pollutant (Social Cost) | F91: Bill Savings | G91: Integration Costs | H91: Pre-Incentive Capital Cost | I91: Fed Incentives | J91: NEM Program Costs | K91: RPS Value
N92: 1
H93: =C130 -> 1741950501 | L93: PCT | M93: 1 | N93: 2
D94: =D133 -> 303747520.8 | F94: =D128 -> 680695728.1 | I94: =D131 -> 622199300.7 | M94: 1 | N94: 3
N95: 4
D96: =E133 -> 303747520.8 | F96: =E128 -> 680695728.1 | G96: =E129 -> 13531015.11 | J96: =E132 -> 4665463.132 | L96: RIM | M96: 2 | N96: 5
C97: =F126 -> 541335864.8 | K97: =F134 -> 497019488.5 | M97: 2 | N97: 6
N98: 7
D99: =I133 -> 303747520.8 | G99: =I129 -> 13531015.11 | J99: =I132 -> 4665463.132 | L99: PACT | M99: 4 | N99: 11
C100: =J126 -> 541335864.8 | K100: =J134 -> 497019488.5 | M100: 4 | N100: 12
N101: 13
G102: =G129 -> 13531015.11 | H102: =G130 -> 1741950501 | J102: =G132 -> 4665463.132 | L102: TRC | M102: 3 | N102: 8
C103: =H126 -> 541335864.8 | I103: =H131 -> 622199300.7 | K103: =H134 -> 497019488.5 | M103: 3 | N103: 9
N104: 10
G105: =K129 -> 16312568.91 | H105: =K130 -> 2071204940 | J105: =K132 -> 5127440.544 | L105: Societal | M105: 5 | N105: 14
C106: =L126 -> 669160097.7 | E106: =L127 -> -5044164.533 | I106: =L131 -> 740117931.1 | K106: =L134 -> 612932344.7 | M106: 5 | N106: 15
N107: 16
C110: Cost Test Items
C111: PCT* | E111: RIM | G111: TRC | I111: PACT / Utility | K111: Societal
C112: Costs | D112: Benefits | E112: Costs | F112: Benefits | G112: Costs | H112: Benefits | I112: Costs | J112: Benefits | K112: Costs | L112: Benefits
B113: Avoided Costs | F113: Avoided Costs | H113: Avoided Costs | J113: Avoided Costs | L113: Avoided Costs
B114: Criteria Pollutant (Social Cost) | L114: Criteria Pollutant (Social Cost)
B115: Bill Savings | D115: Bill Savings | E115: Bill Savings
B116: Integration Costs | E116: Integration Costs | G116: Integration Costs | I116: Integration Costs | K116: Integration Costs
B117: CapEx and O&M | C117: CapEx and O&M | G117: CapEx and O&M | K117: CapEx and O&M
B118: Fed Incentives | D118: Fed Incentives | H118: Fed Incentives | L118: Fed Incentives
B119: NEM Program Costs | E119: NEM Program Costs | G119: NEM Program Costs | I119: NEM Program Costs | K119: NEM Program Costs
B120: Utility Incentives | D120: Utility Incentives | E120: Utility Incentives | I120: Utility Incentives
B121: Avoided RPS | F121: Avoided RPS | H121: Avoided RPS | J121: Avoided RPS | L121: Avoided RPS
C123: Aggregate Costs/Benefits ($2014)
C124: PCT (participant discount rate) | E124: RIM (utility discount rate) | G124: TRC (utility discount rate) | I124: PACT / Utility (utility discount rate) | K124: Societal
C125: Costs | D125: Benefits | E125: Costs | F125: Benefits | G125: Costs | H125: Benefits | I125: Costs | J125: Benefits | K125: Costs | L125: Benefits
B126: Avoided Costs | C126: =IFERROR(INDEX($AA$174:$AA$183,MATCH(C113,$B$174:$B$183,0)),"") ->  | E126: =IFERROR(INDEX($AA$190:$AA$199,MATCH(E113,$B$158:$B$167,0)),"") ->  | F126: 541335864.8 | H126: 541335864.8 | J126: 541335864.8 | K126: =IFERROR(INDEX($AA$158:$AA$167,MATCH(K113,$B$158:$B$167,0)),"") ->  | L126: 669160097.7
B127: Criteria Pollutant (Social Cost) | L127: -5044164.533
B128: Bill Savings | D128: 680695728.1 | E128: 680695728.1
B129: Integration Costs | E129: 13531015.11 | G129: 13531015.11 | I129: 13531015.11 | K129: 16312568.91
B130: CapEx and O&M | C130: 1741950501 | G130: 1741950501 | K130: 2071204940
B131: Fed Incentives | D131: 622199300.7 | H131: 622199300.7 | L131: 740117931.1
B132: NEM Program Costs | E132: 4665463.132 | G132: 4665463.132 | I132: 4665463.132 | K132: 5127440.544
B133: Utility Incentives | D133: 303747520.8 | E133: 303747520.8 | I133: 303747520.8
B134: Avoided RPS | F134: 497019488.5 | H134: 497019488.5 | J134: 497019488.5 | L134: =IFERROR(INDEX($AA$158:$AA$167,MATCH(L121,$B$158:$B$167,0)),"") -> 612932344.7
B135: Totals | C135: =SUM(C126:C134) -> 1741950501 | D135: =SUM(D126:D134) -> 1606642550 | E135: 1002639727 | F135: 1038355353 | G135: 1760146979 | H135: 1660554654 | I135: 321943999 | J135: 1038355353 | K135: 2092644950 | L135: 2017166209
H136: =H135-G135 -> -99592324.91
C137: Normalized Costs/Benefits ($/kWh $2014)
C138: PCT | E138: RIM | G138: TRC | I138: PACT / Utility | K138: Societal
C139: Costs | D139: Benefits | E139: Costs | F139: Benefits | G139: Costs | H139: Benefits | I139: Costs | J139: Benefits | K139: Costs | L139: Benefits
B140: Avoided Costs | C140: =IFERROR(INDEX($AA$174:$AA$183,MATCH(C113,$B$174:$B$183,0))/$AA$183,"") ->  | E140: =IFERROR(INDEX($AA$190:$AA$199,MATCH(E113,$B$158:$B$167,0))/$AA$199,"") ->  | F140: 0.0967024492 | H140: =IFERROR(INDEX($AA$190:$AA$199,MATCH(H113,$B$158:$B$167,0))/$AA$199,"") -> 0.0967024492 | J140: 0.0967024492 | K140: =IFERROR(INDEX($AA$158:$AA$167,MATCH(K113,$B$158:$B$167,0))/$AA$167,"") ->  | L140: 0.1006804064
B141: Criteria Pollutant (Social Cost) | L141: -0.0007589342776
B142: Bill Savings | D142: 0.1215972345 | E142: 0.1215972345
B143: Integration Costs | E143: 0.002417135806 | G143: 0.002417135806 | I143: 0.002417135806 | K143: 0.002454354456
B144: CapEx and O&M | C144: 0.3111762785 | G144: 0.3111762785 | K144: 0.3116290944
B145: Fed Incentives | D145: 0.1111476261 | H145: 0.1111476261 | L145: 0.1113565713
B146: NEM Program Costs | E146: 0.0008334229096 | G146: 0.0008334229096 | I146: 0.0008334229096 | K146: 0.0007714638093
B147: Utility Incentives | D147: 0.05426045291 | E147: 0.05426045291 | I147: 0.05426045291
B148: Avoided RPS | F148: 0.08878591826 | H148: 0.08878591826 | J148: 0.08878591826 | L148: =IFERROR(INDEX($AA$158:$AA$167,MATCH(L121,$B$158:$B$167,0))/$AA$167,"") -> 0.09222049821
B149: B/C Ratio | C149: =SUM(D140:D148)/SUM(C140:C148) -> 0.9223238829 | E149: =SUM(F140:F148)/SUM(E140:E148) -> 1.035621595 | G149: =SUM(H140:H148)/SUM(G140:G148) -> 0.9434181769 | I149: =SUM(J140:J148)/SUM(I140:I148) -> 3.225266992 | K149: =SUM(L140:L148)/SUM(K140:K148) -> 0.9639314156
C150: =SUM(D140:D148)-SUM(C140:C148) -> -0.02417096504 | E150: =SUM(F140:F148)-SUM(E140:E148) -> 0.006380121374 | G150: =SUM(H140:H148)-SUM(G140:G148) -> -0.01779084367 | I150: =SUM(J140:J148)-SUM(I140:I148) -> 0.1279773558 | K150: =SUM(L140:L148)-SUM(K140:K148) -> -0.01135637098
C151: *PCT uses a different (higher) discount rate
C153: Societal NPVs | AE153: Specifies whether boxes are checked above:
C154: Residential | D154: Residential | E154: Residential | F154: Residential | G154: Residential | H154: Residential | I154: Residential | J154: Residential | K154: Residential | L154: Residential | M154: Residential | N154: Residential | O154: Non-Residential | P154: Non-Residential | Q154: Non-Residential | R154: Non-Residential | S154: Non-Residential | T154: Non-Residential | U154: Non-Residential | V154: Non-Residential | W154: Non-Residential | X154: Non-Residential | Y154: Non-Residential | Z154: Non-Residential | AA154: =IF(AE154,"Residential") -> Residential | AB154: =IF(AF154,"Non-Residential") -> Non-Residential | AE154: TRUE | AF154: TRUE
C155: NVE North | D155: NVE North | E155: NVE North | F155: NVE North | G155: NVE North | H155: NVE North | I155: NVE South | J155: NVE South | K155: NVE South | L155: NVE South | M155: NVE South | N155: NVE South | O155: NVE North | P155: NVE North | Q155: NVE North | R155: NVE North | S155: NVE North | T155: NVE North | U155: NVE South | V155: NVE South | W155: NVE South | X155: NVE South | Y155: NVE South | Z155: NVE South | AA155: =IF(AE155,"NVE North") -> NVE North | AB155: =IF(AF155,"NVE South") -> NVE South | AE155: TRUE | AF155: TRUE
C156: PV | D156: PV | E156: Existing Wind | F156: Existing Wind | G156: New Wind | H156: New Wind | I156: PV | J156: PV | K156: Existing Wind | L156: Existing Wind | M156: New Wind | N156: New Wind | O156: PV | P156: PV | Q156: Existing Wind | R156: Existing Wind | S156: New Wind | T156: New Wind | U156: PV | V156: PV | W156: Existing Wind | X156: Existing Wind | Y156: New Wind | Z156: New Wind | AA156: =IF(AE156,"PV") -> PV | AB156: =IF(AF156,"Existing Wind") -> Existing Wind | AC156: =IF(AG156,"New Wind") -> New Wind | AE156: TRUE | AF156: TRUE | AG156: =AF156 -> TRUE
C157: Incentivized | D157: Non-incentivized | E157: Incentivized | F157: Non-incentivized | G157: Incentivized | H157: Non-incentivized | I157: Incentivized | J157: Non-incentivized | K157: Incentivized | L157: Non-incentivized | M157: Incentivized | N157: Non-incentivized | O157: Incentivized | P157: Non-incentivized | Q157: Incentivized | R157: Non-incentivized | S157: Incentivized | T157: Non-incentivized | U157: Incentivized | V157: Non-incentivized | W157: Incentivized | X157: Non-incentivized | Y157: Incentivized | Z157: Non-incentivized | AA157: =IF(AE157,"Incentivized") -> Incentivized | AB157: =IF(AF157,"Non-Incentivized") -> Non-Incentivized | AE157: TRUE | AF157: TRUE
B158: Avoided Costs | C158: =IF(AND(OR(C$154=$AA$154:$AB$154),OR(C$155=$AA$155:$AB$155),OR(C$156=$AA$156:$AC$156),OR(C$157=$AA$157:$AB$157)),'All Costs'!C7,0) -> 60986373.11 | D158: =IF(AND(OR(D$154=$AA$154:$AB$154),OR(D$155=$AA$155:$AB$155),OR(D$156=$AA$156:$AC$156),OR(D$157=$AA$157:$AB$157)),'All Costs'!D7,0) -> 9820413.101 | E158: =IF(AND(OR(E$154=$AA$154:$AB$154),OR(E$155=$AA$155:$AB$155),OR(E$156=$AA$156:$AC$156),OR(E$157=$AA$157:$AB$157)),'All Costs'!E7,0) -> 38956.87178 | F158: =IF(AND(OR(F$154=$AA$154:$AB$154),OR(F$155=$AA$155:$AB$155),OR(F$156=$AA$156:$AC$156),OR(F$157=$AA$157:$AB$157)),'All Costs'!F7,0) -> 1283.466345 | G158: =IF(AND(OR(G$154=$AA$154:$AB$154),OR(G$155=$AA$155:$AB$155),OR(G$156=$AA$156:$AC$156),OR(G$157=$AA$157:$AB$157)),'All Costs'!G7,0) -> 3590.507978 | H158: =IF(AND(OR(H$154=$AA$154:$AB$154),OR(H$155=$AA$155:$AB$155),OR(H$156=$AA$156:$AC$156),OR(H$157=$AA$157:$AB$157)),'All Costs'!H7,0) -> 25.85954377 | I158: =IF(AND(OR(I$154=$AA$154:$AB$154),OR(I$155=$AA$155:$AB$155),OR(I$156=$AA$156:$AC$156),OR(I$157=$AA$157:$AB$157)),'All Costs'!I7,0) -> 151989930.9 | J158: =IF(AND(OR(J$154=$AA$154:$AB$154),OR(J$155=$AA$155:$AB$155),OR(J$156=$AA$156:$AC$156),OR(J$157=$AA$157:$AB$157)),'All Costs'!J7,0) -> 29040277.14 | K158: =IF(AND(OR(K$154=$AA$154:$AB$154),OR(K$155=$AA$155:$AB$155),OR(K$156=$AA$156:$AC$156),OR(K$157=$AA$157:$AB$157)),'All Costs'!K7,0) -> 2542.602199 | L158: =IF(AND(OR(L$154=$AA$154:$AB$154),OR(L$155=$AA$155:$AB$155),OR(L$156=$AA$156:$AC$156),OR(L$157=$AA$157:$AB$157)),'All Costs'!L7,0) -> 0 | M158: =IF(AND(OR(M$154=$AA$154:$AB$154),OR(M$155=$AA$155:$AB$155),OR(M$156=$AA$156:$AC$156),OR(M$157=$AA$157:$AB$157)),'All Costs'!M7,0) -> 0 | N158: =IF(AND(OR(N$154=$AA$154:$AB$154),OR(N$155=$AA$155:$AB$155),OR(N$156=$AA$156:$AC$156),OR(N$157=$AA$157:$AB$157)),'All Costs'!N7,0) -> 0 | O158: =IF(AND(OR(O$154=$AA$154:$AB$154),OR(O$155=$AA$155:$AB$155),OR(O$156=$AA$156:$AC$156),OR(O$157=$AA$157:$AB$157)),'All Costs'!O7,0) -> 125927769.9 | P158: =IF(AND(OR(P$154=$AA$154:$AB$154),OR(P$155=$AA$155:$AB$155),OR(P$156=$AA$156:$AC$156),OR(P$157=$AA$157:$AB$157)),'All Costs'!P7,0) -> 11171450.42 | Q158: =IF(AND(OR(Q$154=$AA$154:$AB$154),OR(Q$155=$AA$155:$AB$155),OR(Q$156=$AA$156:$AC$156),OR(Q$157=$AA$157:$AB$157)),'All Costs'!Q7,0) -> 1911551.6 | R158: =IF(AND(OR(R$154=$AA$154:$AB$154),OR(R$155=$AA$155:$AB$155),OR(R$156=$AA$156:$AC$156),OR(R$157=$AA$157:$AB$157)),'All Costs'!R7,0) -> 4563.29214 | S158: =IF(AND(OR(S$154=$AA$154:$AB$154),OR(S$155=$AA$155:$AB$155),OR(S$156=$AA$156:$AC$156),OR(S$157=$AA$157:$AB$157)),'All Costs'!S7,0) -> 157982.351 | T158: =IF(AND(OR(T$154=$AA$154:$AB$154),OR(T$155=$AA$155:$AB$155),OR(T$156=$AA$156:$AC$156),OR(T$157=$AA$157:$AB$157)),'All Costs'!T7,0) -> 1137.819926 | U158: =IF(AND(OR(U$154=$AA$154:$AB$154),OR(U$155=$AA$155:$AB$155),OR(U$156=$AA$156:$AC$156),OR(U$157=$AA$157:$AB$157)),'All Costs'!U7,0) -> 249667914.2 | V158: =IF(AND(OR(V$154=$AA$154:$AB$154),OR(V$155=$AA$155:$AB$155),OR(V$156=$AA$156:$AC$156),OR(V$157=$AA$157:$AB$157)),'All Costs'!V7,0) -> 28433790.61 | W158: =IF(AND(OR(W$154=$AA$154:$AB$154),OR(W$155=$AA$155:$AB$155),OR(W$156=$AA$156:$AC$156),OR(W$157=$AA$157:$AB$157)),'All Costs'!W7,0) -> 543.9388745 | X158: =IF(AND(OR(X$154=$AA$154:$AB$154),OR(X$155=$AA$155:$AB$155),OR(X$156=$AA$156:$AC$156),OR(X$157=$AA$157:$AB$157)),'All Costs'!X7,0) -> 0 | Y158: =IF(AND(OR(Y$154=$AA$154:$AB$154),OR(Y$155=$AA$155:$AB$155),OR(Y$156=$AA$156:$AC$156),OR(Y$157=$AA$157:$AB$157)),'All Costs'!Y7,0) -> 0 | Z158: =IF(AND(OR(Z$154=$AA$154:$AB$154),OR(Z$155=$AA$155:$AB$155),OR(Z$156=$AA$156:$AC$156),OR(Z$157=$AA$157:$AB$157)),'All Costs'!Z7,0) -> 0 | AA158: =SUM(C158:Z158) -> 669160097.7
B159: Criteria Pollutant (Social Cost) | C159: =IF(AND(OR(C$154=$AA$154:$AB$154),OR(C$155=$AA$155:$AB$155),OR(C$156=$AA$156:$AC$156),OR(C$157=$AA$157:$AB$157)),'All Costs'!C8,0) -> -305383.3684 | D159: =IF(AND(OR(D$154=$AA$154:$AB$154),OR(D$155=$AA$155:$AB$155),OR(D$156=$AA$156:$AC$156),OR(D$157=$AA$157:$AB$157)),'All Costs'!D8,0) -> 34732.30385 | E159: =IF(AND(OR(E$154=$AA$154:$AB$154),OR(E$155=$AA$155:$AB$155),OR(E$156=$AA$156:$AC$156),OR(E$157=$AA$157:$AB$157)),'All Costs'!E8,0) -> 41.17287709 | F159: =IF(AND(OR(F$154=$AA$154:$AB$154),OR(F$155=$AA$155:$AB$155),OR(F$156=$AA$156:$AC$156),OR(F$157=$AA$157:$AB$157)),'All Costs'!F8,0) -> 6.613084008 | G159: =IF(AND(OR(G$154=$AA$154:$AB$154),OR(G$155=$AA$155:$AB$155),OR(G$156=$AA$156:$AC$156),OR(G$157=$AA$157:$AB$157)),'All Costs'!G8,0) -> -0.7144523794 | H159: =IF(AND(OR(H$154=$AA$154:$AB$154),OR(H$155=$AA$155:$AB$155),OR(H$156=$AA$156:$AC$156),OR(H$157=$AA$157:$AB$157)),'All Costs'!H8,0) -> 0.1154311079 | I159: =IF(AND(OR(I$154=$AA$154:$AB$154),OR(I$155=$AA$155:$AB$155),OR(I$156=$AA$156:$AC$156),OR(I$157=$AA$157:$AB$157)),'All Costs'!I8,0) -> -1608938.482 | J159: =IF(AND(OR(J$154=$AA$154:$AB$154),OR(J$155=$AA$155:$AB$155),OR(J$156=$AA$156:$AC$156),OR(J$157=$AA$157:$AB$157)),'All Costs'!J8,0) -> 95538.75558 | K159: =IF(AND(OR(K$154=$AA$154:$AB$154),OR(K$155=$AA$155:$AB$155),OR(K$156=$AA$156:$AC$156),OR(K$157=$AA$157:$AB$157)),'All Costs'!K8,0) -> -14.53770074 | L159: =IF(AND(OR(L$154=$AA$154:$AB$154),OR(L$155=$AA$155:$AB$155),OR(L$156=$AA$156:$AC$156),OR(L$157=$AA$157:$AB$157)),'All Costs'!L8,0) -> 0 | M159: =IF(AND(OR(M$154=$AA$154:$AB$154),OR(M$155=$AA$155:$AB$155),OR(M$156=$AA$156:$AC$156),OR(M$157=$AA$157:$AB$157)),'All Costs'!M8,0) -> 0 | N159: =IF(AND(OR(N$154=$AA$154:$AB$154),OR(N$155=$AA$155:$AB$155),OR(N$156=$AA$156:$AC$156),OR(N$157=$AA$157:$AB$157)),'All Costs'!N8,0) -> 0 | O159: =IF(AND(OR(O$154=$AA$154:$AB$154),OR(O$155=$AA$155:$AB$155),OR(O$156=$AA$156:$AC$156),OR(O$157=$AA$157:$AB$157)),'All Costs'!O8,0) -> -686746.7935 | P159: =IF(AND(OR(P$154=$AA$154:$AB$154),OR(P$155=$AA$155:$AB$155),OR(P$156=$AA$156:$AC$156),OR(P$157=$AA$157:$AB$157)),'All Costs'!P8,0) -> 39253.16409 | Q159: =IF(AND(OR(Q$154=$AA$154:$AB$154),OR(Q$155=$AA$155:$AB$155),OR(Q$156=$AA$156:$AC$156),OR(Q$157=$AA$157:$AB$157)),'All Costs'!Q8,0) -> -1919.73825 | R159: =IF(AND(OR(R$154=$AA$154:$AB$154),OR(R$155=$AA$155:$AB$155),OR(R$156=$AA$156:$AC$156),OR(R$157=$AA$157:$AB$157)),'All Costs'!R8,0) -> 24.92084464 | S159: =IF(AND(OR(S$154=$AA$154:$AB$154),OR(S$155=$AA$155:$AB$155),OR(S$156=$AA$156:$AC$156),OR(S$157=$AA$157:$AB$157)),'All Costs'!S8,0) -> -141.2670836 | T159: =IF(AND(OR(T$154=$AA$154:$AB$154),OR(T$155=$AA$155:$AB$155),OR(T$156=$AA$156:$AC$156),OR(T$157=$AA$157:$AB$157)),'All Costs'!T8,0) -> 5.569601309 | U159: =IF(AND(OR(U$154=$AA$154:$AB$154),OR(U$155=$AA$155:$AB$155),OR(U$156=$AA$156:$AC$156),OR(U$157=$AA$157:$AB$157)),'All Costs'!U8,0) -> -2704099.493 | V159: =IF(AND(OR(V$154=$AA$154:$AB$154),OR(V$155=$AA$155:$AB$155),OR(V$156=$AA$156:$AC$156),OR(V$157=$AA$157:$AB$157)),'All Costs'!V8,0) -> 93477.24263 | W159: =IF(AND(OR(W$154=$AA$154:$AB$154),OR(W$155=$AA$155:$AB$155),OR(W$156=$AA$156:$AC$156),OR(W$157=$AA$157:$AB$157)),'All Costs'!W8,0) -> 0.003143622049 | X159: =IF(AND(OR(X$154=$AA$154:$AB$154),OR(X$155=$AA$155:$AB$155),OR(X$156=$AA$156:$AC$156),OR(X$157=$AA$157:$AB$157)),'All Costs'!X8,0) -> 0 | Y159: =IF(AND(OR(Y$154=$AA$154:$AB$154),OR(Y$155=$AA$155:$AB$155),OR(Y$156=$AA$156:$AC$156),OR(Y$157=$AA$157:$AB$157)),'All Costs'!Y8,0) -> 0 | Z159: =IF(AND(OR(Z$154=$AA$154:$AB$154),OR(Z$155=$AA$155:$AB$155),OR(Z$156=$AA$156:$AC$156),OR(Z$157=$AA$157:$AB$157)),'All Costs'!Z8,0) -> 0 | AA159: -5044164.533
B160: Bill Savings | C160: =IF(AND(OR(C$154=$AA$154:$AB$154),OR(C$155=$AA$155:$AB$155),OR(C$156=$AA$156:$AC$156),OR(C$157=$AA$157:$AB$157)),'All Costs'!C9,0) -> 70008213.93 | D160: =IF(AND(OR(D$154=$AA$154:$AB$154),OR(D$155=$AA$155:$AB$155),OR(D$156=$AA$156:$AC$156),OR(D$157=$AA$157:$AB$157)),'All Costs'!D9,0) -> 11344431.4 | E160: =IF(AND(OR(E$154=$AA$154:$AB$154),OR(E$155=$AA$155:$AB$155),OR(E$156=$AA$156:$AC$156),OR(E$157=$AA$157:$AB$157)),'All Costs'!E9,0) -> 57565.57429 | F160: =IF(AND(OR(F$154=$AA$154:$AB$154),OR(F$155=$AA$155:$AB$155),OR(F$156=$AA$156:$AC$156),OR(F$157=$AA$157:$AB$157)),'All Costs'!F9,0) -> 2844.322265 | G160: =IF(AND(OR(G$154=$AA$154:$AB$154),OR(G$155=$AA$155:$AB$155),OR(G$156=$AA$156:$AC$156),OR(G$157=$AA$157:$AB$157)),'All Costs'!G9,0) -> 5616.676627 | H160: =IF(AND(OR(H$154=$AA$154:$AB$154),OR(H$155=$AA$155:$AB$155),OR(H$156=$AA$156:$AC$156),OR(H$157=$AA$157:$AB$157)),'All Costs'!H9,0) -> 58.67211999 | I160: =IF(AND(OR(I$154=$AA$154:$AB$154),OR(I$155=$AA$155:$AB$155),OR(I$156=$AA$156:$AC$156),OR(I$157=$AA$157:$AB$157)),'All Costs'!I9,0) -> 205539146.3 | J160: =IF(AND(OR(J$154=$AA$154:$AB$154),OR(J$155=$AA$155:$AB$155),OR(J$156=$AA$156:$AC$156),OR(J$157=$AA$157:$AB$157)),'All Costs'!J9,0) -> 38307348.61 | K160: =IF(AND(OR(K$154=$AA$154:$AB$154),OR(K$155=$AA$155:$AB$155),OR(K$156=$AA$156:$AC$156),OR(K$157=$AA$157:$AB$157)),'All Costs'!K9,0) -> 6919.562039 | L160: =IF(AND(OR(L$154=$AA$154:$AB$154),OR(L$155=$AA$155:$AB$155),OR(L$156=$AA$156:$AC$156),OR(L$157=$AA$157:$AB$157)),'All Costs'!L9,0) -> 0 | M160: =IF(AND(OR(M$154=$AA$154:$AB$154),OR(M$155=$AA$155:$AB$155),OR(M$156=$AA$156:$AC$156),OR(M$157=$AA$157:$AB$157)),'All Costs'!M9,0) -> 0 | N160: =IF(AND(OR(N$154=$AA$154:$AB$154),OR(N$155=$AA$155:$AB$155),OR(N$156=$AA$156:$AC$156),OR(N$157=$AA$157:$AB$157)),'All Costs'!N9,0) -> 0 | O160: =IF(AND(OR(O$154=$AA$154:$AB$154),OR(O$155=$AA$155:$AB$155),OR(O$156=$AA$156:$AC$156),OR(O$157=$AA$157:$AB$157)),'All Costs'!O9,0) -> 134026622.2 | P160: =IF(AND(OR(P$154=$AA$154:$AB$154),OR(P$155=$AA$155:$AB$155),OR(P$156=$AA$156:$AC$156),OR(P$157=$AA$157:$AB$157)),'All Costs'!P9,0) -> 12673482.4 | Q160: =IF(AND(OR(Q$154=$AA$154:$AB$154),OR(Q$155=$AA$155:$AB$155),OR(Q$156=$AA$156:$AC$156),OR(Q$157=$AA$157:$AB$157)),'All Costs'!Q9,0) -> 2753479.199 | R160: =IF(AND(OR(R$154=$AA$154:$AB$154),OR(R$155=$AA$155:$AB$155),OR(R$156=$AA$156:$AC$156),OR(R$157=$AA$157:$AB$157)),'All Costs'!R9,0) -> 6988.172807 | S160: =IF(AND(OR(S$154=$AA$154:$AB$154),OR(S$155=$AA$155:$AB$155),OR(S$156=$AA$156:$AC$156),OR(S$157=$AA$157:$AB$157)),'All Costs'!S9,0) -> 192303.8868 | T160: =IF(AND(OR(T$154=$AA$154:$AB$154),OR(T$155=$AA$155:$AB$155),OR(T$156=$AA$156:$AC$156),OR(T$157=$AA$157:$AB$157)),'All Costs'!T9,0) -> 1719.52158 | U160: =IF(AND(OR(U$154=$AA$154:$AB$154),OR(U$155=$AA$155:$AB$155),OR(U$156=$AA$156:$AC$156),OR(U$157=$AA$157:$AB$157)),'All Costs'!U9,0) -> 318067781.1 | V160: =IF(AND(OR(V$154=$AA$154:$AB$154),OR(V$155=$AA$155:$AB$155),OR(V$156=$AA$156:$AC$156),OR(V$157=$AA$157:$AB$157)),'All Costs'!V9,0) -> 36043115.87 | W160: =IF(AND(OR(W$154=$AA$154:$AB$154),OR(W$155=$AA$155:$AB$155),OR(W$156=$AA$156:$AC$156),OR(W$157=$AA$157:$AB$157)),'All Costs'!W9,0) -> 568.9128833 | X160: =IF(AND(OR(X$154=$AA$154:$AB$154),OR(X$155=$AA$155:$AB$155),OR(X$156=$AA$156:$AC$156),OR(X$157=$AA$157:$AB$157)),'All Costs'!X9,0) -> 0 | Y160: =IF(AND(OR(Y$154=$AA$154:$AB$154),OR(Y$155=$AA$155:$AB$155),OR(Y$156=$AA$156:$AC$156),OR(Y$157=$AA$157:$AB$157)),'All Costs'!Y9,0) -> 0 | Z160: =IF(AND(OR(Z$154=$AA$154:$AB$154),OR(Z$155=$AA$155:$AB$155),OR(Z$156=$AA$156:$AC$156),OR(Z$157=$AA$157:$AB$157)),'All Costs'!Z9,0) -> 0 | AA160: 829038206.3
B161: Integration Costs | C161: =IF(AND(OR(C$154=$AA$154:$AB$154),OR(C$155=$AA$155:$AB$155),OR(C$156=$AA$156:$AC$156),OR(C$157=$AA$157:$AB$157)),'All Costs'!C10,0) -> 1408387.835 | D161: =IF(AND(OR(D$154=$AA$154:$AB$154),OR(D$155=$AA$155:$AB$155),OR(D$156=$AA$156:$AC$156),OR(D$157=$AA$157:$AB$157)),'All Costs'!D10,0) -> 230086.9821 | E161: =IF(AND(OR(E$154=$AA$154:$AB$154),OR(E$155=$AA$155:$AB$155),OR(E$156=$AA$156:$AC$156),OR(E$157=$AA$157:$AB$157)),'All Costs'!E10,0) -> 1122.632897 | F161: =IF(AND(OR(F$154=$AA$154:$AB$154),OR(F$155=$AA$155:$AB$155),OR(F$156=$AA$156:$AC$156),OR(F$157=$AA$157:$AB$157)),'All Costs'!F10,0) -> 60.43024897 | G161: =IF(AND(OR(G$154=$AA$154:$AB$154),OR(G$155=$AA$155:$AB$155),OR(G$156=$AA$156:$AC$156),OR(G$157=$AA$157:$AB$157)),'All Costs'!G10,0) -> 105.9331503 | H161: =IF(AND(OR(H$154=$AA$154:$AB$154),OR(H$155=$AA$155:$AB$155),OR(H$156=$AA$156:$AC$156),OR(H$157=$AA$157:$AB$157)),'All Costs'!H10,0) -> 1.228621812 | I161: =IF(AND(OR(I$154=$AA$154:$AB$154),OR(I$155=$AA$155:$AB$155),OR(I$156=$AA$156:$AC$156),OR(I$157=$AA$157:$AB$157)),'All Costs'!I10,0) -> 3756809.645 | J161: =IF(AND(OR(J$154=$AA$154:$AB$154),OR(J$155=$AA$155:$AB$155),OR(J$156=$AA$156:$AC$156),OR(J$157=$AA$157:$AB$157)),'All Costs'!J10,0) -> 733103.1534 | K161: =IF(AND(OR(K$154=$AA$154:$AB$154),OR(K$155=$AA$155:$AB$155),OR(K$156=$AA$156:$AC$156),OR(K$157=$AA$157:$AB$157)),'All Costs'!K10,0) -> 102.3202473 | L161: =IF(AND(OR(L$154=$AA$154:$AB$154),OR(L$155=$AA$155:$AB$155),OR(L$156=$AA$156:$AC$156),OR(L$157=$AA$157:$AB$157)),'All Costs'!L10,0) -> 0 | M161: =IF(AND(OR(M$154=$AA$154:$AB$154),OR(M$155=$AA$155:$AB$155),OR(M$156=$AA$156:$AC$156),OR(M$157=$AA$157:$AB$157)),'All Costs'!M10,0) -> 0 | N161: =IF(AND(OR(N$154=$AA$154:$AB$154),OR(N$155=$AA$155:$AB$155),OR(N$156=$AA$156:$AC$156),OR(N$157=$AA$157:$AB$157)),'All Costs'!N10,0) -> 0 | O161: =IF(AND(OR(O$154=$AA$154:$AB$154),OR(O$155=$AA$155:$AB$155),OR(O$156=$AA$156:$AC$156),OR(O$157=$AA$157:$AB$157)),'All Costs'!O10,0) -> 2954013.225 | P161: =IF(AND(OR(P$154=$AA$154:$AB$154),OR(P$155=$AA$155:$AB$155),OR(P$156=$AA$156:$AC$156),OR(P$157=$AA$157:$AB$157)),'All Costs'!P10,0) -> 259178.0009 | Q161: =IF(AND(OR(Q$154=$AA$154:$AB$154),OR(Q$155=$AA$155:$AB$155),OR(Q$156=$AA$156:$AC$156),OR(Q$157=$AA$157:$AB$157)),'All Costs'!Q10,0) -> 72516.092 | R161: =IF(AND(OR(R$154=$AA$154:$AB$154),OR(R$155=$AA$155:$AB$155),OR(R$156=$AA$156:$AC$156),OR(R$157=$AA$157:$AB$157)),'All Costs'!R10,0) -> 175.6616251 | S161: =IF(AND(OR(S$154=$AA$154:$AB$154),OR(S$155=$AA$155:$AB$155),OR(S$156=$AA$156:$AC$156),OR(S$157=$AA$157:$AB$157)),'All Costs'!S10,0) -> 5158.002231 | T161: =IF(AND(OR(T$154=$AA$154:$AB$154),OR(T$155=$AA$155:$AB$155),OR(T$156=$AA$156:$AC$156),OR(T$157=$AA$157:$AB$157)),'All Costs'!T10,0) -> 42.34559086 | U161: =IF(AND(OR(U$154=$AA$154:$AB$154),OR(U$155=$AA$155:$AB$155),OR(U$156=$AA$156:$AC$156),OR(U$157=$AA$157:$AB$157)),'All Costs'!U10,0) -> 6190179.389 | V161: =IF(AND(OR(V$154=$AA$154:$AB$154),OR(V$155=$AA$155:$AB$155),OR(V$156=$AA$156:$AC$156),OR(V$157=$AA$157:$AB$157)),'All Costs'!V10,0) -> 701513.5968 | W161: =IF(AND(OR(W$154=$AA$154:$AB$154),OR(W$155=$AA$155:$AB$155),OR(W$156=$AA$156:$AC$156),OR(W$157=$AA$157:$AB$157)),'All Costs'!W10,0) -> 12.43255748 | X161: =IF(AND(OR(X$154=$AA$154:$AB$154),OR(X$155=$AA$155:$AB$155),OR(X$156=$AA$156:$AC$156),OR(X$157=$AA$157:$AB$157)),'All Costs'!X10,0) -> 0 | Y161: =IF(AND(OR(Y$154=$AA$154:$AB$154),OR(Y$155=$AA$155:$AB$155),OR(Y$156=$AA$156:$AC$156),OR(Y$157=$AA$157:$AB$157)),'All Costs'!Y10,0) -> 0 | Z161: =IF(AND(OR(Z$154=$AA$154:$AB$154),OR(Z$155=$AA$155:$AB$155),OR(Z$156=$AA$156:$AC$156),OR(Z$157=$AA$157:$AB$157)),'All Costs'!Z10,0) -> 0 | AA161: 16312568.91
B162: CapEx and O&M | C162: =IF(AND(OR(C$154=$AA$154:$AB$154),OR(C$155=$AA$155:$AB$155),OR(C$156=$AA$156:$AC$156),OR(C$157=$AA$157:$AB$157)),'All Costs'!C11,0) -> 192015535.5 | D162: =IF(AND(OR(D$154=$AA$154:$AB$154),OR(D$155=$AA$155:$AB$155),OR(D$156=$AA$156:$AC$156),OR(D$157=$AA$157:$AB$157)),'All Costs'!D11,0) -> 33883910.16 | E162: =IF(AND(OR(E$154=$AA$154:$AB$154),OR(E$155=$AA$155:$AB$155),OR(E$156=$AA$156:$AC$156),OR(E$157=$AA$157:$AB$157)),'All Costs'!E11,0) -> 2107480.319 | F162: =IF(AND(OR(F$154=$AA$154:$AB$154),OR(F$155=$AA$155:$AB$155),OR(F$156=$AA$156:$AC$156),OR(F$157=$AA$157:$AB$157)),'All Costs'!F11,0) -> 85641.87871 | G162: =IF(AND(OR(G$154=$AA$154:$AB$154),OR(G$155=$AA$155:$AB$155),OR(G$156=$AA$156:$AC$156),OR(G$157=$AA$157:$AB$157)),'All Costs'!G11,0) -> 23873.62141 | H162: =IF(AND(OR(H$154=$AA$154:$AB$154),OR(H$155=$AA$155:$AB$155),OR(H$156=$AA$156:$AC$156),OR(H$157=$AA$157:$AB$157)),'All Costs'!H11,0) -> 240.6621144 | I162: =IF(AND(OR(I$154=$AA$154:$AB$154),OR(I$155=$AA$155:$AB$155),OR(I$156=$AA$156:$AC$156),OR(I$157=$AA$157:$AB$157)),'All Costs'!I11,0) -> 469622700.5 | J162: =IF(AND(OR(J$154=$AA$154:$AB$154),OR(J$155=$AA$155:$AB$155),OR(J$156=$AA$156:$AC$156),OR(J$157=$AA$157:$AB$157)),'All Costs'!J11,0) -> 96294894.61 | K162: =IF(AND(OR(K$154=$AA$154:$AB$154),OR(K$155=$AA$155:$AB$155),OR(K$156=$AA$156:$AC$156),OR(K$157=$AA$157:$AB$157)),'All Costs'!K11,0) -> 222434.9205 | L162: =IF(AND(OR(L$154=$AA$154:$AB$154),OR(L$155=$AA$155:$AB$155),OR(L$156=$AA$156:$AC$156),OR(L$157=$AA$157:$AB$157)),'All Costs'!L11,0) -> 0 | M162: =IF(AND(OR(M$154=$AA$154:$AB$154),OR(M$155=$AA$155:$AB$155),OR(M$156=$AA$156:$AC$156),OR(M$157=$AA$157:$AB$157)),'All Costs'!M11,0) -> 0 | N162: =IF(AND(OR(N$154=$AA$154:$AB$154),OR(N$155=$AA$155:$AB$155),OR(N$156=$AA$156:$AC$156),OR(N$157=$AA$157:$AB$157)),'All Costs'!N11,0) -> 0 | O162: =IF(AND(OR(O$154=$AA$154:$AB$154),OR(O$155=$AA$155:$AB$155),OR(O$156=$AA$156:$AC$156),OR(O$157=$AA$157:$AB$157)),'All Costs'!O11,0) -> 394634581.4 | P162: =IF(AND(OR(P$154=$AA$154:$AB$154),OR(P$155=$AA$155:$AB$155),OR(P$156=$AA$156:$AC$156),OR(P$157=$AA$157:$AB$157)),'All Costs'!P11,0) -> 31410078.31 | Q162: =IF(AND(OR(Q$154=$AA$154:$AB$154),OR(Q$155=$AA$155:$AB$155),OR(Q$156=$AA$156:$AC$156),OR(Q$157=$AA$157:$AB$157)),'All Costs'!Q11,0) -> 62298224.84 | R162: =IF(AND(OR(R$154=$AA$154:$AB$154),OR(R$155=$AA$155:$AB$155),OR(R$156=$AA$156:$AC$156),OR(R$157=$AA$157:$AB$157)),'All Costs'!R11,0) -> 191917.361 | S162: =IF(AND(OR(S$154=$AA$154:$AB$154),OR(S$155=$AA$155:$AB$155),OR(S$156=$AA$156:$AC$156),OR(S$157=$AA$157:$AB$157)),'All Costs'!S11,0) -> 662402.5163 | T162: =IF(AND(OR(T$154=$AA$154:$AB$154),OR(T$155=$AA$155:$AB$155),OR(T$156=$AA$156:$AC$156),OR(T$157=$AA$157:$AB$157)),'All Costs'!T11,0) -> 6662.079862 | U162: =IF(AND(OR(U$154=$AA$154:$AB$154),OR(U$155=$AA$155:$AB$155),OR(U$156=$AA$156:$AC$156),OR(U$157=$AA$157:$AB$157)),'All Costs'!U11,0) -> 706306587.3 | V162: =IF(AND(OR(V$154=$AA$154:$AB$154),OR(V$155=$AA$155:$AB$155),OR(V$156=$AA$156:$AC$156),OR(V$157=$AA$157:$AB$157)),'All Costs'!V11,0) -> 81368728.61 | W162: =IF(AND(OR(W$154=$AA$154:$AB$154),OR(W$155=$AA$155:$AB$155),OR(W$156=$AA$156:$AC$156),OR(W$157=$AA$157:$AB$157)),'All Costs'!W11,0) -> 69045.873 | X162: =IF(AND(OR(X$154=$AA$154:$AB$154),OR(X$155=$AA$155:$AB$155),OR(X$156=$AA$156:$AC$156),OR(X$157=$AA$157:$AB$157)),'All Costs'!X11,0) -> 0 | Y162: =IF(AND(OR(Y$154=$AA$154:$AB$154),OR(Y$155=$AA$155:$AB$155),OR(Y$156=$AA$156:$AC$156),OR(Y$157=$AA$157:$AB$157)),'All Costs'!Y11,0) -> 0 | Z162: =IF(AND(OR(Z$154=$AA$154:$AB$154),OR(Z$155=$AA$155:$AB$155),OR(Z$156=$AA$156:$AC$156),OR(Z$157=$AA$157:$AB$157)),'All Costs'!Z11,0) -> 0 | AA162: 2071204940
B163: Fed Incentives | C163: =IF(AND(OR(C$154=$AA$154:$AB$154),OR(C$155=$AA$155:$AB$155),OR(C$156=$AA$156:$AC$156),OR(C$157=$AA$157:$AB$157)),'All Costs'!C12,0) -> 69431048.06 | D163: =IF(AND(OR(D$154=$AA$154:$AB$154),OR(D$155=$AA$155:$AB$155),OR(D$156=$AA$156:$AC$156),OR(D$157=$AA$157:$AB$157)),'All Costs'!D12,0) -> 12846290.88 | E163: =IF(AND(OR(E$154=$AA$154:$AB$154),OR(E$155=$AA$155:$AB$155),OR(E$156=$AA$156:$AC$156),OR(E$157=$AA$157:$AB$157)),'All Costs'!E12,0) -> 702973.3345 | F163: =IF(AND(OR(F$154=$AA$154:$AB$154),OR(F$155=$AA$155:$AB$155),OR(F$156=$AA$156:$AC$156),OR(F$157=$AA$157:$AB$157)),'All Costs'!F12,0) -> 32919.84617 | G163: =IF(AND(OR(G$154=$AA$154:$AB$154),OR(G$155=$AA$155:$AB$155),OR(G$156=$AA$156:$AC$156),OR(G$157=$AA$157:$AB$157)),'All Costs'!G12,0) -> 8786.059306 | H163: =IF(AND(OR(H$154=$AA$154:$AB$154),OR(H$155=$AA$155:$AB$155),OR(H$156=$AA$156:$AC$156),OR(H$157=$AA$157:$AB$157)),'All Costs'!H12,0) -> 89.67224715 | I163: =IF(AND(OR(I$154=$AA$154:$AB$154),OR(I$155=$AA$155:$AB$155),OR(I$156=$AA$156:$AC$156),OR(I$157=$AA$157:$AB$157)),'All Costs'!I12,0) -> 170724858.7 | J163: =IF(AND(OR(J$154=$AA$154:$AB$154),OR(J$155=$AA$155:$AB$155),OR(J$156=$AA$156:$AC$156),OR(J$157=$AA$157:$AB$157)),'All Costs'!J12,0) -> 36781185.4 | K163: =IF(AND(OR(K$154=$AA$154:$AB$154),OR(K$155=$AA$155:$AB$155),OR(K$156=$AA$156:$AC$156),OR(K$157=$AA$157:$AB$157)),'All Costs'!K12,0) -> 75443.21912 | L163: =IF(AND(OR(L$154=$AA$154:$AB$154),OR(L$155=$AA$155:$AB$155),OR(L$156=$AA$156:$AC$156),OR(L$157=$AA$157:$AB$157)),'All Costs'!L12,0) -> 0 | M163: =IF(AND(OR(M$154=$AA$154:$AB$154),OR(M$155=$AA$155:$AB$155),OR(M$156=$AA$156:$AC$156),OR(M$157=$AA$157:$AB$157)),'All Costs'!M12,0) -> 0 | N163: =IF(AND(OR(N$154=$AA$154:$AB$154),OR(N$155=$AA$155:$AB$155),OR(N$156=$AA$156:$AC$156),OR(N$157=$AA$157:$AB$157)),'All Costs'!N12,0) -> 0 | O163: =IF(AND(OR(O$154=$AA$154:$AB$154),OR(O$155=$AA$155:$AB$155),OR(O$156=$AA$156:$AC$156),OR(O$157=$AA$157:$AB$157)),'All Costs'!O12,0) -> 136805624.9 | P163: =IF(AND(OR(P$154=$AA$154:$AB$154),OR(P$155=$AA$155:$AB$155),OR(P$156=$AA$156:$AC$156),OR(P$157=$AA$157:$AB$157)),'All Costs'!P12,0) -> 11742005.57 | Q163: =IF(AND(OR(Q$154=$AA$154:$AB$154),OR(Q$155=$AA$155:$AB$155),OR(Q$156=$AA$156:$AC$156),OR(Q$157=$AA$157:$AB$157)),'All Costs'!Q12,0) -> 19903604.43 | R163: =IF(AND(OR(R$154=$AA$154:$AB$154),OR(R$155=$AA$155:$AB$155),OR(R$156=$AA$156:$AC$156),OR(R$157=$AA$157:$AB$157)),'All Costs'!R12,0) -> 72286.87525 | S163: =IF(AND(OR(S$154=$AA$154:$AB$154),OR(S$155=$AA$155:$AB$155),OR(S$156=$AA$156:$AC$156),OR(S$157=$AA$157:$AB$157)),'All Costs'!S12,0) -> 232677.4525 | T163: =IF(AND(OR(T$154=$AA$154:$AB$154),OR(T$155=$AA$155:$AB$155),OR(T$156=$AA$156:$AC$156),OR(T$157=$AA$157:$AB$157)),'All Costs'!T12,0) -> 2404.56458 | U163: =IF(AND(OR(U$154=$AA$154:$AB$154),OR(U$155=$AA$155:$AB$155),OR(U$156=$AA$156:$AC$156),OR(U$157=$AA$157:$AB$157)),'All Costs'!U12,0) -> 250292189.7 | V163: =IF(AND(OR(V$154=$AA$154:$AB$154),OR(V$155=$AA$155:$AB$155),OR(V$156=$AA$156:$AC$156),OR(V$157=$AA$157:$AB$157)),'All Costs'!V12,0) -> 30439621.82 | W163: =IF(AND(OR(W$154=$AA$154:$AB$154),OR(W$155=$AA$155:$AB$155),OR(W$156=$AA$156:$AC$156),OR(W$157=$AA$157:$AB$157)),'All Costs'!W12,0) -> 23920.60032 | X163: =IF(AND(OR(X$154=$AA$154:$AB$154),OR(X$155=$AA$155:$AB$155),OR(X$156=$AA$156:$AC$156),OR(X$157=$AA$157:$AB$157)),'All Costs'!X12,0) -> 0 | Y163: =IF(AND(OR(Y$154=$AA$154:$AB$154),OR(Y$155=$AA$155:$AB$155),OR(Y$156=$AA$156:$AC$156),OR(Y$157=$AA$157:$AB$157)),'All Costs'!Y12,0) -> 0 | Z163: =IF(AND(OR(Z$154=$AA$154:$AB$154),OR(Z$155=$AA$155:$AB$155),OR(Z$156=$AA$156:$AC$156),OR(Z$157=$AA$157:$AB$157)),'All Costs'!Z12,0) -> 0 | AA163: 740117931.1
B164: Utility Incentives | C164: =IF(AND(OR(C$154=$AA$154:$AB$154),OR(C$155=$AA$155:$AB$155),OR(C$156=$AA$156:$AC$156),OR(C$157=$AA$157:$AB$157)),'All Costs'!C13,0) -> 18886934.62 | D164: =IF(AND(OR(D$154=$AA$154:$AB$154),OR(D$155=$AA$155:$AB$155),OR(D$156=$AA$156:$AC$156),OR(D$157=$AA$157:$AB$157)),'All Costs'!D13,0) -> 0 | E164: =IF(AND(OR(E$154=$AA$154:$AB$154),OR(E$155=$AA$155:$AB$155),OR(E$156=$AA$156:$AC$156),OR(E$157=$AA$157:$AB$157)),'All Costs'!E13,0) -> 847689.1542 | F164: =IF(AND(OR(F$154=$AA$154:$AB$154),OR(F$155=$AA$155:$AB$155),OR(F$156=$AA$156:$AC$156),OR(F$157=$AA$157:$AB$157)),'All Costs'!F13,0) -> 0 | G164: =IF(AND(OR(G$154=$AA$154:$AB$154),OR(G$155=$AA$155:$AB$155),OR(G$156=$AA$156:$AC$156),OR(G$157=$AA$157:$AB$157)),'All Costs'!G13,0) -> 1026.225492 | H164: =IF(AND(OR(H$154=$AA$154:$AB$154),OR(H$155=$AA$155:$AB$155),OR(H$156=$AA$156:$AC$156),OR(H$157=$AA$157:$AB$157)),'All Costs'!H13,0) -> 0 | I164: =IF(AND(OR(I$154=$AA$154:$AB$154),OR(I$155=$AA$155:$AB$155),OR(I$156=$AA$156:$AC$156),OR(I$157=$AA$157:$AB$157)),'All Costs'!I13,0) -> 40800732.5 | J164: =IF(AND(OR(J$154=$AA$154:$AB$154),OR(J$155=$AA$155:$AB$155),OR(J$156=$AA$156:$AC$156),OR(J$157=$AA$157:$AB$157)),'All Costs'!J13,0) -> 0 | K164: =IF(AND(OR(K$154=$AA$154:$AB$154),OR(K$155=$AA$155:$AB$155),OR(K$156=$AA$156:$AC$156),OR(K$157=$AA$157:$AB$157)),'All Costs'!K13,0) -> 82450.8341 | L164: =IF(AND(OR(L$154=$AA$154:$AB$154),OR(L$155=$AA$155:$AB$155),OR(L$156=$AA$156:$AC$156),OR(L$157=$AA$157:$AB$157)),'All Costs'!L13,0) -> 0 | M164: =IF(AND(OR(M$154=$AA$154:$AB$154),OR(M$155=$AA$155:$AB$155),OR(M$156=$AA$156:$AC$156),OR(M$157=$AA$157:$AB$157)),'All Costs'!M13,0) -> 0 | N164: =IF(AND(OR(N$154=$AA$154:$AB$154),OR(N$155=$AA$155:$AB$155),OR(N$156=$AA$156:$AC$156),OR(N$157=$AA$157:$AB$157)),'All Costs'!N13,0) -> 0 | O164: =IF(AND(OR(O$154=$AA$154:$AB$154),OR(O$155=$AA$155:$AB$155),OR(O$156=$AA$156:$AC$156),OR(O$157=$AA$157:$AB$157)),'All Costs'!O13,0) -> 122879145.9 | P164: =IF(AND(OR(P$154=$AA$154:$AB$154),OR(P$155=$AA$155:$AB$155),OR(P$156=$AA$156:$AC$156),OR(P$157=$AA$157:$AB$157)),'All Costs'!P13,0) -> 0 | Q164: =IF(AND(OR(Q$154=$AA$154:$AB$154),OR(Q$155=$AA$155:$AB$155),OR(Q$156=$AA$156:$AC$156),OR(Q$157=$AA$157:$AB$157)),'All Costs'!Q13,0) -> 32104191.03 | R164: =IF(AND(OR(R$154=$AA$154:$AB$154),OR(R$155=$AA$155:$AB$155),OR(R$156=$AA$156:$AC$156),OR(R$157=$AA$157:$AB$157)),'All Costs'!R13,0) -> 0 | S164: =IF(AND(OR(S$154=$AA$154:$AB$154),OR(S$155=$AA$155:$AB$155),OR(S$156=$AA$156:$AC$156),OR(S$157=$AA$157:$AB$157)),'All Costs'!S13,0) -> 67037.50433 | T164: =IF(AND(OR(T$154=$AA$154:$AB$154),OR(T$155=$AA$155:$AB$155),OR(T$156=$AA$156:$AC$156),OR(T$157=$AA$157:$AB$157)),'All Costs'!T13,0) -> 0 | U164: =IF(AND(OR(U$154=$AA$154:$AB$154),OR(U$155=$AA$155:$AB$155),OR(U$156=$AA$156:$AC$156),OR(U$157=$AA$157:$AB$157)),'All Costs'!U13,0) -> 140931223.9 | V164: =IF(AND(OR(V$154=$AA$154:$AB$154),OR(V$155=$AA$155:$AB$155),OR(V$156=$AA$156:$AC$156),OR(V$157=$AA$157:$AB$157)),'All Costs'!V13,0) -> 0 | W164: =IF(AND(OR(W$154=$AA$154:$AB$154),OR(W$155=$AA$155:$AB$155),OR(W$156=$AA$156:$AC$156),OR(W$157=$AA$157:$AB$157)),'All Costs'!W13,0) -> 20230.88727 | X164: =IF(AND(OR(X$154=$AA$154:$AB$154),OR(X$155=$AA$155:$AB$155),OR(X$156=$AA$156:$AC$156),OR(X$157=$AA$157:$AB$157)),'All Costs'!X13,0) -> 0 | Y164: =IF(AND(OR(Y$154=$AA$154:$AB$154),OR(Y$155=$AA$155:$AB$155),OR(Y$156=$AA$156:$AC$156),OR(Y$157=$AA$157:$AB$157)),'All Costs'!Y13,0) -> 0 | Z164: =IF(AND(OR(Z$154=$AA$154:$AB$154),OR(Z$155=$AA$155:$AB$155),OR(Z$156=$AA$156:$AC$156),OR(Z$157=$AA$157:$AB$157)),'All Costs'!Z13,0) -> 0 | AA164: 356620662.6
B165: NEM Program Costs | C165: =IF(AND(OR(C$154=$AA$154:$AB$154),OR(C$155=$AA$155:$AB$155),OR(C$156=$AA$156:$AC$156),OR(C$157=$AA$157:$AB$157)),'All Costs'!C14,0) -> 562235.5552 | D165: =IF(AND(OR(D$154=$AA$154:$AB$154),OR(D$155=$AA$155:$AB$155),OR(D$156=$AA$156:$AC$156),OR(D$157=$AA$157:$AB$157)),'All Costs'!D14,0) -> 71940.9347 | E165: =IF(AND(OR(E$154=$AA$154:$AB$154),OR(E$155=$AA$155:$AB$155),OR(E$156=$AA$156:$AC$156),OR(E$157=$AA$157:$AB$157)),'All Costs'!E14,0) -> 1429.577139 | F165: =IF(AND(OR(F$154=$AA$154:$AB$154),OR(F$155=$AA$155:$AB$155),OR(F$156=$AA$156:$AC$156),OR(F$157=$AA$157:$AB$157)),'All Costs'!F14,0) -> 59.05475307 | G165: =IF(AND(OR(G$154=$AA$154:$AB$154),OR(G$155=$AA$155:$AB$155),OR(G$156=$AA$156:$AC$156),OR(G$157=$AA$157:$AB$157)),'All Costs'!G14,0) -> 55.19496147 | H165: =IF(AND(OR(H$154=$AA$154:$AB$154),OR(H$155=$AA$155:$AB$155),OR(H$156=$AA$156:$AC$156),OR(H$157=$AA$157:$AB$157)),'All Costs'!H14,0) -> 0.5575248634 | I165: =IF(AND(OR(I$154=$AA$154:$AB$154),OR(I$155=$AA$155:$AB$155),OR(I$156=$AA$156:$AC$156),OR(I$157=$AA$157:$AB$157)),'All Costs'!I14,0) -> 1171209.307 | J165: =IF(AND(OR(J$154=$AA$154:$AB$154),OR(J$155=$AA$155:$AB$155),OR(J$156=$AA$156:$AC$156),OR(J$157=$AA$157:$AB$157)),'All Costs'!J14,0) -> 169116.422 | K165: =IF(AND(OR(K$154=$AA$154:$AB$154),OR(K$155=$AA$155:$AB$155),OR(K$156=$AA$156:$AC$156),OR(K$157=$AA$157:$AB$157)),'All Costs'!K14,0) -> 149.9323111 | L165: =IF(AND(OR(L$154=$AA$154:$AB$154),OR(L$155=$AA$155:$AB$155),OR(L$156=$AA$156:$AC$156),OR(L$157=$AA$157:$AB$157)),'All Costs'!L14,0) -> 0 | M165: =IF(AND(OR(M$154=$AA$154:$AB$154),OR(M$155=$AA$155:$AB$155),OR(M$156=$AA$156:$AC$156),OR(M$157=$AA$157:$AB$157)),'All Costs'!M14,0) -> 0 | N165: =IF(AND(OR(N$154=$AA$154:$AB$154),OR(N$155=$AA$155:$AB$155),OR(N$156=$AA$156:$AC$156),OR(N$157=$AA$157:$AB$157)),'All Costs'!N14,0) -> 0 | O165: =IF(AND(OR(O$154=$AA$154:$AB$154),OR(O$155=$AA$155:$AB$155),OR(O$156=$AA$156:$AC$156),OR(O$157=$AA$157:$AB$157)),'All Costs'!O14,0) -> 951779.5505 | P165: =IF(AND(OR(P$154=$AA$154:$AB$154),OR(P$155=$AA$155:$AB$155),OR(P$156=$AA$156:$AC$156),OR(P$157=$AA$157:$AB$157)),'All Costs'!P14,0) -> 96711.90331 | Q165: =IF(AND(OR(Q$154=$AA$154:$AB$154),OR(Q$155=$AA$155:$AB$155),OR(Q$156=$AA$156:$AC$156),OR(Q$157=$AA$157:$AB$157)),'All Costs'!Q14,0) -> 68926.10228 | R165: =IF(AND(OR(R$154=$AA$154:$AB$154),OR(R$155=$AA$155:$AB$155),OR(R$156=$AA$156:$AC$156),OR(R$157=$AA$157:$AB$157)),'All Costs'!R14,0) -> 208.7459117 | S165: =IF(AND(OR(S$154=$AA$154:$AB$154),OR(S$155=$AA$155:$AB$155),OR(S$156=$AA$156:$AC$156),OR(S$157=$AA$157:$AB$157)),'All Costs'!S14,0) -> 2428.578305 | T165: =IF(AND(OR(T$154=$AA$154:$AB$154),OR(T$155=$AA$155:$AB$155),OR(T$156=$AA$156:$AC$156),OR(T$157=$AA$157:$AB$157)),'All Costs'!T14,0) -> 24.53109399 | U165: =IF(AND(OR(U$154=$AA$154:$AB$154),OR(U$155=$AA$155:$AB$155),OR(U$156=$AA$156:$AC$156),OR(U$157=$AA$157:$AB$157)),'All Costs'!U14,0) -> 1825276.018 | V165: =IF(AND(OR(V$154=$AA$154:$AB$154),OR(V$155=$AA$155:$AB$155),OR(V$156=$AA$156:$AC$156),OR(V$157=$AA$157:$AB$157)),'All Costs'!V14,0) -> 205855.9043 | W165: =IF(AND(OR(W$154=$AA$154:$AB$154),OR(W$155=$AA$155:$AB$155),OR(W$156=$AA$156:$AC$156),OR(W$157=$AA$157:$AB$157)),'All Costs'!W14,0) -> 32.67453545 | X165: =IF(AND(OR(X$154=$AA$154:$AB$154),OR(X$155=$AA$155:$AB$155),OR(X$156=$AA$156:$AC$156),OR(X$157=$AA$157:$AB$157)),'All Costs'!X14,0) -> 0 | Y165: =IF(AND(OR(Y$154=$AA$154:$AB$154),OR(Y$155=$AA$155:$AB$155),OR(Y$156=$AA$156:$AC$156),OR(Y$157=$AA$157:$AB$157)),'All Costs'!Y14,0) -> 0 | Z165: =IF(AND(OR(Z$154=$AA$154:$AB$154),OR(Z$155=$AA$155:$AB$155),OR(Z$156=$AA$156:$AC$156),OR(Z$157=$AA$157:$AB$157)),'All Costs'!Z14,0) -> 0 | AA165: =SUM(C165:Z165) -> 5127440.544
B166: Avoided RPS | C166: =IF(AND(OR(C$154=$AA$154:$AB$154),OR(C$155=$AA$155:$AB$155),OR(C$156=$AA$156:$AC$156),OR(C$157=$AA$157:$AB$157)),'All Costs'!C15,0) -> 49697095.86 | D166: =IF(AND(OR(D$154=$AA$154:$AB$154),OR(D$155=$AA$155:$AB$155),OR(D$156=$AA$156:$AC$156),OR(D$157=$AA$157:$AB$157)),'All Costs'!D15,0) -> 796823.6215 | E166: =IF(AND(OR(E$154=$AA$154:$AB$154),OR(E$155=$AA$155:$AB$155),OR(E$156=$AA$156:$AC$156),OR(E$157=$AA$157:$AB$157)),'All Costs'!E15,0) -> 22196.54969 | F166: =IF(AND(OR(F$154=$AA$154:$AB$154),OR(F$155=$AA$155:$AB$155),OR(F$156=$AA$156:$AC$156),OR(F$157=$AA$157:$AB$157)),'All Costs'!F15,0) -> 213.4969157 | G166: =IF(AND(OR(G$154=$AA$154:$AB$154),OR(G$155=$AA$155:$AB$155),OR(G$156=$AA$156:$AC$156),OR(G$157=$AA$157:$AB$157)),'All Costs'!G15,0) -> 1958.096769 | H166: =IF(AND(OR(H$154=$AA$154:$AB$154),OR(H$155=$AA$155:$AB$155),OR(H$156=$AA$156:$AC$156),OR(H$157=$AA$157:$AB$157)),'All Costs'!H15,0) -> 4.186445493 | I166: =IF(AND(OR(I$154=$AA$154:$AB$154),OR(I$155=$AA$155:$AB$155),OR(I$156=$AA$156:$AC$156),OR(I$157=$AA$157:$AB$157)),'All Costs'!I15,0) -> 165654496.2 | J166: =IF(AND(OR(J$154=$AA$154:$AB$154),OR(J$155=$AA$155:$AB$155),OR(J$156=$AA$156:$AC$156),OR(J$157=$AA$157:$AB$157)),'All Costs'!J15,0) -> 3205812.016 | K166: =IF(AND(OR(K$154=$AA$154:$AB$154),OR(K$155=$AA$155:$AB$155),OR(K$156=$AA$156:$AC$156),OR(K$157=$AA$157:$AB$157)),'All Costs'!K15,0) -> 2472.717463 | L166: =IF(AND(OR(L$154=$AA$154:$AB$154),OR(L$155=$AA$155:$AB$155),OR(L$156=$AA$156:$AC$156),OR(L$157=$AA$157:$AB$157)),'All Costs'!L15,0) -> 0 | M166: =IF(AND(OR(M$154=$AA$154:$AB$154),OR(M$155=$AA$155:$AB$155),OR(M$156=$AA$156:$AC$156),OR(M$157=$AA$157:$AB$157)),'All Costs'!M15,0) -> 0 | N166: =IF(AND(OR(N$154=$AA$154:$AB$154),OR(N$155=$AA$155:$AB$155),OR(N$156=$AA$156:$AC$156),OR(N$157=$AA$157:$AB$157)),'All Costs'!N15,0) -> 0 | O166: =IF(AND(OR(O$154=$AA$154:$AB$154),OR(O$155=$AA$155:$AB$155),OR(O$156=$AA$156:$AC$156),OR(O$157=$AA$157:$AB$157)),'All Costs'!O15,0) -> 110389322.6 | P166: =IF(AND(OR(P$154=$AA$154:$AB$154),OR(P$155=$AA$155:$AB$155),OR(P$156=$AA$156:$AC$156),OR(P$157=$AA$157:$AB$157)),'All Costs'!P15,0) -> 890162.9437 | Q166: =IF(AND(OR(Q$154=$AA$154:$AB$154),OR(Q$155=$AA$155:$AB$155),OR(Q$156=$AA$156:$AC$156),OR(Q$157=$AA$157:$AB$157)),'All Costs'!Q15,0) -> 1404720.314 | R166: =IF(AND(OR(R$154=$AA$154:$AB$154),OR(R$155=$AA$155:$AB$155),OR(R$156=$AA$156:$AC$156),OR(R$157=$AA$157:$AB$157)),'All Costs'!R15,0) -> 616.5266195 | S166: =IF(AND(OR(S$154=$AA$154:$AB$154),OR(S$155=$AA$155:$AB$155),OR(S$156=$AA$156:$AC$156),OR(S$157=$AA$157:$AB$157)),'All Costs'!S15,0) -> 95341.89694 | T166: =IF(AND(OR(T$154=$AA$154:$AB$154),OR(T$155=$AA$155:$AB$155),OR(T$156=$AA$156:$AC$156),OR(T$157=$AA$157:$AB$157)),'All Costs'!T15,0) -> 144.2897288 | U166: =IF(AND(OR(U$154=$AA$154:$AB$154),OR(U$155=$AA$155:$AB$155),OR(U$156=$AA$156:$AC$156),OR(U$157=$AA$157:$AB$157)),'All Costs'!U15,0) -> 277707406.1 | V166: =IF(AND(OR(V$154=$AA$154:$AB$154),OR(V$155=$AA$155:$AB$155),OR(V$156=$AA$156:$AC$156),OR(V$157=$AA$157:$AB$157)),'All Costs'!V15,0) -> 3063254.143 | W166: =IF(AND(OR(W$154=$AA$154:$AB$154),OR(W$155=$AA$155:$AB$155),OR(W$156=$AA$156:$AC$156),OR(W$157=$AA$157:$AB$157)),'All Costs'!W15,0) -> 303.1114875 | X166: =IF(AND(OR(X$154=$AA$154:$AB$154),OR(X$155=$AA$155:$AB$155),OR(X$156=$AA$156:$AC$156),OR(X$157=$AA$157:$AB$157)),'All Costs'!X15,0) -> 0 | Y166: =IF(AND(OR(Y$154=$AA$154:$AB$154),OR(Y$155=$AA$155:$AB$155),OR(Y$156=$AA$156:$AC$156),OR(Y$157=$AA$157:$AB$157)),'All Costs'!Y15,0) -> 0 | Z166: =IF(AND(OR(Z$154=$AA$154:$AB$154),OR(Z$155=$AA$155:$AB$155),OR(Z$156=$AA$156:$AC$156),OR(Z$157=$AA$157:$AB$157)),'All Costs'!Z15,0) -> 0 | AA166: =SUM(C166:Z166) -> 612932344.7
B167: Generation | C167: =IF(AND(OR(C$154=$AA$154:$AB$154),OR(C$155=$AA$155:$AB$155),OR(C$156=$AA$156:$AC$156),OR(C$157=$AA$157:$AB$157)),'All Costs'!C16,0) -> 572379397.3 | D167: =IF(AND(OR(D$154=$AA$154:$AB$154),OR(D$155=$AA$155:$AB$155),OR(D$156=$AA$156:$AC$156),OR(D$157=$AA$157:$AB$157)),'All Costs'!D16,0) -> 94415709.33 | E167: =IF(AND(OR(E$154=$AA$154:$AB$154),OR(E$155=$AA$155:$AB$155),OR(E$156=$AA$156:$AC$156),OR(E$157=$AA$157:$AB$157)),'All Costs'!E16,0) -> 474294.6262 | F167: =IF(AND(OR(F$154=$AA$154:$AB$154),OR(F$155=$AA$155:$AB$155),OR(F$156=$AA$156:$AC$156),OR(F$157=$AA$157:$AB$157)),'All Costs'!F16,0) -> 25260.20419 | G167: =IF(AND(OR(G$154=$AA$154:$AB$154),OR(G$155=$AA$155:$AB$155),OR(G$156=$AA$156:$AC$156),OR(G$157=$AA$157:$AB$157)),'All Costs'!G16,0) -> 42844.71665 | H167: =IF(AND(OR(H$154=$AA$154:$AB$154),OR(H$155=$AA$155:$AB$155),OR(H$156=$AA$156:$AC$156),OR(H$157=$AA$157:$AB$157)),'All Costs'!H16,0) -> 496.916718 | I167: =IF(AND(OR(I$154=$AA$154:$AB$154),OR(I$155=$AA$155:$AB$155),OR(I$156=$AA$156:$AC$156),OR(I$157=$AA$157:$AB$157)),'All Costs'!I16,0) -> 1524437374 | J167: =IF(AND(OR(J$154=$AA$154:$AB$154),OR(J$155=$AA$155:$AB$155),OR(J$156=$AA$156:$AC$156),OR(J$157=$AA$157:$AB$157)),'All Costs'!J16,0) -> 300757638.5 | K167: =IF(AND(OR(K$154=$AA$154:$AB$154),OR(K$155=$AA$155:$AB$155),OR(K$156=$AA$156:$AC$156),OR(K$157=$AA$157:$AB$157)),'All Costs'!K16,0) -> 43122.90794 | L167: =IF(AND(OR(L$154=$AA$154:$AB$154),OR(L$155=$AA$155:$AB$155),OR(L$156=$AA$156:$AC$156),OR(L$157=$AA$157:$AB$157)),'All Costs'!L16,0) -> 0 | M167: =IF(AND(OR(M$154=$AA$154:$AB$154),OR(M$155=$AA$155:$AB$155),OR(M$156=$AA$156:$AC$156),OR(M$157=$AA$157:$AB$157)),'All Costs'!M16,0) -> 0 | N167: =IF(AND(OR(N$154=$AA$154:$AB$154),OR(N$155=$AA$155:$AB$155),OR(N$156=$AA$156:$AC$156),OR(N$157=$AA$157:$AB$157)),'All Costs'!N16,0) -> 0 | O167: =IF(AND(OR(O$154=$AA$154:$AB$154),OR(O$155=$AA$155:$AB$155),OR(O$156=$AA$156:$AC$156),OR(O$157=$AA$157:$AB$157)),'All Costs'!O16,0) -> 1210857582 | P167: =IF(AND(OR(P$154=$AA$154:$AB$154),OR(P$155=$AA$155:$AB$155),OR(P$156=$AA$156:$AC$156),OR(P$157=$AA$157:$AB$157)),'All Costs'!P16,0) -> 105572058.4 | Q167: =IF(AND(OR(Q$154=$AA$154:$AB$154),OR(Q$155=$AA$155:$AB$155),OR(Q$156=$AA$156:$AC$156),OR(Q$157=$AA$157:$AB$157)),'All Costs'!Q16,0) -> 30260562.38 | R167: =IF(AND(OR(R$154=$AA$154:$AB$154),OR(R$155=$AA$155:$AB$155),OR(R$156=$AA$156:$AC$156),OR(R$157=$AA$157:$AB$157)),'All Costs'!R16,0) -> 73094.75462 | S167: =IF(AND(OR(S$154=$AA$154:$AB$154),OR(S$155=$AA$155:$AB$155),OR(S$156=$AA$156:$AC$156),OR(S$157=$AA$157:$AB$157)),'All Costs'!S16,0) -> 2086156.631 | T167: =IF(AND(OR(T$154=$AA$154:$AB$154),OR(T$155=$AA$155:$AB$155),OR(T$156=$AA$156:$AC$156),OR(T$157=$AA$157:$AB$157)),'All Costs'!T16,0) -> 17126.6958 | U167: =IF(AND(OR(U$154=$AA$154:$AB$154),OR(U$155=$AA$155:$AB$155),OR(U$156=$AA$156:$AC$156),OR(U$157=$AA$157:$AB$157)),'All Costs'!U16,0) -> 2518958963 | V167: =IF(AND(OR(V$154=$AA$154:$AB$154),OR(V$155=$AA$155:$AB$155),OR(V$156=$AA$156:$AC$156),OR(V$157=$AA$157:$AB$157)),'All Costs'!V16,0) -> 285971605.4 | W167: =IF(AND(OR(W$154=$AA$154:$AB$154),OR(W$155=$AA$155:$AB$155),OR(W$156=$AA$156:$AC$156),OR(W$157=$AA$157:$AB$157)),'All Costs'!W16,0) -> 5301.188402 | X167: =IF(AND(OR(X$154=$AA$154:$AB$154),OR(X$155=$AA$155:$AB$155),OR(X$156=$AA$156:$AC$156),OR(X$157=$AA$157:$AB$157)),'All Costs'!X16,0) -> 0 | Y167: =IF(AND(OR(Y$154=$AA$154:$AB$154),OR(Y$155=$AA$155:$AB$155),OR(Y$156=$AA$156:$AC$156),OR(Y$157=$AA$157:$AB$157)),'All Costs'!Y16,0) -> 0 | Z167: =IF(AND(OR(Z$154=$AA$154:$AB$154),OR(Z$155=$AA$155:$AB$155),OR(Z$156=$AA$156:$AC$156),OR(Z$157=$AA$157:$AB$157)),'All Costs'!Z16,0) -> 0 | AA167: 6646378588
C169: Participant NPVs
C170: Residential | D170: Residential | E170: Residential | F170: Residential | G170: Residential | H170: Residential | I170: Residential | J170: Residential | K170: Residential | L170: Residential | M170: Residential | N170: Residential | O170: Non-Residential | P170: Non-Residential | Q170: Non-Residential | R170: Non-Residential | S170: Non-Residential | T170: Non-Residential | U170: Non-Residential | V170: Non-Residential | W170: Non-Residential | X170: Non-Residential | Y170: Non-Residential | Z170: Non-Residential
C171: NVE North | D171: NVE North | E171: NVE North | F171: NVE North | G171: NVE North | H171: NVE North | I171: NVE South | J171: NVE South | K171: NVE South | L171: NVE South | M171: NVE South | N171: NVE South | O171: NVE North | P171: NVE North | Q171: NVE North | R171: NVE North | S171: NVE North | T171: NVE North | U171: NVE South | V171: NVE South | W171: NVE South | X171: NVE South | Y171: NVE South | Z171: NVE South
C172: PV | D172: PV | E172: Existing Wind | F172: Existing Wind | G172: New Wind | H172: New Wind | I172: PV | J172: PV | K172: Existing Wind | L172: Existing Wind | M172: New Wind | N172: New Wind | O172: PV | P172: PV | Q172: Existing Wind | R172: Existing Wind | S172: New Wind | T172: New Wind | U172: PV | V172: PV | W172: Existing Wind | X172: Existing Wind | Y172: New Wind | Z172: New Wind
C173: Incentivized | D173: Non-incentivized | E173: Incentivized | F173: Non-incentivized | G173: Incentivized | H173: Non-incentivized | I173: Incentivized | J173: Non-incentivized | K173: Incentivized | L173: Non-incentivized | M173: Incentivized | N173: Non-incentivized | O173: Incentivized | P173: Non-incentivized | Q173: Incentivized | R173: Non-incentivized | S173: Incentivized | T173: Non-incentivized | U173: Incentivized | V173: Non-incentivized | W173: Incentivized | X173: Non-incentivized | Y173: Incentivized | Z173: Non-incentivized
B174: Avoided Costs | C174: =IF(AND(OR(C$154=$AA$154:$AB$154),OR(C$155=$AA$155:$AB$155),OR(C$156=$AA$156:$AC$156),OR(C$157=$AA$157:$AB$157)),'All Costs'!C24,0) -> 49232961.48 | D174: =IF(AND(OR(D$154=$AA$154:$AB$154),OR(D$155=$AA$155:$AB$155),OR(D$156=$AA$156:$AC$156),OR(D$157=$AA$157:$AB$157)),'All Costs'!D24,0) -> 7991803.346 | E174: =IF(AND(OR(E$154=$AA$154:$AB$154),OR(E$155=$AA$155:$AB$155),OR(E$156=$AA$156:$AC$156),OR(E$157=$AA$157:$AB$157)),'All Costs'!E24,0) -> 32637.06493 | F174: =IF(AND(OR(F$154=$AA$154:$AB$154),OR(F$155=$AA$155:$AB$155),OR(F$156=$AA$156:$AC$156),OR(F$157=$AA$157:$AB$157)),'All Costs'!F24,0) -> 1063.37073 | G174: =IF(AND(OR(G$154=$AA$154:$AB$154),OR(G$155=$AA$155:$AB$155),OR(G$156=$AA$156:$AC$156),OR(G$157=$AA$157:$AB$157)),'All Costs'!G24,0) -> 2886.745811 | H174: =IF(AND(OR(H$154=$AA$154:$AB$154),OR(H$155=$AA$155:$AB$155),OR(H$156=$AA$156:$AC$156),OR(H$157=$AA$157:$AB$157)),'All Costs'!H24,0) -> 20.79782563 | I174: =IF(AND(OR(I$154=$AA$154:$AB$154),OR(I$155=$AA$155:$AB$155),OR(I$156=$AA$156:$AC$156),OR(I$157=$AA$157:$AB$157)),'All Costs'!I24,0) -> 122538802.3 | J174: =IF(AND(OR(J$154=$AA$154:$AB$154),OR(J$155=$AA$155:$AB$155),OR(J$156=$AA$156:$AC$156),OR(J$157=$AA$157:$AB$157)),'All Costs'!J24,0) -> 23622434.25 | K174: =IF(AND(OR(K$154=$AA$154:$AB$154),OR(K$155=$AA$155:$AB$155),OR(K$156=$AA$156:$AC$156),OR(K$157=$AA$157:$AB$157)),'All Costs'!K24,0) -> 2124.709445 | L174: =IF(AND(OR(L$154=$AA$154:$AB$154),OR(L$155=$AA$155:$AB$155),OR(L$156=$AA$156:$AC$156),OR(L$157=$AA$157:$AB$157)),'All Costs'!L24,0) -> 0 | M174: =IF(AND(OR(M$154=$AA$154:$AB$154),OR(M$155=$AA$155:$AB$155),OR(M$156=$AA$156:$AC$156),OR(M$157=$AA$157:$AB$157)),'All Costs'!M24,0) -> 0 | N174: =IF(AND(OR(N$154=$AA$154:$AB$154),OR(N$155=$AA$155:$AB$155),OR(N$156=$AA$156:$AC$156),OR(N$157=$AA$157:$AB$157)),'All Costs'!N24,0) -> 0 | O174: =IF(AND(OR(O$154=$AA$154:$AB$154),OR(O$155=$AA$155:$AB$155),OR(O$156=$AA$156:$AC$156),OR(O$157=$AA$157:$AB$157)),'All Costs'!O24,0) -> 102387763.4 | P174: =IF(AND(OR(P$154=$AA$154:$AB$154),OR(P$155=$AA$155:$AB$155),OR(P$156=$AA$156:$AC$156),OR(P$157=$AA$157:$AB$157)),'All Costs'!P24,0) -> 9035393.359 | Q174: =IF(AND(OR(Q$154=$AA$154:$AB$154),OR(Q$155=$AA$155:$AB$155),OR(Q$156=$AA$156:$AC$156),OR(Q$157=$AA$157:$AB$157)),'All Costs'!Q24,0) -> 1580855.844 | R174: =IF(AND(OR(R$154=$AA$154:$AB$154),OR(R$155=$AA$155:$AB$155),OR(R$156=$AA$156:$AC$156),OR(R$157=$AA$157:$AB$157)),'All Costs'!R24,0) -> 3763.03645 | S174: =IF(AND(OR(S$154=$AA$154:$AB$154),OR(S$155=$AA$155:$AB$155),OR(S$156=$AA$156:$AC$156),OR(S$157=$AA$157:$AB$157)),'All Costs'!S24,0) -> 127016.8157 | T174: =IF(AND(OR(T$154=$AA$154:$AB$154),OR(T$155=$AA$155:$AB$155),OR(T$156=$AA$156:$AC$156),OR(T$157=$AA$157:$AB$157)),'All Costs'!T24,0) -> 915.1043276 | U174: =IF(AND(OR(U$154=$AA$154:$AB$154),OR(U$155=$AA$155:$AB$155),OR(U$156=$AA$156:$AC$156),OR(U$157=$AA$157:$AB$157)),'All Costs'!U24,0) -> 201762041 | V174: =IF(AND(OR(V$154=$AA$154:$AB$154),OR(V$155=$AA$155:$AB$155),OR(V$156=$AA$156:$AC$156),OR(V$157=$AA$157:$AB$157)),'All Costs'!V24,0) -> 23012921.99 | W174: =IF(AND(OR(W$154=$AA$154:$AB$154),OR(W$155=$AA$155:$AB$155),OR(W$156=$AA$156:$AC$156),OR(W$157=$AA$157:$AB$157)),'All Costs'!W24,0) -> 460.114821 | X174: =IF(AND(OR(X$154=$AA$154:$AB$154),OR(X$155=$AA$155:$AB$155),OR(X$156=$AA$156:$AC$156),OR(X$157=$AA$157:$AB$157)),'All Costs'!X24,0) -> 0 | Y174: =IF(AND(OR(Y$154=$AA$154:$AB$154),OR(Y$155=$AA$155:$AB$155),OR(Y$156=$AA$156:$AC$156),OR(Y$157=$AA$157:$AB$157)),'All Costs'!Y24,0) -> 0 | Z174: =IF(AND(OR(Z$154=$AA$154:$AB$154),OR(Z$155=$AA$155:$AB$155),OR(Z$156=$AA$156:$AC$156),OR(Z$157=$AA$157:$AB$157)),'All Costs'!Z24,0) -> 0 | AA174: =SUM(C174:Z174) -> 541335864.8
B175: Criteria Pollutant (Social Cost) | C175: =IF(AND(OR(C$154=$AA$154:$AB$154),OR(C$155=$AA$155:$AB$155),OR(C$156=$AA$156:$AC$156),OR(C$157=$AA$157:$AB$157)),'All Costs'!C25,0) -> -287965.4456 | D175: =IF(AND(OR(D$154=$AA$154:$AB$154),OR(D$155=$AA$155:$AB$155),OR(D$156=$AA$156:$AC$156),OR(D$157=$AA$157:$AB$157)),'All Costs'!D25,0) -> 29215.83397 | E175: =IF(AND(OR(E$154=$AA$154:$AB$154),OR(E$155=$AA$155:$AB$155),OR(E$156=$AA$156:$AC$156),OR(E$157=$AA$157:$AB$157)),'All Costs'!E25,0) -> 14.13146703 | F175: =IF(AND(OR(F$154=$AA$154:$AB$154),OR(F$155=$AA$155:$AB$155),OR(F$156=$AA$156:$AC$156),OR(F$157=$AA$157:$AB$157)),'All Costs'!F25,0) -> 5.295823307 | G175: =IF(AND(OR(G$154=$AA$154:$AB$154),OR(G$155=$AA$155:$AB$155),OR(G$156=$AA$156:$AC$156),OR(G$157=$AA$157:$AB$157)),'All Costs'!G25,0) -> -1.388222115 | H175: =IF(AND(OR(H$154=$AA$154:$AB$154),OR(H$155=$AA$155:$AB$155),OR(H$156=$AA$156:$AC$156),OR(H$157=$AA$157:$AB$157)),'All Costs'!H25,0) -> 0.09875963566 | I175: =IF(AND(OR(I$154=$AA$154:$AB$154),OR(I$155=$AA$155:$AB$155),OR(I$156=$AA$156:$AC$156),OR(I$157=$AA$157:$AB$157)),'All Costs'!I25,0) -> -1501940.974 | J175: =IF(AND(OR(J$154=$AA$154:$AB$154),OR(J$155=$AA$155:$AB$155),OR(J$156=$AA$156:$AC$156),OR(J$157=$AA$157:$AB$157)),'All Costs'!J25,0) -> 78618.51197 | K175: =IF(AND(OR(K$154=$AA$154:$AB$154),OR(K$155=$AA$155:$AB$155),OR(K$156=$AA$156:$AC$156),OR(K$157=$AA$157:$AB$157)),'All Costs'!K25,0) -> -15.48353854 | L175: =IF(AND(OR(L$154=$AA$154:$AB$154),OR(L$155=$AA$155:$AB$155),OR(L$156=$AA$156:$AC$156),OR(L$157=$AA$157:$AB$157)),'All Costs'!L25,0) -> 0 | M175: =IF(AND(OR(M$154=$AA$154:$AB$154),OR(M$155=$AA$155:$AB$155),OR(M$156=$AA$156:$AC$156),OR(M$157=$AA$157:$AB$157)),'All Costs'!M25,0) -> 0 | N175: =IF(AND(OR(N$154=$AA$154:$AB$154),OR(N$155=$AA$155:$AB$155),OR(N$156=$AA$156:$AC$156),OR(N$157=$AA$157:$AB$157)),'All Costs'!N25,0) -> 0 | O175: =IF(AND(OR(O$154=$AA$154:$AB$154),OR(O$155=$AA$155:$AB$155),OR(O$156=$AA$156:$AC$156),OR(O$157=$AA$157:$AB$157)),'All Costs'!O25,0) -> -656504.8814 | P175: =IF(AND(OR(P$154=$AA$154:$AB$154),OR(P$155=$AA$155:$AB$155),OR(P$156=$AA$156:$AC$156),OR(P$157=$AA$157:$AB$157)),'All Costs'!P25,0) -> 33362.96405 | Q175: =IF(AND(OR(Q$154=$AA$154:$AB$154),OR(Q$155=$AA$155:$AB$155),OR(Q$156=$AA$156:$AC$156),OR(Q$157=$AA$157:$AB$157)),'All Costs'!Q25,0) -> -2861.215452 | R175: =IF(AND(OR(R$154=$AA$154:$AB$154),OR(R$155=$AA$155:$AB$155),OR(R$156=$AA$156:$AC$156),OR(R$157=$AA$157:$AB$157)),'All Costs'!R25,0) -> 20.1134538 | S175: =IF(AND(OR(S$154=$AA$154:$AB$154),OR(S$155=$AA$155:$AB$155),OR(S$156=$AA$156:$AC$156),OR(S$157=$AA$157:$AB$157)),'All Costs'!S25,0) -> -159.9163481 | T175: =IF(AND(OR(T$154=$AA$154:$AB$154),OR(T$155=$AA$155:$AB$155),OR(T$156=$AA$156:$AC$156),OR(T$157=$AA$157:$AB$157)),'All Costs'!T25,0) -> 4.784529617 | U175: =IF(AND(OR(U$154=$AA$154:$AB$154),OR(U$155=$AA$155:$AB$155),OR(U$156=$AA$156:$AC$156),OR(U$157=$AA$157:$AB$157)),'All Costs'!U25,0) -> -2533126.457 | V175: =IF(AND(OR(V$154=$AA$154:$AB$154),OR(V$155=$AA$155:$AB$155),OR(V$156=$AA$156:$AC$156),OR(V$157=$AA$157:$AB$157)),'All Costs'!V25,0) -> 78434.3557 | W175: =IF(AND(OR(W$154=$AA$154:$AB$154),OR(W$155=$AA$155:$AB$155),OR(W$156=$AA$156:$AC$156),OR(W$157=$AA$157:$AB$157)),'All Costs'!W25,0) -> -0.4292848411 | X175: =IF(AND(OR(X$154=$AA$154:$AB$154),OR(X$155=$AA$155:$AB$155),OR(X$156=$AA$156:$AC$156),OR(X$157=$AA$157:$AB$157)),'All Costs'!X25,0) -> 0 | Y175: =IF(AND(OR(Y$154=$AA$154:$AB$154),OR(Y$155=$AA$155:$AB$155),OR(Y$156=$AA$156:$AC$156),OR(Y$157=$AA$157:$AB$157)),'All Costs'!Y25,0) -> 0 | Z175: =IF(AND(OR(Z$154=$AA$154:$AB$154),OR(Z$155=$AA$155:$AB$155),OR(Z$156=$AA$156:$AC$156),OR(Z$157=$AA$157:$AB$157)),'All Costs'!Z25,0) -> 0 | AA175: -4762900.101
B176: Bill Savings | C176: =IF(AND(OR(C$154=$AA$154:$AB$154),OR(C$155=$AA$155:$AB$155),OR(C$156=$AA$156:$AC$156),OR(C$157=$AA$157:$AB$157)),'All Costs'!C26,0) -> 57362256.5 | D176: =IF(AND(OR(D$154=$AA$154:$AB$154),OR(D$155=$AA$155:$AB$155),OR(D$156=$AA$156:$AC$156),OR(D$157=$AA$157:$AB$157)),'All Costs'!D26,0) -> 9375617.698 | E176: =IF(AND(OR(E$154=$AA$154:$AB$154),OR(E$155=$AA$155:$AB$155),OR(E$156=$AA$156:$AC$156),OR(E$157=$AA$157:$AB$157)),'All Costs'!E26,0) -> 48874.55664 | F176: =IF(AND(OR(F$154=$AA$154:$AB$154),OR(F$155=$AA$155:$AB$155),OR(F$156=$AA$156:$AC$156),OR(F$157=$AA$157:$AB$157)),'All Costs'!F26,0) -> 2390.378482 | G176: =IF(AND(OR(G$154=$AA$154:$AB$154),OR(G$155=$AA$155:$AB$155),OR(G$156=$AA$156:$AC$156),OR(G$157=$AA$157:$AB$157)),'All Costs'!G26,0) -> 4582.691874 | H176: =IF(AND(OR(H$154=$AA$154:$AB$154),OR(H$155=$AA$155:$AB$155),OR(H$156=$AA$156:$AC$156),OR(H$157=$AA$157:$AB$157)),'All Costs'!H26,0) -> 47.8710571 | I176: =IF(AND(OR(I$154=$AA$154:$AB$154),OR(I$155=$AA$155:$AB$155),OR(I$156=$AA$156:$AC$156),OR(I$157=$AA$157:$AB$157)),'All Costs'!I26,0) -> 168181187.8 | J176: =IF(AND(OR(J$154=$AA$154:$AB$154),OR(J$155=$AA$155:$AB$155),OR(J$156=$AA$156:$AC$156),OR(J$157=$AA$157:$AB$157)),'All Costs'!J26,0) -> 31649616.6 | K176: =IF(AND(OR(K$154=$AA$154:$AB$154),OR(K$155=$AA$155:$AB$155),OR(K$156=$AA$156:$AC$156),OR(K$157=$AA$157:$AB$157)),'All Costs'!K26,0) -> 5860.922151 | L176: =IF(AND(OR(L$154=$AA$154:$AB$154),OR(L$155=$AA$155:$AB$155),OR(L$156=$AA$156:$AC$156),OR(L$157=$AA$157:$AB$157)),'All Costs'!L26,0) -> 0 | M176: =IF(AND(OR(M$154=$AA$154:$AB$154),OR(M$155=$AA$155:$AB$155),OR(M$156=$AA$156:$AC$156),OR(M$157=$AA$157:$AB$157)),'All Costs'!M26,0) -> 0 | N176: =IF(AND(OR(N$154=$AA$154:$AB$154),OR(N$155=$AA$155:$AB$155),OR(N$156=$AA$156:$AC$156),OR(N$157=$AA$157:$AB$157)),'All Costs'!N26,0) -> 0 | O176: =IF(AND(OR(O$154=$AA$154:$AB$154),OR(O$155=$AA$155:$AB$155),OR(O$156=$AA$156:$AC$156),OR(O$157=$AA$157:$AB$157)),'All Costs'!O26,0) -> 110660430.3 | P176: =IF(AND(OR(P$154=$AA$154:$AB$154),OR(P$155=$AA$155:$AB$155),OR(P$156=$AA$156:$AC$156),OR(P$157=$AA$157:$AB$157)),'All Costs'!P26,0) -> 10405339.58 | Q176: =IF(AND(OR(Q$154=$AA$154:$AB$154),OR(Q$155=$AA$155:$AB$155),OR(Q$156=$AA$156:$AC$156),OR(Q$157=$AA$157:$AB$157)),'All Costs'!Q26,0) -> 2310436.563 | R176: =IF(AND(OR(R$154=$AA$154:$AB$154),OR(R$155=$AA$155:$AB$155),OR(R$156=$AA$156:$AC$156),OR(R$157=$AA$157:$AB$157)),'All Costs'!R26,0) -> 5847.662244 | S176: =IF(AND(OR(S$154=$AA$154:$AB$154),OR(S$155=$AA$155:$AB$155),OR(S$156=$AA$156:$AC$156),OR(S$157=$AA$157:$AB$157)),'All Costs'!S26,0) -> 156902.2961 | T176: =IF(AND(OR(T$154=$AA$154:$AB$154),OR(T$155=$AA$155:$AB$155),OR(T$156=$AA$156:$AC$156),OR(T$157=$AA$157:$AB$157)),'All Costs'!T26,0) -> 1402.971561 | U176: =IF(AND(OR(U$154=$AA$154:$AB$154),OR(U$155=$AA$155:$AB$155),OR(U$156=$AA$156:$AC$156),OR(U$157=$AA$157:$AB$157)),'All Costs'!U26,0) -> 260911915.8 | V176: =IF(AND(OR(V$154=$AA$154:$AB$154),OR(V$155=$AA$155:$AB$155),OR(V$156=$AA$156:$AC$156),OR(V$157=$AA$157:$AB$157)),'All Costs'!V26,0) -> 29612530.69 | W176: =IF(AND(OR(W$154=$AA$154:$AB$154),OR(W$155=$AA$155:$AB$155),OR(W$156=$AA$156:$AC$156),OR(W$157=$AA$157:$AB$157)),'All Costs'!W26,0) -> 487.2517739 | X176: =IF(AND(OR(X$154=$AA$154:$AB$154),OR(X$155=$AA$155:$AB$155),OR(X$156=$AA$156:$AC$156),OR(X$157=$AA$157:$AB$157)),'All Costs'!X26,0) -> 0 | Y176: =IF(AND(OR(Y$154=$AA$154:$AB$154),OR(Y$155=$AA$155:$AB$155),OR(Y$156=$AA$156:$AC$156),OR(Y$157=$AA$157:$AB$157)),'All Costs'!Y26,0) -> 0 | Z176: =IF(AND(OR(Z$154=$AA$154:$AB$154),OR(Z$155=$AA$155:$AB$155),OR(Z$156=$AA$156:$AC$156),OR(Z$157=$AA$157:$AB$157)),'All Costs'!Z26,0) -> 0 | AA176: 680695728.1
B177: Integration Costs | C177: =IF(AND(OR(C$154=$AA$154:$AB$154),OR(C$155=$AA$155:$AB$155),OR(C$156=$AA$156:$AC$156),OR(C$157=$AA$157:$AB$157)),'All Costs'!C27,0) -> 1165773.701 | D177: =IF(AND(OR(D$154=$AA$154:$AB$154),OR(D$155=$AA$155:$AB$155),OR(D$156=$AA$156:$AC$156),OR(D$157=$AA$157:$AB$157)),'All Costs'!D27,0) -> 191987.9116 | E177: =IF(AND(OR(E$154=$AA$154:$AB$154),OR(E$155=$AA$155:$AB$155),OR(E$156=$AA$156:$AC$156),OR(E$157=$AA$157:$AB$157)),'All Costs'!E27,0) -> 959.8624096 | F177: =IF(AND(OR(F$154=$AA$154:$AB$154),OR(F$155=$AA$155:$AB$155),OR(F$156=$AA$156:$AC$156),OR(F$157=$AA$157:$AB$157)),'All Costs'!F27,0) -> 51.20756051 | G177: =IF(AND(OR(G$154=$AA$154:$AB$154),OR(G$155=$AA$155:$AB$155),OR(G$156=$AA$156:$AC$156),OR(G$157=$AA$157:$AB$157)),'All Costs'!G27,0) -> 87.33361227 | H177: =IF(AND(OR(H$154=$AA$154:$AB$154),OR(H$155=$AA$155:$AB$155),OR(H$156=$AA$156:$AC$156),OR(H$157=$AA$157:$AB$157)),'All Costs'!H27,0) -> 1.012902765 | I177: =IF(AND(OR(I$154=$AA$154:$AB$154),OR(I$155=$AA$155:$AB$155),OR(I$156=$AA$156:$AC$156),OR(I$157=$AA$157:$AB$157)),'All Costs'!I27,0) -> 3105647.509 | J177: =IF(AND(OR(J$154=$AA$154:$AB$154),OR(J$155=$AA$155:$AB$155),OR(J$156=$AA$156:$AC$156),OR(J$157=$AA$157:$AB$157)),'All Costs'!J27,0) -> 611584.9417 | K177: =IF(AND(OR(K$154=$AA$154:$AB$154),OR(K$155=$AA$155:$AB$155),OR(K$156=$AA$156:$AC$156),OR(K$157=$AA$157:$AB$157)),'All Costs'!K27,0) -> 87.3045477 | L177: =IF(AND(OR(L$154=$AA$154:$AB$154),OR(L$155=$AA$155:$AB$155),OR(L$156=$AA$156:$AC$156),OR(L$157=$AA$157:$AB$157)),'All Costs'!L27,0) -> 0 | M177: =IF(AND(OR(M$154=$AA$154:$AB$154),OR(M$155=$AA$155:$AB$155),OR(M$156=$AA$156:$AC$156),OR(M$157=$AA$157:$AB$157)),'All Costs'!M27,0) -> 0 | N177: =IF(AND(OR(N$154=$AA$154:$AB$154),OR(N$155=$AA$155:$AB$155),OR(N$156=$AA$156:$AC$156),OR(N$157=$AA$157:$AB$157)),'All Costs'!N27,0) -> 0 | O177: =IF(AND(OR(O$154=$AA$154:$AB$154),OR(O$155=$AA$155:$AB$155),OR(O$156=$AA$156:$AC$156),OR(O$157=$AA$157:$AB$157)),'All Costs'!O27,0) -> 2462645.821 | P177: =IF(AND(OR(P$154=$AA$154:$AB$154),OR(P$155=$AA$155:$AB$155),OR(P$156=$AA$156:$AC$156),OR(P$157=$AA$157:$AB$157)),'All Costs'!P27,0) -> 214938.1608 | Q177: =IF(AND(OR(Q$154=$AA$154:$AB$154),OR(Q$155=$AA$155:$AB$155),OR(Q$156=$AA$156:$AC$156),OR(Q$157=$AA$157:$AB$157)),'All Costs'!Q27,0) -> 61361.36166 | R177: =IF(AND(OR(R$154=$AA$154:$AB$154),OR(R$155=$AA$155:$AB$155),OR(R$156=$AA$156:$AC$156),OR(R$157=$AA$157:$AB$157)),'All Costs'!R27,0) -> 148.2856852 | S177: =IF(AND(OR(S$154=$AA$154:$AB$154),OR(S$155=$AA$155:$AB$155),OR(S$156=$AA$156:$AC$156),OR(S$157=$AA$157:$AB$157)),'All Costs'!S27,0) -> 4252.370155 | T177: =IF(AND(OR(T$154=$AA$154:$AB$154),OR(T$155=$AA$155:$AB$155),OR(T$156=$AA$156:$AC$156),OR(T$157=$AA$157:$AB$157)),'All Costs'!T27,0) -> 34.91063374 | U177: =IF(AND(OR(U$154=$AA$154:$AB$154),OR(U$155=$AA$155:$AB$155),OR(U$156=$AA$156:$AC$156),OR(U$157=$AA$157:$AB$157)),'All Costs'!U27,0) -> 5129297.942 | V177: =IF(AND(OR(V$154=$AA$154:$AB$154),OR(V$155=$AA$155:$AB$155),OR(V$156=$AA$156:$AC$156),OR(V$157=$AA$157:$AB$157)),'All Costs'!V27,0) -> 582144.7628 | W177: =IF(AND(OR(W$154=$AA$154:$AB$154),OR(W$155=$AA$155:$AB$155),OR(W$156=$AA$156:$AC$156),OR(W$157=$AA$157:$AB$157)),'All Costs'!W27,0) -> 10.71254587 | X177: =IF(AND(OR(X$154=$AA$154:$AB$154),OR(X$155=$AA$155:$AB$155),OR(X$156=$AA$156:$AC$156),OR(X$157=$AA$157:$AB$157)),'All Costs'!X27,0) -> 0 | Y177: =IF(AND(OR(Y$154=$AA$154:$AB$154),OR(Y$155=$AA$155:$AB$155),OR(Y$156=$AA$156:$AC$156),OR(Y$157=$AA$157:$AB$157)),'All Costs'!Y27,0) -> 0 | Z177: =IF(AND(OR(Z$154=$AA$154:$AB$154),OR(Z$155=$AA$155:$AB$155),OR(Z$156=$AA$156:$AC$156),OR(Z$157=$AA$157:$AB$157)),'All Costs'!Z27,0) -> 0 | AA177: 13531015.11
B178: CapEx and O&M | C178: =IF(AND(OR(C$154=$AA$154:$AB$154),OR(C$155=$AA$155:$AB$155),OR(C$156=$AA$156:$AC$156),OR(C$157=$AA$157:$AB$157)),'All Costs'!C28,0) -> 161054211 | D178: =IF(AND(OR(D$154=$AA$154:$AB$154),OR(D$155=$AA$155:$AB$155),OR(D$156=$AA$156:$AC$156),OR(D$157=$AA$157:$AB$157)),'All Costs'!D28,0) -> 28659123.41 | E178: =IF(AND(OR(E$154=$AA$154:$AB$154),OR(E$155=$AA$155:$AB$155),OR(E$156=$AA$156:$AC$156),OR(E$157=$AA$157:$AB$157)),'All Costs'!E28,0) -> 1817788.781 | F178: =IF(AND(OR(F$154=$AA$154:$AB$154),OR(F$155=$AA$155:$AB$155),OR(F$156=$AA$156:$AC$156),OR(F$157=$AA$157:$AB$157)),'All Costs'!F28,0) -> 73306.92286 | G178: =IF(AND(OR(G$154=$AA$154:$AB$154),OR(G$155=$AA$155:$AB$155),OR(G$156=$AA$156:$AC$156),OR(G$157=$AA$157:$AB$157)),'All Costs'!G28,0) -> 19914.5035 | H178: =IF(AND(OR(H$154=$AA$154:$AB$154),OR(H$155=$AA$155:$AB$155),OR(H$156=$AA$156:$AC$156),OR(H$157=$AA$157:$AB$157)),'All Costs'!H28,0) -> 200.7515135 | I178: =IF(AND(OR(I$154=$AA$154:$AB$154),OR(I$155=$AA$155:$AB$155),OR(I$156=$AA$156:$AC$156),OR(I$157=$AA$157:$AB$157)),'All Costs'!I28,0) -> 393144052.7 | J178: =IF(AND(OR(J$154=$AA$154:$AB$154),OR(J$155=$AA$155:$AB$155),OR(J$156=$AA$156:$AC$156),OR(J$157=$AA$157:$AB$157)),'All Costs'!J28,0) -> 81325972.99 | K178: =IF(AND(OR(K$154=$AA$154:$AB$154),OR(K$155=$AA$155:$AB$155),OR(K$156=$AA$156:$AC$156),OR(K$157=$AA$157:$AB$157)),'All Costs'!K28,0) -> 191508.2006 | L178: =IF(AND(OR(L$154=$AA$154:$AB$154),OR(L$155=$AA$155:$AB$155),OR(L$156=$AA$156:$AC$156),OR(L$157=$AA$157:$AB$157)),'All Costs'!L28,0) -> 0 | M178: =IF(AND(OR(M$154=$AA$154:$AB$154),OR(M$155=$AA$155:$AB$155),OR(M$156=$AA$156:$AC$156),OR(M$157=$AA$157:$AB$157)),'All Costs'!M28,0) -> 0 | N178: =IF(AND(OR(N$154=$AA$154:$AB$154),OR(N$155=$AA$155:$AB$155),OR(N$156=$AA$156:$AC$156),OR(N$157=$AA$157:$AB$157)),'All Costs'!N28,0) -> 0 | O178: =IF(AND(OR(O$154=$AA$154:$AB$154),OR(O$155=$AA$155:$AB$155),OR(O$156=$AA$156:$AC$156),OR(O$157=$AA$157:$AB$157)),'All Costs'!O28,0) -> 333669489.7 | P178: =IF(AND(OR(P$154=$AA$154:$AB$154),OR(P$155=$AA$155:$AB$155),OR(P$156=$AA$156:$AC$156),OR(P$157=$AA$157:$AB$157)),'All Costs'!P28,0) -> 26397220.55 | Q178: =IF(AND(OR(Q$154=$AA$154:$AB$154),OR(Q$155=$AA$155:$AB$155),OR(Q$156=$AA$156:$AC$156),OR(Q$157=$AA$157:$AB$157)),'All Costs'!Q28,0) -> 53253335.92 | R178: =IF(AND(OR(R$154=$AA$154:$AB$154),OR(R$155=$AA$155:$AB$155),OR(R$156=$AA$156:$AC$156),OR(R$157=$AA$157:$AB$157)),'All Costs'!R28,0) -> 163785.379 | S178: =IF(AND(OR(S$154=$AA$154:$AB$154),OR(S$155=$AA$155:$AB$155),OR(S$156=$AA$156:$AC$156),OR(S$157=$AA$157:$AB$157)),'All Costs'!S28,0) -> 552550.5655 | T178: =IF(AND(OR(T$154=$AA$154:$AB$154),OR(T$155=$AA$155:$AB$155),OR(T$156=$AA$156:$AC$156),OR(T$157=$AA$157:$AB$157)),'All Costs'!T28,0) -> 5557.242031 | U178: =IF(AND(OR(U$154=$AA$154:$AB$154),OR(U$155=$AA$155:$AB$155),OR(U$156=$AA$156:$AC$156),OR(U$157=$AA$157:$AB$157)),'All Costs'!U28,0) -> 593107291.8 | V178: =IF(AND(OR(V$154=$AA$154:$AB$154),OR(V$155=$AA$155:$AB$155),OR(V$156=$AA$156:$AC$156),OR(V$157=$AA$157:$AB$157)),'All Costs'!V28,0) -> 68455239.41 | W178: =IF(AND(OR(W$154=$AA$154:$AB$154),OR(W$155=$AA$155:$AB$155),OR(W$156=$AA$156:$AC$156),OR(W$157=$AA$157:$AB$157)),'All Costs'!W28,0) -> 59950.72443 | X178: =IF(AND(OR(X$154=$AA$154:$AB$154),OR(X$155=$AA$155:$AB$155),OR(X$156=$AA$156:$AC$156),OR(X$157=$AA$157:$AB$157)),'All Costs'!X28,0) -> 0 | Y178: =IF(AND(OR(Y$154=$AA$154:$AB$154),OR(Y$155=$AA$155:$AB$155),OR(Y$156=$AA$156:$AC$156),OR(Y$157=$AA$157:$AB$157)),'All Costs'!Y28,0) -> 0 | Z178: =IF(AND(OR(Z$154=$AA$154:$AB$154),OR(Z$155=$AA$155:$AB$155),OR(Z$156=$AA$156:$AC$156),OR(Z$157=$AA$157:$AB$157)),'All Costs'!Z28,0) -> 0 | AA178: 1741950501
B179: Fed Incentives | C179: =IF(AND(OR(C$154=$AA$154:$AB$154),OR(C$155=$AA$155:$AB$155),OR(C$156=$AA$156:$AC$156),OR(C$157=$AA$157:$AB$157)),'All Costs'!C29,0) -> 58211572 | D179: =IF(AND(OR(D$154=$AA$154:$AB$154),OR(D$155=$AA$155:$AB$155),OR(D$156=$AA$156:$AC$156),OR(D$157=$AA$157:$AB$157)),'All Costs'!D29,0) -> 10867589.59 | E179: =IF(AND(OR(E$154=$AA$154:$AB$154),OR(E$155=$AA$155:$AB$155),OR(E$156=$AA$156:$AC$156),OR(E$157=$AA$157:$AB$157)),'All Costs'!E29,0) -> 606320.3682 | F179: =IF(AND(OR(F$154=$AA$154:$AB$154),OR(F$155=$AA$155:$AB$155),OR(F$156=$AA$156:$AC$156),OR(F$157=$AA$157:$AB$157)),'All Costs'!F29,0) -> 28175.64105 | G179: =IF(AND(OR(G$154=$AA$154:$AB$154),OR(G$155=$AA$155:$AB$155),OR(G$156=$AA$156:$AC$156),OR(G$157=$AA$157:$AB$157)),'All Costs'!G29,0) -> 7329.446552 | H179: =IF(AND(OR(H$154=$AA$154:$AB$154),OR(H$155=$AA$155:$AB$155),OR(H$156=$AA$156:$AC$156),OR(H$157=$AA$157:$AB$157)),'All Costs'!H29,0) -> 74.80588332 | I179: =IF(AND(OR(I$154=$AA$154:$AB$154),OR(I$155=$AA$155:$AB$155),OR(I$156=$AA$156:$AC$156),OR(I$157=$AA$157:$AB$157)),'All Costs'!I29,0) -> 142900752.6 | J179: =IF(AND(OR(J$154=$AA$154:$AB$154),OR(J$155=$AA$155:$AB$155),OR(J$156=$AA$156:$AC$156),OR(J$157=$AA$157:$AB$157)),'All Costs'!J29,0) -> 31071500.24 | K179: =IF(AND(OR(K$154=$AA$154:$AB$154),OR(K$155=$AA$155:$AB$155),OR(K$156=$AA$156:$AC$156),OR(K$157=$AA$157:$AB$157)),'All Costs'!K29,0) -> 64945.29843 | L179: =IF(AND(OR(L$154=$AA$154:$AB$154),OR(L$155=$AA$155:$AB$155),OR(L$156=$AA$156:$AC$156),OR(L$157=$AA$157:$AB$157)),'All Costs'!L29,0) -> 0 | M179: =IF(AND(OR(M$154=$AA$154:$AB$154),OR(M$155=$AA$155:$AB$155),OR(M$156=$AA$156:$AC$156),OR(M$157=$AA$157:$AB$157)),'All Costs'!M29,0) -> 0 | N179: =IF(AND(OR(N$154=$AA$154:$AB$154),OR(N$155=$AA$155:$AB$155),OR(N$156=$AA$156:$AC$156),OR(N$157=$AA$157:$AB$157)),'All Costs'!N29,0) -> 0 | O179: =IF(AND(OR(O$154=$AA$154:$AB$154),OR(O$155=$AA$155:$AB$155),OR(O$156=$AA$156:$AC$156),OR(O$157=$AA$157:$AB$157)),'All Costs'!O29,0) -> 115583577.6 | P179: =IF(AND(OR(P$154=$AA$154:$AB$154),OR(P$155=$AA$155:$AB$155),OR(P$156=$AA$156:$AC$156),OR(P$157=$AA$157:$AB$157)),'All Costs'!P29,0) -> 9870175.613 | Q179: =IF(AND(OR(Q$154=$AA$154:$AB$154),OR(Q$155=$AA$155:$AB$155),OR(Q$156=$AA$156:$AC$156),OR(Q$157=$AA$157:$AB$157)),'All Costs'!Q29,0) -> 17013871.14 | R179: =IF(AND(OR(R$154=$AA$154:$AB$154),OR(R$155=$AA$155:$AB$155),OR(R$156=$AA$156:$AC$156),OR(R$157=$AA$157:$AB$157)),'All Costs'!R29,0) -> 61690.89842 | S179: =IF(AND(OR(S$154=$AA$154:$AB$154),OR(S$155=$AA$155:$AB$155),OR(S$156=$AA$156:$AC$156),OR(S$157=$AA$157:$AB$157)),'All Costs'!S29,0) -> 194102.21 | T179: =IF(AND(OR(T$154=$AA$154:$AB$154),OR(T$155=$AA$155:$AB$155),OR(T$156=$AA$156:$AC$156),OR(T$157=$AA$157:$AB$157)),'All Costs'!T29,0) -> 2005.93187 | U179: =IF(AND(OR(U$154=$AA$154:$AB$154),OR(U$155=$AA$155:$AB$155),OR(U$156=$AA$156:$AC$156),OR(U$157=$AA$157:$AB$157)),'All Costs'!U29,0) -> 210080083.7 | V179: =IF(AND(OR(V$154=$AA$154:$AB$154),OR(V$155=$AA$155:$AB$155),OR(V$156=$AA$156:$AC$156),OR(V$157=$AA$157:$AB$157)),'All Costs'!V29,0) -> 25614764 | W179: =IF(AND(OR(W$154=$AA$154:$AB$154),OR(W$155=$AA$155:$AB$155),OR(W$156=$AA$156:$AC$156),OR(W$157=$AA$157:$AB$157)),'All Costs'!W29,0) -> 20769.63119 | X179: =IF(AND(OR(X$154=$AA$154:$AB$154),OR(X$155=$AA$155:$AB$155),OR(X$156=$AA$156:$AC$156),OR(X$157=$AA$157:$AB$157)),'All Costs'!X29,0) -> 0 | Y179: =IF(AND(OR(Y$154=$AA$154:$AB$154),OR(Y$155=$AA$155:$AB$155),OR(Y$156=$AA$156:$AC$156),OR(Y$157=$AA$157:$AB$157)),'All Costs'!Y29,0) -> 0 | Z179: =IF(AND(OR(Z$154=$AA$154:$AB$154),OR(Z$155=$AA$155:$AB$155),OR(Z$156=$AA$156:$AC$156),OR(Z$157=$AA$157:$AB$157)),'All Costs'!Z29,0) -> 0 | AA179: 622199300.7
B180: Utility Incentives | C180: =IF(AND(OR(C$154=$AA$154:$AB$154),OR(C$155=$AA$155:$AB$155),OR(C$156=$AA$156:$AC$156),OR(C$157=$AA$157:$AB$157)),'All Costs'!C30,0) -> 16023971.59 | D180: =IF(AND(OR(D$154=$AA$154:$AB$154),OR(D$155=$AA$155:$AB$155),OR(D$156=$AA$156:$AC$156),OR(D$157=$AA$157:$AB$157)),'All Costs'!D30,0) -> 0 | E180: =IF(AND(OR(E$154=$AA$154:$AB$154),OR(E$155=$AA$155:$AB$155),OR(E$156=$AA$156:$AC$156),OR(E$157=$AA$157:$AB$157)),'All Costs'!E30,0) -> 731278.809 | F180: =IF(AND(OR(F$154=$AA$154:$AB$154),OR(F$155=$AA$155:$AB$155),OR(F$156=$AA$156:$AC$156),OR(F$157=$AA$157:$AB$157)),'All Costs'!F30,0) -> 0 | G180: =IF(AND(OR(G$154=$AA$154:$AB$154),OR(G$155=$AA$155:$AB$155),OR(G$156=$AA$156:$AC$156),OR(G$157=$AA$157:$AB$157)),'All Costs'!G30,0) -> 856.1063919 | H180: =IF(AND(OR(H$154=$AA$154:$AB$154),OR(H$155=$AA$155:$AB$155),OR(H$156=$AA$156:$AC$156),OR(H$157=$AA$157:$AB$157)),'All Costs'!H30,0) -> 0 | I180: =IF(AND(OR(I$154=$AA$154:$AB$154),OR(I$155=$AA$155:$AB$155),OR(I$156=$AA$156:$AC$156),OR(I$157=$AA$157:$AB$157)),'All Costs'!I30,0) -> 34434838.68 | J180: =IF(AND(OR(J$154=$AA$154:$AB$154),OR(J$155=$AA$155:$AB$155),OR(J$156=$AA$156:$AC$156),OR(J$157=$AA$157:$AB$157)),'All Costs'!J30,0) -> 0 | K180: =IF(AND(OR(K$154=$AA$154:$AB$154),OR(K$155=$AA$155:$AB$155),OR(K$156=$AA$156:$AC$156),OR(K$157=$AA$157:$AB$157)),'All Costs'!K30,0) -> 71026.85616 | L180: =IF(AND(OR(L$154=$AA$154:$AB$154),OR(L$155=$AA$155:$AB$155),OR(L$156=$AA$156:$AC$156),OR(L$157=$AA$157:$AB$157)),'All Costs'!L30,0) -> 0 | M180: =IF(AND(OR(M$154=$AA$154:$AB$154),OR(M$155=$AA$155:$AB$155),OR(M$156=$AA$156:$AC$156),OR(M$157=$AA$157:$AB$157)),'All Costs'!M30,0) -> 0 | N180: =IF(AND(OR(N$154=$AA$154:$AB$154),OR(N$155=$AA$155:$AB$155),OR(N$156=$AA$156:$AC$156),OR(N$157=$AA$157:$AB$157)),'All Costs'!N30,0) -> 0 | O180: =IF(AND(OR(O$154=$AA$154:$AB$154),OR(O$155=$AA$155:$AB$155),OR(O$156=$AA$156:$AC$156),OR(O$157=$AA$157:$AB$157)),'All Costs'!O30,0) -> 105133627.2 | P180: =IF(AND(OR(P$154=$AA$154:$AB$154),OR(P$155=$AA$155:$AB$155),OR(P$156=$AA$156:$AC$156),OR(P$157=$AA$157:$AB$157)),'All Costs'!P30,0) -> 0 | Q180: =IF(AND(OR(Q$154=$AA$154:$AB$154),OR(Q$155=$AA$155:$AB$155),OR(Q$156=$AA$156:$AC$156),OR(Q$157=$AA$157:$AB$157)),'All Costs'!Q30,0) -> 27443420.39 | R180: =IF(AND(OR(R$154=$AA$154:$AB$154),OR(R$155=$AA$155:$AB$155),OR(R$156=$AA$156:$AC$156),OR(R$157=$AA$157:$AB$157)),'All Costs'!R30,0) -> 0 | S180: =IF(AND(OR(S$154=$AA$154:$AB$154),OR(S$155=$AA$155:$AB$155),OR(S$156=$AA$156:$AC$156),OR(S$157=$AA$157:$AB$157)),'All Costs'!S30,0) -> 55924.4888 | T180: =IF(AND(OR(T$154=$AA$154:$AB$154),OR(T$155=$AA$155:$AB$155),OR(T$156=$AA$156:$AC$156),OR(T$157=$AA$157:$AB$157)),'All Costs'!T30,0) -> 0 | U180: =IF(AND(OR(U$154=$AA$154:$AB$154),OR(U$155=$AA$155:$AB$155),OR(U$156=$AA$156:$AC$156),OR(U$157=$AA$157:$AB$157)),'All Costs'!U30,0) -> 119835010.7 | V180: =IF(AND(OR(V$154=$AA$154:$AB$154),OR(V$155=$AA$155:$AB$155),OR(V$156=$AA$156:$AC$156),OR(V$157=$AA$157:$AB$157)),'All Costs'!V30,0) -> 0 | W180: =IF(AND(OR(W$154=$AA$154:$AB$154),OR(W$155=$AA$155:$AB$155),OR(W$156=$AA$156:$AC$156),OR(W$157=$AA$157:$AB$157)),'All Costs'!W30,0) -> 17565.94993 | X180: =IF(AND(OR(X$154=$AA$154:$AB$154),OR(X$155=$AA$155:$AB$155),OR(X$156=$AA$156:$AC$156),OR(X$157=$AA$157:$AB$157)),'All Costs'!X30,0) -> 0 | Y180: =IF(AND(OR(Y$154=$AA$154:$AB$154),OR(Y$155=$AA$155:$AB$155),OR(Y$156=$AA$156:$AC$156),OR(Y$157=$AA$157:$AB$157)),'All Costs'!Y30,0) -> 0 | Z180: =IF(AND(OR(Z$154=$AA$154:$AB$154),OR(Z$155=$AA$155:$AB$155),OR(Z$156=$AA$156:$AC$156),OR(Z$157=$AA$157:$AB$157)),'All Costs'!Z30,0) -> 0 | AA180: 303747520.8
B181: NEM Program Costs | C181: =IF(AND(OR(C$154=$AA$154:$AB$154),OR(C$155=$AA$155:$AB$155),OR(C$156=$AA$156:$AC$156),OR(C$157=$AA$157:$AB$157)),'All Costs'!C31,0) -> 517503.233 | D181: =IF(AND(OR(D$154=$AA$154:$AB$154),OR(D$155=$AA$155:$AB$155),OR(D$156=$AA$156:$AC$156),OR(D$157=$AA$157:$AB$157)),'All Costs'!D31,0) -> 65600.83962 | E181: =IF(AND(OR(E$154=$AA$154:$AB$154),OR(E$155=$AA$155:$AB$155),OR(E$156=$AA$156:$AC$156),OR(E$157=$AA$157:$AB$157)),'All Costs'!E31,0) -> 1232.845233 | F181: =IF(AND(OR(F$154=$AA$154:$AB$154),OR(F$155=$AA$155:$AB$155),OR(F$156=$AA$156:$AC$156),OR(F$157=$AA$157:$AB$157)),'All Costs'!F31,0) -> 50.41802203 | G181: =IF(AND(OR(G$154=$AA$154:$AB$154),OR(G$155=$AA$155:$AB$155),OR(G$156=$AA$156:$AC$156),OR(G$157=$AA$157:$AB$157)),'All Costs'!G31,0) -> 50.80917885 | H181: =IF(AND(OR(H$154=$AA$154:$AB$154),OR(H$155=$AA$155:$AB$155),OR(H$156=$AA$156:$AC$156),OR(H$157=$AA$157:$AB$157)),'All Costs'!H31,0) -> 0.5132240288 | I181: =IF(AND(OR(I$154=$AA$154:$AB$154),OR(I$155=$AA$155:$AB$155),OR(I$156=$AA$156:$AC$156),OR(I$157=$AA$157:$AB$157)),'All Costs'!I31,0) -> 1065969.847 | J181: =IF(AND(OR(J$154=$AA$154:$AB$154),OR(J$155=$AA$155:$AB$155),OR(J$156=$AA$156:$AC$156),OR(J$157=$AA$157:$AB$157)),'All Costs'!J31,0) -> 151578.2304 | K181: =IF(AND(OR(K$154=$AA$154:$AB$154),OR(K$155=$AA$155:$AB$155),OR(K$156=$AA$156:$AC$156),OR(K$157=$AA$157:$AB$157)),'All Costs'!K31,0) -> 128.9984493 | L181: =IF(AND(OR(L$154=$AA$154:$AB$154),OR(L$155=$AA$155:$AB$155),OR(L$156=$AA$156:$AC$156),OR(L$157=$AA$157:$AB$157)),'All Costs'!L31,0) -> 0 | M181: =IF(AND(OR(M$154=$AA$154:$AB$154),OR(M$155=$AA$155:$AB$155),OR(M$156=$AA$156:$AC$156),OR(M$157=$AA$157:$AB$157)),'All Costs'!M31,0) -> 0 | N181: =IF(AND(OR(N$154=$AA$154:$AB$154),OR(N$155=$AA$155:$AB$155),OR(N$156=$AA$156:$AC$156),OR(N$157=$AA$157:$AB$157)),'All Costs'!N31,0) -> 0 | O181: =IF(AND(OR(O$154=$AA$154:$AB$154),OR(O$155=$AA$155:$AB$155),OR(O$156=$AA$156:$AC$156),OR(O$157=$AA$157:$AB$157)),'All Costs'!O31,0) -> 869006.0698 | P181: =IF(AND(OR(P$154=$AA$154:$AB$154),OR(P$155=$AA$155:$AB$155),OR(P$156=$AA$156:$AC$156),OR(P$157=$AA$157:$AB$157)),'All Costs'!P31,0) -> 88811.19353 | Q181: =IF(AND(OR(Q$154=$AA$154:$AB$154),OR(Q$155=$AA$155:$AB$155),OR(Q$156=$AA$156:$AC$156),OR(Q$157=$AA$157:$AB$157)),'All Costs'!Q31,0) -> 58767.34808 | R181: =IF(AND(OR(R$154=$AA$154:$AB$154),OR(R$155=$AA$155:$AB$155),OR(R$156=$AA$156:$AC$156),OR(R$157=$AA$157:$AB$157)),'All Costs'!R31,0) -> 177.458359 | S181: =IF(AND(OR(S$154=$AA$154:$AB$154),OR(S$155=$AA$155:$AB$155),OR(S$156=$AA$156:$AC$156),OR(S$157=$AA$157:$AB$157)),'All Costs'!S31,0) -> 2235.603869 | T181: =IF(AND(OR(T$154=$AA$154:$AB$154),OR(T$155=$AA$155:$AB$155),OR(T$156=$AA$156:$AC$156),OR(T$157=$AA$157:$AB$157)),'All Costs'!T31,0) -> 22.58185727 | U181: =IF(AND(OR(U$154=$AA$154:$AB$154),OR(U$155=$AA$155:$AB$155),OR(U$156=$AA$156:$AC$156),OR(U$157=$AA$157:$AB$157)),'All Costs'!U31,0) -> 1657482.543 | V181: =IF(AND(OR(V$154=$AA$154:$AB$154),OR(V$155=$AA$155:$AB$155),OR(V$156=$AA$156:$AC$156),OR(V$157=$AA$157:$AB$157)),'All Costs'!V31,0) -> 186816.1939 | W181: =IF(AND(OR(W$154=$AA$154:$AB$154),OR(W$155=$AA$155:$AB$155),OR(W$156=$AA$156:$AC$156),OR(W$157=$AA$157:$AB$157)),'All Costs'!W31,0) -> 28.40519983 | X181: =IF(AND(OR(X$154=$AA$154:$AB$154),OR(X$155=$AA$155:$AB$155),OR(X$156=$AA$156:$AC$156),OR(X$157=$AA$157:$AB$157)),'All Costs'!X31,0) -> 0 | Y181: =IF(AND(OR(Y$154=$AA$154:$AB$154),OR(Y$155=$AA$155:$AB$155),OR(Y$156=$AA$156:$AC$156),OR(Y$157=$AA$157:$AB$157)),'All Costs'!Y31,0) -> 0 | Z181: =IF(AND(OR(Z$154=$AA$154:$AB$154),OR(Z$155=$AA$155:$AB$155),OR(Z$156=$AA$156:$AC$156),OR(Z$157=$AA$157:$AB$157)),'All Costs'!Z31,0) -> 0 | AA181: 4665463.132
B182: Avoided RPS | C182: =IF(AND(OR(C$154=$AA$154:$AB$154),OR(C$155=$AA$155:$AB$155),OR(C$156=$AA$156:$AC$156),OR(C$157=$AA$157:$AB$157)),'All Costs'!C32,0) -> 40841347.86 | D182: =IF(AND(OR(D$154=$AA$154:$AB$154),OR(D$155=$AA$155:$AB$155),OR(D$156=$AA$156:$AC$156),OR(D$157=$AA$157:$AB$157)),'All Costs'!D32,0) -> 652441.6185 | E182: =IF(AND(OR(E$154=$AA$154:$AB$154),OR(E$155=$AA$155:$AB$155),OR(E$156=$AA$156:$AC$156),OR(E$157=$AA$157:$AB$157)),'All Costs'!E32,0) -> 18488.71882 | F182: =IF(AND(OR(F$154=$AA$154:$AB$154),OR(F$155=$AA$155:$AB$155),OR(F$156=$AA$156:$AC$156),OR(F$157=$AA$157:$AB$157)),'All Costs'!F32,0) -> 176.0387643 | G182: =IF(AND(OR(G$154=$AA$154:$AB$154),OR(G$155=$AA$155:$AB$155),OR(G$156=$AA$156:$AC$156),OR(G$157=$AA$157:$AB$157)),'All Costs'!G32,0) -> 1602.392637 | H182: =IF(AND(OR(H$154=$AA$154:$AB$154),OR(H$155=$AA$155:$AB$155),OR(H$156=$AA$156:$AC$156),OR(H$157=$AA$157:$AB$157)),'All Costs'!H32,0) -> 3.407742466 | I182: =IF(AND(OR(I$154=$AA$154:$AB$154),OR(I$155=$AA$155:$AB$155),OR(I$156=$AA$156:$AC$156),OR(I$157=$AA$157:$AB$157)),'All Costs'!I32,0) -> 133454790.5 | J182: =IF(AND(OR(J$154=$AA$154:$AB$154),OR(J$155=$AA$155:$AB$155),OR(J$156=$AA$156:$AC$156),OR(J$157=$AA$157:$AB$157)),'All Costs'!J32,0) -> 2576572.238 | K182: =IF(AND(OR(K$154=$AA$154:$AB$154),OR(K$155=$AA$155:$AB$155),OR(K$156=$AA$156:$AC$156),OR(K$157=$AA$157:$AB$157)),'All Costs'!K32,0) -> 2025.667837 | L182: =IF(AND(OR(L$154=$AA$154:$AB$154),OR(L$155=$AA$155:$AB$155),OR(L$156=$AA$156:$AC$156),OR(L$157=$AA$157:$AB$157)),'All Costs'!L32,0) -> 0 | M182: =IF(AND(OR(M$154=$AA$154:$AB$154),OR(M$155=$AA$155:$AB$155),OR(M$156=$AA$156:$AC$156),OR(M$157=$AA$157:$AB$157)),'All Costs'!M32,0) -> 0 | N182: =IF(AND(OR(N$154=$AA$154:$AB$154),OR(N$155=$AA$155:$AB$155),OR(N$156=$AA$156:$AC$156),OR(N$157=$AA$157:$AB$157)),'All Costs'!N32,0) -> 0 | O182: =IF(AND(OR(O$154=$AA$154:$AB$154),OR(O$155=$AA$155:$AB$155),OR(O$156=$AA$156:$AC$156),OR(O$157=$AA$157:$AB$157)),'All Costs'!O32,0) -> 91006134.15 | P182: =IF(AND(OR(P$154=$AA$154:$AB$154),OR(P$155=$AA$155:$AB$155),OR(P$156=$AA$156:$AC$156),OR(P$157=$AA$157:$AB$157)),'All Costs'!P32,0) -> 726685.2716 | Q182: =IF(AND(OR(Q$154=$AA$154:$AB$154),OR(Q$155=$AA$155:$AB$155),OR(Q$156=$AA$156:$AC$156),OR(Q$157=$AA$157:$AB$157)),'All Costs'!Q32,0) -> 1163263.799 | R182: =IF(AND(OR(R$154=$AA$154:$AB$154),OR(R$155=$AA$155:$AB$155),OR(R$156=$AA$156:$AC$156),OR(R$157=$AA$157:$AB$157)),'All Costs'!R32,0) -> 507.206389 | S182: =IF(AND(OR(S$154=$AA$154:$AB$154),OR(S$155=$AA$155:$AB$155),OR(S$156=$AA$156:$AC$156),OR(S$157=$AA$157:$AB$157)),'All Costs'!S32,0) -> 78022.26944 | T182: =IF(AND(OR(T$154=$AA$154:$AB$154),OR(T$155=$AA$155:$AB$155),OR(T$156=$AA$156:$AC$156),OR(T$157=$AA$157:$AB$157)),'All Costs'!T32,0) -> 117.4510063 | U182: =IF(AND(OR(U$154=$AA$154:$AB$154),OR(U$155=$AA$155:$AB$155),OR(U$156=$AA$156:$AC$156),OR(U$157=$AA$157:$AB$157)),'All Costs'!U32,0) -> 224041989.4 | V182: =IF(AND(OR(V$154=$AA$154:$AB$154),OR(V$155=$AA$155:$AB$155),OR(V$156=$AA$156:$AC$156),OR(V$157=$AA$157:$AB$157)),'All Costs'!V32,0) -> 2455070.573 | W182: =IF(AND(OR(W$154=$AA$154:$AB$154),OR(W$155=$AA$155:$AB$155),OR(W$156=$AA$156:$AC$156),OR(W$157=$AA$157:$AB$157)),'All Costs'!W32,0) -> 249.9525576 | X182: =IF(AND(OR(X$154=$AA$154:$AB$154),OR(X$155=$AA$155:$AB$155),OR(X$156=$AA$156:$AC$156),OR(X$157=$AA$157:$AB$157)),'All Costs'!X32,0) -> 0 | Y182: =IF(AND(OR(Y$154=$AA$154:$AB$154),OR(Y$155=$AA$155:$AB$155),OR(Y$156=$AA$156:$AC$156),OR(Y$157=$AA$157:$AB$157)),'All Costs'!Y32,0) -> 0 | Z182: =IF(AND(OR(Z$154=$AA$154:$AB$154),OR(Z$155=$AA$155:$AB$155),OR(Z$156=$AA$156:$AC$156),OR(Z$157=$AA$157:$AB$157)),'All Costs'!Z32,0) -> 0 | AA182: =SUM(C182:Z182) -> 497019488.5
B183: Generation | C183: =IF(AND(OR(C$154=$AA$154:$AB$154),OR(C$155=$AA$155:$AB$155),OR(C$156=$AA$156:$AC$156),OR(C$157=$AA$157:$AB$157)),'All Costs'!C33,0) -> 481146987.6 | D183: =IF(AND(OR(D$154=$AA$154:$AB$154),OR(D$155=$AA$155:$AB$155),OR(D$156=$AA$156:$AC$156),OR(D$157=$AA$157:$AB$157)),'All Costs'!D33,0) -> 79953427.22 | E183: =IF(AND(OR(E$154=$AA$154:$AB$154),OR(E$155=$AA$155:$AB$155),OR(E$156=$AA$156:$AC$156),OR(E$157=$AA$157:$AB$157)),'All Costs'!E33,0) -> 410237.0125 | F183: =IF(AND(OR(F$154=$AA$154:$AB$154),OR(F$155=$AA$155:$AB$155),OR(F$156=$AA$156:$AC$156),OR(F$157=$AA$157:$AB$157)),'All Costs'!F33,0) -> 21690.31855 | G183: =IF(AND(OR(G$154=$AA$154:$AB$154),OR(G$155=$AA$155:$AB$155),OR(G$156=$AA$156:$AC$156),OR(G$157=$AA$157:$AB$157)),'All Costs'!G33,0) -> 35880.55342 | H183: =IF(AND(OR(H$154=$AA$154:$AB$154),OR(H$155=$AA$155:$AB$155),OR(H$156=$AA$156:$AC$156),OR(H$157=$AA$157:$AB$157)),'All Costs'!H33,0) -> 416.1457523 | I183: =IF(AND(OR(I$154=$AA$154:$AB$154),OR(I$155=$AA$155:$AB$155),OR(I$156=$AA$156:$AC$156),OR(I$157=$AA$157:$AB$157)),'All Costs'!I33,0) -> 1279946462 | J183: =IF(AND(OR(J$154=$AA$154:$AB$154),OR(J$155=$AA$155:$AB$155),OR(J$156=$AA$156:$AC$156),OR(J$157=$AA$157:$AB$157)),'All Costs'!J33,0) -> 254683592.9 | K183: =IF(AND(OR(K$154=$AA$154:$AB$154),OR(K$155=$AA$155:$AB$155),OR(K$156=$AA$156:$AC$156),OR(K$157=$AA$157:$AB$157)),'All Costs'!K33,0) -> 37237.46213 | L183: =IF(AND(OR(L$154=$AA$154:$AB$154),OR(L$155=$AA$155:$AB$155),OR(L$156=$AA$156:$AC$156),OR(L$157=$AA$157:$AB$157)),'All Costs'!L33,0) -> 0 | M183: =IF(AND(OR(M$154=$AA$154:$AB$154),OR(M$155=$AA$155:$AB$155),OR(M$156=$AA$156:$AC$156),OR(M$157=$AA$157:$AB$157)),'All Costs'!M33,0) -> 0 | N183: =IF(AND(OR(N$154=$AA$154:$AB$154),OR(N$155=$AA$155:$AB$155),OR(N$156=$AA$156:$AC$156),OR(N$157=$AA$157:$AB$157)),'All Costs'!N33,0) -> 0 | O183: =IF(AND(OR(O$154=$AA$154:$AB$154),OR(O$155=$AA$155:$AB$155),OR(O$156=$AA$156:$AC$156),OR(O$157=$AA$157:$AB$157)),'All Costs'!O33,0) -> 1024524185 | P183: =IF(AND(OR(P$154=$AA$154:$AB$154),OR(P$155=$AA$155:$AB$155),OR(P$156=$AA$156:$AC$156),OR(P$157=$AA$157:$AB$157)),'All Costs'!P33,0) -> 88900144.51 | Q183: =IF(AND(OR(Q$154=$AA$154:$AB$154),OR(Q$155=$AA$155:$AB$155),OR(Q$156=$AA$156:$AC$156),OR(Q$157=$AA$157:$AB$157)),'All Costs'!Q33,0) -> 25952192.15 | R183: =IF(AND(OR(R$154=$AA$154:$AB$154),OR(R$155=$AA$155:$AB$155),OR(R$156=$AA$156:$AC$156),OR(R$157=$AA$157:$AB$157)),'All Costs'!R33,0) -> 62568.20546 | S183: =IF(AND(OR(S$154=$AA$154:$AB$154),OR(S$155=$AA$155:$AB$155),OR(S$156=$AA$156:$AC$156),OR(S$157=$AA$157:$AB$157)),'All Costs'!S33,0) -> 1747063.823 | T183: =IF(AND(OR(T$154=$AA$154:$AB$154),OR(T$155=$AA$155:$AB$155),OR(T$156=$AA$156:$AC$156),OR(T$157=$AA$157:$AB$157)),'All Costs'!T33,0) -> 14342.84952 | U183: =IF(AND(OR(U$154=$AA$154:$AB$154),OR(U$155=$AA$155:$AB$155),OR(U$156=$AA$156:$AC$156),OR(U$157=$AA$157:$AB$157)),'All Costs'!U33,0) -> 2119559059 | V183: =IF(AND(OR(V$154=$AA$154:$AB$154),OR(V$155=$AA$155:$AB$155),OR(V$156=$AA$156:$AC$156),OR(V$157=$AA$157:$AB$157)),'All Costs'!V33,0) -> 240953924.1 | W183: =IF(AND(OR(W$154=$AA$154:$AB$154),OR(W$155=$AA$155:$AB$155),OR(W$156=$AA$156:$AC$156),OR(W$157=$AA$157:$AB$157)),'All Costs'!W33,0) -> 4614.593479 | X183: =IF(AND(OR(X$154=$AA$154:$AB$154),OR(X$155=$AA$155:$AB$155),OR(X$156=$AA$156:$AC$156),OR(X$157=$AA$157:$AB$157)),'All Costs'!X33,0) -> 0 | Y183: =IF(AND(OR(Y$154=$AA$154:$AB$154),OR(Y$155=$AA$155:$AB$155),OR(Y$156=$AA$156:$AC$156),OR(Y$157=$AA$157:$AB$157)),'All Costs'!Y33,0) -> 0 | Z183: =IF(AND(OR(Z$154=$AA$154:$AB$154),OR(Z$155=$AA$155:$AB$155),OR(Z$156=$AA$156:$AC$156),OR(Z$157=$AA$157:$AB$157)),'All Costs'!Z33,0) -> 0 | AA183: 5597954025
C185: Utility NPVs
C186: Residential | D186: Residential | E186: Residential | F186: Residential | G186: Residential | H186: Residential | I186: Residential | J186: Residential | K186: Residential | L186: Residential | M186: Residential | N186: Residential | O186: Non-Residential | P186: Non-Residential | Q186: Non-Residential | R186: Non-Residential | S186: Non-Residential | T186: Non-Residential | U186: Non-Residential | V186: Non-Residential | W186: Non-Residential | X186: Non-Residential | Y186: Non-Residential | Z186: Non-Residential
C187: NVE North | D187: NVE North | E187: NVE North | F187: NVE North | G187: NVE North | H187: NVE North | I187: NVE South | J187: NVE South | K187: NVE South | L187: NVE South | M187: NVE South | N187: NVE South | O187: NVE North | P187: NVE North | Q187: NVE North | R187: NVE North | S187: NVE North | T187: NVE North | U187: NVE South | V187: NVE South | W187: NVE South | X187: NVE South | Y187: NVE South | Z187: NVE South
C188: PV | D188: PV | E188: Existing Wind | F188: Existing Wind | G188: New Wind | H188: New Wind | I188: PV | J188: PV | K188: Existing Wind | L188: Existing Wind | M188: New Wind | N188: New Wind | O188: PV | P188: PV | Q188: Existing Wind | R188: Existing Wind | S188: New Wind | T188: New Wind | U188: PV | V188: PV | W188: Existing Wind | X188: Existing Wind | Y188: New Wind | Z188: New Wind
C189: Incentivized | D189: Non-incentivized | E189: Incentivized | F189: Non-incentivized | G189: Incentivized | H189: Non-incentivized | I189: Incentivized | J189: Non-incentivized | K189: Incentivized | L189: Non-incentivized | M189: Incentivized | N189: Non-incentivized | O189: Incentivized | P189: Non-incentivized | Q189: Incentivized | R189: Non-incentivized | S189: Incentivized | T189: Non-incentivized | U189: Incentivized | V189: Non-incentivized | W189: Incentivized | X189: Non-incentivized | Y189: Incentivized | Z189: Non-incentivized
B190: Avoided Costs | C190: =IF(AND(OR(C$154=$AA$154:$AB$154),OR(C$155=$AA$155:$AB$155),OR(C$156=$AA$156:$AC$156),OR(C$157=$AA$157:$AB$157)),'All Costs'!C41,0) -> 49232961.48 | D190: =IF(AND(OR(D$154=$AA$154:$AB$154),OR(D$155=$AA$155:$AB$155),OR(D$156=$AA$156:$AC$156),OR(D$157=$AA$157:$AB$157)),'All Costs'!D41,0) -> 7991803.346 | E190: =IF(AND(OR(E$154=$AA$154:$AB$154),OR(E$155=$AA$155:$AB$155),OR(E$156=$AA$156:$AC$156),OR(E$157=$AA$157:$AB$157)),'All Costs'!E41,0) -> 32637.06493 | F190: =IF(AND(OR(F$154=$AA$154:$AB$154),OR(F$155=$AA$155:$AB$155),OR(F$156=$AA$156:$AC$156),OR(F$157=$AA$157:$AB$157)),'All Costs'!F41,0) -> 1063.37073 | G190: =IF(AND(OR(G$154=$AA$154:$AB$154),OR(G$155=$AA$155:$AB$155),OR(G$156=$AA$156:$AC$156),OR(G$157=$AA$157:$AB$157)),'All Costs'!G41,0) -> 2886.745811 | H190: =IF(AND(OR(H$154=$AA$154:$AB$154),OR(H$155=$AA$155:$AB$155),OR(H$156=$AA$156:$AC$156),OR(H$157=$AA$157:$AB$157)),'All Costs'!H41,0) -> 20.79782563 | I190: =IF(AND(OR(I$154=$AA$154:$AB$154),OR(I$155=$AA$155:$AB$155),OR(I$156=$AA$156:$AC$156),OR(I$157=$AA$157:$AB$157)),'All Costs'!I41,0) -> 122538802.3 | J190: =IF(AND(OR(J$154=$AA$154:$AB$154),OR(J$155=$AA$155:$AB$155),OR(J$156=$AA$156:$AC$156),OR(J$157=$AA$157:$AB$157)),'All Costs'!J41,0) -> 23622434.25 | K190: =IF(AND(OR(K$154=$AA$154:$AB$154),OR(K$155=$AA$155:$AB$155),OR(K$156=$AA$156:$AC$156),OR(K$157=$AA$157:$AB$157)),'All Costs'!K41,0) -> 2124.709445 | L190: =IF(AND(OR(L$154=$AA$154:$AB$154),OR(L$155=$AA$155:$AB$155),OR(L$156=$AA$156:$AC$156),OR(L$157=$AA$157:$AB$157)),'All Costs'!L41,0) -> 0 | M190: =IF(AND(OR(M$154=$AA$154:$AB$154),OR(M$155=$AA$155:$AB$155),OR(M$156=$AA$156:$AC$156),OR(M$157=$AA$157:$AB$157)),'All Costs'!M41,0) -> 0 | N190: =IF(AND(OR(N$154=$AA$154:$AB$154),OR(N$155=$AA$155:$AB$155),OR(N$156=$AA$156:$AC$156),OR(N$157=$AA$157:$AB$157)),'All Costs'!N41,0) -> 0 | O190: =IF(AND(OR(O$154=$AA$154:$AB$154),OR(O$155=$AA$155:$AB$155),OR(O$156=$AA$156:$AC$156),OR(O$157=$AA$157:$AB$157)),'All Costs'!O41,0) -> 102387763.4 | P190: =IF(AND(OR(P$154=$AA$154:$AB$154),OR(P$155=$AA$155:$AB$155),OR(P$156=$AA$156:$AC$156),OR(P$157=$AA$157:$AB$157)),'All Costs'!P41,0) -> 9035393.359 | Q190: =IF(AND(OR(Q$154=$AA$154:$AB$154),OR(Q$155=$AA$155:$AB$155),OR(Q$156=$AA$156:$AC$156),OR(Q$157=$AA$157:$AB$157)),'All Costs'!Q41,0) -> 1580855.844 | R190: =IF(AND(OR(R$154=$AA$154:$AB$154),OR(R$155=$AA$155:$AB$155),OR(R$156=$AA$156:$AC$156),OR(R$157=$AA$157:$AB$157)),'All Costs'!R41,0) -> 3763.03645 | S190: =IF(AND(OR(S$154=$AA$154:$AB$154),OR(S$155=$AA$155:$AB$155),OR(S$156=$AA$156:$AC$156),OR(S$157=$AA$157:$AB$157)),'All Costs'!S41,0) -> 127016.8157 | T190: =IF(AND(OR(T$154=$AA$154:$AB$154),OR(T$155=$AA$155:$AB$155),OR(T$156=$AA$156:$AC$156),OR(T$157=$AA$157:$AB$157)),'All Costs'!T41,0) -> 915.1043276 | U190: =IF(AND(OR(U$154=$AA$154:$AB$154),OR(U$155=$AA$155:$AB$155),OR(U$156=$AA$156:$AC$156),OR(U$157=$AA$157:$AB$157)),'All Costs'!U41,0) -> 201762041 | V190: =IF(AND(OR(V$154=$AA$154:$AB$154),OR(V$155=$AA$155:$AB$155),OR(V$156=$AA$156:$AC$156),OR(V$157=$AA$157:$AB$157)),'All Costs'!V41,0) -> 23012921.99 | W190: =IF(AND(OR(W$154=$AA$154:$AB$154),OR(W$155=$AA$155:$AB$155),OR(W$156=$AA$156:$AC$156),OR(W$157=$AA$157:$AB$157)),'All Costs'!W41,0) -> 460.114821 | X190: =IF(AND(OR(X$154=$AA$154:$AB$154),OR(X$155=$AA$155:$AB$155),OR(X$156=$AA$156:$AC$156),OR(X$157=$AA$157:$AB$157)),'All Costs'!X41,0) -> 0 | Y190: =IF(AND(OR(Y$154=$AA$154:$AB$154),OR(Y$155=$AA$155:$AB$155),OR(Y$156=$AA$156:$AC$156),OR(Y$157=$AA$157:$AB$157)),'All Costs'!Y41,0) -> 0 | Z190: =IF(AND(OR(Z$154=$AA$154:$AB$154),OR(Z$155=$AA$155:$AB$155),OR(Z$156=$AA$156:$AC$156),OR(Z$157=$AA$157:$AB$157)),'All Costs'!Z41,0) -> 0 | AA190: =SUM(C190:Z190) -> 541335864.8
B191: Criteria Pollutant (Social Cost) | C191: =IF(AND(OR(C$154=$AA$154:$AB$154),OR(C$155=$AA$155:$AB$155),OR(C$156=$AA$156:$AC$156),OR(C$157=$AA$157:$AB$157)),'All Costs'!C42,0) -> -287965.4456 | D191: =IF(AND(OR(D$154=$AA$154:$AB$154),OR(D$155=$AA$155:$AB$155),OR(D$156=$AA$156:$AC$156),OR(D$157=$AA$157:$AB$157)),'All Costs'!D42,0) -> 29215.83397 | E191: =IF(AND(OR(E$154=$AA$154:$AB$154),OR(E$155=$AA$155:$AB$155),OR(E$156=$AA$156:$AC$156),OR(E$157=$AA$157:$AB$157)),'All Costs'!E42,0) -> 14.13146703 | F191: =IF(AND(OR(F$154=$AA$154:$AB$154),OR(F$155=$AA$155:$AB$155),OR(F$156=$AA$156:$AC$156),OR(F$157=$AA$157:$AB$157)),'All Costs'!F42,0) -> 5.295823307 | G191: =IF(AND(OR(G$154=$AA$154:$AB$154),OR(G$155=$AA$155:$AB$155),OR(G$156=$AA$156:$AC$156),OR(G$157=$AA$157:$AB$157)),'All Costs'!G42,0) -> -1.388222115 | H191: =IF(AND(OR(H$154=$AA$154:$AB$154),OR(H$155=$AA$155:$AB$155),OR(H$156=$AA$156:$AC$156),OR(H$157=$AA$157:$AB$157)),'All Costs'!H42,0) -> 0.09875963566 | I191: =IF(AND(OR(I$154=$AA$154:$AB$154),OR(I$155=$AA$155:$AB$155),OR(I$156=$AA$156:$AC$156),OR(I$157=$AA$157:$AB$157)),'All Costs'!I42,0) -> -1501940.974 | J191: =IF(AND(OR(J$154=$AA$154:$AB$154),OR(J$155=$AA$155:$AB$155),OR(J$156=$AA$156:$AC$156),OR(J$157=$AA$157:$AB$157)),'All Costs'!J42,0) -> 78618.51197 | K191: =IF(AND(OR(K$154=$AA$154:$AB$154),OR(K$155=$AA$155:$AB$155),OR(K$156=$AA$156:$AC$156),OR(K$157=$AA$157:$AB$157)),'All Costs'!K42,0) -> -15.48353854 | L191: =IF(AND(OR(L$154=$AA$154:$AB$154),OR(L$155=$AA$155:$AB$155),OR(L$156=$AA$156:$AC$156),OR(L$157=$AA$157:$AB$157)),'All Costs'!L42,0) -> 0 | M191: =IF(AND(OR(M$154=$AA$154:$AB$154),OR(M$155=$AA$155:$AB$155),OR(M$156=$AA$156:$AC$156),OR(M$157=$AA$157:$AB$157)),'All Costs'!M42,0) -> 0 | N191: =IF(AND(OR(N$154=$AA$154:$AB$154),OR(N$155=$AA$155:$AB$155),OR(N$156=$AA$156:$AC$156),OR(N$157=$AA$157:$AB$157)),'All Costs'!N42,0) -> 0 | O191: =IF(AND(OR(O$154=$AA$154:$AB$154),OR(O$155=$AA$155:$AB$155),OR(O$156=$AA$156:$AC$156),OR(O$157=$AA$157:$AB$157)),'All Costs'!O42,0) -> -656504.8814 | P191: =IF(AND(OR(P$154=$AA$154:$AB$154),OR(P$155=$AA$155:$AB$155),OR(P$156=$AA$156:$AC$156),OR(P$157=$AA$157:$AB$157)),'All Costs'!P42,0) -> 33362.96405 | Q191: =IF(AND(OR(Q$154=$AA$154:$AB$154),OR(Q$155=$AA$155:$AB$155),OR(Q$156=$AA$156:$AC$156),OR(Q$157=$AA$157:$AB$157)),'All Costs'!Q42,0) -> -2861.215452 | R191: =IF(AND(OR(R$154=$AA$154:$AB$154),OR(R$155=$AA$155:$AB$155),OR(R$156=$AA$156:$AC$156),OR(R$157=$AA$157:$AB$157)),'All Costs'!R42,0) -> 20.1134538 | S191: =IF(AND(OR(S$154=$AA$154:$AB$154),OR(S$155=$AA$155:$AB$155),OR(S$156=$AA$156:$AC$156),OR(S$157=$AA$157:$AB$157)),'All Costs'!S42,0) -> -159.9163481 | T191: =IF(AND(OR(T$154=$AA$154:$AB$154),OR(T$155=$AA$155:$AB$155),OR(T$156=$AA$156:$AC$156),OR(T$157=$AA$157:$AB$157)),'All Costs'!T42,0) -> 4.784529617 | U191: =IF(AND(OR(U$154=$AA$154:$AB$154),OR(U$155=$AA$155:$AB$155),OR(U$156=$AA$156:$AC$156),OR(U$157=$AA$157:$AB$157)),'All Costs'!U42,0) -> -2533126.457 | V191: =IF(AND(OR(V$154=$AA$154:$AB$154),OR(V$155=$AA$155:$AB$155),OR(V$156=$AA$156:$AC$156),OR(V$157=$AA$157:$AB$157)),'All Costs'!V42,0) -> 78434.3557 | W191: =IF(AND(OR(W$154=$AA$154:$AB$154),OR(W$155=$AA$155:$AB$155),OR(W$156=$AA$156:$AC$156),OR(W$157=$AA$157:$AB$157)),'All Costs'!W42,0) -> -0.4292848411 | X191: =IF(AND(OR(X$154=$AA$154:$AB$154),OR(X$155=$AA$155:$AB$155),OR(X$156=$AA$156:$AC$156),OR(X$157=$AA$157:$AB$157)),'All Costs'!X42,0) -> 0 | Y191: =IF(AND(OR(Y$154=$AA$154:$AB$154),OR(Y$155=$AA$155:$AB$155),OR(Y$156=$AA$156:$AC$156),OR(Y$157=$AA$157:$AB$157)),'All Costs'!Y42,0) -> 0 | Z191: =IF(AND(OR(Z$154=$AA$154:$AB$154),OR(Z$155=$AA$155:$AB$155),OR(Z$156=$AA$156:$AC$156),OR(Z$157=$AA$157:$AB$157)),'All Costs'!Z42,0) -> 0 | AA191: -4762900.101
B192: Bill Savings | C192: =IF(AND(OR(C$154=$AA$154:$AB$154),OR(C$155=$AA$155:$AB$155),OR(C$156=$AA$156:$AC$156),OR(C$157=$AA$157:$AB$157)),'All Costs'!C43,0) -> 57362256.5 | D192: =IF(AND(OR(D$154=$AA$154:$AB$154),OR(D$155=$AA$155:$AB$155),OR(D$156=$AA$156:$AC$156),OR(D$157=$AA$157:$AB$157)),'All Costs'!D43,0) -> 9375617.698 | E192: =IF(AND(OR(E$154=$AA$154:$AB$154),OR(E$155=$AA$155:$AB$155),OR(E$156=$AA$156:$AC$156),OR(E$157=$AA$157:$AB$157)),'All Costs'!E43,0) -> 48874.55664 | F192: =IF(AND(OR(F$154=$AA$154:$AB$154),OR(F$155=$AA$155:$AB$155),OR(F$156=$AA$156:$AC$156),OR(F$157=$AA$157:$AB$157)),'All Costs'!F43,0) -> 2390.378482 | G192: =IF(AND(OR(G$154=$AA$154:$AB$154),OR(G$155=$AA$155:$AB$155),OR(G$156=$AA$156:$AC$156),OR(G$157=$AA$157:$AB$157)),'All Costs'!G43,0) -> 4582.691874 | H192: =IF(AND(OR(H$154=$AA$154:$AB$154),OR(H$155=$AA$155:$AB$155),OR(H$156=$AA$156:$AC$156),OR(H$157=$AA$157:$AB$157)),'All Costs'!H43,0) -> 47.8710571 | I192: =IF(AND(OR(I$154=$AA$154:$AB$154),OR(I$155=$AA$155:$AB$155),OR(I$156=$AA$156:$AC$156),OR(I$157=$AA$157:$AB$157)),'All Costs'!I43,0) -> 168181187.8 | J192: =IF(AND(OR(J$154=$AA$154:$AB$154),OR(J$155=$AA$155:$AB$155),OR(J$156=$AA$156:$AC$156),OR(J$157=$AA$157:$AB$157)),'All Costs'!J43,0) -> 31649616.6 | K192: =IF(AND(OR(K$154=$AA$154:$AB$154),OR(K$155=$AA$155:$AB$155),OR(K$156=$AA$156:$AC$156),OR(K$157=$AA$157:$AB$157)),'All Costs'!K43,0) -> 5860.922151 | L192: =IF(AND(OR(L$154=$AA$154:$AB$154),OR(L$155=$AA$155:$AB$155),OR(L$156=$AA$156:$AC$156),OR(L$157=$AA$157:$AB$157)),'All Costs'!L43,0) -> 0 | M192: =IF(AND(OR(M$154=$AA$154:$AB$154),OR(M$155=$AA$155:$AB$155),OR(M$156=$AA$156:$AC$156),OR(M$157=$AA$157:$AB$157)),'All Costs'!M43,0) -> 0 | N192: =IF(AND(OR(N$154=$AA$154:$AB$154),OR(N$155=$AA$155:$AB$155),OR(N$156=$AA$156:$AC$156),OR(N$157=$AA$157:$AB$157)),'All Costs'!N43,0) -> 0 | O192: =IF(AND(OR(O$154=$AA$154:$AB$154),OR(O$155=$AA$155:$AB$155),OR(O$156=$AA$156:$AC$156),OR(O$157=$AA$157:$AB$157)),'All Costs'!O43,0) -> 110660430.3 | P192: =IF(AND(OR(P$154=$AA$154:$AB$154),OR(P$155=$AA$155:$AB$155),OR(P$156=$AA$156:$AC$156),OR(P$157=$AA$157:$AB$157)),'All Costs'!P43,0) -> 10405339.58 | Q192: =IF(AND(OR(Q$154=$AA$154:$AB$154),OR(Q$155=$AA$155:$AB$155),OR(Q$156=$AA$156:$AC$156),OR(Q$157=$AA$157:$AB$157)),'All Costs'!Q43,0) -> 2310436.563 | R192: =IF(AND(OR(R$154=$AA$154:$AB$154),OR(R$155=$AA$155:$AB$155),OR(R$156=$AA$156:$AC$156),OR(R$157=$AA$157:$AB$157)),'All Costs'!R43,0) -> 5847.662244 | S192: =IF(AND(OR(S$154=$AA$154:$AB$154),OR(S$155=$AA$155:$AB$155),OR(S$156=$AA$156:$AC$156),OR(S$157=$AA$157:$AB$157)),'All Costs'!S43,0) -> 156902.2961 | T192: =IF(AND(OR(T$154=$AA$154:$AB$154),OR(T$155=$AA$155:$AB$155),OR(T$156=$AA$156:$AC$156),OR(T$157=$AA$157:$AB$157)),'All Costs'!T43,0) -> 1402.971561 | U192: =IF(AND(OR(U$154=$AA$154:$AB$154),OR(U$155=$AA$155:$AB$155),OR(U$156=$AA$156:$AC$156),OR(U$157=$AA$157:$AB$157)),'All Costs'!U43,0) -> 260911915.8 | V192: =IF(AND(OR(V$154=$AA$154:$AB$154),OR(V$155=$AA$155:$AB$155),OR(V$156=$AA$156:$AC$156),OR(V$157=$AA$157:$AB$157)),'All Costs'!V43,0) -> 29612530.69 | W192: =IF(AND(OR(W$154=$AA$154:$AB$154),OR(W$155=$AA$155:$AB$155),OR(W$156=$AA$156:$AC$156),OR(W$157=$AA$157:$AB$157)),'All Costs'!W43,0) -> 487.2517739 | X192: =IF(AND(OR(X$154=$AA$154:$AB$154),OR(X$155=$AA$155:$AB$155),OR(X$156=$AA$156:$AC$156),OR(X$157=$AA$157:$AB$157)),'All Costs'!X43,0) -> 0 | Y192: =IF(AND(OR(Y$154=$AA$154:$AB$154),OR(Y$155=$AA$155:$AB$155),OR(Y$156=$AA$156:$AC$156),OR(Y$157=$AA$157:$AB$157)),'All Costs'!Y43,0) -> 0 | Z192: =IF(AND(OR(Z$154=$AA$154:$AB$154),OR(Z$155=$AA$155:$AB$155),OR(Z$156=$AA$156:$AC$156),OR(Z$157=$AA$157:$AB$157)),'All Costs'!Z43,0) -> 0 | AA192: 680695728.1
B193: Integration Costs | C193: =IF(AND(OR(C$154=$AA$154:$AB$154),OR(C$155=$AA$155:$AB$155),OR(C$156=$AA$156:$AC$156),OR(C$157=$AA$157:$AB$157)),'All Costs'!C44,0) -> 1165773.701 | D193: =IF(AND(OR(D$154=$AA$154:$AB$154),OR(D$155=$AA$155:$AB$155),OR(D$156=$AA$156:$AC$156),OR(D$157=$AA$157:$AB$157)),'All Costs'!D44,0) -> 191987.9116 | E193: =IF(AND(OR(E$154=$AA$154:$AB$154),OR(E$155=$AA$155:$AB$155),OR(E$156=$AA$156:$AC$156),OR(E$157=$AA$157:$AB$157)),'All Costs'!E44,0) -> 959.8624096 | F193: =IF(AND(OR(F$154=$AA$154:$AB$154),OR(F$155=$AA$155:$AB$155),OR(F$156=$AA$156:$AC$156),OR(F$157=$AA$157:$AB$157)),'All Costs'!F44,0) -> 51.20756051 | G193: =IF(AND(OR(G$154=$AA$154:$AB$154),OR(G$155=$AA$155:$AB$155),OR(G$156=$AA$156:$AC$156),OR(G$157=$AA$157:$AB$157)),'All Costs'!G44,0) -> 87.33361227 | H193: =IF(AND(OR(H$154=$AA$154:$AB$154),OR(H$155=$AA$155:$AB$155),OR(H$156=$AA$156:$AC$156),OR(H$157=$AA$157:$AB$157)),'All Costs'!H44,0) -> 1.012902765 | I193: =IF(AND(OR(I$154=$AA$154:$AB$154),OR(I$155=$AA$155:$AB$155),OR(I$156=$AA$156:$AC$156),OR(I$157=$AA$157:$AB$157)),'All Costs'!I44,0) -> 3105647.509 | J193: =IF(AND(OR(J$154=$AA$154:$AB$154),OR(J$155=$AA$155:$AB$155),OR(J$156=$AA$156:$AC$156),OR(J$157=$AA$157:$AB$157)),'All Costs'!J44,0) -> 611584.9417 | K193: =IF(AND(OR(K$154=$AA$154:$AB$154),OR(K$155=$AA$155:$AB$155),OR(K$156=$AA$156:$AC$156),OR(K$157=$AA$157:$AB$157)),'All Costs'!K44,0) -> 87.3045477 | L193: =IF(AND(OR(L$154=$AA$154:$AB$154),OR(L$155=$AA$155:$AB$155),OR(L$156=$AA$156:$AC$156),OR(L$157=$AA$157:$AB$157)),'All Costs'!L44,0) -> 0 | M193: =IF(AND(OR(M$154=$AA$154:$AB$154),OR(M$155=$AA$155:$AB$155),OR(M$156=$AA$156:$AC$156),OR(M$157=$AA$157:$AB$157)),'All Costs'!M44,0) -> 0 | N193: =IF(AND(OR(N$154=$AA$154:$AB$154),OR(N$155=$AA$155:$AB$155),OR(N$156=$AA$156:$AC$156),OR(N$157=$AA$157:$AB$157)),'All Costs'!N44,0) -> 0 | O193: =IF(AND(OR(O$154=$AA$154:$AB$154),OR(O$155=$AA$155:$AB$155),OR(O$156=$AA$156:$AC$156),OR(O$157=$AA$157:$AB$157)),'All Costs'!O44,0) -> 2462645.821 | P193: =IF(AND(OR(P$154=$AA$154:$AB$154),OR(P$155=$AA$155:$AB$155),OR(P$156=$AA$156:$AC$156),OR(P$157=$AA$157:$AB$157)),'All Costs'!P44,0) -> 214938.1608 | Q193: =IF(AND(OR(Q$154=$AA$154:$AB$154),OR(Q$155=$AA$155:$AB$155),OR(Q$156=$AA$156:$AC$156),OR(Q$157=$AA$157:$AB$157)),'All Costs'!Q44,0) -> 61361.36166 | R193: =IF(AND(OR(R$154=$AA$154:$AB$154),OR(R$155=$AA$155:$AB$155),OR(R$156=$AA$156:$AC$156),OR(R$157=$AA$157:$AB$157)),'All Costs'!R44,0) -> 148.2856852 | S193: =IF(AND(OR(S$154=$AA$154:$AB$154),OR(S$155=$AA$155:$AB$155),OR(S$156=$AA$156:$AC$156),OR(S$157=$AA$157:$AB$157)),'All Costs'!S44,0) -> 4252.370155 | T193: =IF(AND(OR(T$154=$AA$154:$AB$154),OR(T$155=$AA$155:$AB$155),OR(T$156=$AA$156:$AC$156),OR(T$157=$AA$157:$AB$157)),'All Costs'!T44,0) -> 34.91063374 | U193: =IF(AND(OR(U$154=$AA$154:$AB$154),OR(U$155=$AA$155:$AB$155),OR(U$156=$AA$156:$AC$156),OR(U$157=$AA$157:$AB$157)),'All Costs'!U44,0) -> 5129297.942 | V193: =IF(AND(OR(V$154=$AA$154:$AB$154),OR(V$155=$AA$155:$AB$155),OR(V$156=$AA$156:$AC$156),OR(V$157=$AA$157:$AB$157)),'All Costs'!V44,0) -> 582144.7628 | W193: =IF(AND(OR(W$154=$AA$154:$AB$154),OR(W$155=$AA$155:$AB$155),OR(W$156=$AA$156:$AC$156),OR(W$157=$AA$157:$AB$157)),'All Costs'!W44,0) -> 10.71254587 | X193: =IF(AND(OR(X$154=$AA$154:$AB$154),OR(X$155=$AA$155:$AB$155),OR(X$156=$AA$156:$AC$156),OR(X$157=$AA$157:$AB$157)),'All Costs'!X44,0) -> 0 | Y193: =IF(AND(OR(Y$154=$AA$154:$AB$154),OR(Y$155=$AA$155:$AB$155),OR(Y$156=$AA$156:$AC$156),OR(Y$157=$AA$157:$AB$157)),'All Costs'!Y44,0) -> 0 | Z193: =IF(AND(OR(Z$154=$AA$154:$AB$154),OR(Z$155=$AA$155:$AB$155),OR(Z$156=$AA$156:$AC$156),OR(Z$157=$AA$157:$AB$157)),'All Costs'!Z44,0) -> 0 | AA193: 13531015.11
B194: CapEx and O&M | C194: =IF(AND(OR(C$154=$AA$154:$AB$154),OR(C$155=$AA$155:$AB$155),OR(C$156=$AA$156:$AC$156),OR(C$157=$AA$157:$AB$157)),'All Costs'!C45,0) -> 161054211 | D194: =IF(AND(OR(D$154=$AA$154:$AB$154),OR(D$155=$AA$155:$AB$155),OR(D$156=$AA$156:$AC$156),OR(D$157=$AA$157:$AB$157)),'All Costs'!D45,0) -> 28659123.41 | E194: =IF(AND(OR(E$154=$AA$154:$AB$154),OR(E$155=$AA$155:$AB$155),OR(E$156=$AA$156:$AC$156),OR(E$157=$AA$157:$AB$157)),'All Costs'!E45,0) -> 1817788.781 | F194: =IF(AND(OR(F$154=$AA$154:$AB$154),OR(F$155=$AA$155:$AB$155),OR(F$156=$AA$156:$AC$156),OR(F$157=$AA$157:$AB$157)),'All Costs'!F45,0) -> 73306.92286 | G194: =IF(AND(OR(G$154=$AA$154:$AB$154),OR(G$155=$AA$155:$AB$155),OR(G$156=$AA$156:$AC$156),OR(G$157=$AA$157:$AB$157)),'All Costs'!G45,0) -> 19914.5035 | H194: =IF(AND(OR(H$154=$AA$154:$AB$154),OR(H$155=$AA$155:$AB$155),OR(H$156=$AA$156:$AC$156),OR(H$157=$AA$157:$AB$157)),'All Costs'!H45,0) -> 200.7515135 | I194: =IF(AND(OR(I$154=$AA$154:$AB$154),OR(I$155=$AA$155:$AB$155),OR(I$156=$AA$156:$AC$156),OR(I$157=$AA$157:$AB$157)),'All Costs'!I45,0) -> 393144052.7 | J194: =IF(AND(OR(J$154=$AA$154:$AB$154),OR(J$155=$AA$155:$AB$155),OR(J$156=$AA$156:$AC$156),OR(J$157=$AA$157:$AB$157)),'All Costs'!J45,0) -> 81325972.99 | K194: =IF(AND(OR(K$154=$AA$154:$AB$154),OR(K$155=$AA$155:$AB$155),OR(K$156=$AA$156:$AC$156),OR(K$157=$AA$157:$AB$157)),'All Costs'!K45,0) -> 191508.2006 | L194: =IF(AND(OR(L$154=$AA$154:$AB$154),OR(L$155=$AA$155:$AB$155),OR(L$156=$AA$156:$AC$156),OR(L$157=$AA$157:$AB$157)),'All Costs'!L45,0) -> 0 | M194: =IF(AND(OR(M$154=$AA$154:$AB$154),OR(M$155=$AA$155:$AB$155),OR(M$156=$AA$156:$AC$156),OR(M$157=$AA$157:$AB$157)),'All Costs'!M45,0) -> 0 | N194: =IF(AND(OR(N$154=$AA$154:$AB$154),OR(N$155=$AA$155:$AB$155),OR(N$156=$AA$156:$AC$156),OR(N$157=$AA$157:$AB$157)),'All Costs'!N45,0) -> 0 | O194: =IF(AND(OR(O$154=$AA$154:$AB$154),OR(O$155=$AA$155:$AB$155),OR(O$156=$AA$156:$AC$156),OR(O$157=$AA$157:$AB$157)),'All Costs'!O45,0) -> 333669489.7 | P194: =IF(AND(OR(P$154=$AA$154:$AB$154),OR(P$155=$AA$155:$AB$155),OR(P$156=$AA$156:$AC$156),OR(P$157=$AA$157:$AB$157)),'All Costs'!P45,0) -> 26397220.55 | Q194: =IF(AND(OR(Q$154=$AA$154:$AB$154),OR(Q$155=$AA$155:$AB$155),OR(Q$156=$AA$156:$AC$156),OR(Q$157=$AA$157:$AB$157)),'All Costs'!Q45,0) -> 53253335.92 | R194: =IF(AND(OR(R$154=$AA$154:$AB$154),OR(R$155=$AA$155:$AB$155),OR(R$156=$AA$156:$AC$156),OR(R$157=$AA$157:$AB$157)),'All Costs'!R45,0) -> 163785.379 | S194: =IF(AND(OR(S$154=$AA$154:$AB$154),OR(S$155=$AA$155:$AB$155),OR(S$156=$AA$156:$AC$156),OR(S$157=$AA$157:$AB$157)),'All Costs'!S45,0) -> 552550.5655 | T194: =IF(AND(OR(T$154=$AA$154:$AB$154),OR(T$155=$AA$155:$AB$155),OR(T$156=$AA$156:$AC$156),OR(T$157=$AA$157:$AB$157)),'All Costs'!T45,0) -> 5557.242031 | U194: =IF(AND(OR(U$154=$AA$154:$AB$154),OR(U$155=$AA$155:$AB$155),OR(U$156=$AA$156:$AC$156),OR(U$157=$AA$157:$AB$157)),'All Costs'!U45,0) -> 593107291.8 | V194: =IF(AND(OR(V$154=$AA$154:$AB$154),OR(V$155=$AA$155:$AB$155),OR(V$156=$AA$156:$AC$156),OR(V$157=$AA$157:$AB$157)),'All Costs'!V45,0) -> 68455239.41 | W194: =IF(AND(OR(W$154=$AA$154:$AB$154),OR(W$155=$AA$155:$AB$155),OR(W$156=$AA$156:$AC$156),OR(W$157=$AA$157:$AB$157)),'All Costs'!W45,0) -> 59950.72443 | X194: =IF(AND(OR(X$154=$AA$154:$AB$154),OR(X$155=$AA$155:$AB$155),OR(X$156=$AA$156:$AC$156),OR(X$157=$AA$157:$AB$157)),'All Costs'!X45,0) -> 0 | Y194: =IF(AND(OR(Y$154=$AA$154:$AB$154),OR(Y$155=$AA$155:$AB$155),OR(Y$156=$AA$156:$AC$156),OR(Y$157=$AA$157:$AB$157)),'All Costs'!Y45,0) -> 0 | Z194: =IF(AND(OR(Z$154=$AA$154:$AB$154),OR(Z$155=$AA$155:$AB$155),OR(Z$156=$AA$156:$AC$156),OR(Z$157=$AA$157:$AB$157)),'All Costs'!Z45,0) -> 0 | AA194: 1741950501
B195: Fed Incentives | C195: =IF(AND(OR(C$154=$AA$154:$AB$154),OR(C$155=$AA$155:$AB$155),OR(C$156=$AA$156:$AC$156),OR(C$157=$AA$157:$AB$157)),'All Costs'!C46,0) -> 58211572 | D195: =IF(AND(OR(D$154=$AA$154:$AB$154),OR(D$155=$AA$155:$AB$155),OR(D$156=$AA$156:$AC$156),OR(D$157=$AA$157:$AB$157)),'All Costs'!D46,0) -> 10867589.59 | E195: =IF(AND(OR(E$154=$AA$154:$AB$154),OR(E$155=$AA$155:$AB$155),OR(E$156=$AA$156:$AC$156),OR(E$157=$AA$157:$AB$157)),'All Costs'!E46,0) -> 606320.3682 | F195: =IF(AND(OR(F$154=$AA$154:$AB$154),OR(F$155=$AA$155:$AB$155),OR(F$156=$AA$156:$AC$156),OR(F$157=$AA$157:$AB$157)),'All Costs'!F46,0) -> 28175.64105 | G195: =IF(AND(OR(G$154=$AA$154:$AB$154),OR(G$155=$AA$155:$AB$155),OR(G$156=$AA$156:$AC$156),OR(G$157=$AA$157:$AB$157)),'All Costs'!G46,0) -> 7329.446552 | H195: =IF(AND(OR(H$154=$AA$154:$AB$154),OR(H$155=$AA$155:$AB$155),OR(H$156=$AA$156:$AC$156),OR(H$157=$AA$157:$AB$157)),'All Costs'!H46,0) -> 74.80588332 | I195: =IF(AND(OR(I$154=$AA$154:$AB$154),OR(I$155=$AA$155:$AB$155),OR(I$156=$AA$156:$AC$156),OR(I$157=$AA$157:$AB$157)),'All Costs'!I46,0) -> 142900752.6 | J195: =IF(AND(OR(J$154=$AA$154:$AB$154),OR(J$155=$AA$155:$AB$155),OR(J$156=$AA$156:$AC$156),OR(J$157=$AA$157:$AB$157)),'All Costs'!J46,0) -> 31071500.24 | K195: =IF(AND(OR(K$154=$AA$154:$AB$154),OR(K$155=$AA$155:$AB$155),OR(K$156=$AA$156:$AC$156),OR(K$157=$AA$157:$AB$157)),'All Costs'!K46,0) -> 64945.29843 | L195: =IF(AND(OR(L$154=$AA$154:$AB$154),OR(L$155=$AA$155:$AB$155),OR(L$156=$AA$156:$AC$156),OR(L$157=$AA$157:$AB$157)),'All Costs'!L46,0) -> 0 | M195: =IF(AND(OR(M$154=$AA$154:$AB$154),OR(M$155=$AA$155:$AB$155),OR(M$156=$AA$156:$AC$156),OR(M$157=$AA$157:$AB$157)),'All Costs'!M46,0) -> 0 | N195: =IF(AND(OR(N$154=$AA$154:$AB$154),OR(N$155=$AA$155:$AB$155),OR(N$156=$AA$156:$AC$156),OR(N$157=$AA$157:$AB$157)),'All Costs'!N46,0) -> 0 | O195: =IF(AND(OR(O$154=$AA$154:$AB$154),OR(O$155=$AA$155:$AB$155),OR(O$156=$AA$156:$AC$156),OR(O$157=$AA$157:$AB$157)),'All Costs'!O46,0) -> 115583577.6 | P195: =IF(AND(OR(P$154=$AA$154:$AB$154),OR(P$155=$AA$155:$AB$155),OR(P$156=$AA$156:$AC$156),OR(P$157=$AA$157:$AB$157)),'All Costs'!P46,0) -> 9870175.613 | Q195: =IF(AND(OR(Q$154=$AA$154:$AB$154),OR(Q$155=$AA$155:$AB$155),OR(Q$156=$AA$156:$AC$156),OR(Q$157=$AA$157:$AB$157)),'All Costs'!Q46,0) -> 17013871.14 | R195: =IF(AND(OR(R$154=$AA$154:$AB$154),OR(R$155=$AA$155:$AB$155),OR(R$156=$AA$156:$AC$156),OR(R$157=$AA$157:$AB$157)),'All Costs'!R46,0) -> 61690.89842 | S195: =IF(AND(OR(S$154=$AA$154:$AB$154),OR(S$155=$AA$155:$AB$155),OR(S$156=$AA$156:$AC$156),OR(S$157=$AA$157:$AB$157)),'All Costs'!S46,0) -> 194102.21 | T195: =IF(AND(OR(T$154=$AA$154:$AB$154),OR(T$155=$AA$155:$AB$155),OR(T$156=$AA$156:$AC$156),OR(T$157=$AA$157:$AB$157)),'All Costs'!T46,0) -> 2005.93187 | U195: =IF(AND(OR(U$154=$AA$154:$AB$154),OR(U$155=$AA$155:$AB$155),OR(U$156=$AA$156:$AC$156),OR(U$157=$AA$157:$AB$157)),'All Costs'!U46,0) -> 210080083.7 | V195: =IF(AND(OR(V$154=$AA$154:$AB$154),OR(V$155=$AA$155:$AB$155),OR(V$156=$AA$156:$AC$156),OR(V$157=$AA$157:$AB$157)),'All Costs'!V46,0) -> 25614764 | W195: =IF(AND(OR(W$154=$AA$154:$AB$154),OR(W$155=$AA$155:$AB$155),OR(W$156=$AA$156:$AC$156),OR(W$157=$AA$157:$AB$157)),'All Costs'!W46,0) -> 20769.63119 | X195: =IF(AND(OR(X$154=$AA$154:$AB$154),OR(X$155=$AA$155:$AB$155),OR(X$156=$AA$156:$AC$156),OR(X$157=$AA$157:$AB$157)),'All Costs'!X46,0) -> 0 | Y195: =IF(AND(OR(Y$154=$AA$154:$AB$154),OR(Y$155=$AA$155:$AB$155),OR(Y$156=$AA$156:$AC$156),OR(Y$157=$AA$157:$AB$157)),'All Costs'!Y46,0) -> 0 | Z195: =IF(AND(OR(Z$154=$AA$154:$AB$154),OR(Z$155=$AA$155:$AB$155),OR(Z$156=$AA$156:$AC$156),OR(Z$157=$AA$157:$AB$157)),'All Costs'!Z46,0) -> 0 | AA195: 622199300.7
B196: Utility Incentives | C196: =IF(AND(OR(C$154=$AA$154:$AB$154),OR(C$155=$AA$155:$AB$155),OR(C$156=$AA$156:$AC$156),OR(C$157=$AA$157:$AB$157)),'All Costs'!C47,0) -> 16023971.59 | D196: =IF(AND(OR(D$154=$AA$154:$AB$154),OR(D$155=$AA$155:$AB$155),OR(D$156=$AA$156:$AC$156),OR(D$157=$AA$157:$AB$157)),'All Costs'!D47,0) -> 0 | E196: =IF(AND(OR(E$154=$AA$154:$AB$154),OR(E$155=$AA$155:$AB$155),OR(E$156=$AA$156:$AC$156),OR(E$157=$AA$157:$AB$157)),'All Costs'!E47,0) -> 731278.809 | F196: =IF(AND(OR(F$154=$AA$154:$AB$154),OR(F$155=$AA$155:$AB$155),OR(F$156=$AA$156:$AC$156),OR(F$157=$AA$157:$AB$157)),'All Costs'!F47,0) -> 0 | G196: =IF(AND(OR(G$154=$AA$154:$AB$154),OR(G$155=$AA$155:$AB$155),OR(G$156=$AA$156:$AC$156),OR(G$157=$AA$157:$AB$157)),'All Costs'!G47,0) -> 856.1063919 | H196: =IF(AND(OR(H$154=$AA$154:$AB$154),OR(H$155=$AA$155:$AB$155),OR(H$156=$AA$156:$AC$156),OR(H$157=$AA$157:$AB$157)),'All Costs'!H47,0) -> 0 | I196: =IF(AND(OR(I$154=$AA$154:$AB$154),OR(I$155=$AA$155:$AB$155),OR(I$156=$AA$156:$AC$156),OR(I$157=$AA$157:$AB$157)),'All Costs'!I47,0) -> 34434838.68 | J196: =IF(AND(OR(J$154=$AA$154:$AB$154),OR(J$155=$AA$155:$AB$155),OR(J$156=$AA$156:$AC$156),OR(J$157=$AA$157:$AB$157)),'All Costs'!J47,0) -> 0 | K196: =IF(AND(OR(K$154=$AA$154:$AB$154),OR(K$155=$AA$155:$AB$155),OR(K$156=$AA$156:$AC$156),OR(K$157=$AA$157:$AB$157)),'All Costs'!K47,0) -> 71026.85616 | L196: =IF(AND(OR(L$154=$AA$154:$AB$154),OR(L$155=$AA$155:$AB$155),OR(L$156=$AA$156:$AC$156),OR(L$157=$AA$157:$AB$157)),'All Costs'!L47,0) -> 0 | M196: =IF(AND(OR(M$154=$AA$154:$AB$154),OR(M$155=$AA$155:$AB$155),OR(M$156=$AA$156:$AC$156),OR(M$157=$AA$157:$AB$157)),'All Costs'!M47,0) -> 0 | N196: =IF(AND(OR(N$154=$AA$154:$AB$154),OR(N$155=$AA$155:$AB$155),OR(N$156=$AA$156:$AC$156),OR(N$157=$AA$157:$AB$157)),'All Costs'!N47,0) -> 0 | O196: =IF(AND(OR(O$154=$AA$154:$AB$154),OR(O$155=$AA$155:$AB$155),OR(O$156=$AA$156:$AC$156),OR(O$157=$AA$157:$AB$157)),'All Costs'!O47,0) -> 105133627.2 | P196: =IF(AND(OR(P$154=$AA$154:$AB$154),OR(P$155=$AA$155:$AB$155),OR(P$156=$AA$156:$AC$156),OR(P$157=$AA$157:$AB$157)),'All Costs'!P47,0) -> 0 | Q196: =IF(AND(OR(Q$154=$AA$154:$AB$154),OR(Q$155=$AA$155:$AB$155),OR(Q$156=$AA$156:$AC$156),OR(Q$157=$AA$157:$AB$157)),'All Costs'!Q47,0) -> 27443420.39 | R196: =IF(AND(OR(R$154=$AA$154:$AB$154),OR(R$155=$AA$155:$AB$155),OR(R$156=$AA$156:$AC$156),OR(R$157=$AA$157:$AB$157)),'All Costs'!R47,0) -> 0 | S196: =IF(AND(OR(S$154=$AA$154:$AB$154),OR(S$155=$AA$155:$AB$155),OR(S$156=$AA$156:$AC$156),OR(S$157=$AA$157:$AB$157)),'All Costs'!S47,0) -> 55924.4888 | T196: =IF(AND(OR(T$154=$AA$154:$AB$154),OR(T$155=$AA$155:$AB$155),OR(T$156=$AA$156:$AC$156),OR(T$157=$AA$157:$AB$157)),'All Costs'!T47,0) -> 0 | U196: =IF(AND(OR(U$154=$AA$154:$AB$154),OR(U$155=$AA$155:$AB$155),OR(U$156=$AA$156:$AC$156),OR(U$157=$AA$157:$AB$157)),'All Costs'!U47,0) -> 119835010.7 | V196: =IF(AND(OR(V$154=$AA$154:$AB$154),OR(V$155=$AA$155:$AB$155),OR(V$156=$AA$156:$AC$156),OR(V$157=$AA$157:$AB$157)),'All Costs'!V47,0) -> 0 | W196: =IF(AND(OR(W$154=$AA$154:$AB$154),OR(W$155=$AA$155:$AB$155),OR(W$156=$AA$156:$AC$156),OR(W$157=$AA$157:$AB$157)),'All Costs'!W47,0) -> 17565.94993 | X196: =IF(AND(OR(X$154=$AA$154:$AB$154),OR(X$155=$AA$155:$AB$155),OR(X$156=$AA$156:$AC$156),OR(X$157=$AA$157:$AB$157)),'All Costs'!X47,0) -> 0 | Y196: =IF(AND(OR(Y$154=$AA$154:$AB$154),OR(Y$155=$AA$155:$AB$155),OR(Y$156=$AA$156:$AC$156),OR(Y$157=$AA$157:$AB$157)),'All Costs'!Y47,0) -> 0 | Z196: =IF(AND(OR(Z$154=$AA$154:$AB$154),OR(Z$155=$AA$155:$AB$155),OR(Z$156=$AA$156:$AC$156),OR(Z$157=$AA$157:$AB$157)),'All Costs'!Z47,0) -> 0 | AA196: 303747520.8
B197: NEM Program Costs | C197: =IF(AND(OR(C$154=$AA$154:$AB$154),OR(C$155=$AA$155:$AB$155),OR(C$156=$AA$156:$AC$156),OR(C$157=$AA$157:$AB$157)),'All Costs'!C48,0) -> 517503.233 | D197: =IF(AND(OR(D$154=$AA$154:$AB$154),OR(D$155=$AA$155:$AB$155),OR(D$156=$AA$156:$AC$156),OR(D$157=$AA$157:$AB$157)),'All Costs'!D48,0) -> 65600.83962 | E197: =IF(AND(OR(E$154=$AA$154:$AB$154),OR(E$155=$AA$155:$AB$155),OR(E$156=$AA$156:$AC$156),OR(E$157=$AA$157:$AB$157)),'All Costs'!E48,0) -> 1232.845233 | F197: =IF(AND(OR(F$154=$AA$154:$AB$154),OR(F$155=$AA$155:$AB$155),OR(F$156=$AA$156:$AC$156),OR(F$157=$AA$157:$AB$157)),'All Costs'!F48,0) -> 50.41802203 | G197: =IF(AND(OR(G$154=$AA$154:$AB$154),OR(G$155=$AA$155:$AB$155),OR(G$156=$AA$156:$AC$156),OR(G$157=$AA$157:$AB$157)),'All Costs'!G48,0) -> 50.80917885 | H197: =IF(AND(OR(H$154=$AA$154:$AB$154),OR(H$155=$AA$155:$AB$155),OR(H$156=$AA$156:$AC$156),OR(H$157=$AA$157:$AB$157)),'All Costs'!H48,0) -> 0.5132240288 | I197: =IF(AND(OR(I$154=$AA$154:$AB$154),OR(I$155=$AA$155:$AB$155),OR(I$156=$AA$156:$AC$156),OR(I$157=$AA$157:$AB$157)),'All Costs'!I48,0) -> 1065969.847 | J197: =IF(AND(OR(J$154=$AA$154:$AB$154),OR(J$155=$AA$155:$AB$155),OR(J$156=$AA$156:$AC$156),OR(J$157=$AA$157:$AB$157)),'All Costs'!J48,0) -> 151578.2304 | K197: =IF(AND(OR(K$154=$AA$154:$AB$154),OR(K$155=$AA$155:$AB$155),OR(K$156=$AA$156:$AC$156),OR(K$157=$AA$157:$AB$157)),'All Costs'!K48,0) -> 128.9984493 | L197: =IF(AND(OR(L$154=$AA$154:$AB$154),OR(L$155=$AA$155:$AB$155),OR(L$156=$AA$156:$AC$156),OR(L$157=$AA$157:$AB$157)),'All Costs'!L48,0) -> 0 | M197: =IF(AND(OR(M$154=$AA$154:$AB$154),OR(M$155=$AA$155:$AB$155),OR(M$156=$AA$156:$AC$156),OR(M$157=$AA$157:$AB$157)),'All Costs'!M48,0) -> 0 | N197: =IF(AND(OR(N$154=$AA$154:$AB$154),OR(N$155=$AA$155:$AB$155),OR(N$156=$AA$156:$AC$156),OR(N$157=$AA$157:$AB$157)),'All Costs'!N48,0) -> 0 | O197: =IF(AND(OR(O$154=$AA$154:$AB$154),OR(O$155=$AA$155:$AB$155),OR(O$156=$AA$156:$AC$156),OR(O$157=$AA$157:$AB$157)),'All Costs'!O48,0) -> 869006.0698 | P197: =IF(AND(OR(P$154=$AA$154:$AB$154),OR(P$155=$AA$155:$AB$155),OR(P$156=$AA$156:$AC$156),OR(P$157=$AA$157:$AB$157)),'All Costs'!P48,0) -> 88811.19353 | Q197: =IF(AND(OR(Q$154=$AA$154:$AB$154),OR(Q$155=$AA$155:$AB$155),OR(Q$156=$AA$156:$AC$156),OR(Q$157=$AA$157:$AB$157)),'All Costs'!Q48,0) -> 58767.34808 | R197: =IF(AND(OR(R$154=$AA$154:$AB$154),OR(R$155=$AA$155:$AB$155),OR(R$156=$AA$156:$AC$156),OR(R$157=$AA$157:$AB$157)),'All Costs'!R48,0) -> 177.458359 | S197: =IF(AND(OR(S$154=$AA$154:$AB$154),OR(S$155=$AA$155:$AB$155),OR(S$156=$AA$156:$AC$156),OR(S$157=$AA$157:$AB$157)),'All Costs'!S48,0) -> 2235.603869 | T197: =IF(AND(OR(T$154=$AA$154:$AB$154),OR(T$155=$AA$155:$AB$155),OR(T$156=$AA$156:$AC$156),OR(T$157=$AA$157:$AB$157)),'All Costs'!T48,0) -> 22.58185727 | U197: =IF(AND(OR(U$154=$AA$154:$AB$154),OR(U$155=$AA$155:$AB$155),OR(U$156=$AA$156:$AC$156),OR(U$157=$AA$157:$AB$157)),'All Costs'!U48,0) -> 1657482.543 | V197: =IF(AND(OR(V$154=$AA$154:$AB$154),OR(V$155=$AA$155:$AB$155),OR(V$156=$AA$156:$AC$156),OR(V$157=$AA$157:$AB$157)),'All Costs'!V48,0) -> 186816.1939 | W197: =IF(AND(OR(W$154=$AA$154:$AB$154),OR(W$155=$AA$155:$AB$155),OR(W$156=$AA$156:$AC$156),OR(W$157=$AA$157:$AB$157)),'All Costs'!W48,0) -> 28.40519983 | X197: =IF(AND(OR(X$154=$AA$154:$AB$154),OR(X$155=$AA$155:$AB$155),OR(X$156=$AA$156:$AC$156),OR(X$157=$AA$157:$AB$157)),'All Costs'!X48,0) -> 0 | Y197: =IF(AND(OR(Y$154=$AA$154:$AB$154),OR(Y$155=$AA$155:$AB$155),OR(Y$156=$AA$156:$AC$156),OR(Y$157=$AA$157:$AB$157)),'All Costs'!Y48,0) -> 0 | Z197: =IF(AND(OR(Z$154=$AA$154:$AB$154),OR(Z$155=$AA$155:$AB$155),OR(Z$156=$AA$156:$AC$156),OR(Z$157=$AA$157:$AB$157)),'All Costs'!Z48,0) -> 0 | AA197: 4665463.132
B198: Avoided RPS | C198: =IF(AND(OR(C$154=$AA$154:$AB$154),OR(C$155=$AA$155:$AB$155),OR(C$156=$AA$156:$AC$156),OR(C$157=$AA$157:$AB$157)),'All Costs'!C49,0) -> 40841347.86 | D198: =IF(AND(OR(D$154=$AA$154:$AB$154),OR(D$155=$AA$155:$AB$155),OR(D$156=$AA$156:$AC$156),OR(D$157=$AA$157:$AB$157)),'All Costs'!D49,0) -> 652441.6185 | E198: =IF(AND(OR(E$154=$AA$154:$AB$154),OR(E$155=$AA$155:$AB$155),OR(E$156=$AA$156:$AC$156),OR(E$157=$AA$157:$AB$157)),'All Costs'!E49,0) -> 18488.71882 | F198: =IF(AND(OR(F$154=$AA$154:$AB$154),OR(F$155=$AA$155:$AB$155),OR(F$156=$AA$156:$AC$156),OR(F$157=$AA$157:$AB$157)),'All Costs'!F49,0) -> 176.0387643 | G198: =IF(AND(OR(G$154=$AA$154:$AB$154),OR(G$155=$AA$155:$AB$155),OR(G$156=$AA$156:$AC$156),OR(G$157=$AA$157:$AB$157)),'All Costs'!G49,0) -> 1602.392637 | H198: =IF(AND(OR(H$154=$AA$154:$AB$154),OR(H$155=$AA$155:$AB$155),OR(H$156=$AA$156:$AC$156),OR(H$157=$AA$157:$AB$157)),'All Costs'!H49,0) -> 3.407742466 | I198: =IF(AND(OR(I$154=$AA$154:$AB$154),OR(I$155=$AA$155:$AB$155),OR(I$156=$AA$156:$AC$156),OR(I$157=$AA$157:$AB$157)),'All Costs'!I49,0) -> 133454790.5 | J198: =IF(AND(OR(J$154=$AA$154:$AB$154),OR(J$155=$AA$155:$AB$155),OR(J$156=$AA$156:$AC$156),OR(J$157=$AA$157:$AB$157)),'All Costs'!J49,0) -> 2576572.238 | K198: =IF(AND(OR(K$154=$AA$154:$AB$154),OR(K$155=$AA$155:$AB$155),OR(K$156=$AA$156:$AC$156),OR(K$157=$AA$157:$AB$157)),'All Costs'!K49,0) -> 2025.667837 | L198: =IF(AND(OR(L$154=$AA$154:$AB$154),OR(L$155=$AA$155:$AB$155),OR(L$156=$AA$156:$AC$156),OR(L$157=$AA$157:$AB$157)),'All Costs'!L49,0) -> 0 | M198: =IF(AND(OR(M$154=$AA$154:$AB$154),OR(M$155=$AA$155:$AB$155),OR(M$156=$AA$156:$AC$156),OR(M$157=$AA$157:$AB$157)),'All Costs'!M49,0) -> 0 | N198: =IF(AND(OR(N$154=$AA$154:$AB$154),OR(N$155=$AA$155:$AB$155),OR(N$156=$AA$156:$AC$156),OR(N$157=$AA$157:$AB$157)),'All Costs'!N49,0) -> 0 | O198: =IF(AND(OR(O$154=$AA$154:$AB$154),OR(O$155=$AA$155:$AB$155),OR(O$156=$AA$156:$AC$156),OR(O$157=$AA$157:$AB$157)),'All Costs'!O49,0) -> 91006134.15 | P198: =IF(AND(OR(P$154=$AA$154:$AB$154),OR(P$155=$AA$155:$AB$155),OR(P$156=$AA$156:$AC$156),OR(P$157=$AA$157:$AB$157)),'All Costs'!P49,0) -> 726685.2716 | Q198: =IF(AND(OR(Q$154=$AA$154:$AB$154),OR(Q$155=$AA$155:$AB$155),OR(Q$156=$AA$156:$AC$156),OR(Q$157=$AA$157:$AB$157)),'All Costs'!Q49,0) -> 1163263.799 | R198: =IF(AND(OR(R$154=$AA$154:$AB$154),OR(R$155=$AA$155:$AB$155),OR(R$156=$AA$156:$AC$156),OR(R$157=$AA$157:$AB$157)),'All Costs'!R49,0) -> 507.206389 | S198: =IF(AND(OR(S$154=$AA$154:$AB$154),OR(S$155=$AA$155:$AB$155),OR(S$156=$AA$156:$AC$156),OR(S$157=$AA$157:$AB$157)),'All Costs'!S49,0) -> 78022.26944 | T198: =IF(AND(OR(T$154=$AA$154:$AB$154),OR(T$155=$AA$155:$AB$155),OR(T$156=$AA$156:$AC$156),OR(T$157=$AA$157:$AB$157)),'All Costs'!T49,0) -> 117.4510063 | U198: =IF(AND(OR(U$154=$AA$154:$AB$154),OR(U$155=$AA$155:$AB$155),OR(U$156=$AA$156:$AC$156),OR(U$157=$AA$157:$AB$157)),'All Costs'!U49,0) -> 224041989.4 | V198: =IF(AND(OR(V$154=$AA$154:$AB$154),OR(V$155=$AA$155:$AB$155),OR(V$156=$AA$156:$AC$156),OR(V$157=$AA$157:$AB$157)),'All Costs'!V49,0) -> 2455070.573 | W198: =IF(AND(OR(W$154=$AA$154:$AB$154),OR(W$155=$AA$155:$AB$155),OR(W$156=$AA$156:$AC$156),OR(W$157=$AA$157:$AB$157)),'All Costs'!W49,0) -> 249.9525576 | X198: =IF(AND(OR(X$154=$AA$154:$AB$154),OR(X$155=$AA$155:$AB$155),OR(X$156=$AA$156:$AC$156),OR(X$157=$AA$157:$AB$157)),'All Costs'!X49,0) -> 0 | Y198: =IF(AND(OR(Y$154=$AA$154:$AB$154),OR(Y$155=$AA$155:$AB$155),OR(Y$156=$AA$156:$AC$156),OR(Y$157=$AA$157:$AB$157)),'All Costs'!Y49,0) -> 0 | Z198: =IF(AND(OR(Z$154=$AA$154:$AB$154),OR(Z$155=$AA$155:$AB$155),OR(Z$156=$AA$156:$AC$156),OR(Z$157=$AA$157:$AB$157)),'All Costs'!Z49,0) -> 0 | AA198: =SUM(C198:Z198) -> 497019488.5
B199: Generation | C199: =IF(AND(OR(C$154=$AA$154:$AB$154),OR(C$155=$AA$155:$AB$155),OR(C$156=$AA$156:$AC$156),OR(C$157=$AA$157:$AB$157)),'All Costs'!C50,0) -> 481146987.6 | D199: =IF(AND(OR(D$154=$AA$154:$AB$154),OR(D$155=$AA$155:$AB$155),OR(D$156=$AA$156:$AC$156),OR(D$157=$AA$157:$AB$157)),'All Costs'!D50,0) -> 79953427.22 | E199: =IF(AND(OR(E$154=$AA$154:$AB$154),OR(E$155=$AA$155:$AB$155),OR(E$156=$AA$156:$AC$156),OR(E$157=$AA$157:$AB$157)),'All Costs'!E50,0) -> 410237.0125 | F199: =IF(AND(OR(F$154=$AA$154:$AB$154),OR(F$155=$AA$155:$AB$155),OR(F$156=$AA$156:$AC$156),OR(F$157=$AA$157:$AB$157)),'All Costs'!F50,0) -> 21690.31855 | G199: =IF(AND(OR(G$154=$AA$154:$AB$154),OR(G$155=$AA$155:$AB$155),OR(G$156=$AA$156:$AC$156),OR(G$157=$AA$157:$AB$157)),'All Costs'!G50,0) -> 35880.55342 | H199: =IF(AND(OR(H$154=$AA$154:$AB$154),OR(H$155=$AA$155:$AB$155),OR(H$156=$AA$156:$AC$156),OR(H$157=$AA$157:$AB$157)),'All Costs'!H50,0) -> 416.1457523 | I199: =IF(AND(OR(I$154=$AA$154:$AB$154),OR(I$155=$AA$155:$AB$155),OR(I$156=$AA$156:$AC$156),OR(I$157=$AA$157:$AB$157)),'All Costs'!I50,0) -> 1279946462 | J199: =IF(AND(OR(J$154=$AA$154:$AB$154),OR(J$155=$AA$155:$AB$155),OR(J$156=$AA$156:$AC$156),OR(J$157=$AA$157:$AB$157)),'All Costs'!J50,0) -> 254683592.9 | K199: =IF(AND(OR(K$154=$AA$154:$AB$154),OR(K$155=$AA$155:$AB$155),OR(K$156=$AA$156:$AC$156),OR(K$157=$AA$157:$AB$157)),'All Costs'!K50,0) -> 37237.46213 | L199: =IF(AND(OR(L$154=$AA$154:$AB$154),OR(L$155=$AA$155:$AB$155),OR(L$156=$AA$156:$AC$156),OR(L$157=$AA$157:$AB$157)),'All Costs'!L50,0) -> 0 | M199: =IF(AND(OR(M$154=$AA$154:$AB$154),OR(M$155=$AA$155:$AB$155),OR(M$156=$AA$156:$AC$156),OR(M$157=$AA$157:$AB$157)),'All Costs'!M50,0) -> 0 | N199: =IF(AND(OR(N$154=$AA$154:$AB$154),OR(N$155=$AA$155:$AB$155),OR(N$156=$AA$156:$AC$156),OR(N$157=$AA$157:$AB$157)),'All Costs'!N50,0) -> 0 | O199: =IF(AND(OR(O$154=$AA$154:$AB$154),OR(O$155=$AA$155:$AB$155),OR(O$156=$AA$156:$AC$156),OR(O$157=$AA$157:$AB$157)),'All Costs'!O50,0) -> 1024524185 | P199: =IF(AND(OR(P$154=$AA$154:$AB$154),OR(P$155=$AA$155:$AB$155),OR(P$156=$AA$156:$AC$156),OR(P$157=$AA$157:$AB$157)),'All Costs'!P50,0) -> 88900144.51 | Q199: =IF(AND(OR(Q$154=$AA$154:$AB$154),OR(Q$155=$AA$155:$AB$155),OR(Q$156=$AA$156:$AC$156),OR(Q$157=$AA$157:$AB$157)),'All Costs'!Q50,0) -> 25952192.15 | R199: =IF(AND(OR(R$154=$AA$154:$AB$154),OR(R$155=$AA$155:$AB$155),OR(R$156=$AA$156:$AC$156),OR(R$157=$AA$157:$AB$157)),'All Costs'!R50,0) -> 62568.20546 | S199: =IF(AND(OR(S$154=$AA$154:$AB$154),OR(S$155=$AA$155:$AB$155),OR(S$156=$AA$156:$AC$156),OR(S$157=$AA$157:$AB$157)),'All Costs'!S50,0) -> 1747063.823 | T199: =IF(AND(OR(T$154=$AA$154:$AB$154),OR(T$155=$AA$155:$AB$155),OR(T$156=$AA$156:$AC$156),OR(T$157=$AA$157:$AB$157)),'All Costs'!T50,0) -> 14342.84952 | U199: =IF(AND(OR(U$154=$AA$154:$AB$154),OR(U$155=$AA$155:$AB$155),OR(U$156=$AA$156:$AC$156),OR(U$157=$AA$157:$AB$157)),'All Costs'!U50,0) -> 2119559059 | V199: =IF(AND(OR(V$154=$AA$154:$AB$154),OR(V$155=$AA$155:$AB$155),OR(V$156=$AA$156:$AC$156),OR(V$157=$AA$157:$AB$157)),'All Costs'!V50,0) -> 240953924.1 | W199: =IF(AND(OR(W$154=$AA$154:$AB$154),OR(W$155=$AA$155:$AB$155),OR(W$156=$AA$156:$AC$156),OR(W$157=$AA$157:$AB$157)),'All Costs'!W50,0) -> 4614.593479 | X199: =IF(AND(OR(X$154=$AA$154:$AB$154),OR(X$155=$AA$155:$AB$155),OR(X$156=$AA$156:$AC$156),OR(X$157=$AA$157:$AB$157)),'All Costs'!X50,0) -> 0 | Y199: =IF(AND(OR(Y$154=$AA$154:$AB$154),OR(Y$155=$AA$155:$AB$155),OR(Y$156=$AA$156:$AC$156),OR(Y$157=$AA$157:$AB$157)),'All Costs'!Y50,0) -> 0 | Z199: =IF(AND(OR(Z$154=$AA$154:$AB$154),OR(Z$155=$AA$155:$AB$155),OR(Z$156=$AA$156:$AC$156),OR(Z$157=$AA$157:$AB$157)),'All Costs'!Z50,0) -> 0 | AA199: =SUM(C199:Z199) -> 5597954025 | AB199: =AA198/AA199 -> 0.08878591826
C203: Avoided Costs by Component Breakdown
C204: Residential | D204: Residential | E204: Residential | F204: Residential | G204: Residential | H204: Residential | I204: Residential | J204: Residential | K204: Residential | L204: Residential | M204: Residential | N204: Residential | O204: Non-Residential | P204: Non-Residential | Q204: Non-Residential | R204: Non-Residential | S204: Non-Residential | T204: Non-Residential | U204: Non-Residential | V204: Non-Residential | W204: Non-Residential | X204: Non-Residential | Y204: Non-Residential | Z204: Non-Residential
C205: NVE North | D205: NVE North | E205: NVE North | F205: NVE North | G205: NVE North | H205: NVE North | I205: NVE South | J205: NVE South | K205: NVE South | L205: NVE South | M205: NVE South | N205: NVE South | O205: NVE North | P205: NVE North | Q205: NVE North | R205: NVE North | S205: NVE North | T205: NVE North | U205: NVE South | V205: NVE South | W205: NVE South | X205: NVE South | Y205: NVE South | Z205: NVE South
C206: PV | D206: PV | E206: Existing Wind | F206: Existing Wind | G206: New Wind | H206: New Wind | I206: PV | J206: PV | K206: Existing Wind | L206: Existing Wind | M206: New Wind | N206: New Wind | O206: PV | P206: PV | Q206: Existing Wind | R206: Existing Wind | S206: New Wind | T206: New Wind | U206: PV | V206: PV | W206: Existing Wind | X206: Existing Wind | Y206: New Wind | Z206: New Wind
C207: Incentivized | D207: Non-incentivized | E207: Incentivized | F207: Non-incentivized | G207: Incentivized | H207: Non-incentivized | I207: Incentivized | J207: Non-incentivized | K207: Incentivized | L207: Non-incentivized | M207: Incentivized | N207: Non-incentivized | O207: Incentivized | P207: Non-incentivized | Q207: Incentivized | R207: Non-incentivized | S207: Incentivized | T207: Non-incentivized | U207: Incentivized | V207: Non-incentivized | W207: Incentivized | X207: Non-incentivized | Y207: Incentivized | Z207: Non-incentivized
B208: Energy With Carbon | C208: =IF(AND(OR(C$154=$AA$154:$AB$154),OR(C$155=$AA$155:$AB$155),OR(C$156=$AA$156:$AC$156),OR(C$157=$AA$157:$AB$157)),'Avoided Cost by Component'!AG6,0) -> 30207328.83 | D208: =IF(AND(OR(D$154=$AA$154:$AB$154),OR(D$155=$AA$155:$AB$155),OR(D$156=$AA$156:$AC$156),OR(D$157=$AA$157:$AB$157)),'Avoided Cost by Component'!AH6,0) -> 4901189.42 | E208: =IF(AND(OR(E$154=$AA$154:$AB$154),OR(E$155=$AA$155:$AB$155),OR(E$156=$AA$156:$AC$156),OR(E$157=$AA$157:$AB$157)),'Avoided Cost by Component'!AI6,0) -> 29264.59884 | F208: =IF(AND(OR(F$154=$AA$154:$AB$154),OR(F$155=$AA$155:$AB$155),OR(F$156=$AA$156:$AC$156),OR(F$157=$AA$157:$AB$157)),'Avoided Cost by Component'!AJ6,0) -> 951.8284686 | G208: =IF(AND(OR(G$154=$AA$154:$AB$154),OR(G$155=$AA$155:$AB$155),OR(G$156=$AA$156:$AC$156),OR(G$157=$AA$157:$AB$157)),'Avoided Cost by Component'!AK6,0) -> 2369.537071 | H208: =IF(AND(OR(H$154=$AA$154:$AB$154),OR(H$155=$AA$155:$AB$155),OR(H$156=$AA$156:$AC$156),OR(H$157=$AA$157:$AB$157)),'Avoided Cost by Component'!AL6,0) -> 17.61296485 | I208: =IF(AND(OR(I$154=$AA$154:$AB$154),OR(I$155=$AA$155:$AB$155),OR(I$156=$AA$156:$AC$156),OR(I$157=$AA$157:$AB$157)),'Avoided Cost by Component'!AM6,0) -> 79579363.11 | J208: =IF(AND(OR(J$154=$AA$154:$AB$154),OR(J$155=$AA$155:$AB$155),OR(J$156=$AA$156:$AC$156),OR(J$157=$AA$157:$AB$157)),'Avoided Cost by Component'!AN6,0) -> 15375031.94 | K208: =IF(AND(OR(K$154=$AA$154:$AB$154),OR(K$155=$AA$155:$AB$155),OR(K$156=$AA$156:$AC$156),OR(K$157=$AA$157:$AB$157)),'Avoided Cost by Component'!AO6,0) -> 1916.509926 | L208: =IF(AND(OR(L$154=$AA$154:$AB$154),OR(L$155=$AA$155:$AB$155),OR(L$156=$AA$156:$AC$156),OR(L$157=$AA$157:$AB$157)),'Avoided Cost by Component'!AP6,0) -> 0 | M208: =IF(AND(OR(M$154=$AA$154:$AB$154),OR(M$155=$AA$155:$AB$155),OR(M$156=$AA$156:$AC$156),OR(M$157=$AA$157:$AB$157)),'Avoided Cost by Component'!AQ6,0) -> 0 | N208: =IF(AND(OR(N$154=$AA$154:$AB$154),OR(N$155=$AA$155:$AB$155),OR(N$156=$AA$156:$AC$156),OR(N$157=$AA$157:$AB$157)),'Avoided Cost by Component'!AR6,0) -> 0 | O208: =IF(AND(OR(O$154=$AA$154:$AB$154),OR(O$155=$AA$155:$AB$155),OR(O$156=$AA$156:$AC$156),OR(O$157=$AA$157:$AB$157)),'Avoided Cost by Component'!AS6,0) -> 62835737.44 | P208: =IF(AND(OR(P$154=$AA$154:$AB$154),OR(P$155=$AA$155:$AB$155),OR(P$156=$AA$156:$AC$156),OR(P$157=$AA$157:$AB$157)),'Avoided Cost by Component'!AT6,0) -> 5539761.728 | Q208: =IF(AND(OR(Q$154=$AA$154:$AB$154),OR(Q$155=$AA$155:$AB$155),OR(Q$156=$AA$156:$AC$156),OR(Q$157=$AA$157:$AB$157)),'Avoided Cost by Component'!AU6,0) -> 1417480.531 | R208: =IF(AND(OR(R$154=$AA$154:$AB$154),OR(R$155=$AA$155:$AB$155),OR(R$156=$AA$156:$AC$156),OR(R$157=$AA$157:$AB$157)),'Avoided Cost by Component'!AV6,0) -> 3368.137349 | S208: =IF(AND(OR(S$154=$AA$154:$AB$154),OR(S$155=$AA$155:$AB$155),OR(S$156=$AA$156:$AC$156),OR(S$157=$AA$157:$AB$157)),'Avoided Cost by Component'!AW6,0) -> 104259.6311 | T208: =IF(AND(OR(T$154=$AA$154:$AB$154),OR(T$155=$AA$155:$AB$155),OR(T$156=$AA$156:$AC$156),OR(T$157=$AA$157:$AB$157)),'Avoided Cost by Component'!AX6,0) -> 774.9704535 | U208: =IF(AND(OR(U$154=$AA$154:$AB$154),OR(U$155=$AA$155:$AB$155),OR(U$156=$AA$156:$AC$156),OR(U$157=$AA$157:$AB$157)),'Avoided Cost by Component'!AY6,0) -> 131038493.3 | V208: =IF(AND(OR(V$154=$AA$154:$AB$154),OR(V$155=$AA$155:$AB$155),OR(V$156=$AA$156:$AC$156),OR(V$157=$AA$157:$AB$157)),'Avoided Cost by Component'!AZ6,0) -> 14971536.76 | W208: =IF(AND(OR(W$154=$AA$154:$AB$154),OR(W$155=$AA$155:$AB$155),OR(W$156=$AA$156:$AC$156),OR(W$157=$AA$157:$AB$157)),'Avoided Cost by Component'!BA6,0) -> 415.0637991 | X208: =IF(AND(OR(X$154=$AA$154:$AB$154),OR(X$155=$AA$155:$AB$155),OR(X$156=$AA$156:$AC$156),OR(X$157=$AA$157:$AB$157)),'Avoided Cost by Component'!BB6,0) -> 0 | Y208: =IF(AND(OR(Y$154=$AA$154:$AB$154),OR(Y$155=$AA$155:$AB$155),OR(Y$156=$AA$156:$AC$156),OR(Y$157=$AA$157:$AB$157)),'Avoided Cost by Component'!BC6,0) -> 0 | Z208: =IF(AND(OR(Z$154=$AA$154:$AB$154),OR(Z$155=$AA$155:$AB$155),OR(Z$156=$AA$156:$AC$156),OR(Z$157=$AA$157:$AB$157)),'Avoided Cost by Component'!BD6,0) -> 0 | AA208: =SUM(C208:Z215) -> 541335864.8
B209: Energy Without Carbon | C209: =IF(AND(OR(C$154=$AA$154:$AB$154),OR(C$155=$AA$155:$AB$155),OR(C$156=$AA$156:$AC$156),OR(C$157=$AA$157:$AB$157)),'Avoided Cost by Component'!AG7,0) -> 0 | D209: =IF(AND(OR(D$154=$AA$154:$AB$154),OR(D$155=$AA$155:$AB$155),OR(D$156=$AA$156:$AC$156),OR(D$157=$AA$157:$AB$157)),'Avoided Cost by Component'!AH7,0) -> 0 | E209: =IF(AND(OR(E$154=$AA$154:$AB$154),OR(E$155=$AA$155:$AB$155),OR(E$156=$AA$156:$AC$156),OR(E$157=$AA$157:$AB$157)),'Avoided Cost by Component'!AI7,0) -> 0 | F209: =IF(AND(OR(F$154=$AA$154:$AB$154),OR(F$155=$AA$155:$AB$155),OR(F$156=$AA$156:$AC$156),OR(F$157=$AA$157:$AB$157)),'Avoided Cost by Component'!AJ7,0) -> 0 | G209: =IF(AND(OR(G$154=$AA$154:$AB$154),OR(G$155=$AA$155:$AB$155),OR(G$156=$AA$156:$AC$156),OR(G$157=$AA$157:$AB$157)),'Avoided Cost by Component'!AK7,0) -> 0 | H209: =IF(AND(OR(H$154=$AA$154:$AB$154),OR(H$155=$AA$155:$AB$155),OR(H$156=$AA$156:$AC$156),OR(H$157=$AA$157:$AB$157)),'Avoided Cost by Component'!AL7,0) -> 0 | I209: =IF(AND(OR(I$154=$AA$154:$AB$154),OR(I$155=$AA$155:$AB$155),OR(I$156=$AA$156:$AC$156),OR(I$157=$AA$157:$AB$157)),'Avoided Cost by Component'!AM7,0) -> 0 | J209: =IF(AND(OR(J$154=$AA$154:$AB$154),OR(J$155=$AA$155:$AB$155),OR(J$156=$AA$156:$AC$156),OR(J$157=$AA$157:$AB$157)),'Avoided Cost by Component'!AN7,0) -> 0 | K209: =IF(AND(OR(K$154=$AA$154:$AB$154),OR(K$155=$AA$155:$AB$155),OR(K$156=$AA$156:$AC$156),OR(K$157=$AA$157:$AB$157)),'Avoided Cost by Component'!AO7,0) -> 0 | L209: =IF(AND(OR(L$154=$AA$154:$AB$154),OR(L$155=$AA$155:$AB$155),OR(L$156=$AA$156:$AC$156),OR(L$157=$AA$157:$AB$157)),'Avoided Cost by Component'!AP7,0) -> 0 | M209: =IF(AND(OR(M$154=$AA$154:$AB$154),OR(M$155=$AA$155:$AB$155),OR(M$156=$AA$156:$AC$156),OR(M$157=$AA$157:$AB$157)),'Avoided Cost by Component'!AQ7,0) -> 0 | N209: =IF(AND(OR(N$154=$AA$154:$AB$154),OR(N$155=$AA$155:$AB$155),OR(N$156=$AA$156:$AC$156),OR(N$157=$AA$157:$AB$157)),'Avoided Cost by Component'!AR7,0) -> 0 | O209: =IF(AND(OR(O$154=$AA$154:$AB$154),OR(O$155=$AA$155:$AB$155),OR(O$156=$AA$156:$AC$156),OR(O$157=$AA$157:$AB$157)),'Avoided Cost by Component'!AS7,0) -> 0 | P209: =IF(AND(OR(P$154=$AA$154:$AB$154),OR(P$155=$AA$155:$AB$155),OR(P$156=$AA$156:$AC$156),OR(P$157=$AA$157:$AB$157)),'Avoided Cost by Component'!AT7,0) -> 0 | Q209: =IF(AND(OR(Q$154=$AA$154:$AB$154),OR(Q$155=$AA$155:$AB$155),OR(Q$156=$AA$156:$AC$156),OR(Q$157=$AA$157:$AB$157)),'Avoided Cost by Component'!AU7,0) -> 0 | R209: =IF(AND(OR(R$154=$AA$154:$AB$154),OR(R$155=$AA$155:$AB$155),OR(R$156=$AA$156:$AC$156),OR(R$157=$AA$157:$AB$157)),'Avoided Cost by Component'!AV7,0) -> 0 | S209: =IF(AND(OR(S$154=$AA$154:$AB$154),OR(S$155=$AA$155:$AB$155),OR(S$156=$AA$156:$AC$156),OR(S$157=$AA$157:$AB$157)),'Avoided Cost by Component'!AW7,0) -> 0 | T209: =IF(AND(OR(T$154=$AA$154:$AB$154),OR(T$155=$AA$155:$AB$155),OR(T$156=$AA$156:$AC$156),OR(T$157=$AA$157:$AB$157)),'Avoided Cost by Component'!AX7,0) -> 0 | U209: =IF(AND(OR(U$154=$AA$154:$AB$154),OR(U$155=$AA$155:$AB$155),OR(U$156=$AA$156:$AC$156),OR(U$157=$AA$157:$AB$157)),'Avoided Cost by Component'!AY7,0) -> 0 | V209: =IF(AND(OR(V$154=$AA$154:$AB$154),OR(V$155=$AA$155:$AB$155),OR(V$156=$AA$156:$AC$156),OR(V$157=$AA$157:$AB$157)),'Avoided Cost by Component'!AZ7,0) -> 0 | W209: =IF(AND(OR(W$154=$AA$154:$AB$154),OR(W$155=$AA$155:$AB$155),OR(W$156=$AA$156:$AC$156),OR(W$157=$AA$157:$AB$157)),'Avoided Cost by Component'!BA7,0) -> 0 | X209: =IF(AND(OR(X$154=$AA$154:$AB$154),OR(X$155=$AA$155:$AB$155),OR(X$156=$AA$156:$AC$156),OR(X$157=$AA$157:$AB$157)),'Avoided Cost by Component'!BB7,0) -> 0 | Y209: =IF(AND(OR(Y$154=$AA$154:$AB$154),OR(Y$155=$AA$155:$AB$155),OR(Y$156=$AA$156:$AC$156),OR(Y$157=$AA$157:$AB$157)),'Avoided Cost by Component'!BC7,0) -> 0 | Z209: =IF(AND(OR(Z$154=$AA$154:$AB$154),OR(Z$155=$AA$155:$AB$155),OR(Z$156=$AA$156:$AC$156),OR(Z$157=$AA$157:$AB$157)),'Avoided Cost by Component'!BD7,0) -> 0
B210: Losses | C210: =IF(AND(OR(C$154=$AA$154:$AB$154),OR(C$155=$AA$155:$AB$155),OR(C$156=$AA$156:$AC$156),OR(C$157=$AA$157:$AB$157)),'Avoided Cost by Component'!AG8,0) -> 2433477.092 | D210: =IF(AND(OR(D$154=$AA$154:$AB$154),OR(D$155=$AA$155:$AB$155),OR(D$156=$AA$156:$AC$156),OR(D$157=$AA$157:$AB$157)),'Avoided Cost by Component'!AH8,0) -> 395125.182 | E210: =IF(AND(OR(E$154=$AA$154:$AB$154),OR(E$155=$AA$155:$AB$155),OR(E$156=$AA$156:$AC$156),OR(E$157=$AA$157:$AB$157)),'Avoided Cost by Component'!AI8,0) -> 2215.434517 | F210: =IF(AND(OR(F$154=$AA$154:$AB$154),OR(F$155=$AA$155:$AB$155),OR(F$156=$AA$156:$AC$156),OR(F$157=$AA$157:$AB$157)),'Avoided Cost by Component'!AJ8,0) -> 72.76937115 | G210: =IF(AND(OR(G$154=$AA$154:$AB$154),OR(G$155=$AA$155:$AB$155),OR(G$156=$AA$156:$AC$156),OR(G$157=$AA$157:$AB$157)),'Avoided Cost by Component'!AK8,0) -> 179.626265 | H210: =IF(AND(OR(H$154=$AA$154:$AB$154),OR(H$155=$AA$155:$AB$155),OR(H$156=$AA$156:$AC$156),OR(H$157=$AA$157:$AB$157)),'Avoided Cost by Component'!AL8,0) -> 1.335206347 | I210: =IF(AND(OR(I$154=$AA$154:$AB$154),OR(I$155=$AA$155:$AB$155),OR(I$156=$AA$156:$AC$156),OR(I$157=$AA$157:$AB$157)),'Avoided Cost by Component'!AM8,0) -> 6366071.205 | J210: =IF(AND(OR(J$154=$AA$154:$AB$154),OR(J$155=$AA$155:$AB$155),OR(J$156=$AA$156:$AC$156),OR(J$157=$AA$157:$AB$157)),'Avoided Cost by Component'!AN8,0) -> 1230759.829 | K210: =IF(AND(OR(K$154=$AA$154:$AB$154),OR(K$155=$AA$155:$AB$155),OR(K$156=$AA$156:$AC$156),OR(K$157=$AA$157:$AB$157)),'Avoided Cost by Component'!AO8,0) -> 144.2741695 | L210: =IF(AND(OR(L$154=$AA$154:$AB$154),OR(L$155=$AA$155:$AB$155),OR(L$156=$AA$156:$AC$156),OR(L$157=$AA$157:$AB$157)),'Avoided Cost by Component'!AP8,0) -> 0 | M210: =IF(AND(OR(M$154=$AA$154:$AB$154),OR(M$155=$AA$155:$AB$155),OR(M$156=$AA$156:$AC$156),OR(M$157=$AA$157:$AB$157)),'Avoided Cost by Component'!AQ8,0) -> 0 | N210: =IF(AND(OR(N$154=$AA$154:$AB$154),OR(N$155=$AA$155:$AB$155),OR(N$156=$AA$156:$AC$156),OR(N$157=$AA$157:$AB$157)),'Avoided Cost by Component'!AR8,0) -> 0 | O210: =IF(AND(OR(O$154=$AA$154:$AB$154),OR(O$155=$AA$155:$AB$155),OR(O$156=$AA$156:$AC$156),OR(O$157=$AA$157:$AB$157)),'Avoided Cost by Component'!AS8,0) -> 5063874.875 | P210: =IF(AND(OR(P$154=$AA$154:$AB$154),OR(P$155=$AA$155:$AB$155),OR(P$156=$AA$156:$AC$156),OR(P$157=$AA$157:$AB$157)),'Avoided Cost by Component'!AT8,0) -> 446467.3598 | Q210: =IF(AND(OR(Q$154=$AA$154:$AB$154),OR(Q$155=$AA$155:$AB$155),OR(Q$156=$AA$156:$AC$156),OR(Q$157=$AA$157:$AB$157)),'Avoided Cost by Component'!AU8,0) -> 107387.8437 | R210: =IF(AND(OR(R$154=$AA$154:$AB$154),OR(R$155=$AA$155:$AB$155),OR(R$156=$AA$156:$AC$156),OR(R$157=$AA$157:$AB$157)),'Avoided Cost by Component'!AV8,0) -> 257.5786099 | S210: =IF(AND(OR(S$154=$AA$154:$AB$154),OR(S$155=$AA$155:$AB$155),OR(S$156=$AA$156:$AC$156),OR(S$157=$AA$157:$AB$157)),'Avoided Cost by Component'!AW8,0) -> 7903.555658 | T210: =IF(AND(OR(T$154=$AA$154:$AB$154),OR(T$155=$AA$155:$AB$155),OR(T$156=$AA$156:$AC$156),OR(T$157=$AA$157:$AB$157)),'Avoided Cost by Component'!AX8,0) -> 58.74907927 | U210: =IF(AND(OR(U$154=$AA$154:$AB$154),OR(U$155=$AA$155:$AB$155),OR(U$156=$AA$156:$AC$156),OR(U$157=$AA$157:$AB$157)),'Avoided Cost by Component'!AY8,0) -> 10483879.44 | V210: =IF(AND(OR(V$154=$AA$154:$AB$154),OR(V$155=$AA$155:$AB$155),OR(V$156=$AA$156:$AC$156),OR(V$157=$AA$157:$AB$157)),'Avoided Cost by Component'!AZ8,0) -> 1197781.641 | W210: =IF(AND(OR(W$154=$AA$154:$AB$154),OR(W$155=$AA$155:$AB$155),OR(W$156=$AA$156:$AC$156),OR(W$157=$AA$157:$AB$157)),'Avoided Cost by Component'!BA8,0) -> 31.23682292 | X210: =IF(AND(OR(X$154=$AA$154:$AB$154),OR(X$155=$AA$155:$AB$155),OR(X$156=$AA$156:$AC$156),OR(X$157=$AA$157:$AB$157)),'Avoided Cost by Component'!BB8,0) -> 0 | Y210: =IF(AND(OR(Y$154=$AA$154:$AB$154),OR(Y$155=$AA$155:$AB$155),OR(Y$156=$AA$156:$AC$156),OR(Y$157=$AA$157:$AB$157)),'Avoided Cost by Component'!BC8,0) -> 0 | Z210: =IF(AND(OR(Z$154=$AA$154:$AB$154),OR(Z$155=$AA$155:$AB$155),OR(Z$156=$AA$156:$AC$156),OR(Z$157=$AA$157:$AB$157)),'Avoided Cost by Component'!BD8,0) -> 0
B211: Ancillary Services | C211: =IF(AND(OR(C$154=$AA$154:$AB$154),OR(C$155=$AA$155:$AB$155),OR(C$156=$AA$156:$AC$156),OR(C$157=$AA$157:$AB$157)),'Avoided Cost by Component'!AG9,0) -> 604131.7072 | D211: =IF(AND(OR(D$154=$AA$154:$AB$154),OR(D$155=$AA$155:$AB$155),OR(D$156=$AA$156:$AC$156),OR(D$157=$AA$157:$AB$157)),'Avoided Cost by Component'!AH9,0) -> 98039.34538 | E211: =IF(AND(OR(E$154=$AA$154:$AB$154),OR(E$155=$AA$155:$AB$155),OR(E$156=$AA$156:$AC$156),OR(E$157=$AA$157:$AB$157)),'Avoided Cost by Component'!AI9,0) -> 586.731438 | F211: =IF(AND(OR(F$154=$AA$154:$AB$154),OR(F$155=$AA$155:$AB$155),OR(F$156=$AA$156:$AC$156),OR(F$157=$AA$157:$AB$157)),'Avoided Cost by Component'!AJ9,0) -> 18.96644412 | G211: =IF(AND(OR(G$154=$AA$154:$AB$154),OR(G$155=$AA$155:$AB$155),OR(G$156=$AA$156:$AC$156),OR(G$157=$AA$157:$AB$157)),'Avoided Cost by Component'!AK9,0) -> 47.39663444 | H211: =IF(AND(OR(H$154=$AA$154:$AB$154),OR(H$155=$AA$155:$AB$155),OR(H$156=$AA$156:$AC$156),OR(H$157=$AA$157:$AB$157)),'Avoided Cost by Component'!AL9,0) -> 0.352298254 | I211: =IF(AND(OR(I$154=$AA$154:$AB$154),OR(I$155=$AA$155:$AB$155),OR(I$156=$AA$156:$AC$156),OR(I$157=$AA$157:$AB$157)),'Avoided Cost by Component'!AM9,0) -> 1592473.091 | J211: =IF(AND(OR(J$154=$AA$154:$AB$154),OR(J$155=$AA$155:$AB$155),OR(J$156=$AA$156:$AC$156),OR(J$157=$AA$157:$AB$157)),'Avoided Cost by Component'!AN9,0) -> 307542.3596 | K211: =IF(AND(OR(K$154=$AA$154:$AB$154),OR(K$155=$AA$155:$AB$155),OR(K$156=$AA$156:$AC$156),OR(K$157=$AA$157:$AB$157)),'Avoided Cost by Component'!AO9,0) -> 38.33176212 | L211: =IF(AND(OR(L$154=$AA$154:$AB$154),OR(L$155=$AA$155:$AB$155),OR(L$156=$AA$156:$AC$156),OR(L$157=$AA$157:$AB$157)),'Avoided Cost by Component'!AP9,0) -> 0 | M211: =IF(AND(OR(M$154=$AA$154:$AB$154),OR(M$155=$AA$155:$AB$155),OR(M$156=$AA$156:$AC$156),OR(M$157=$AA$157:$AB$157)),'Avoided Cost by Component'!AQ9,0) -> 0 | N211: =IF(AND(OR(N$154=$AA$154:$AB$154),OR(N$155=$AA$155:$AB$155),OR(N$156=$AA$156:$AC$156),OR(N$157=$AA$157:$AB$157)),'Avoided Cost by Component'!AR9,0) -> 0 | O211: =IF(AND(OR(O$154=$AA$154:$AB$154),OR(O$155=$AA$155:$AB$155),OR(O$156=$AA$156:$AC$156),OR(O$157=$AA$157:$AB$157)),'Avoided Cost by Component'!AS9,0) -> 1256714.024 | P211: =IF(AND(OR(P$154=$AA$154:$AB$154),OR(P$155=$AA$155:$AB$155),OR(P$156=$AA$156:$AC$156),OR(P$157=$AA$157:$AB$157)),'Avoided Cost by Component'!AT9,0) -> 110811.2601 | Q211: =IF(AND(OR(Q$154=$AA$154:$AB$154),OR(Q$155=$AA$155:$AB$155),OR(Q$156=$AA$156:$AC$156),OR(Q$157=$AA$157:$AB$157)),'Avoided Cost by Component'!AU9,0) -> 28408.06018 | R211: =IF(AND(OR(R$154=$AA$154:$AB$154),OR(R$155=$AA$155:$AB$155),OR(R$156=$AA$156:$AC$156),OR(R$157=$AA$157:$AB$157)),'Avoided Cost by Component'!AV9,0) -> 67.11711016 | S211: =IF(AND(OR(S$154=$AA$154:$AB$154),OR(S$155=$AA$155:$AB$155),OR(S$156=$AA$156:$AC$156),OR(S$157=$AA$157:$AB$157)),'Avoided Cost by Component'!AW9,0) -> 2085.451915 | T211: =IF(AND(OR(T$154=$AA$154:$AB$154),OR(T$155=$AA$155:$AB$155),OR(T$156=$AA$156:$AC$156),OR(T$157=$AA$157:$AB$157)),'Avoided Cost by Component'!AX9,0) -> 15.50112318 | U211: =IF(AND(OR(U$154=$AA$154:$AB$154),OR(U$155=$AA$155:$AB$155),OR(U$156=$AA$156:$AC$156),OR(U$157=$AA$157:$AB$157)),'Avoided Cost by Component'!AY9,0) -> 2622204.814 | V211: =IF(AND(OR(V$154=$AA$154:$AB$154),OR(V$155=$AA$155:$AB$155),OR(V$156=$AA$156:$AC$156),OR(V$157=$AA$157:$AB$157)),'Avoided Cost by Component'!AZ9,0) -> 299456.824 | W211: =IF(AND(OR(W$154=$AA$154:$AB$154),OR(W$155=$AA$155:$AB$155),OR(W$156=$AA$156:$AC$156),OR(W$157=$AA$157:$AB$157)),'Avoided Cost by Component'!BA9,0) -> 8.303505476 | X211: =IF(AND(OR(X$154=$AA$154:$AB$154),OR(X$155=$AA$155:$AB$155),OR(X$156=$AA$156:$AC$156),OR(X$157=$AA$157:$AB$157)),'Avoided Cost by Component'!BB9,0) -> 0 | Y211: =IF(AND(OR(Y$154=$AA$154:$AB$154),OR(Y$155=$AA$155:$AB$155),OR(Y$156=$AA$156:$AC$156),OR(Y$157=$AA$157:$AB$157)),'Avoided Cost by Component'!BC9,0) -> 0 | Z211: =IF(AND(OR(Z$154=$AA$154:$AB$154),OR(Z$155=$AA$155:$AB$155),OR(Z$156=$AA$156:$AC$156),OR(Z$157=$AA$157:$AB$157)),'Avoided Cost by Component'!BD9,0) -> 0
B212: System Capacity | C212: =IF(AND(OR(C$154=$AA$154:$AB$154),OR(C$155=$AA$155:$AB$155),OR(C$156=$AA$156:$AC$156),OR(C$157=$AA$157:$AB$157)),'Avoided Cost by Component'!AG10,0) -> 13558547.84 | D212: =IF(AND(OR(D$154=$AA$154:$AB$154),OR(D$155=$AA$155:$AB$155),OR(D$156=$AA$156:$AC$156),OR(D$157=$AA$157:$AB$157)),'Avoided Cost by Component'!AH10,0) -> 2195808.213 | E212: =IF(AND(OR(E$154=$AA$154:$AB$154),OR(E$155=$AA$155:$AB$155),OR(E$156=$AA$156:$AC$156),OR(E$157=$AA$157:$AB$157)),'Avoided Cost by Component'!AI10,0) -> 286.1891436 | F212: =IF(AND(OR(F$154=$AA$154:$AB$154),OR(F$155=$AA$155:$AB$155),OR(F$156=$AA$156:$AC$156),OR(F$157=$AA$157:$AB$157)),'Avoided Cost by Component'!AJ10,0) -> 10.56657794 | G212: =IF(AND(OR(G$154=$AA$154:$AB$154),OR(G$155=$AA$155:$AB$155),OR(G$156=$AA$156:$AC$156),OR(G$157=$AA$157:$AB$157)),'Avoided Cost by Component'!AK10,0) -> 238.298539 | H212: =IF(AND(OR(H$154=$AA$154:$AB$154),OR(H$155=$AA$155:$AB$155),OR(H$156=$AA$156:$AC$156),OR(H$157=$AA$157:$AB$157)),'Avoided Cost by Component'!AL10,0) -> 1.221903452 | I212: =IF(AND(OR(I$154=$AA$154:$AB$154),OR(I$155=$AA$155:$AB$155),OR(I$156=$AA$156:$AC$156),OR(I$157=$AA$157:$AB$157)),'Avoided Cost by Component'!AM10,0) -> 29637307.89 | J212: =IF(AND(OR(J$154=$AA$154:$AB$154),OR(J$155=$AA$155:$AB$155),OR(J$156=$AA$156:$AC$156),OR(J$157=$AA$157:$AB$157)),'Avoided Cost by Component'!AN10,0) -> 5658520.406 | K212: =IF(AND(OR(K$154=$AA$154:$AB$154),OR(K$155=$AA$155:$AB$155),OR(K$156=$AA$156:$AC$156),OR(K$157=$AA$157:$AB$157)),'Avoided Cost by Component'!AO10,0) -> 9.806009071 | L212: =IF(AND(OR(L$154=$AA$154:$AB$154),OR(L$155=$AA$155:$AB$155),OR(L$156=$AA$156:$AC$156),OR(L$157=$AA$157:$AB$157)),'Avoided Cost by Component'!AP10,0) -> 0 | M212: =IF(AND(OR(M$154=$AA$154:$AB$154),OR(M$155=$AA$155:$AB$155),OR(M$156=$AA$156:$AC$156),OR(M$157=$AA$157:$AB$157)),'Avoided Cost by Component'!AQ10,0) -> 0 | N212: =IF(AND(OR(N$154=$AA$154:$AB$154),OR(N$155=$AA$155:$AB$155),OR(N$156=$AA$156:$AC$156),OR(N$157=$AA$157:$AB$157)),'Avoided Cost by Component'!AR10,0) -> 0 | O212: =IF(AND(OR(O$154=$AA$154:$AB$154),OR(O$155=$AA$155:$AB$155),OR(O$156=$AA$156:$AC$156),OR(O$157=$AA$157:$AB$157)),'Avoided Cost by Component'!AS10,0) -> 28107681.46 | P212: =IF(AND(OR(P$154=$AA$154:$AB$154),OR(P$155=$AA$155:$AB$155),OR(P$156=$AA$156:$AC$156),OR(P$157=$AA$157:$AB$157)),'Avoided Cost by Component'!AT10,0) -> 2489640.441 | Q212: =IF(AND(OR(Q$154=$AA$154:$AB$154),OR(Q$155=$AA$155:$AB$155),OR(Q$156=$AA$156:$AC$156),OR(Q$157=$AA$157:$AB$157)),'Avoided Cost by Component'!AU10,0) -> 13900.70394 | R212: =IF(AND(OR(R$154=$AA$154:$AB$154),OR(R$155=$AA$155:$AB$155),OR(R$156=$AA$156:$AC$156),OR(R$157=$AA$157:$AB$157)),'Avoided Cost by Component'!AV10,0) -> 37.5811747 | S212: =IF(AND(OR(S$154=$AA$154:$AB$154),OR(S$155=$AA$155:$AB$155),OR(S$156=$AA$156:$AC$156),OR(S$157=$AA$157:$AB$157)),'Avoided Cost by Component'!AW10,0) -> 10485.13571 | T212: =IF(AND(OR(T$154=$AA$154:$AB$154),OR(T$155=$AA$155:$AB$155),OR(T$156=$AA$156:$AC$156),OR(T$157=$AA$157:$AB$157)),'Avoided Cost by Component'!AX10,0) -> 53.76375189 | U212: =IF(AND(OR(U$154=$AA$154:$AB$154),OR(U$155=$AA$155:$AB$155),OR(U$156=$AA$156:$AC$156),OR(U$157=$AA$157:$AB$157)),'Avoided Cost by Component'!AY10,0) -> 48746214.85 | V212: =IF(AND(OR(V$154=$AA$154:$AB$154),OR(V$155=$AA$155:$AB$155),OR(V$156=$AA$156:$AC$156),OR(V$157=$AA$157:$AB$157)),'Avoided Cost by Component'!AZ10,0) -> 5532493.549 | W212: =IF(AND(OR(W$154=$AA$154:$AB$154),OR(W$155=$AA$155:$AB$155),OR(W$156=$AA$156:$AC$156),OR(W$157=$AA$157:$AB$157)),'Avoided Cost by Component'!BA10,0) -> 2.09032454 | X212: =IF(AND(OR(X$154=$AA$154:$AB$154),OR(X$155=$AA$155:$AB$155),OR(X$156=$AA$156:$AC$156),OR(X$157=$AA$157:$AB$157)),'Avoided Cost by Component'!BB10,0) -> 0 | Y212: =IF(AND(OR(Y$154=$AA$154:$AB$154),OR(Y$155=$AA$155:$AB$155),OR(Y$156=$AA$156:$AC$156),OR(Y$157=$AA$157:$AB$157)),'Avoided Cost by Component'!BC10,0) -> 0 | Z212: =IF(AND(OR(Z$154=$AA$154:$AB$154),OR(Z$155=$AA$155:$AB$155),OR(Z$156=$AA$156:$AC$156),OR(Z$157=$AA$157:$AB$157)),'Avoided Cost by Component'!BD10,0) -> 0
B213: Transmission Capacity | C213: =IF(AND(OR(C$154=$AA$154:$AB$154),OR(C$155=$AA$155:$AB$155),OR(C$156=$AA$156:$AC$156),OR(C$157=$AA$157:$AB$157)),'Avoided Cost by Component'!AG11,0) -> 2208756.886 | D213: =IF(AND(OR(D$154=$AA$154:$AB$154),OR(D$155=$AA$155:$AB$155),OR(D$156=$AA$156:$AC$156),OR(D$157=$AA$157:$AB$157)),'Avoided Cost by Component'!AH11,0) -> 365623.4984 | E213: =IF(AND(OR(E$154=$AA$154:$AB$154),OR(E$155=$AA$155:$AB$155),OR(E$156=$AA$156:$AC$156),OR(E$157=$AA$157:$AB$157)),'Avoided Cost by Component'!AI11,0) -> 54.23590511 | F213: =IF(AND(OR(F$154=$AA$154:$AB$154),OR(F$155=$AA$155:$AB$155),OR(F$156=$AA$156:$AC$156),OR(F$157=$AA$157:$AB$157)),'Avoided Cost by Component'!AJ11,0) -> 1.758425849 | G213: =IF(AND(OR(G$154=$AA$154:$AB$154),OR(G$155=$AA$155:$AB$155),OR(G$156=$AA$156:$AC$156),OR(G$157=$AA$157:$AB$157)),'Avoided Cost by Component'!AK11,0) -> 33.59658303 | H213: =IF(AND(OR(H$154=$AA$154:$AB$154),OR(H$155=$AA$155:$AB$155),OR(H$156=$AA$156:$AC$156),OR(H$157=$AA$157:$AB$157)),'Avoided Cost by Component'!AL11,0) -> 0.140956544 | I213: =IF(AND(OR(I$154=$AA$154:$AB$154),OR(I$155=$AA$155:$AB$155),OR(I$156=$AA$156:$AC$156),OR(I$157=$AA$157:$AB$157)),'Avoided Cost by Component'!AM11,0) -> 4776247.247 | J213: =IF(AND(OR(J$154=$AA$154:$AB$154),OR(J$155=$AA$155:$AB$155),OR(J$156=$AA$156:$AC$156),OR(J$157=$AA$157:$AB$157)),'Avoided Cost by Component'!AN11,0) -> 936106.2423 | K213: =IF(AND(OR(K$154=$AA$154:$AB$154),OR(K$155=$AA$155:$AB$155),OR(K$156=$AA$156:$AC$156),OR(K$157=$AA$157:$AB$157)),'Avoided Cost by Component'!AO11,0) -> 0.04073959845 | L213: =IF(AND(OR(L$154=$AA$154:$AB$154),OR(L$155=$AA$155:$AB$155),OR(L$156=$AA$156:$AC$156),OR(L$157=$AA$157:$AB$157)),'Avoided Cost by Component'!AP11,0) -> 0 | M213: =IF(AND(OR(M$154=$AA$154:$AB$154),OR(M$155=$AA$155:$AB$155),OR(M$156=$AA$156:$AC$156),OR(M$157=$AA$157:$AB$157)),'Avoided Cost by Component'!AQ11,0) -> 0 | N213: =IF(AND(OR(N$154=$AA$154:$AB$154),OR(N$155=$AA$155:$AB$155),OR(N$156=$AA$156:$AC$156),OR(N$157=$AA$157:$AB$157)),'Avoided Cost by Component'!AR11,0) -> 0 | O213: =IF(AND(OR(O$154=$AA$154:$AB$154),OR(O$155=$AA$155:$AB$155),OR(O$156=$AA$156:$AC$156),OR(O$157=$AA$157:$AB$157)),'Avoided Cost by Component'!AS11,0) -> 4662008.836 | P213: =IF(AND(OR(P$154=$AA$154:$AB$154),OR(P$155=$AA$155:$AB$155),OR(P$156=$AA$156:$AC$156),OR(P$157=$AA$157:$AB$157)),'Avoided Cost by Component'!AT11,0) -> 408187.0975 | Q213: =IF(AND(OR(Q$154=$AA$154:$AB$154),OR(Q$155=$AA$155:$AB$155),OR(Q$156=$AA$156:$AC$156),OR(Q$157=$AA$157:$AB$157)),'Avoided Cost by Component'!AU11,0) -> 2577.087867 | R213: =IF(AND(OR(R$154=$AA$154:$AB$154),OR(R$155=$AA$155:$AB$155),OR(R$156=$AA$156:$AC$156),OR(R$157=$AA$157:$AB$157)),'Avoided Cost by Component'!AV11,0) -> 6.204285123 | S213: =IF(AND(OR(S$154=$AA$154:$AB$154),OR(S$155=$AA$155:$AB$155),OR(S$156=$AA$156:$AC$156),OR(S$157=$AA$157:$AB$157)),'Avoided Cost by Component'!AW11,0) -> 1478.249653 | T213: =IF(AND(OR(T$154=$AA$154:$AB$154),OR(T$155=$AA$155:$AB$155),OR(T$156=$AA$156:$AC$156),OR(T$157=$AA$157:$AB$157)),'Avoided Cost by Component'!AX11,0) -> 6.202087936 | U213: =IF(AND(OR(U$154=$AA$154:$AB$154),OR(U$155=$AA$155:$AB$155),OR(U$156=$AA$156:$AC$156),OR(U$157=$AA$157:$AB$157)),'Avoided Cost by Component'!AY11,0) -> 7902302.013 | V213: =IF(AND(OR(V$154=$AA$154:$AB$154),OR(V$155=$AA$155:$AB$155),OR(V$156=$AA$156:$AC$156),OR(V$157=$AA$157:$AB$157)),'Avoided Cost by Component'!AZ11,0) -> 900812.1741 | W213: =IF(AND(OR(W$154=$AA$154:$AB$154),OR(W$155=$AA$155:$AB$155),OR(W$156=$AA$156:$AC$156),OR(W$157=$AA$157:$AB$157)),'Avoided Cost by Component'!BA11,0) -> 0 | X213: =IF(AND(OR(X$154=$AA$154:$AB$154),OR(X$155=$AA$155:$AB$155),OR(X$156=$AA$156:$AC$156),OR(X$157=$AA$157:$AB$157)),'Avoided Cost by Component'!BB11,0) -> 0 | Y213: =IF(AND(OR(Y$154=$AA$154:$AB$154),OR(Y$155=$AA$155:$AB$155),OR(Y$156=$AA$156:$AC$156),OR(Y$157=$AA$157:$AB$157)),'Avoided Cost by Component'!BC11,0) -> 0 | Z213: =IF(AND(OR(Z$154=$AA$154:$AB$154),OR(Z$155=$AA$155:$AB$155),OR(Z$156=$AA$156:$AC$156),OR(Z$157=$AA$157:$AB$157)),'Avoided Cost by Component'!BD11,0) -> 0
B214: Distribution Capacity | C214: =IF(AND(OR(C$154=$AA$154:$AB$154),OR(C$155=$AA$155:$AB$155),OR(C$156=$AA$156:$AC$156),OR(C$157=$AA$157:$AB$157)),'Avoided Cost by Component'!AG12,0) -> 0 | D214: =IF(AND(OR(D$154=$AA$154:$AB$154),OR(D$155=$AA$155:$AB$155),OR(D$156=$AA$156:$AC$156),OR(D$157=$AA$157:$AB$157)),'Avoided Cost by Component'!AH12,0) -> 0 | E214: =IF(AND(OR(E$154=$AA$154:$AB$154),OR(E$155=$AA$155:$AB$155),OR(E$156=$AA$156:$AC$156),OR(E$157=$AA$157:$AB$157)),'Avoided Cost by Component'!AI12,0) -> 0 | F214: =IF(AND(OR(F$154=$AA$154:$AB$154),OR(F$155=$AA$155:$AB$155),OR(F$156=$AA$156:$AC$156),OR(F$157=$AA$157:$AB$157)),'Avoided Cost by Component'!AJ12,0) -> 0 | G214: =IF(AND(OR(G$154=$AA$154:$AB$154),OR(G$155=$AA$155:$AB$155),OR(G$156=$AA$156:$AC$156),OR(G$157=$AA$157:$AB$157)),'Avoided Cost by Component'!AK12,0) -> 0 | H214: =IF(AND(OR(H$154=$AA$154:$AB$154),OR(H$155=$AA$155:$AB$155),OR(H$156=$AA$156:$AC$156),OR(H$157=$AA$157:$AB$157)),'Avoided Cost by Component'!AL12,0) -> 0 | I214: =IF(AND(OR(I$154=$AA$154:$AB$154),OR(I$155=$AA$155:$AB$155),OR(I$156=$AA$156:$AC$156),OR(I$157=$AA$157:$AB$157)),'Avoided Cost by Component'!AM12,0) -> 0 | J214: =IF(AND(OR(J$154=$AA$154:$AB$154),OR(J$155=$AA$155:$AB$155),OR(J$156=$AA$156:$AC$156),OR(J$157=$AA$157:$AB$157)),'Avoided Cost by Component'!AN12,0) -> 0 | K214: =IF(AND(OR(K$154=$AA$154:$AB$154),OR(K$155=$AA$155:$AB$155),OR(K$156=$AA$156:$AC$156),OR(K$157=$AA$157:$AB$157)),'Avoided Cost by Component'!AO12,0) -> 0 | L214: =IF(AND(OR(L$154=$AA$154:$AB$154),OR(L$155=$AA$155:$AB$155),OR(L$156=$AA$156:$AC$156),OR(L$157=$AA$157:$AB$157)),'Avoided Cost by Component'!AP12,0) -> 0 | M214: =IF(AND(OR(M$154=$AA$154:$AB$154),OR(M$155=$AA$155:$AB$155),OR(M$156=$AA$156:$AC$156),OR(M$157=$AA$157:$AB$157)),'Avoided Cost by Component'!AQ12,0) -> 0 | N214: =IF(AND(OR(N$154=$AA$154:$AB$154),OR(N$155=$AA$155:$AB$155),OR(N$156=$AA$156:$AC$156),OR(N$157=$AA$157:$AB$157)),'Avoided Cost by Component'!AR12,0) -> 0 | O214: =IF(AND(OR(O$154=$AA$154:$AB$154),OR(O$155=$AA$155:$AB$155),OR(O$156=$AA$156:$AC$156),OR(O$157=$AA$157:$AB$157)),'Avoided Cost by Component'!AS12,0) -> 0 | P214: =IF(AND(OR(P$154=$AA$154:$AB$154),OR(P$155=$AA$155:$AB$155),OR(P$156=$AA$156:$AC$156),OR(P$157=$AA$157:$AB$157)),'Avoided Cost by Component'!AT12,0) -> 0 | Q214: =IF(AND(OR(Q$154=$AA$154:$AB$154),OR(Q$155=$AA$155:$AB$155),OR(Q$156=$AA$156:$AC$156),OR(Q$157=$AA$157:$AB$157)),'Avoided Cost by Component'!AU12,0) -> 0 | R214: =IF(AND(OR(R$154=$AA$154:$AB$154),OR(R$155=$AA$155:$AB$155),OR(R$156=$AA$156:$AC$156),OR(R$157=$AA$157:$AB$157)),'Avoided Cost by Component'!AV12,0) -> 0 | S214: =IF(AND(OR(S$154=$AA$154:$AB$154),OR(S$155=$AA$155:$AB$155),OR(S$156=$AA$156:$AC$156),OR(S$157=$AA$157:$AB$157)),'Avoided Cost by Component'!AW12,0) -> 0 | T214: =IF(AND(OR(T$154=$AA$154:$AB$154),OR(T$155=$AA$155:$AB$155),OR(T$156=$AA$156:$AC$156),OR(T$157=$AA$157:$AB$157)),'Avoided Cost by Component'!AX12,0) -> 0 | U214: =IF(AND(OR(U$154=$AA$154:$AB$154),OR(U$155=$AA$155:$AB$155),OR(U$156=$AA$156:$AC$156),OR(U$157=$AA$157:$AB$157)),'Avoided Cost by Component'!AY12,0) -> 0 | V214: =IF(AND(OR(V$154=$AA$154:$AB$154),OR(V$155=$AA$155:$AB$155),OR(V$156=$AA$156:$AC$156),OR(V$157=$AA$157:$AB$157)),'Avoided Cost by Component'!AZ12,0) -> 0 | W214: =IF(AND(OR(W$154=$AA$154:$AB$154),OR(W$155=$AA$155:$AB$155),OR(W$156=$AA$156:$AC$156),OR(W$157=$AA$157:$AB$157)),'Avoided Cost by Component'!BA12,0) -> 0 | X214: =IF(AND(OR(X$154=$AA$154:$AB$154),OR(X$155=$AA$155:$AB$155),OR(X$156=$AA$156:$AC$156),OR(X$157=$AA$157:$AB$157)),'Avoided Cost by Component'!BB12,0) -> 0 | Y214: =IF(AND(OR(Y$154=$AA$154:$AB$154),OR(Y$155=$AA$155:$AB$155),OR(Y$156=$AA$156:$AC$156),OR(Y$157=$AA$157:$AB$157)),'Avoided Cost by Component'!BC12,0) -> 0 | Z214: =IF(AND(OR(Z$154=$AA$154:$AB$154),OR(Z$155=$AA$155:$AB$155),OR(Z$156=$AA$156:$AC$156),OR(Z$157=$AA$157:$AB$157)),'Avoided Cost by Component'!BD12,0) -> 0
B215: Criteria Pollutant Emissions | C215: =IF(AND(OR(C$154=$AA$154:$AB$154),OR(C$155=$AA$155:$AB$155),OR(C$156=$AA$156:$AC$156),OR(C$157=$AA$157:$AB$157)),'Avoided Cost by Component'!AG13,0) -> 220719.1237 | D215: =IF(AND(OR(D$154=$AA$154:$AB$154),OR(D$155=$AA$155:$AB$155),OR(D$156=$AA$156:$AC$156),OR(D$157=$AA$157:$AB$157)),'Avoided Cost by Component'!AH13,0) -> 36017.68722 | E215: =IF(AND(OR(E$154=$AA$154:$AB$154),OR(E$155=$AA$155:$AB$155),OR(E$156=$AA$156:$AC$156),OR(E$157=$AA$157:$AB$157)),'Avoided Cost by Component'!AI13,0) -> 229.8750789 | F215: =IF(AND(OR(F$154=$AA$154:$AB$154),OR(F$155=$AA$155:$AB$155),OR(F$156=$AA$156:$AC$156),OR(F$157=$AA$157:$AB$157)),'Avoided Cost by Component'!AJ13,0) -> 7.4814424 | G215: =IF(AND(OR(G$154=$AA$154:$AB$154),OR(G$155=$AA$155:$AB$155),OR(G$156=$AA$156:$AC$156),OR(G$157=$AA$157:$AB$157)),'Avoided Cost by Component'!AK13,0) -> 18.29071832 | H215: =IF(AND(OR(H$154=$AA$154:$AB$154),OR(H$155=$AA$155:$AB$155),OR(H$156=$AA$156:$AC$156),OR(H$157=$AA$157:$AB$157)),'Avoided Cost by Component'!AL13,0) -> 0.1344961779 | I215: =IF(AND(OR(I$154=$AA$154:$AB$154),OR(I$155=$AA$155:$AB$155),OR(I$156=$AA$156:$AC$156),OR(I$157=$AA$157:$AB$157)),'Avoided Cost by Component'!AM13,0) -> 587339.7462 | J215: =IF(AND(OR(J$154=$AA$154:$AB$154),OR(J$155=$AA$155:$AB$155),OR(J$156=$AA$156:$AC$156),OR(J$157=$AA$157:$AB$157)),'Avoided Cost by Component'!AN13,0) -> 114473.4716 | K215: =IF(AND(OR(K$154=$AA$154:$AB$154),OR(K$155=$AA$155:$AB$155),OR(K$156=$AA$156:$AC$156),OR(K$157=$AA$157:$AB$157)),'Avoided Cost by Component'!AO13,0) -> 15.74683936 | L215: =IF(AND(OR(L$154=$AA$154:$AB$154),OR(L$155=$AA$155:$AB$155),OR(L$156=$AA$156:$AC$156),OR(L$157=$AA$157:$AB$157)),'Avoided Cost by Component'!AP13,0) -> 0 | M215: =IF(AND(OR(M$154=$AA$154:$AB$154),OR(M$155=$AA$155:$AB$155),OR(M$156=$AA$156:$AC$156),OR(M$157=$AA$157:$AB$157)),'Avoided Cost by Component'!AQ13,0) -> 0 | N215: =IF(AND(OR(N$154=$AA$154:$AB$154),OR(N$155=$AA$155:$AB$155),OR(N$156=$AA$156:$AC$156),OR(N$157=$AA$157:$AB$157)),'Avoided Cost by Component'!AR13,0) -> 0 | O215: =IF(AND(OR(O$154=$AA$154:$AB$154),OR(O$155=$AA$155:$AB$155),OR(O$156=$AA$156:$AC$156),OR(O$157=$AA$157:$AB$157)),'Avoided Cost by Component'!AS13,0) -> 461746.8154 | P215: =IF(AND(OR(P$154=$AA$154:$AB$154),OR(P$155=$AA$155:$AB$155),OR(P$156=$AA$156:$AC$156),OR(P$157=$AA$157:$AB$157)),'Avoided Cost by Component'!AT13,0) -> 40525.47296 | Q215: =IF(AND(OR(Q$154=$AA$154:$AB$154),OR(Q$155=$AA$155:$AB$155),OR(Q$156=$AA$156:$AC$156),OR(Q$157=$AA$157:$AB$157)),'Avoided Cost by Component'!AU13,0) -> 11101.61744 | R215: =IF(AND(OR(R$154=$AA$154:$AB$154),OR(R$155=$AA$155:$AB$155),OR(R$156=$AA$156:$AC$156),OR(R$157=$AA$157:$AB$157)),'Avoided Cost by Component'!AV13,0) -> 26.41792164 | S215: =IF(AND(OR(S$154=$AA$154:$AB$154),OR(S$155=$AA$155:$AB$155),OR(S$156=$AA$156:$AC$156),OR(S$157=$AA$157:$AB$157)),'Avoided Cost by Component'!AW13,0) -> 804.7916062 | T215: =IF(AND(OR(T$154=$AA$154:$AB$154),OR(T$155=$AA$155:$AB$155),OR(T$156=$AA$156:$AC$156),OR(T$157=$AA$157:$AB$157)),'Avoided Cost by Component'!AX13,0) -> 5.917831828 | U215: =IF(AND(OR(U$154=$AA$154:$AB$154),OR(U$155=$AA$155:$AB$155),OR(U$156=$AA$156:$AC$156),OR(U$157=$AA$157:$AB$157)),'Avoided Cost by Component'!AY13,0) -> 968946.5753 | V215: =IF(AND(OR(V$154=$AA$154:$AB$154),OR(V$155=$AA$155:$AB$155),OR(V$156=$AA$156:$AC$156),OR(V$157=$AA$157:$AB$157)),'Avoided Cost by Component'!AZ13,0) -> 110841.0435 | W215: =IF(AND(OR(W$154=$AA$154:$AB$154),OR(W$155=$AA$155:$AB$155),OR(W$156=$AA$156:$AC$156),OR(W$157=$AA$157:$AB$157)),'Avoided Cost by Component'!BA13,0) -> 3.420368947 | X215: =IF(AND(OR(X$154=$AA$154:$AB$154),OR(X$155=$AA$155:$AB$155),OR(X$156=$AA$156:$AC$156),OR(X$157=$AA$157:$AB$157)),'Avoided Cost by Component'!BB13,0) -> 0 | Y215: =IF(AND(OR(Y$154=$AA$154:$AB$154),OR(Y$155=$AA$155:$AB$155),OR(Y$156=$AA$156:$AC$156),OR(Y$157=$AA$157:$AB$157)),'Avoided Cost by Component'!BC13,0) -> 0 | Z215: =IF(AND(OR(Z$154=$AA$154:$AB$154),OR(Z$155=$AA$155:$AB$155),OR(Z$156=$AA$156:$AC$156),OR(Z$157=$AA$157:$AB$157)),'Avoided Cost by Component'!BD13,0) -> 0
B216: Generation | C216: =C183 -> 481146987.6 | D216: =D183 -> 79953427.22 | E216: 410237.0125 | F216: 21690.31855 | G216: 35880.55342 | H216: 416.1457523 | I216: 1279946462 | J216: 254683592.9 | K216: 37237.46213 | L216: 0 | M216: 0 | N216: 0 | O216: 1024524185 | P216: 88900144.51 | Q216: 25952192.15 | R216: 62568.20546 | S216: 1747063.823 | T216: 14342.84952 | U216: 2119559059 | V216: 240953924.1 | W216: 4614.593479 | X216: 0 | Y216: 0 | Z216: 0
C218: Avoided Costs Levelized for Chart
C219: Residential | F219: Non-Residential
C220: Existing Wind | D220: New Wind | E220: PV | F220: Existing Wind | G220: New Wind | H220: PV
B221: Energy With Carbon | C221: =SUMIFS($C208:$Z208,$C$204:$Z$204,C$219,$C$206:$Z$206,C$220)/SUMIFS($C$216:$Z$216,$C$204:$Z$204,C$219,$C$206:$Z$206,C$220) -> 0.06848966015 | D221: =SUMIFS($C208:$Z208,$C$204:$Z$204,C$219,$C$206:$Z$206,D$220)/SUMIFS($C$216:$Z$216,$C$204:$Z$204,C$219,$C$206:$Z$206,D$220) -> 0.06576768937 | E221: =SUMIFS($C208:$Z208,$C$204:$Z$204,C$219,$C$206:$Z$206,E$220)/SUMIFS($C$216:$Z$216,$C$204:$Z$204,C$219,$C$206:$Z$206,E$220) -> 0.06206089722 | F221: =SUMIFS($C208:$Z208,$C$204:$Z$204,F$219,$C$206:$Z$206,F$220)/SUMIFS($C$216:$Z$216,$C$204:$Z$204,F$219,$C$206:$Z$206,F$220) -> 0.05462328495 | G221: =SUMIFS($C208:$Z208,$C$204:$Z$204,F$219,$C$206:$Z$206,G$220)/SUMIFS($C$216:$Z$216,$C$204:$Z$204,F$219,$C$206:$Z$206,G$220) -> 0.05963109102 | H221: =SUMIFS($C208:$Z208,$C$204:$Z$204,F$219,$C$206:$Z$206,H$220)/SUMIFS($C$216:$Z$216,$C$204:$Z$204,F$219,$C$206:$Z$206,H$220) -> 0.06171254976
B222: Energy Without Carbon | C222: =SUMIFS($C209:$Z209,$C$204:$Z$204,C$219,$C$206:$Z$206,C$220)/SUMIFS($C$216:$Z$216,$C$204:$Z$204,C$219,$C$206:$Z$206,C$220) -> 0 | D222: =SUMIFS($C209:$Z209,$C$204:$Z$204,C$219,$C$206:$Z$206,D$220)/SUMIFS($C$216:$Z$216,$C$204:$Z$204,C$219,$C$206:$Z$206,D$220) -> 0 | E222: =SUMIFS($C209:$Z209,$C$204:$Z$204,C$219,$C$206:$Z$206,E$220)/SUMIFS($C$216:$Z$216,$C$204:$Z$204,C$219,$C$206:$Z$206,E$220) -> 0 | F222: =SUMIFS($C209:$Z209,$C$204:$Z$204,F$219,$C$206:$Z$206,F$220)/SUMIFS($C$216:$Z$216,$C$204:$Z$204,F$219,$C$206:$Z$206,F$220) -> 0 | G222: =SUMIFS($C209:$Z209,$C$204:$Z$204,F$219,$C$206:$Z$206,G$220)/SUMIFS($C$216:$Z$216,$C$204:$Z$204,F$219,$C$206:$Z$206,G$220) -> 0 | H222: =SUMIFS($C209:$Z209,$C$204:$Z$204,F$219,$C$206:$Z$206,H$220)/SUMIFS($C$216:$Z$216,$C$204:$Z$204,F$219,$C$206:$Z$206,H$220) -> 0
B223: Losses | C223: 0.005184698625 | D223: 0.004985617851 | E223: 0.00497460597 | F223: 0.004138326127 | G223: 0.004520423854 | H223: 0.00494885249
B224: Ancillary Services | C224: 0.001372715203 | D224: 0.001315517217 | E224: 0.001241660863 | F224: 0.00109470273 | G224: 0.001192770001 | H224: 0.001234675971
B225: System Capacity | C225: 0.0006534201523 | D225: 0.006598959351 | E225: 0.02435913639 | F225: 0.0005357690364 | G225: 0.005983228991 | H225: 0.02443222853
B226: Transmission Capacity | C226: 0.0001194357961 | D226: 0.0009294933243 | E226: 0.003954102874 | F226: 9.928340546e-05 | G226: 0.0008427649132 | H226: 0.003993540722
B227: Distribution Capacity | C227: 0 | D227: 0 | E227: 0 | F227: 0 | G227: 0 | H227: 0
B228: Criteria Pollutant Emissions | C228: 0.0005394764577 | D228: 0.0005076278263 | E228: 0.000457382303 | F228: 0.0004278141098 | G228: 0.0004602624998 | H228: 0.0004554083062

Sheet Installations
F2: Include Existing Systems | G2: TRUE | M2: Cumulative Installs (MW-AC)
N3: NVE North | O3: NVE North | P3: NVE South | Q3: NVE South | T3: NVE North | U3: NVE North | V3: NVE South | W3: NVE South
B4: Provided by NV Energy: note - forecasted installations are assumed to be installed in similar locations to existing installation | N4: PV | O4: PV | P4: PV | Q4: PV | T4: Wind | U4: Wind | V4: Wind | W4: Wind
B5: Capacity Installation Forecast (kW-AC) | N5: Residential | O5: Non-Residential | P5: Residential | Q5: Non-Residential | T5: Residential | U5: Non-Residential | V5: Residential | W5: Non-Residential
B6: Year | C6: Residential | D6: Residential | E6: Residential | F6: Residential | G6: Non-Residential | H6: Non-Residential | I6: Non-Residential | J6: Non-Residential | N6: =N3&" "&N4&" "&N5 -> NVE North PV Residential | O6: =O3&" "&O4&" "&O5 -> NVE North PV Non-Residential | P6: =P3&" "&P4&" "&P5 -> NVE South PV Residential | Q6: =Q3&" "&Q4&" "&Q5 -> NVE South PV Non-Residential | T6: =T3&" "&T4&" "&T5 -> NVE North Wind Residential | U6: =U3&" "&U4&" "&U5 -> NVE North Wind Non-Residential | V6: =V3&" "&V4&" "&V5 -> NVE South Wind Residential | W6: =W3&" "&W4&" "&W5 -> NVE South Wind Non-Residential | Y6: Total NEM Installations | Z6: 2016 NEM Cap
C7: NVE North | D7: NVE North | E7: NVE South | F7: NVE South | G7: NVE North | H7: NVE North | I7: NVE South | J7: NVE South | M7: 2004 | N7: =SUMIFS($G$16:$G$223,$C$16:$C$223,$M7,$D$16:$D$223,N$4,$E$16:$E$223,N$3,$B$16:$B$223,N$5)/1000 -> 0 | O7: =SUMIFS($G$16:$G$223,$C$16:$C$223,$M7,$D$16:$D$223,O$4,$E$16:$E$223,O$3,$B$16:$B$223,O$5)/1000 -> 0 | P7: =SUMIFS($G$16:$G$223,$C$16:$C$223,$M7,$D$16:$D$223,P$4,$E$16:$E$223,P$3,$B$16:$B$223,P$5)/1000 -> 0 | Q7: =SUMIFS($G$16:$G$223,$C$16:$C$223,$M7,$D$16:$D$223,Q$4,$E$16:$E$223,Q$3,$B$16:$B$223,Q$5)/1000 -> 0 | S7: 2004 | T7: =SUMIFS($G$16:$G$223,$C$16:$C$223,$M7,$D$16:$D$223,T$4,$E$16:$E$223,T$3,$B$16:$B$223,T$5)/1000 -> 0 | U7: =SUMIFS($G$16:$G$223,$C$16:$C$223,$M7,$D$16:$D$223,U$4,$E$16:$E$223,U$3,$B$16:$B$223,U$5)/1000 -> 0 | V7: =SUMIFS($G$16:$G$223,$C$16:$C$223,$M7,$D$16:$D$223,V$4,$E$16:$E$223,V$3,$B$16:$B$223,V$5)/1000 -> 0 | W7: =SUMIFS($G$16:$G$223,$C$16:$C$223,$M7,$D$16:$D$223,W$4,$E$16:$E$223,W$3,$B$16:$B$223,W$5)/1000 -> 0 | Y7: =SUM(T7:W7,N7:Q7) -> 0 | Z7: 230
C8: PV | D8: Wind | E8: PV | F8: Wind | G8: PV | H8: Wind | I8: PV | J8: Wind | K8: Included | M8: =M7+1 -> 2005 | N8: =SUMIFS($G$16:$G$223,$C$16:$C$223,$M8,$D$16:$D$223,N$4,$E$16:$E$223,N$3,$B$16:$B$223,N$5)/1000+N7 -> 0.078561 | O8: =SUMIFS($G$16:$G$223,$C$16:$C$223,$M8,$D$16:$D$223,O$4,$E$16:$E$223,O$3,$B$16:$B$223,O$5)/1000+O7 -> 0.02803 | P8: =SUMIFS($G$16:$G$223,$C$16:$C$223,$M8,$D$16:$D$223,P$4,$E$16:$E$223,P$3,$B$16:$B$223,P$5)/1000+P7 -> 0.034158 | Q8: =SUMIFS($G$16:$G$223,$C$16:$C$223,$M8,$D$16:$D$223,Q$4,$E$16:$E$223,Q$3,$B$16:$B$223,Q$5)/1000+Q7 -> 0.012577 | S8: =S7+1 -> 2005 | T8: =SUMIFS($G$16:$G$223,$C$16:$C$223,$M8,$D$16:$D$223,T$4,$E$16:$E$223,T$3,$B$16:$B$223,T$5)/1000+T7 -> 0 | U8: =SUMIFS($G$16:$G$223,$C$16:$C$223,$M8,$D$16:$D$223,U$4,$E$16:$E$223,U$3,$B$16:$B$223,U$5)/1000+U7 -> 0 | V8: =SUMIFS($G$16:$G$223,$C$16:$C$223,$M8,$D$16:$D$223,V$4,$E$16:$E$223,V$3,$B$16:$B$223,V$5)/1000+V7 -> 0 | W8: =SUMIFS($G$16:$G$223,$C$16:$C$223,$M8,$D$16:$D$223,W$4,$E$16:$E$223,W$3,$B$16:$B$223,W$5)/1000+W7 -> 0 | Y8: =SUM(T8:W8,N8:Q8) -> 0.153326 | Z8: 230
B9: 2014 | C9: 9002 | D9: 0.8 | E9: 23149 | F9: 0 | G9: 13504 | H9: 35.2 | I9: 34722 | J9: 0 | K9: TRUE | M9: =M8+1 -> 2006 | N9: 0.225486 | O9: 0.066312 | P9: 0.131817 | Q9: 0.081038 | S9: =S8+1 -> 2006 | T9: 0 | U9: 0 | V9: 0 | W9: 0 | Y9: 0.504653 | Z9: 230
B10: 2015 | C10: 9827 | D10: 0.8 | E10: 25267 | F10: 0 | G10: 14740 | H10: 35.2 | I10: 37900 | J10: 0 | K10: =K9 -> TRUE | M10: 2007 | N10: 0.403193 | O10: 0.086558 | P10: 0.36527 | Q10: 0.128358 | S10: 2007 | T10: 0 | U10: 0 | V10: 0 | W10: 0 | Y10: 0.983379 | Z10: 230
B11: 2016 | C11: 7370 | D11: 0.8 | E11: 18950 | F11: 0 | G11: 11054 | H11: 35.2 | I11: 28426 | J11: 0 | K11: TRUE | M11: 2008 | N11: 0.516639 | O11: 0.286899 | P11: 0.575549 | Q11: 0.433576 | S11: 2008 | T11: 0 | U11: 0 | V11: 0 | W11: 0 | Y11: 1.812663 | Z11: 230
M12: 2009 | N12: 0.956515 | O12: 0.690628 | P12: 0.985911 | Q12: 1.267847 | S12: 2009 | T12: 0.029364 | U12: 0 | V12: 0.0052 | W12: 0.0052 | Y12: 3.940665 | Z12: 230
M13: 2010 | N13: 1.781634 | O13: 2.591219 | P13: 1.910425 | Q13: 1.904418 | S13: 2010 | T13: 0.142804 | U13: 0.02899 | V13: 0.0126 | W13: 0.0052 | Y13: 8.37729 | Z13: 230
B14: Annual Capacity Installations (Historical and Forecasted) | M14: 2011 | N14: 2.665096 | O14: 11.5798954 | P14: 3.106212 | Q14: 10.9871148 | S14: 2011 | T14: 0.200322 | U14: 0.21939 | V14: 0.0126 | W14: 0.0052 | Y14: 28.7758302 | Z14: 230
B15: Customer Class | C15: Year | D15: Technology | E15: Utility | F15: Incentive | G15: Active Capacity (kW) | H15: All Installed Capacity (kW) | M15: 2012 | N15: 3.252323 | O15: 18.0960684 | P15: 4.762368 | Q15: 15.1639198 | S15: 2012 | T15: 0.22274 | U15: 8.139112 | V15: 0.0226 | W15: 0.0052 | Y15: 49.6643312 | Z15: 230
B16: Residential | C16: 2004 | D16: PV | E16: NVE North | F16: Incentivized | G16: =H16*IFERROR(OFFSET($K$8,MATCH($C16,$B$9:$B$11,0),0),$G$2) -> 0 | H16: 0 | M16: 2013 | N16: 3.822917 | O16: 19.9234004 | P16: 9.370646 | Q16: 17.3303473 | S16: 2013 | T16: 0.22648 | U16: 9.939103 | V16: 0.0226 | W16: 0.0052 | Y16: 60.6406937 | Z16: 230
B17: Residential | C17: 2004 | D17: PV | E17: NVE North | F17: Non-Incentivized | G17: 0 | H17: 0 | M17: 2014 | N17: 12.824917 | O17: 33.4274004 | P17: 32.519646 | Q17: 52.0523473 | S17: 2014 | T17: 0.22728 | U17: 9.974303 | V17: 0.0226 | W17: 0.0052 | Y17: 141.0536937 | Z17: 230
B18: Residential | C18: 2004 | D18: PV | E18: NVE South | F18: Incentivized | G18: 0 | H18: 0 | M18: 2015 | N18: 22.651917 | O18: 48.1674004 | P18: 57.786646 | Q18: 89.9523473 | S18: 2015 | T18: 0.22808 | U18: 10.009503 | V18: 0.0226 | W18: 0.0052 | Y18: 228.8236937 | Z18: 230
B19: Residential | C19: 2004 | D19: PV | E19: NVE South | F19: Non-Incentivized | G19: 0 | H19: 0 | M19: 2016 | N19: 30.021917 | O19: 59.2214004 | P19: 76.736646 | Q19: 118.3783473 | S19: 2016 | T19: 0.22888 | U19: 10.044703 | V19: 0.0226 | W19: 0.0052 | Y19: 294.6596937 | Z19: 230
B20: Residential | C20: 2004 | D20: Wind | E20: NVE North | F20: Incentivized | G20: 0 | H20: 0
B21: Residential | C21: 2004 | D21: Wind | E21: NVE North | F21: Non-Incentivized | G21: 0 | H21: 0
B22: Residential | C22: 2004 | D22: Wind | E22: NVE South | F22: Incentivized | G22: 0 | H22: 0
B23: Residential | C23: 2004 | D23: Wind | E23: NVE South | F23: Non-Incentivized | G23: 0 | H23: 0
B24: Residential | C24: 2005 | D24: PV | E24: NVE North | F24: Incentivized | G24: 76.598 | H24: 76.598
B25: Residential | C25: 2005 | D25: PV | E25: NVE North | F25: Non-Incentivized | G25: 1.963 | H25: 1.963
B26: Residential | C26: 2005 | D26: PV | E26: NVE South | F26: Incentivized | G26: 34.158 | H26: 34.158
B27: Residential | C27: 2005 | D27: PV | E27: NVE South | F27: Non-Incentivized | G27: 0 | H27: 0
B28: Residential | C28: 2005 | D28: Wind | E28: NVE North | F28: Incentivized | G28: 0 | H28: 0
B29: Residential | C29: 2005 | D29: Wind | E29: NVE North | F29: Non-Incentivized | G29: 0 | H29: 0
B30: Residential | C30: 2005 | D30: Wind | E30: NVE South | F30: Incentivized | G30: 0 | H30: 0
B31: Residential | C31: 2005 | D31: Wind | E31: NVE South | F31: Non-Incentivized | G31: 0 | H31: 0
B32: Residential | C32: 2006 | D32: PV | E32: NVE North | F32: Incentivized | G32: 146.925 | H32: 146.925
B33: Residential | C33: 2006 | D33: PV | E33: NVE North | F33: Non-Incentivized | G33: 0 | H33: 0
B34: Residential | C34: 2006 | D34: PV | E34: NVE South | F34: Incentivized | G34: 90.676 | H34: 90.676
B35: Residential | C35: 2006 | D35: PV | E35: NVE South | F35: Non-Incentivized | G35: 6.983 | H35: 6.983
B36: Residential | C36: 2006 | D36: Wind | E36: NVE North | F36: Incentivized | G36: 0 | H36: 0
B37: Residential | C37: 2006 | D37: Wind | E37: NVE North | F37: Non-Incentivized | G37: 0 | H37: 0
B38: Residential | C38: 2006 | D38: Wind | E38: NVE South | F38: Incentivized | G38: 0 | H38: 0
B39: Residential | C39: 2006 | D39: Wind | E39: NVE South | F39: Non-Incentivized | G39: 0 | H39: 0
B40: Residential | C40: 2007 | D40: PV | E40: NVE North | F40: Incentivized | G40: 176.235 | H40: 176.235
B41: Residential | C41: 2007 | D41: PV | E41: NVE North | F41: Non-Incentivized | G41: 1.472 | H41: 1.472
B42: Residential | C42: 2007 | D42: PV | E42: NVE South | F42: Incentivized | G42: 229.818 | H42: 229.818
B43: Residential | C43: 2007 | D43: PV | E43: NVE South | F43: Non-Incentivized | G43: 3.635 | H43: 3.635
B44: Residential | C44: 2007 | D44: Wind | E44: NVE North | F44: Incentivized | G44: 0 | H44: 0
B45: Residential | C45: 2007 | D45: Wind | E45: NVE North | F45: Non-Incentivized | G45: 0 | H45: 0
B46: Residential | C46: 2007 | D46: Wind | E46: NVE South | F46: Incentivized | G46: 0 | H46: 0
B47: Residential | C47: 2007 | D47: Wind | E47: NVE South | F47: Non-Incentivized | G47: 0 | H47: 0
B48: Residential | C48: 2008 | D48: PV | E48: NVE North | F48: Incentivized | G48: 99.307 | H48: 99.307
B49: Residential | C49: 2008 | D49: PV | E49: NVE North | F49: Non-Incentivized | G49: 14.139 | H49: 14.139
B50: Residential | C50: 2008 | D50: PV | E50: NVE South | F50: Incentivized | G50: 210.279 | H50: 210.279
B51: Residential | C51: 2008 | D51: PV | E51: NVE South | F51: Non-Incentivized | G51: 0 | H51: 0
B52: Residential | C52: 2008 | D52: Wind | E52: NVE North | F52: Incentivized | G52: 0 | H52: 0
B53: Residential | C53: 2008 | D53: Wind | E53: NVE North | F53: Non-Incentivized | G53: 0 | H53: 0
B54: Residential | C54: 2008 | D54: Wind | E54: NVE South | F54: Incentivized | G54: 0 | H54: 0
B55: Residential | C55: 2008 | D55: Wind | E55: NVE South | F55: Non-Incentivized | G55: 0 | H55: 0
B56: Residential | C56: 2009 | D56: PV | E56: NVE North | F56: Incentivized | G56: 311.11 | H56: 311.11
B57: Residential | C57: 2009 | D57: PV | E57: NVE North | F57: Non-Incentivized | G57: 128.766 | H57: 128.766
B58: Residential | C58: 2009 | D58: PV | E58: NVE South | F58: Incentivized | G58: 346.266 | H58: 346.266
B59: Residential | C59: 2009 | D59: PV | E59: NVE South | F59: Non-Incentivized | G59: 64.096 | H59: 64.096
B60: Residential | C60: 2009 | D60: Wind | E60: NVE North | F60: Incentivized | G60: 29.364 | H60: 29.364
B61: Residential | C61: 2009 | D61: Wind | E61: NVE North | F61: Non-Incentivized | G61: 0 | H61: 0
B62: Residential | C62: 2009 | D62: Wind | E62: NVE South | F62: Incentivized | G62: 5.2 | H62: 5.2
B63: Residential | C63: 2009 | D63: Wind | E63: NVE South | F63: Non-Incentivized | G63: 0 | H63: 0
B64: Residential | C64: 2010 | D64: PV | E64: NVE North | F64: Incentivized | G64: 472.119 | H64: 472.119
B65: Residential | C65: 2010 | D65: PV | E65: NVE North | F65: Non-Incentivized | G65: 353 | H65: 353
B66: Residential | C66: 2010 | D66: PV | E66: NVE South | F66: Incentivized | G66: 685.646 | H66: 685.646
B67: Residential | C67: 2010 | D67: PV | E67: NVE South | F67: Non-Incentivized | G67: 238.868 | H67: 238.868
B68: Residential | C68: 2010 | D68: Wind | E68: NVE North | F68: Incentivized | G68: 111.04 | H68: 111.04
B69: Residential | C69: 2010 | D69: Wind | E69: NVE North | F69: Non-Incentivized | G69: 2.4 | H69: 2.4
B70: Residential | C70: 2010 | D70: Wind | E70: NVE South | F70: Incentivized | G70: 7.4 | H70: 7.4
B71: Residential | C71: 2010 | D71: Wind | E71: NVE South | F71: Non-Incentivized | G71: 0 | H71: 0
B72: Residential | C72: 2011 | D72: PV | E72: NVE North | F72: Incentivized | G72: 573.818 | H72: 573.818
B73: Residential | C73: 2011 | D73: PV | E73: NVE North | F73: Non-Incentivized | G73: 309.644 | H73: 309.644
B74: Residential | C74: 2011 | D74: PV | E74: NVE South | F74: Incentivized | G74: 877.982 | H74: 877.982
B75: Residential | C75: 2011 | D75: PV | E75: NVE South | F75: Non-Incentivized | G75: 317.805 | H75: 317.805
B76: Residential | C76: 2011 | D76: Wind | E76: NVE North | F76: Incentivized | G76: 57.518 | H76: 57.518
B77: Residential | C77: 2011 | D77: Wind | E77: NVE North | F77: Non-Incentivized | G77: 0 | H77: 0
B78: Residential | C78: 2011 | D78: Wind | E78: NVE South | F78: Incentivized | G78: 0 | H78: 0
B79: Residential | C79: 2011 | D79: Wind | E79: NVE South | F79: Non-Incentivized | G79: 0 | H79: 0
B80: Residential | C80: 2012 | D80: PV | E80: NVE North | F80: Incentivized | G80: =H80*IFERROR(OFFSET($K$8,MATCH($C80,$B$9:$B$11,0),0),$G$2) -> 158.54 | H80: 158.54
B81: Residential | C81: 2012 | D81: PV | E81: NVE North | F81: Non-Incentivized | G81: 428.687 | H81: 428.687
B82: Residential | C82: 2012 | D82: PV | E82: NVE South | F82: Incentivized | G82: 139.413 | H82: 139.413
B83: Residential | C83: 2012 | D83: PV | E83: NVE South | F83: Non-Incentivized | G83: 1516.743 | H83: 1516.743
B84: Residential | C84: 2012 | D84: Wind | E84: NVE North | F84: Incentivized | G84: 20 | H84: 20
B85: Residential | C85: 2012 | D85: Wind | E85: NVE North | F85: Non-Incentivized | G85: 2.418 | H85: 2.418
B86: Residential | C86: 2012 | D86: Wind | E86: NVE South | F86: Incentivized | G86: 10 | H86: 10
B87: Residential | C87: 2012 | D87: Wind | E87: NVE South | F87: Non-Incentivized | G87: 0 | H87: 0
B88: Residential | C88: 2013 | D88: PV | E88: NVE North | F88: Incentivized | G88: 180.162 | H88: 180.162
B89: Residential | C89: 2013 | D89: PV | E89: NVE North | F89: Non-Incentivized | G89: 390.432 | H89: 390.432
B90: Residential | C90: 2013 | D90: PV | E90: NVE South | F90: Incentivized | G90: 847.958 | H90: 847.958
B91: Residential | C91: 2013 | D91: PV | E91: NVE South | F91: Non-Incentivized | G91: 3760.32 | H91: 3760.32
B92: Residential | C92: 2013 | D92: Wind | E92: NVE North | F92: Incentivized | G92: 0 | H92: 0
B93: Residential | C93: 2013 | D93: Wind | E93: NVE North | F93: Non-Incentivized | G93: 3.74 | H93: 3.74
B94: Residential | C94: 2013 | D94: Wind | E94: NVE South | F94: Incentivized | G94: 0 | H94: 0
B95: Residential | C95: 2013 | D95: Wind | E95: NVE South | F95: Non-Incentivized | G95: 0 | H95: 0
B96: Residential | C96: 2014 | D96: PV | E96: NVE North | F96: Incentivized | G96: 8101.8 | H96: =INDEX(Installations!$C$9:$J$11,MATCH(Installations!C96,Installations!$B$9:$B$11,0),MATCH(Installations!B96&Installations!E96&Installations!D96,Installations!$C$6:$J$6&Installations!$C$7:$J$7&Installations!$C$8:$J$8,0))*IF(F96="Incentivized",INDEX('User Inputs'!$C$29:$C$30,MATCH(Installations!D96,'User Inputs'!$B$29:$B$30,0)),1-INDEX('User Inputs'!$C$29:$C$30,MATCH(Installations!D96,'User Inputs'!$B$29:$B$30,0))) -> 8101.8
B97: Residential | C97: 2014 | D97: PV | E97: NVE North | F97: Non-Incentivized | G97: 900.2 | H97: =INDEX(Installations!$C$9:$J$11,MATCH(Installations!C97,Installations!$B$9:$B$11,0),MATCH(Installations!B97&Installations!E97&Installations!D97,Installations!$C$6:$J$6&Installations!$C$7:$J$7&Installations!$C$8:$J$8,0))*IF(F97="Incentivized",INDEX('User Inputs'!$C$29:$C$30,MATCH(Installations!D97,'User Inputs'!$B$29:$B$30,0)),1-INDEX('User Inputs'!$C$29:$C$30,MATCH(Installations!D97,'User Inputs'!$B$29:$B$30,0))) -> 900.2
B98: Residential | C98: 2014 | D98: PV | E98: NVE South | F98: Incentivized | G98: 20834.1 | H98: =INDEX(Installations!$C$9:$J$11,MATCH(Installations!C98,Installations!$B$9:$B$11,0),MATCH(Installations!B98&Installations!E98&Installations!D98,Installations!$C$6:$J$6&Installations!$C$7:$J$7&Installations!$C$8:$J$8,0))*IF(F98="Incentivized",INDEX('User Inputs'!$C$29:$C$30,MATCH(Installations!D98,'User Inputs'!$B$29:$B$30,0)),1-INDEX('User Inputs'!$C$29:$C$30,MATCH(Installations!D98,'User Inputs'!$B$29:$B$30,0))) -> 20834.1
B99: Residential | C99: 2014 | D99: PV | E99: NVE South | F99: Non-Incentivized | G99: 2314.9 | H99: =INDEX(Installations!$C$9:$J$11,MATCH(Installations!C99,Installations!$B$9:$B$11,0),MATCH(Installations!B99&Installations!E99&Installations!D99,Installations!$C$6:$J$6&Installations!$C$7:$J$7&Installations!$C$8:$J$8,0))*IF(F99="Incentivized",INDEX('User Inputs'!$C$29:$C$30,MATCH(Installations!D99,'User Inputs'!$B$29:$B$30,0)),1-INDEX('User Inputs'!$C$29:$C$30,MATCH(Installations!D99,'User Inputs'!$B$29:$B$30,0))) -> 2314.9
B100: Residential | C100: 2014 | D100: Wind | E100: NVE North | F100: Incentivized | G100: 0.792 | H100: =INDEX(Installations!$C$9:$J$11,MATCH(Installations!C100,Installations!$B$9:$B$11,0),MATCH(Installations!B100&Installations!E100&Installations!D100,Installations!$C$6:$J$6&Installations!$C$7:$J$7&Installations!$C$8:$J$8,0))*IF(F100="Incentivized",INDEX('User Inputs'!$C$29:$C$30,MATCH(Installations!D100,'User Inputs'!$B$29:$B$30,0)),1-INDEX('User Inputs'!$C$29:$C$30,MATCH(Installations!D100,'User Inputs'!$B$29:$B$30,0))) -> 0.792
B101: Residential | C101: 2014 | D101: Wind | E101: NVE North | F101: Non-Incentivized | G101: 0.008 | H101: =INDEX(Installations!$C$9:$J$11,MATCH(Installations!C101,Installations!$B$9:$B$11,0),MATCH(Installations!B101&Installations!E101&Installations!D101,Installations!$C$6:$J$6&Installations!$C$7:$J$7&Installations!$C$8:$J$8,0))*IF(F101="Incentivized",INDEX('User Inputs'!$C$29:$C$30,MATCH(Installations!D101,'User Inputs'!$B$29:$B$30,0)),1-INDEX('User Inputs'!$C$29:$C$30,MATCH(Installations!D101,'User Inputs'!$B$29:$B$30,0))) -> 0.008
B102: Residential | C102: 2014 | D102: Wind | E102: NVE South | F102: Incentivized | G102: 0 | H102: =INDEX(Installations!$C$9:$J$11,MATCH(Installations!C102,Installations!$B$9:$B$11,0),MATCH(Installations!B102&Installations!E102&Installations!D102,Installations!$C$6:$J$6&Installations!$C$7:$J$7&Installations!$C$8:$J$8,0))*IF(F102="Incentivized",INDEX('User Inputs'!$C$29:$C$30,MATCH(Installations!D102,'User Inputs'!$B$29:$B$30,0)),1-INDEX('User Inputs'!$C$29:$C$30,MATCH(Installations!D102,'User Inputs'!$B$29:$B$30,0))) -> 0
B103: Residential | C103: 2014 | D103: Wind | E103: NVE South | F103: Non-Incentivized | G103: 0 | H103: =INDEX(Installations!$C$9:$J$11,MATCH(Installations!C103,Installations!$B$9:$B$11,0),MATCH(Installations!B103&Installations!E103&Installations!D103,Installations!$C$6:$J$6&Installations!$C$7:$J$7&Installations!$C$8:$J$8,0))*IF(F103="Incentivized",INDEX('User Inputs'!$C$29:$C$30,MATCH(Installations!D103,'User Inputs'!$B$29:$B$30,0)),1-INDEX('User Inputs'!$C$29:$C$30,MATCH(Installations!D103,'User Inputs'!$B$29:$B$30,0))) -> 0
B104: Residential | C104: 2015 | D104: PV | E104: NVE North | F104: Incentivized | G104: 8844.3 | H104: =INDEX(Installations!$C$9:$J$11,MATCH(Installations!C104,Installations!$B$9:$B$11,0),MATCH(Installations!B104&Installations!E104&Installations!D104,Installations!$C$6:$J$6&Installations!$C$7:$J$7&Installations!$C$8:$J$8,0))*IF(F104="Incentivized",INDEX('User Inputs'!$C$29:$C$30,MATCH(Installations!D104,'User Inputs'!$B$29:$B$30,0)),1-INDEX('User Inputs'!$C$29:$C$30,MATCH(Installations!D104,'User Inputs'!$B$29:$B$30,0))) -> 8844.3
B105: Residential | C105: 2015 | D105: PV | E105: NVE North | F105: Non-Incentivized | G105: 982.7 | H105: =INDEX(Installations!$C$9:$J$11,MATCH(Installations!C105,Installations!$B$9:$B$11,0),MATCH(Installations!B105&Installations!E105&Installations!D105,Installations!$C$6:$J$6&Installations!$C$7:$J$7&Installations!$C$8:$J$8,0))*IF(F105="Incentivized",INDEX('User Inputs'!$C$29:$C$30,MATCH(Installations!D105,'User Inputs'!$B$29:$B$30,0)),1-INDEX('User Inputs'!$C$29:$C$30,MATCH(Installations!D105,'User Inputs'!$B$29:$B$30,0))) -> 982.7
B106: Residential | C106: 2015 | D106: PV | E106: NVE South | F106: Incentivized | G106: 22740.3 | H106: =INDEX(Installations!$C$9:$J$11,MATCH(Installations!C106,Installations!$B$9:$B$11,0),MATCH(Installations!B106&Installations!E106&Installations!D106,Installations!$C$6:$J$6&Installations!$C$7:$J$7&Installations!$C$8:$J$8,0))*IF(F106="Incentivized",INDEX('User Inputs'!$C$29:$C$30,MATCH(Installations!D106,'User Inputs'!$B$29:$B$30,0)),1-INDEX('User Inputs'!$C$29:$C$30,MATCH(Installations!D106,'User Inputs'!$B$29:$B$30,0))) -> 22740.3
B107: Residential | C107: 2015 | D107: PV | E107: NVE South | F107: Non-Incentivized | G107: 2526.7 | H107: =INDEX(Installations!$C$9:$J$11,MATCH(Installations!C107,Installations!$B$9:$B$11,0),MATCH(Installations!B107&Installations!E107&Installations!D107,Installations!$C$6:$J$6&Installations!$C$7:$J$7&Installations!$C$8:$J$8,0))*IF(F107="Incentivized",INDEX('User Inputs'!$C$29:$C$30,MATCH(Installations!D107,'User Inputs'!$B$29:$B$30,0)),1-INDEX('User Inputs'!$C$29:$C$30,MATCH(Installations!D107,'User Inputs'!$B$29:$B$30,0))) -> 2526.7
B108: Residential | C108: 2015 | D108: Wind | E108: NVE North | F108: Incentivized | G108: 0.792 | H108: =INDEX(Installations!$C$9:$J$11,MATCH(Installations!C108,Installations!$B$9:$B$11,0),MATCH(Installations!B108&Installations!E108&Installations!D108,Installations!$C$6:$J$6&Installations!$C$7:$J$7&Installations!$C$8:$J$8,0))*IF(F108="Incentivized",INDEX('User Inputs'!$C$29:$C$30,MATCH(Installations!D108,'User Inputs'!$B$29:$B$30,0)),1-INDEX('User Inputs'!$C$29:$C$30,MATCH(Installations!D108,'User Inputs'!$B$29:$B$30,0))) -> 0.792
B109: Residential | C109: 2015 | D109: Wind | E109: NVE North | F109: Non-Incentivized | G109: 0.008 | H109: =INDEX(Installations!$C$9:$J$11,MATCH(Installations!C109,Installations!$B$9:$B$11,0),MATCH(Installations!B109&Installations!E109&Installations!D109,Installations!$C$6:$J$6&Installations!$C$7:$J$7&Installations!$C$8:$J$8,0))*IF(F109="Incentivized",INDEX('User Inputs'!$C$29:$C$30,MATCH(Installations!D109,'User Inputs'!$B$29:$B$30,0)),1-INDEX('User Inputs'!$C$29:$C$30,MATCH(Installations!D109,'User Inputs'!$B$29:$B$30,0))) -> 0.008
B110: Residential | C110: 2015 | D110: Wind | E110: NVE South | F110: Incentivized | G110: 0 | H110: =INDEX(Installations!$C$9:$J$11,MATCH(Installations!C110,Installations!$B$9:$B$11,0),MATCH(Installations!B110&Installations!E110&Installations!D110,Installations!$C$6:$J$6&Installations!$C$7:$J$7&Installations!$C$8:$J$8,0))*IF(F110="Incentivized",INDEX('User Inputs'!$C$29:$C$30,MATCH(Installations!D110,'User Inputs'!$B$29:$B$30,0)),1-INDEX('User Inputs'!$C$29:$C$30,MATCH(Installations!D110,'User Inputs'!$B$29:$B$30,0))) -> 0
B111: Residential | C111: 2015 | D111: Wind | E111: NVE South | F111: Non-Incentivized | G111: 0 | H111: =INDEX(Installations!$C$9:$J$11,MATCH(Installations!C111,Installations!$B$9:$B$11,0),MATCH(Installations!B111&Installations!E111&Installations!D111,Installations!$C$6:$J$6&Installations!$C$7:$J$7&Installations!$C$8:$J$8,0))*IF(F111="Incentivized",INDEX('User Inputs'!$C$29:$C$30,MATCH(Installations!D111,'User Inputs'!$B$29:$B$30,0)),1-INDEX('User Inputs'!$C$29:$C$30,MATCH(Installations!D111,'User Inputs'!$B$29:$B$30,0))) -> 0
B112: Residential | C112: 2016 | D112: PV | E112: NVE North | F112: Incentivized | G112: 6633 | H112: =INDEX(Installations!$C$9:$J$11,MATCH(Installations!C112,Installations!$B$9:$B$11,0),MATCH(Installations!B112&Installations!E112&Installations!D112,Installations!$C$6:$J$6&Installations!$C$7:$J$7&Installations!$C$8:$J$8,0))*IF(F112="Incentivized",INDEX('User Inputs'!$C$29:$C$30,MATCH(Installations!D112,'User Inputs'!$B$29:$B$30,0)),1-INDEX('User Inputs'!$C$29:$C$30,MATCH(Installations!D112,'User Inputs'!$B$29:$B$30,0))) -> 6633
B113: Residential | C113: 2016 | D113: PV | E113: NVE North | F113: Non-Incentivized | G113: 737 | H113: =INDEX(Installations!$C$9:$J$11,MATCH(Installations!C113,Installations!$B$9:$B$11,0),MATCH(Installations!B113&Installations!E113&Installations!D113,Installations!$C$6:$J$6&Installations!$C$7:$J$7&Installations!$C$8:$J$8,0))*IF(F113="Incentivized",INDEX('User Inputs'!$C$29:$C$30,MATCH(Installations!D113,'User Inputs'!$B$29:$B$30,0)),1-INDEX('User Inputs'!$C$29:$C$30,MATCH(Installations!D113,'User Inputs'!$B$29:$B$30,0))) -> 737
B114: Residential | C114: 2016 | D114: PV | E114: NVE South | F114: Incentivized | G114: 17055 | H114: =INDEX(Installations!$C$9:$J$11,MATCH(Installations!C114,Installations!$B$9:$B$11,0),MATCH(Installations!B114&Installations!E114&Installations!D114,Installations!$C$6:$J$6&Installations!$C$7:$J$7&Installations!$C$8:$J$8,0))*IF(F114="Incentivized",INDEX('User Inputs'!$C$29:$C$30,MATCH(Installations!D114,'User Inputs'!$B$29:$B$30,0)),1-INDEX('User Inputs'!$C$29:$C$30,MATCH(Installations!D114,'User Inputs'!$B$29:$B$30,0))) -> 17055
B115: Residential | C115: 2016 | D115: PV | E115: NVE South | F115: Non-Incentivized | G115: 1895 | H115: =INDEX(Installations!$C$9:$J$11,MATCH(Installations!C115,Installations!$B$9:$B$11,0),MATCH(Installations!B115&Installations!E115&Installations!D115,Installations!$C$6:$J$6&Installations!$C$7:$J$7&Installations!$C$8:$J$8,0))*IF(F115="Incentivized",INDEX('User Inputs'!$C$29:$C$30,MATCH(Installations!D115,'User Inputs'!$B$29:$B$30,0)),1-INDEX('User Inputs'!$C$29:$C$30,MATCH(Installations!D115,'User Inputs'!$B$29:$B$30,0))) -> 1895
B116: Residential | C116: 2016 | D116: Wind | E116: NVE North | F116: Incentivized | G116: 0.792 | H116: =INDEX(Installations!$C$9:$J$11,MATCH(Installations!C116,Installations!$B$9:$B$11,0),MATCH(Installations!B116&Installations!E116&Installations!D116,Installations!$C$6:$J$6&Installations!$C$7:$J$7&Installations!$C$8:$J$8,0))*IF(F116="Incentivized",INDEX('User Inputs'!$C$29:$C$30,MATCH(Installations!D116,'User Inputs'!$B$29:$B$30,0)),1-INDEX('User Inputs'!$C$29:$C$30,MATCH(Installations!D116,'User Inputs'!$B$29:$B$30,0))) -> 0.792
B117: Residential | C117: 2016 | D117: Wind | E117: NVE North | F117: Non-Incentivized | G117: 0.008 | H117: =INDEX(Installations!$C$9:$J$11,MATCH(Installations!C117,Installations!$B$9:$B$11,0),MATCH(Installations!B117&Installations!E117&Installations!D117,Installations!$C$6:$J$6&Installations!$C$7:$J$7&Installations!$C$8:$J$8,0))*IF(F117="Incentivized",INDEX('User Inputs'!$C$29:$C$30,MATCH(Installations!D117,'User Inputs'!$B$29:$B$30,0)),1-INDEX('User Inputs'!$C$29:$C$30,MATCH(Installations!D117,'User Inputs'!$B$29:$B$30,0))) -> 0.008
B118: Residential | C118: 2016 | D118: Wind | E118: NVE South | F118: Incentivized | G118: 0 | H118: =INDEX(Installations!$C$9:$J$11,MATCH(Installations!C118,Installations!$B$9:$B$11,0),MATCH(Installations!B118&Installations!E118&Installations!D118,Installations!$C$6:$J$6&Installations!$C$7:$J$7&Installations!$C$8:$J$8,0))*IF(F118="Incentivized",INDEX('User Inputs'!$C$29:$C$30,MATCH(Installations!D118,'User Inputs'!$B$29:$B$30,0)),1-INDEX('User Inputs'!$C$29:$C$30,MATCH(Installations!D118,'User Inputs'!$B$29:$B$30,0))) -> 0
B119: Residential | C119: 2016 | D119: Wind | E119: NVE South | F119: Non-Incentivized | G119: 0 | H119: =INDEX(Installations!$C$9:$J$11,MATCH(Installations!C119,Installations!$B$9:$B$11,0),MATCH(Installations!B119&Installations!E119&Installations!D119,Installations!$C$6:$J$6&Installations!$C$7:$J$7&Installations!$C$8:$J$8,0))*IF(F119="Incentivized",INDEX('User Inputs'!$C$29:$C$30,MATCH(Installations!D119,'User Inputs'!$B$29:$B$30,0)),1-INDEX('User Inputs'!$C$29:$C$30,MATCH(Installations!D119,'User Inputs'!$B$29:$B$30,0))) -> 0
B120: Non-Residential | C120: 2004 | D120: PV | E120: NVE North | F120: Incentivized | G120: 0 | H120: 0
B121: Non-Residential | C121: 2004 | D121: PV | E121: NVE North | F121: Non-Incentivized | G121: 0 | H121: 0
B122: Non-Residential | C122: 2004 | D122: PV | E122: NVE South | F122: Incentivized | G122: 0 | H122: 0
B123: Non-Residential | C123: 2004 | D123: PV | E123: NVE South | F123: Non-Incentivized | G123: 0 | H123: 0
B124: Non-Residential | C124: 2004 | D124: Wind | E124: NVE North | F124: Incentivized | G124: 0 | H124: 0
B125: Non-Residential | C125: 2004 | D125: Wind | E125: NVE North | F125: Non-Incentivized | G125: 0 | H125: 0
B126: Non-Residential | C126: 2004 | D126: Wind | E126: NVE South | F126: Incentivized | G126: 0 | H126: 0
B127: Non-Residential | C127: 2004 | D127: Wind | E127: NVE South | F127: Non-Incentivized | G127: 0 | H127: 0
B128: Non-Residential | C128: 2005 | D128: PV | E128: NVE North | F128: Incentivized | G128: 28.03 | H128: 28.03
B129: Non-Residential | C129: 2005 | D129: PV | E129: NVE North | F129: Non-Incentivized | G129: 0 | H129: 0
B130: Non-Residential | C130: 2005 | D130: PV | E130: NVE South | F130: Incentivized | G130: 12.577 | H130: 12.577
B131: Non-Residential | C131: 2005 | D131: PV | E131: NVE South | F131: Non-Incentivized | G131: 0 | H131: 0
B132: Non-Residential | C132: 2005 | D132: Wind | E132: NVE North | F132: Incentivized | G132: 0 | H132: 0
B133: Non-Residential | C133: 2005 | D133: Wind | E133: NVE North | F133: Non-Incentivized | G133: 0 | H133: 0
B134: Non-Residential | C134: 2005 | D134: Wind | E134: NVE South | F134: Incentivized | G134: 0 | H134: 0
B135: Non-Residential | C135: 2005 | D135: Wind | E135: NVE South | F135: Non-Incentivized | G135: 0 | H135: 0
B136: Non-Residential | C136: 2006 | D136: PV | E136: NVE North | F136: Incentivized | G136: 38.282 | H136: 38.282
B137: Non-Residential | C137: 2006 | D137: PV | E137: NVE North | F137: Non-Incentivized | G137: 0 | H137: 0
B138: Non-Residential | C138: 2006 | D138: PV | E138: NVE South | F138: Incentivized | G138: 68.461 | H138: 68.461
B139: Non-Residential | C139: 2006 | D139: PV | E139: NVE South | F139: Non-Incentivized | G139: 0 | H139: 0
B140: Non-Residential | C140: 2006 | D140: Wind | E140: NVE North | F140: Incentivized | G140: 0 | H140: 0
B141: Non-Residential | C141: 2006 | D141: Wind | E141: NVE North | F141: Non-Incentivized | G141: 0 | H141: 0
B142: Non-Residential | C142: 2006 | D142: Wind | E142: NVE South | F142: Incentivized | G142: 0 | H142: 0
B143: Non-Residential | C143: 2006 | D143: Wind | E143: NVE South | F143: Non-Incentivized | G143: 0 | H143: 0
B144: Non-Residential | C144: 2007 | D144: PV | E144: NVE North | F144: Incentivized | G144: =H144*IFERROR(OFFSET($K$8,MATCH($C144,$B$9:$B$11,0),0),$G$2) -> 20.246 | H144: 20.246
B145: Non-Residential | C145: 2007 | D145: PV | E145: NVE North | F145: Non-Incentivized | G145: 0 | H145: 0
B146: Non-Residential | C146: 2007 | D146: PV | E146: NVE South | F146: Incentivized | G146: 47.32 | H146: 47.32
B147: Non-Residential | C147: 2007 | D147: PV | E147: NVE South | F147: Non-Incentivized | G147: 0 | H147: 0
B148: Non-Residential | C148: 2007 | D148: Wind | E148: NVE North | F148: Incentivized | G148: 0 | H148: 0
B149: Non-Residential | C149: 2007 | D149: Wind | E149: NVE North | F149: Non-Incentivized | G149: 0 | H149: 0
B150: Non-Residential | C150: 2007 | D150: Wind | E150: NVE South | F150: Incentivized | G150: 0 | H150: 0
B151: Non-Residential | C151: 2007 | D151: Wind | E151: NVE South | F151: Non-Incentivized | G151: 0 | H151: 0
B152: Non-Residential | C152: 2008 | D152: PV | E152: NVE North | F152: Incentivized | G152: 200.341 | H152: 200.341
B153: Non-Residential | C153: 2008 | D153: PV | E153: NVE North | F153: Non-Incentivized | G153: 0 | H153: 0
B154: Non-Residential | C154: 2008 | D154: PV | E154: NVE South | F154: Incentivized | G154: 59.124 | H154: 59.124
B155: Non-Residential | C155: 2008 | D155: PV | E155: NVE South | F155: Non-Incentivized | G155: 246.094 | H155: 246.094
B156: Non-Residential | C156: 2008 | D156: Wind | E156: NVE North | F156: Incentivized | G156: 0 | H156: 0
B157: Non-Residential | C157: 2008 | D157: Wind | E157: NVE North | F157: Non-Incentivized | G157: 0 | H157: 0
B158: Non-Residential | C158: 2008 | D158: Wind | E158: NVE South | F158: Incentivized | G158: 0 | H158: 0
B159: Non-Residential | C159: 2008 | D159: Wind | E159: NVE South | F159: Non-Incentivized | G159: 0 | H159: 0
B160: Non-Residential | C160: 2009 | D160: PV | E160: NVE North | F160: Incentivized | G160: 327.886 | H160: 327.886
B161: Non-Residential | C161: 2009 | D161: PV | E161: NVE North | F161: Non-Incentivized | G161: 75.843 | H161: 75.843
B162: Non-Residential | C162: 2009 | D162: PV | E162: NVE South | F162: Incentivized | G162: 95.424 | H162: 95.424
B163: Non-Residential | C163: 2009 | D163: PV | E163: NVE South | F163: Non-Incentivized | G163: 738.847 | H163: 738.847
B164: Non-Residential | C164: 2009 | D164: Wind | E164: NVE North | F164: Incentivized | G164: 0 | H164: 0
B165: Non-Residential | C165: 2009 | D165: Wind | E165: NVE North | F165: Non-Incentivized | G165: 0 | H165: 0
B166: Non-Residential | C166: 2009 | D166: Wind | E166: NVE South | F166: Incentivized | G166: 5.2 | H166: 5.2
B167: Non-Residential | C167: 2009 | D167: Wind | E167: NVE South | F167: Non-Incentivized | G167: 0 | H167: 0
B168: Non-Residential | C168: 2010 | D168: PV | E168: NVE North | F168: Incentivized | G168: 1891.673 | H168: 1891.673
B169: Non-Residential | C169: 2010 | D169: PV | E169: NVE North | F169: Non-Incentivized | G169: 8.918 | H169: 8.918
B170: Non-Residential | C170: 2010 | D170: PV | E170: NVE South | F170: Incentivized | G170: 629.778 | H170: 629.778
B171: Non-Residential | C171: 2010 | D171: PV | E171: NVE South | F171: Non-Incentivized | G171: 6.793 | H171: 6.793
B172: Non-Residential | C172: 2010 | D172: Wind | E172: NVE North | F172: Incentivized | G172: 28.05 | H172: 28.05
B173: Non-Residential | C173: 2010 | D173: Wind | E173: NVE North | F173: Non-Incentivized | G173: 0.94 | H173: 0.94
B174: Non-Residential | C174: 2010 | D174: Wind | E174: NVE South | F174: Incentivized | G174: 0 | H174: 0
B175: Non-Residential | C175: 2010 | D175: Wind | E175: NVE South | F175: Non-Incentivized | G175: 0 | H175: 0
B176: Non-Residential | C176: 2011 | D176: PV | E176: NVE North | F176: Incentivized | G176: 8523.0684 | H176: 8523.0684
B177: Non-Residential | C177: 2011 | D177: PV | E177: NVE North | F177: Non-Incentivized | G177: 465.608 | H177: 465.608
B178: Non-Residential | C178: 2011 | D178: PV | E178: NVE South | F178: Incentivized | G178: 9050.9548 | H178: 9050.9548
B179: Non-Residential | C179: 2011 | D179: PV | E179: NVE South | F179: Non-Incentivized | G179: 31.742 | H179: 31.742
B180: Non-Residential | C180: 2011 | D180: Wind | E180: NVE North | F180: Incentivized | G180: 190.4 | H180: 190.4
B181: Non-Residential | C181: 2011 | D181: Wind | E181: NVE North | F181: Non-Incentivized | G181: 0 | H181: 0
B182: Non-Residential | C182: 2011 | D182: Wind | E182: NVE South | F182: Incentivized | G182: 0 | H182: 0
B183: Non-Residential | C183: 2011 | D183: Wind | E183: NVE South | F183: Non-Incentivized | G183: 0 | H183: 0
B184: Non-Residential | C184: 2012 | D184: PV | E184: NVE North | F184: Incentivized | G184: 6363.632 | H184: 6363.632
B185: Non-Residential | C185: 2012 | D185: PV | E185: NVE North | F185: Non-Incentivized | G185: 152.541 | H185: 152.541
B186: Non-Residential | C186: 2012 | D186: PV | E186: NVE South | F186: Incentivized | G186: 3470.377 | H186: 3470.377
B187: Non-Residential | C187: 2012 | D187: PV | E187: NVE South | F187: Non-Incentivized | G187: 706.428 | H187: 706.428
B188: Non-Residential | C188: 2012 | D188: Wind | E188: NVE North | F188: Incentivized | G188: 7910.16 | H188: 7910.16
B189: Non-Residential | C189: 2012 | D189: Wind | E189: NVE North | F189: Non-Incentivized | G189: 9.562 | H189: 9.562
B190: Non-Residential | C190: 2012 | D190: Wind | E190: NVE South | F190: Incentivized | G190: 0 | H190: 0
B191: Non-Residential | C191: 2012 | D191: Wind | E191: NVE South | F191: Non-Incentivized | G191: 0 | H191: 0
B192: Non-Residential | C192: 2013 | D192: PV | E192: NVE North | F192: Incentivized | G192: 1736.399 | H192: 1736.399
B193: Non-Residential | C193: 2013 | D193: PV | E193: NVE North | F193: Non-Incentivized | G193: 90.933 | H193: 90.933
B194: Non-Residential | C194: 2013 | D194: PV | E194: NVE South | F194: Incentivized | G194: 1721.0175 | H194: 1721.0175
B195: Non-Residential | C195: 2013 | D195: PV | E195: NVE South | F195: Non-Incentivized | G195: 445.41 | H195: 445.41
B196: Non-Residential | C196: 2013 | D196: Wind | E196: NVE North | F196: Incentivized | G196: 1780.9 | H196: 1780.9
B197: Non-Residential | C197: 2013 | D197: Wind | E197: NVE North | F197: Non-Incentivized | G197: 19.091 | H197: 19.091
B198: Non-Residential | C198: 2013 | D198: Wind | E198: NVE South | F198: Incentivized | G198: 0 | H198: 0
B199: Non-Residential | C199: 2013 | D199: Wind | E199: NVE South | F199: Non-Incentivized | G199: 0 | H199: 0
B200: Non-Residential | C200: 2014 | D200: PV | E200: NVE North | F200: Incentivized | G200: 12153.6 | H200: =INDEX(Installations!$C$9:$J$11,MATCH(Installations!C200,Installations!$B$9:$B$11,0),MATCH(Installations!B200&Installations!E200&Installations!D200,Installations!$C$6:$J$6&Installations!$C$7:$J$7&Installations!$C$8:$J$8,0))*IF(F200="Incentivized",INDEX('User Inputs'!$C$29:$C$30,MATCH(Installations!D200,'User Inputs'!$B$29:$B$30,0)),1-INDEX('User Inputs'!$C$29:$C$30,MATCH(Installations!D200,'User Inputs'!$B$29:$B$30,0))) -> 12153.6
B201: Non-Residential | C201: 2014 | D201: PV | E201: NVE North | F201: Non-Incentivized | G201: 1350.4 | H201: =INDEX(Installations!$C$9:$J$11,MATCH(Installations!C201,Installations!$B$9:$B$11,0),MATCH(Installations!B201&Installations!E201&Installations!D201,Installations!$C$6:$J$6&Installations!$C$7:$J$7&Installations!$C$8:$J$8,0))*IF(F201="Incentivized",INDEX('User Inputs'!$C$29:$C$30,MATCH(Installations!D201,'User Inputs'!$B$29:$B$30,0)),1-INDEX('User Inputs'!$C$29:$C$30,MATCH(Installations!D201,'User Inputs'!$B$29:$B$30,0))) -> 1350.4
... 22 more rows

Sheet Capacity
C2: Capacity Summary
C4: Active Capacity
C5: With Degradation
C6: Residential | D6: Residential | E6: Residential | F6: Residential | G6: Residential | H6: Residential | I6: Residential | J6: Residential | K6: Residential | L6: Residential | M6: Residential | N6: Residential | O6: Non-Residential | P6: Non-Residential | Q6: Non-Residential | R6: Non-Residential | S6: Non-Residential | T6: Non-Residential | U6: Non-Residential | V6: Non-Residential | W6: Non-Residential | X6: Non-Residential | Y6: Non-Residential | Z6: Non-Residential
C7: NVE North | D7: NVE North | E7: NVE North | F7: NVE North | G7: NVE North | H7: NVE North | I7: NVE South | J7: NVE South | K7: NVE South | L7: NVE South | M7: NVE South | N7: NVE South | O7: NVE North | P7: NVE North | Q7: NVE North | R7: NVE North | S7: NVE North | T7: NVE North | U7: NVE South | V7: NVE South | W7: NVE South | X7: NVE South | Y7: NVE South | Z7: NVE South
C8: PV | D8: PV | E8: Old Wind | F8: Old Wind | G8: New Wind | H8: New Wind | I8: PV | J8: PV | K8: Old Wind | L8: Old Wind | M8: New Wind | N8: New Wind | O8: PV | P8: PV | Q8: Old Wind | R8: Old Wind | S8: New Wind | T8: New Wind | U8: PV | V8: PV | W8: Old Wind | X8: Old Wind | Y8: New Wind | Z8: New Wind
C9: Incentivized | D9: Non-incentivized | E9: Incentivized | F9: Non-incentivized | G9: Incentivized | H9: Non-incentivized | I9: Incentivized | J9: Non-incentivized | K9: Incentivized | L9: Non-incentivized | M9: Incentivized | N9: Non-incentivized | O9: Incentivized | P9: Non-incentivized | Q9: Incentivized | R9: Non-incentivized | S9: Incentivized | T9: Non-incentivized | U9: Incentivized | V9: Non-incentivized | W9: Incentivized | X9: Non-incentivized | Y9: Incentivized | Z9: Non-incentivized
B10: 2013 | C10: =SUMIFS(OFFSET($F$290,1,MATCH($B10,$G$290:$AI$290,0),COUNT($F$291:$F$498),1),$D$291:$D$498,C$7,$AL$291:$AL$498,C$8,$C$291:$C$498,C$9,$B$291:$B$498,C$6,$AM$291:$AM$498,TRUE) -> 2194.814 | D10: 1628.103 | E10: 217.922 | F10: 8.558 | G10: 0 | H10: 0 | I10: 3462.196 | J10: 5908.45 | K10: 22.6 | L10: 0 | M10: =SUMIFS(OFFSET($F$290,1,MATCH($B10,$G$290:$AI$290,0),COUNT($F$291:$F$498),1),$D$291:$D$498,M$7,$AL$291:$AL$498,M$8,$C$291:$C$498,M$9,$B$291:$B$498,M$6,$AM$291:$AM$498,TRUE) -> 0 | N10: 0 | O10: 19129.5574 | P10: 793.843 | Q10: 9909.51 | R10: 29.593 | S10: 0 | T10: 0 | U10: 15155.0333 | V10: 2175.314 | W10: 5.2 | X10: 0 | Y10: 0 | Z10: 0
B11: 2014 | C11: 10285.63993 | D11: 2520.162485 | E11: 216.83239 | F11: 8.51521 | G11: 0.792 | H11: 0.008 | I11: 24278.98502 | J11: 8193.80775 | K11: 22.487 | L11: 0 | M11: 0 | N11: 0 | O11: 31187.50961 | P11: 2140.273785 | Q11: 9859.96245 | R11: 29.445035 | S11: 34.848 | T11: 0.352 | U11: 46329.05813 | V11: 5636.63743 | W11: 5.174 | X11: 0 | Y11: 0 | Z11: 0
B12: 2015 | C12: 19078.51173 | D12: 3490.261673 | E12: 215.748228 | F12: 8.47263395 | G12: 1.58004 | H12: 0.01596 | I12: 46897.89009 | J12: 10679.53871 | K12: 22.374565 | L12: 0 | M12: 0 | N12: 0 | O12: 44297.57206 | P12: 3603.572416 | Q12: 9810.662638 | R12: 29.29780983 | S12: 69.52176 | T12: 0.70224 | U12: 80207.41284 | V12: 9398.454243 | W12: 5.14813 | X12: 0 | Y12: 0 | Z12: 0
B13: 2016 | C13: 25616.11917 | D13: 4209.810364 | E13: 214.6694869 | F13: 8.43027078 | G13: 2.3641398 | H13: 0.0238802 | I13: 63718.40064 | J13: 12521.14102 | K13: 22.26269218 | L13: 0 | M13: 0 | N13: 0 | O13: 54024.6842 | P13: 4690.954554 | Q13: 9761.609325 | R13: 29.15132078 | S13: 104.0221512 | T13: 1.0507288 | U13: 105389.7758 | V13: 12194.06197 | W13: 5.12238935 | X13: 0 | Y13: 0 | Z13: 0
B14: 2017 | C14: 25488.03858 | D14: 4188.761312 | E14: 213.5961395 | F14: 8.388119426 | G14: 2.352319101 | H14: 0.023760799 | I14: 63399.80864 | J14: 12458.53531 | K14: 22.15137871 | L14: 0 | M14: 0 | N14: 0 | O14: 53754.56078 | P14: 4667.499781 | Q14: 9712.801278 | R14: 29.00556417 | S14: 103.5020404 | T14: 1.045475156 | U14: 104862.8269 | V14: 12133.09166 | W14: 5.096777403 | X14: 0 | Y14: 0 | Z14: 0
B15: 2018 | C15: 25360.59838 | D15: 4167.817506 | E15: 212.5281588 | F15: 8.346178829 | G15: 2.340557505 | H15: 0.02364199501 | I15: 63082.8096 | J15: 12396.24264 | K15: 22.04062182 | L15: 0 | M15: 0 | N15: 0 | O15: 53485.78798 | P15: 4644.162282 | Q15: 9664.237272 | R15: 28.86053635 | S15: 102.9845302 | T15: 1.04024778 | U15: 104338.5128 | V15: 12072.4262 | W15: 5.071293516 | X15: 0 | Y15: 0 | Z15: 0
B16: 2019 | C16: 25233.79539 | D16: 4146.978418 | E16: 211.465518 | F16: 8.304447935 | G16: 2.328854718 | H16: 0.02352378503 | I16: 62767.39555 | J16: 12334.26142 | K16: 21.93041871 | L16: 0 | M16: 0 | N16: 0 | O16: 53218.35904 | P16: 4620.941471 | Q16: 9615.916085 | R16: 28.71623367 | S16: 102.4696076 | T16: 1.035046541 | U16: 103816.8202 | V16: 12012.06407 | W16: 5.045937049 | X16: 0 | Y16: 0 | Z16: 0
B17: 2020 | C17: 25107.62641 | D17: 4126.243526 | E17: 210.4081904 | F17: 8.262925695 | G17: 2.317210444 | H17: 0.0234061661 | I17: 62453.55857 | J17: 12272.59012 | K17: 21.82076662 | L17: 0 | M17: 0 | N17: 0 | O17: 52952.26724 | P17: 4597.836764 | Q17: 9567.836505 | R17: 28.5726525 | S17: 101.9572596 | T17: 1.029871309 | U17: 103297.7361 | V17: 11952.00375 | W17: 5.020707363 | X17: 0 | Y17: 0 | Z17: 0
B18: 2021 | C18: 24982.08828 | D18: 4105.612309 | E18: 209.3561494 | F18: 8.221611067 | G18: 2.305624392 | H18: 0.02328913527 | I18: 62141.29078 | J18: 12211.22717 | K18: 21.71166278 | L18: 0 | M18: 0 | N18: 0 | O18: 52687.50591 | P18: 4574.84758 | Q18: 9519.997322 | R18: 28.42978924 | S18: 101.4474733 | T18: 1.024721952 | U18: 102781.2474 | V18: 11892.24373 | W18: 4.995603827 | X18: 0 | Y18: 0 | Z18: 0
B19: 2022 | C19: 24857.17784 | D19: 4085.084247 | E19: 208.3093687 | F19: 8.180503012 | G19: 2.29409627 | H19: 0.0231726896 | I19: 61830.58433 | J19: 12150.17103 | K19: 21.60310447 | L19: 0 | M19: 0 | N19: 0 | O19: 52424.06838 | P19: 4551.973342 | Q19: 9472.397336 | R19: 28.28764029 | S19: 100.9402359 | T19: 1.019598342 | U19: 102267.3412 | V19: 11832.78251 | W19: 4.970625807 | X19: 0 | Y19: 0 | Z19: 0
B20: 2023 | C20: =SUMIFS(OFFSET($F$290,1,MATCH($B20,$G$290:$AI$290,0),COUNT($F$291:$F$498),1),$D$291:$D$498,C$7,$AL$291:$AL$498,C$8,$C$291:$C$498,C$9,$B$291:$B$498,C$6,$AM$291:$AM$498,TRUE) -> 24732.89195 | D20: 4064.658826 | E20: 207.2678219 | F20: 8.139600497 | G20: 2.282625789 | H20: 0.02305682615 | I20: 61521.4314 | J20: 12089.42017 | K20: 21.49508895 | L20: 0 | M20: =SUMIFS(OFFSET($F$290,1,MATCH($B20,$G$290:$AI$290,0),COUNT($F$291:$F$498),1),$D$291:$D$498,M$7,$AL$291:$AL$498,M$8,$C$291:$C$498,M$9,$B$291:$B$498,M$6,$AM$291:$AM$498,TRUE) -> 0 | N20: 0 | O20: 52161.94804 | P20: 4529.213475 | Q20: 9425.035349 | R20: 28.14620209 | S20: 100.4355347 | T20: 1.014500351 | U20: 101756.0045 | V20: 11773.6186 | W20: 4.945772678 | X20: 0 | Y20: 0 | Z20: 0
B21: 2024 | C21: 24609.22749 | D21: 4044.335532 | E21: 206.2314827 | F21: 8.098902494 | G21: 2.27121266 | H21: 0.02294154202 | I21: 61213.82425 | J21: 12028.97307 | K21: 21.3876135 | L21: 0 | M21: 0 | N21: 0 | O21: 51901.1383 | P21: 4506.567408 | Q21: 9377.910172 | R21: 28.00547108 | S21: 99.93335704 | T21: 1.009427849 | U21: 101247.2245 | V21: 11714.75051 | W21: 4.921043815 | X21: 0 | Y21: 0 | Z21: 0
B22: 2025 | C22: 24486.18135 | D22: 4024.113854 | E22: 205.2003253 | F22: 8.058407982 | G22: 2.259856597 | H22: 0.02282683431 | I22: 60907.75513 | J22: 11968.82821 | K22: 21.28067544 | L22: 0 | M22: 0 | N22: 0 | O22: 51641.63261 | P22: 4484.034571 | Q22: 9331.020621 | R22: 27.86544373 | S22: 99.43369025 | T22: 1.00438071 | U22: 100740.9883 | V22: 11656.17676 | W22: 4.896438596 | X22: 0 | Y22: 0 | Z22: 0
B23: 2026 | C23: 24363.75045 | D23: 4003.993285 | E23: 204.1743237 | F23: 8.018115942 | G23: 2.248557314 | H23: 0.02271270014 | I23: 60603.21635 | J23: 11908.98407 | K23: 21.17427206 | L23: 0 | M23: 0 | N23: 0 | O23: 51383.42444 | P23: 4461.614398 | Q23: 9284.365518 | R23: 27.72611651 | S23: 98.9365218 | T23: 0.9993588061 | U23: 100237.2834 | V23: 11597.89587 | W23: 4.871956403 | X23: 0 | Y23: 0 | Z23: 0
B24: 2027 | C24: 24241.9317 | D24: 3983.973318 | E24: 203.1534521 | F24: 7.978025362 | G24: 2.237314527 | H24: 0.02259913664 | I24: 60300.20027 | J24: 11849.43915 | K24: 21.0684007 | L24: 0 | M24: 0 | N24: 0 | O24: 51126.50732 | P24: 4439.306326 | Q24: 9237.943691 | R24: 27.58748592 | S24: 98.44183919 | T24: 0.994362012 | U24: 99736.09697 | V24: 11539.90639 | W24: 4.847596621 | X24: 0 | Y24: 0 | Z24: 0
B25: 2028 | C25: 24120.72204 | D25: 3964.053452 | E25: 202.1376848 | F25: 7.938135235 | G25: 2.226127954 | H25: 0.02248614095 | I25: 59998.69927 | J25: 11790.19195 | K25: 20.9630587 | L25: 0 | M25: 0 | N25: 0 | O25: 50870.87478 | P25: 4417.109794 | Q25: 9191.753972 | R25: 27.44954849 | S25: 97.94962999 | T25: 0.989390202 | U25: 99237.41649 | V25: 11482.20686 | W25: 4.823358638 | X25: 0 | Y25: 0 | Z25: 0
B26: 2029 | C26: 24000.11843 | D26: 3944.233184 | E26: 201.1269964 | F26: 7.898444559 | G26: 2.214997315 | H26: 0.02237371025 | I26: 59698.70577 | J26: 11731.24099 | K26: 20.8582434 | L26: 0 | M26: 0 | N26: 0 | O26: 50616.52041 | P26: 4395.024245 | Q26: 9145.795202 | R26: 27.31230075 | S26: 97.45988184 | T26: 0.984443251 | U26: 98741.22941 | V26: 11424.79583 | W26: 4.799241845 | X26: 0 | Y26: 0 | Z26: 0
B27: 2030 | C27: 23809.77663 | D27: 3922.709363 | E27: 200.1213614 | F27: 7.858952336 | G27: 2.203922328 | H27: 0.0222618417 | I27: 59368.84439 | J27: 11672.58479 | K27: 20.75395218 | L27: 0 | M27: 0 | N27: 0 | O27: 50337.6974 | P27: 4373.049124 | Q27: 9100.066226 | R27: 27.17573925 | S27: 96.97258244 | T27: 0.9795210347 | U27: 98235.97359 | V27: 11367.67185 | W27: 4.775245635 | X27: 0 | Y27: 0 | Z27: 0
B28: 2031 | C28: 23556.47872 | D28: 3903.095817 | E28: 199.1207546 | F28: 7.819657574 | G28: 2.192902716 | H28: 0.02215053249 | I28: 58989.14725 | J28: 11607.84132 | K28: 20.65018242 | L28: 0 | M28: 0 | N28: 0 | O28: 50051.02969 | P28: 4351.183878 | Q28: 9054.565895 | R28: 27.03986055 | S28: 96.48771952 | T28: 0.9746234295 | U28: 97682.23921 | V28: 11310.83349 | W28: 4.751369407 | X28: 0 | Y28: 0 | Z28: 0
B29: 2032 | C29: 23278.47117 | D29: 3882.242059 | E29: 198.1251508 | F29: 7.780559287 | G29: 2.181938203 | H29: 0.02203977983 | I29: 58485.26104 | J29: 11546.49733 | K29: 20.54693151 | L29: 0 | M29: 0 | N29: 0 | O29: 49782.36777 | P29: 4329.427959 | Q29: 9009.293066 | R29: 26.90466125 | S29: 96.00528093 | T29: 0.9697503124 | U29: 97150.80674 | V29: 11254.27932 | W29: 4.72761256 | X29: 0 | Y29: 0 | Z29: 0
B30: 2033 | C30: =SUMIFS(OFFSET($F$290,1,MATCH($B30,$G$290:$AI$290,0),COUNT($F$291:$F$498),1),$D$291:$D$498,C$7,$AL$291:$AL$498,C$8,$C$291:$C$498,C$9,$B$291:$B$498,C$6,$AM$291:$AM$498,TRUE) -> 23072.24466 | D30: 3850.040562 | E30: 197.1345251 | F30: 7.74165649 | G30: 2.171028512 | H30: 0.02192958093 | I30: 58002.61415 | J30: 11488.76485 | K30: 20.44419685 | L30: 0 | M30: =SUMIFS(OFFSET($F$290,1,MATCH($B30,$G$290:$AI$290,0),COUNT($F$291:$F$498),1),$D$291:$D$498,M$7,$AL$291:$AL$498,M$8,$C$291:$C$498,M$9,$B$291:$B$498,M$6,$AM$291:$AM$498,TRUE) -> 0 | N30: 0 | O30: 49352.22536 | P30: 4307.780819 | Q30: 8964.2466 | R30: 26.77013794 | S30: 95.52525452 | T30: 0.9649015608 | U30: 96611.56851 | V30: 10975.38871 | W30: 4.703974497 | X30: 0 | Y30: 0 | Z30: 0
B31: 2034 | C31: 22676.85724 | D31: 3714.889701 | E31: 169.7186852 | F31: 7.702948208 | G31: 2.160173369 | H31: 0.02181993302 | I31: 57400.9314 | J31: 11373.62902 | K31: 15.66152124 | L31: 0 | M31: 0 | N31: 0 | O31: 48810.33817 | P31: 4217.976584 | Q31: 8919.425367 | R31: 26.63628725 | S31: 95.04762825 | T31: 0.960077053 | U31: 96042.62073 | V31: 10255.48487 | W31: 0 | X31: 0 | Y31: 0 | Z31: 0
B32: 2035 | C32: 22140.64932 | D32: 3380.173045 | E32: 69.42411235 | F32: 5.515024689 | G32: 2.149372502 | H32: 0.02171083336 | I32: 56499.87111 | J32: 11102.8338 | K32: 8.955869907 | L32: 0 | M32: 0 | N32: 0 | O32: 46872.12875 | P32: 4188.899857 | Q32: 8849.707025 | R32: 25.66125405 | S32: 94.57239011 | T32: 0.9552766677 | U32: 94998.38664 | V32: 10198.12373 | W32: 0 | X32: 0 | Y32: 0 | Z32: 0
B33: 2036 | C33: 21518.61165 | D33: 3087.345607 | E33: 17.82218112 | F33: 5.487449565 | G33: 2.13862564 | H33: 0.02160227919 | I33: 55434.99404 | J33: 10764.12072 | K33: 8.911090558 | L33: 0 | M33: 0 | N33: 0 | O33: 39042.78467 | P33: 3753.047852 | Q33: 8635.791326 | R33: 25.53294778 | S33: 94.09952816 | T33: 0.9505002844 | U33: 86458.00692 | V33: 10118.84752 | W33: 0 | X33: 0 | Y33: 0 | Z33: 0
B34: 2037 | C34: 21270.44855 | D34: 2691.812046 | E34: 0 | F34: 3.316084129 | G34: 2.127932512 | H34: 0.0214942678 | I34: 55034.20804 | J34: 9365.474607 | K34: 0 | L34: 0 | M34: 0 | N34: 0 | O34: 33205.23409 | P34: 3599.0316 | Q34: 1579.041237 | R34: 16.92710217 | S34: 93.62903052 | T34: 0.945747783 | U34: 82948.69494 | V34: 9441.896421 | W34: 0 | X34: 0 | Y34: 0 | Z34: 0
B35: 2038 | C35: 21005.15374 | D35: 2333.905971 | E35: 0 | F35: 0 | G35: 2.117292849 | H35: 0.02138679646 | I35: 54010.95129 | J35: 6001.21681 | K35: 0 | L35: 0 | M35: 0 | N35: 0 | O35: 31507.32158 | P35: 3500.813508 | Q35: 0 | R35: 0 | S35: 93.16088536 | T35: 0.9410190441 | U35: 81015.63498 | V35: 9001.73722 | W35: 0 | X35: 0 | Y35: 0 | Z35: 0
B36: 2039 | C36: 13752.55601 | D36: 1528.061779 | E36: 0 | F36: 0 | G36: 1.407987952 | H36: 0.01422210053 | I36: 35360.63177 | J36: 3928.959086 | K36: 0 | L36: 0 | M36: 0 | N36: 0 | O36: 20627.63302 | P36: 2291.959225 | Q36: 0 | R36: 0 | S36: 61.95146991 | T36: 0.6257724233 | U36: 53041.35066 | V36: 5893.483407 | W36: 0 | X36: 0 | Y36: 0 | Z36: 0
B37: 2040 | C37: 5881.172735 | D37: 653.4636372 | E37: 0 | F37: 0 | G37: 0.7022295803 | H37: 0.007093228084 | I37: 15121.87562 | J37: 1680.208402 | K37: 0 | L37: 0 | M37: 0 | N37: 0 | O37: 8820.961115 | P37: 980.1067905 | Q37: 0 | R37: 0 | S37: 30.89810153 | T37: 0.3121020357 | U37: 22683.61142 | V37: 2520.401269 | W37: 0 | X37: 0 | Y37: 0 | Z37: 0
B38: 2041 | C38: 0 | D38: 0 | E38: 0 | F38: 0 | G38: 0 | H38: 0 | I38: 0 | J38: 0 | K38: 0 | L38: 0 | M38: 0 | N38: 0 | O38: 0 | P38: 0 | Q38: 0 | R38: 0 | S38: 0 | T38: 0 | U38: 0 | V38: 0 | W38: 0 | X38: 0 | Y38: 0 | Z38: 0
C41: % of Existing Capacity by Year
C42: Degraded
C43: Residential | D43: Residential | E43: Residential | F43: Residential | G43: Residential | H43: Residential | I43: Residential | J43: Residential | K43: Residential | L43: Residential | M43: Residential | N43: Residential | O43: Non-Residential | P43: Non-Residential | Q43: Non-Residential | R43: Non-Residential | S43: Non-Residential | T43: Non-Residential | U43: Non-Residential | V43: Non-Residential | W43: Non-Residential | X43: Non-Residential | Y43: Non-Residential | Z43: Non-Residential
C44: NVE North | D44: NVE North | E44: NVE North | F44: NVE North | G44: NVE North | H44: NVE North | I44: NVE South | J44: NVE South | K44: NVE South | L44: NVE South | M44: NVE South | N44: NVE South | O44: NVE North | P44: NVE North | Q44: NVE North | R44: NVE North | S44: NVE North | T44: NVE North | U44: NVE South | V44: NVE South | W44: NVE South | X44: NVE South | Y44: NVE South | Z44: NVE South
C45: PV | D45: PV | E45: Old Wind | F45: Old Wind | G45: New Wind | H45: New Wind | I45: PV | J45: PV | K45: Old Wind | L45: Old Wind | M45: New Wind | N45: New Wind | O45: PV | P45: PV | Q45: Old Wind | R45: Old Wind | S45: New Wind | T45: New Wind | U45: PV | V45: PV | W45: Old Wind | X45: Old Wind | Y45: New Wind | Z45: New Wind
C46: Incentivized | D46: Non-incentivized | E46: Incentivized | F46: Non-incentivized | G46: Incentivized | H46: Non-incentivized | I46: Incentivized | J46: Non-incentivized | K46: Incentivized | L46: Non-incentivized | M46: Incentivized | N46: Non-incentivized | O46: Incentivized | P46: Non-incentivized | Q46: Incentivized | R46: Non-incentivized | S46: Incentivized | T46: Non-incentivized | U46: Incentivized | V46: Non-incentivized | W46: Incentivized | X46: Non-incentivized | Y46: Incentivized | Z46: Non-incentivized
B47: 2013 | C47: =IFERROR(C10/SUM($C10:$Z10),0) -> 0.03619374823 | D47: 0.02684835711 | E47: 0.003593659418 | F47: 0.0001411263539 | G47: 0 | H47: 0 | I47: 0.05709360808 | J47: 0.09743374687 | K47: 0.0003726870295 | L47: 0 | M47: 0 | N47: 0 | O47: 0.3154574302 | P47: 0.01309092874 | Q47: 0.163413533 | R47: 0.0004880056311 | S47: 0 | T47: 0 | U47: 0.2499152364 | V47: 0.03587218198 | W47: 8.575099793e-05 | X47: 0 | Y47: 0 | Z47: 0
B48: 2014 | C48: =IFERROR(C11/SUM($C11:$Z11),0) -> 0.0730771162 | D48: 0.01790517732 | E48: 0.001540544474 | F48: 6.049861699e-05 | G48: 5.626978625e-06 | H48: 5.683816793e-08 | I48: 0.1724966285 | J48: 0.05821512761 | K48: 0.0001597649853 | L48: 0 | M48: 0 | N48: 0 | O48: 0.2215801136 | P48: 0.0152061551 | Q48: 0.07005277519 | R48: 0.0002092002305 | S48: 0.0002475870595 | T48: 2.500879389e-06 | U48: 0.3291573483 | V48: 0.0400470181 | W48: 3.676008511e-05 | X48: 0 | Y48: 0 | Z48: 0
B49: 2015 | C49: =IFERROR(C12/SUM($C12:$Z12),0) -> 0.08374499572 | D49: 0.01532047955 | E49: 0.0009470253597 | F49: 3.719056832e-05 | G49: 6.935574688e-06 | H49: 7.005630998e-08 | I49: 0.2058579653 | J49: 0.04687776155 | K49: 9.821299883e-05 | L49: 0 | M49: 0 | N49: 0 | O49: 0.1944438872 | P49: 0.01581785628 | Q49: 0.04306383602 | R49: 0.0001286025343 | S49: 0.0003051652863 | T49: 3.082477639e-06 | U49: 0.3520698858 | V49: 0.04125445011 | W49: 2.259768115e-05 | X49: 0 | Y49: 0 | Z49: 0
B50: 2016 | C50: =IFERROR(C13/SUM($C13:$Z13),0) -> 0.08757238786 | D50: 0.01439184225 | E50: 0.0007338785178 | F50: 2.882009322e-05 | G50: 8.082151951e-06 | H50: 8.163789849e-08 | I50: 0.2178305175 | J50: 0.04280532154 | K50: 7.610821534e-05 | L50: 0 | M50: 0 | N50: 0 | O50: 0.1846911536 | P50: 0.01603670286 | Q50: 0.03337146553 | R50: 9.965798303e-05 | S50: 0.0003556146858 | T50: 3.592067534e-06 | U50: 0.3602901072 | V50: 0.04168715477 | W50: 1.751162477e-05 | X50: 0 | Y50: 0 | Z50: 0
B51: 2017 | C51: =IFERROR(C14/SUM($C14:$Z14),0) -> 0.08757238786 | D51: 0.01439184225 | E51: 0.0007338785178 | F51: 2.882009322e-05 | G51: 8.082151951e-06 | H51: 8.163789849e-08 | I51: 0.2178305175 | J51: 0.04280532154 | K51: 7.610821534e-05 | L51: 0 | M51: 0 | N51: 0 | O51: 0.1846911536 | P51: 0.01603670286 | Q51: 0.03337146553 | R51: 9.965798303e-05 | S51: 0.0003556146858 | T51: 3.592067534e-06 | U51: 0.3602901072 | V51: 0.04168715477 | W51: 1.751162477e-05 | X51: 0 | Y51: 0 | Z51: 0
B52: 2018 | C52: =IFERROR(C15/SUM($C15:$Z15),0) -> 0.08757238786 | D52: 0.01439184225 | E52: 0.0007338785178 | F52: 2.882009322e-05 | G52: 8.082151951e-06 | H52: 8.163789849e-08 | I52: 0.2178305175 | J52: 0.04280532154 | K52: 7.610821534e-05 | L52: 0 | M52: 0 | N52: 0 | O52: 0.1846911536 | P52: 0.01603670286 | Q52: 0.03337146553 | R52: 9.965798303e-05 | S52: 0.0003556146858 | T52: 3.592067534e-06 | U52: 0.3602901072 | V52: 0.04168715477 | W52: 1.751162477e-05 | X52: 0 | Y52: 0 | Z52: 0
B53: 2019 | C53: =IFERROR(C16/SUM($C16:$Z16),0) -> 0.08757238786 | D53: 0.01439184225 | E53: 0.0007338785178 | F53: 2.882009322e-05 | G53: 8.082151951e-06 | H53: 8.163789849e-08 | I53: 0.2178305175 | J53: 0.04280532154 | K53: 7.610821534e-05 | L53: 0 | M53: 0 | N53: 0 | O53: 0.1846911536 | P53: 0.01603670286 | Q53: 0.03337146553 | R53: 9.965798303e-05 | S53: 0.0003556146858 | T53: 3.592067534e-06 | U53: 0.3602901072 | V53: 0.04168715477 | W53: 1.751162477e-05 | X53: 0 | Y53: 0 | Z53: 0
B54: 2020 | C54: =IFERROR(C17/SUM($C17:$Z17),0) -> 0.08757238786 | D54: 0.01439184225 | E54: 0.0007338785178 | F54: 2.882009322e-05 | G54: 8.082151951e-06 | H54: 8.163789849e-08 | I54: 0.2178305175 | J54: 0.04280532154 | K54: 7.610821534e-05 | L54: 0 | M54: 0 | N54: 0 | O54: 0.1846911536 | P54: 0.01603670286 | Q54: 0.03337146553 | R54: 9.965798303e-05 | S54: 0.0003556146858 | T54: 3.592067534e-06 | U54: 0.3602901072 | V54: 0.04168715477 | W54: 1.751162477e-05 | X54: 0 | Y54: 0 | Z54: 0
B55: 2021 | C55: =IFERROR(C18/SUM($C18:$Z18),0) -> 0.08757238786 | D55: 0.01439184225 | E55: 0.0007338785178 | F55: 2.882009322e-05 | G55: 8.082151951e-06 | H55: 8.163789849e-08 | I55: 0.2178305175 | J55: 0.04280532154 | K55: 7.610821534e-05 | L55: 0 | M55: 0 | N55: 0 | O55: 0.1846911536 | P55: 0.01603670286 | Q55: 0.03337146553 | R55: 9.965798303e-05 | S55: 0.0003556146858 | T55: 3.592067534e-06 | U55: 0.3602901072 | V55: 0.04168715477 | W55: 1.751162477e-05 | X55: 0 | Y55: 0 | Z55: 0
B56: 2022 | C56: =IFERROR(C19/SUM($C19:$Z19),0) -> 0.08757238786 | D56: 0.01439184225 | E56: 0.0007338785178 | F56: 2.882009322e-05 | G56: 8.082151951e-06 | H56: 8.163789849e-08 | I56: 0.2178305175 | J56: 0.04280532154 | K56: 7.610821534e-05 | L56: 0 | M56: 0 | N56: 0 | O56: 0.1846911536 | P56: 0.01603670286 | Q56: 0.03337146553 | R56: 9.965798303e-05 | S56: 0.0003556146858 | T56: 3.592067534e-06 | U56: 0.3602901072 | V56: 0.04168715477 | W56: 1.751162477e-05 | X56: 0 | Y56: 0 | Z56: 0
B57: 2023 | C57: =IFERROR(C20/SUM($C20:$Z20),0) -> 0.08757238786 | D57: 0.01439184225 | E57: 0.0007338785178 | F57: 2.882009322e-05 | G57: 8.082151951e-06 | H57: 8.163789849e-08 | I57: 0.2178305175 | J57: 0.04280532154 | K57: 7.610821534e-05 | L57: 0 | M57: 0 | N57: 0 | O57: 0.1846911536 | P57: 0.01603670286 | Q57: 0.03337146553 | R57: 9.965798303e-05 | S57: 0.0003556146858 | T57: 3.592067534e-06 | U57: 0.3602901072 | V57: 0.04168715477 | W57: 1.751162477e-05 | X57: 0 | Y57: 0 | Z57: 0
B58: 2024 | C58: =IFERROR(C21/SUM($C21:$Z21),0) -> 0.08757238786 | D58: 0.01439184225 | E58: 0.0007338785178 | F58: 2.882009322e-05 | G58: 8.082151951e-06 | H58: 8.163789849e-08 | I58: 0.2178305175 | J58: 0.04280532154 | K58: 7.610821534e-05 | L58: 0 | M58: 0 | N58: 0 | O58: 0.1846911536 | P58: 0.01603670286 | Q58: 0.03337146553 | R58: 9.965798303e-05 | S58: 0.0003556146858 | T58: 3.592067534e-06 | U58: 0.3602901072 | V58: 0.04168715477 | W58: 1.751162477e-05 | X58: 0 | Y58: 0 | Z58: 0
B59: 2025 | C59: =IFERROR(C22/SUM($C22:$Z22),0) -> 0.08757238786 | D59: 0.01439184225 | E59: 0.0007338785178 | F59: 2.882009322e-05 | G59: 8.082151951e-06 | H59: 8.163789849e-08 | I59: 0.2178305175 | J59: 0.04280532154 | K59: 7.610821534e-05 | L59: 0 | M59: 0 | N59: 0 | O59: 0.1846911536 | P59: 0.01603670286 | Q59: 0.03337146553 | R59: 9.965798303e-05 | S59: 0.0003556146858 | T59: 3.592067534e-06 | U59: 0.3602901072 | V59: 0.04168715477 | W59: 1.751162477e-05 | X59: 0 | Y59: 0 | Z59: 0
B60: 2026 | C60: =IFERROR(C23/SUM($C23:$Z23),0) -> 0.08757238786 | D60: 0.01439184225 | E60: 0.0007338785178 | F60: 2.882009322e-05 | G60: 8.082151951e-06 | H60: 8.163789849e-08 | I60: 0.2178305175 | J60: 0.04280532154 | K60: 7.610821534e-05 | L60: 0 | M60: 0 | N60: 0 | O60: 0.1846911536 | P60: 0.01603670286 | Q60: 0.03337146553 | R60: 9.965798303e-05 | S60: 0.0003556146858 | T60: 3.592067534e-06 | U60: 0.3602901072 | V60: 0.04168715477 | W60: 1.751162477e-05 | X60: 0 | Y60: 0 | Z60: 0
B61: 2027 | C61: =IFERROR(C24/SUM($C24:$Z24),0) -> 0.08757238786 | D61: 0.01439184225 | E61: 0.0007338785178 | F61: 2.882009322e-05 | G61: 8.082151951e-06 | H61: 8.163789849e-08 | I61: 0.2178305175 | J61: 0.04280532154 | K61: 7.610821534e-05 | L61: 0 | M61: 0 | N61: 0 | O61: 0.1846911536 | P61: 0.01603670286 | Q61: 0.03337146553 | R61: 9.965798303e-05 | S61: 0.0003556146858 | T61: 3.592067534e-06 | U61: 0.3602901072 | V61: 0.04168715477 | W61: 1.751162477e-05 | X61: 0 | Y61: 0 | Z61: 0
B62: 2028 | C62: =IFERROR(C25/SUM($C25:$Z25),0) -> 0.08757238786 | D62: 0.01439184225 | E62: 0.0007338785178 | F62: 2.882009322e-05 | G62: 8.082151951e-06 | H62: 8.163789849e-08 | I62: 0.2178305175 | J62: 0.04280532154 | K62: 7.610821534e-05 | L62: 0 | M62: 0 | N62: 0 | O62: 0.1846911536 | P62: 0.01603670286 | Q62: 0.03337146553 | R62: 9.965798303e-05 | S62: 0.0003556146858 | T62: 3.592067534e-06 | U62: 0.3602901072 | V62: 0.04168715477 | W62: 1.751162477e-05 | X62: 0 | Y62: 0 | Z62: 0
B63: 2029 | C63: =IFERROR(C26/SUM($C26:$Z26),0) -> 0.08757238786 | D63: 0.01439184225 | E63: 0.0007338785178 | F63: 2.882009322e-05 | G63: 8.082151951e-06 | H63: 8.163789849e-08 | I63: 0.2178305175 | J63: 0.04280532154 | K63: 7.610821534e-05 | L63: 0 | M63: 0 | N63: 0 | O63: 0.1846911536 | P63: 0.01603670286 | Q63: 0.03337146553 | R63: 9.965798303e-05 | S63: 0.0003556146858 | T63: 3.592067534e-06 | U63: 0.3602901072 | V63: 0.04168715477 | W63: 1.751162477e-05 | X63: 0 | Y63: 0 | Z63: 0
B64: 2030 | C64: =IFERROR(C27/SUM($C27:$Z27),0) -> 0.08735954245 | D64: 0.01439266317 | E64: 0.0007342576472 | F64: 2.883498199e-05 | G64: 8.086327275e-06 | H64: 8.168007348e-08 | I64: 0.2178279604 | J64: 0.04282743522 | K64: 7.614753364e-05 | L64: 0 | M64: 0 | N64: 0 | O64: 0.1846921238 | P64: 0.01604498759 | Q64: 0.03338870558 | R64: 9.970946739e-05 | S64: 0.0003557984001 | T64: 3.593923233e-06 | U64: 0.3604338604 | V64: 0.04170869079 | W64: 1.752067146e-05 | X64: 0 | Y64: 0 | Z64: 0
B65: 2031 | C65: =IFERROR(C28/SUM($C28:$Z28),0) -> 0.08696744671 | D65: 0.01440972063 | E65: 0.0007351278526 | F65: 2.886915577e-05 | G65: 8.095910786e-06 | H65: 8.177687663e-08 | I65: 0.2177802371 | J65: 0.04285463603 | K65: 7.623777989e-05 | L65: 0 | M65: 0 | N65: 0 | O65: 0.184781873 | P65: 0.01606400331 | Q65: 0.0334282762 | R65: 9.982763807e-05 | S65: 0.0003562200746 | T65: 3.598182572e-06 | U65: 0.3606300854 | V65: 0.04175812185 | W65: 1.754143608e-05 | X65: 0 | Y65: 0 | Z65: 0
B66: 2032 | C66: =IFERROR(C29/SUM($C29:$Z29),0) -> 0.08651265414 | D66: 0.01442805509 | E66: 0.0007363169396 | F66: 2.891585232e-05 | G66: 8.109006116e-06 | H66: 8.190915269e-08 | I66: 0.2173559906 | J66: 0.04291167246 | K66: 7.636109633e-05 | L66: 0 | M66: 0 | N66: 0 | O66: 0.1850123547 | P66: 0.01608998722 | Q66: 0.03348234724 | R66: 9.998911167e-05 | S66: 0.0003567962691 | T66: 3.604002718e-06 | U66: 0.361053528 | V66: 0.04182566661 | W66: 1.756980977e-05 | X66: 0 | Y66: 0 | Z66: 0
B67: 2033 | C67: =IFERROR(C30/SUM($C30:$Z30),0) -> 0.08641926083 | D67: 0.01442068877 | E67: 0.0007383858915 | F67: 2.899710199e-05 | G67: 8.131791336e-06 | H67: 8.213930642e-08 | I67: 0.2172542427 | J67: 0.0430322485 | K67: 7.657566077e-05 | L67: 0 | M67: 0 | N67: 0 | O67: 0.1848533985 | P67: 0.01613519793 | Q67: 0.03357642815 | R67: 0.0001002700677 | S67: 0.0003577988188 | T67: 3.614129483e-06 | U67: 0.3618677099 | V67: 0.04110934995 | W67: 1.761917858e-05 | X67: 0 | Y67: 0 | Z67: 0
B68: 2034 | C68: =IFERROR(C31/SUM($C31:$Z31),0) -> 0.08598510556 | D68: 0.01408595467 | E68: 0.0006435318135 | F68: 2.920769875e-05 | G68: 8.190849959e-06 | H68: 8.273585817e-08 | I68: 0.2176503161 | J68: 0.04312602409 | K68: 5.938466443e-05 | L68: 0 | M68: 0 | N68: 0 | O68: 0.1850768841 | P68: 0.01599353729 | Q68: 0.0338202831 | R68: 0.0001009982974 | S68: 0.0003603973982 | T68: 3.64037776e-06 | U68: 0.3641701667 | V68: 0.03888629452 | W68: 0 | X68: 0 | Y68: 0 | Z68: 0
B69: 2035 | C69: =IFERROR(C32/SUM($C32:$Z32),0) -> 0.08567101934 | D69: 0.01307924019 | E69: 0.0002686296317 | F69: 2.133983426e-05 | G69: 8.316781074e-06 | H69: 8.400788964e-08 | I69: 0.218620578 | J69: 0.04296130052 | K69: 3.465383933e-05 | L69: 0 | M69: 0 | N69: 0 | O69: 0.1813669956 | P69: 0.01620852738 | Q69: 0.03424305271 | R69: 9.929364582e-05 | S69: 0.0003659383673 | T69: 3.696347144e-06 | U69: 0.3675867181 | V69: 0.03946061574 | W69: 0 | X69: 0 | Y69: 0 | Z69: 0
B70: 2036 | C70: =IFERROR(C33/SUM($C33:$Z33),0) -> 0.0900478949 | D70: 0.01291946605 | E70: 7.457962055e-05 | F70: 2.296306517e-05 | G70: 8.949403426e-06 | H70: 9.03980144e-08 | I70: 0.2319761422 | J70: 0.04504409608 | K70: 3.728981028e-05 | L70: 0 | M70: 0 | N70: 0 | O70: 0.1633804553 | P70: 0.01570519808 | Q70: 0.03613777888 | R70: 0.0001068464934 | S70: 0.0003937737507 | T70: 3.977512634e-06 | U70: 0.3617966459 | V70: 0.04234385252 | W70: 0 | X70: 0 | Y70: 0 | Z70: 0
B71: 2037 | C71: =IFERROR(C34/SUM($C34:$Z34),0) -> 0.09701334571 | D71: 0.01227720666 | E71: 0 | F71: 1.512447729e-05 | G71: 9.705383124e-06 | H71: 9.803417297e-08 | I71: 0.2510079954 | J71: 0.04271541447 | K71: 0 | L71: 0 | M71: 0 | N71: 0 | O71: 0.151447246 | P71: 0.01641498514 | Q71: 0.007201920215 | R71: 7.72035818e-05 | S71: 0.0004270368575 | T71: 4.313503611e-06 | U71: 0.3783244344 | V71: 0.04306397016 | W71: 0 | X71: 0 | Y71: 0 | Z71: 0
B72: 2038 | C72: =IFERROR(C35/SUM($C35:$Z35),0) -> 0.1007572021 | D72: 0.01119524468 | E72: 0 | F72: 0 | G72: 1.015619815e-05 | H72: 1.025878601e-07 | I72: 0.2590789099 | J72: 0.02878654555 | K72: 0 | L72: 0 | M72: 0 | N72: 0 | O72: 0.1511338411 | P72: 0.01679264901 | Q72: 0 | R72: 0 | S72: 0.0004468727184 | T72: 4.513865843e-06 | U72: 0.3886145661 | V72: 0.04317939623 | W72: 0 | X72: 0 | Y72: 0 | Z72: 0
B73: 2039 | C73: =IFERROR(C36/SUM($C36:$Z36),0) -> 0.1007597158 | D73: 0.01119552397 | E73: 0 | F73: 0 | G73: 1.031578899e-05 | H73: 1.041998888e-07 | I73: 0.259073819 | J73: 0.02878597989 | K73: 0 | L73: 0 | M73: 0 | N73: 0 | O73: 0.1511307745 | P73: 0.01679230827 | Q73: 0 | R73: 0 | S73: 0.0004538947157 | T73: 4.584795108e-06 | U73: 0.3886136812 | V73: 0.04317929791 | W73: 0 | X73: 0 | Y73: 0 | Z73: 0
B74: 2040 | C74: =IFERROR(C37/SUM($C37:$Z37),0) -> 0.1007503494 | D74: 0.01119448326 | E74: 0 | F74: 0 | G74: 1.202989246e-05 | H74: 1.215140653e-07 | I74: 0.2590527979 | J74: 0.02878364421 | K74: 0 | L74: 0 | M74: 0 | N74: 0 | O74: 0.1511118537 | P74: 0.01679020597 | Q74: 0 | R74: 0 | S74: 0.0005293152682 | T74: 5.346618871e-06 | U74: 0.3885928671 | V74: 0.04317698524 | W74: 0 | X74: 0 | Y74: 0 | Z74: 0
B75: 2041 | C75: =IFERROR(C38/SUM($C38:$Z38),0) -> 0 | D75: 0 | E75: 0 | F75: 0 | G75: 0 | H75: 0 | I75: 0 | J75: 0 | K75: 0 | L75: 0 | M75: 0 | N75: 0 | O75: 0 | P75: 0 | Q75: 0 | R75: 0 | S75: 0 | T75: 0 | U75: 0 | V75: 0 | W75: 0 | X75: 0 | Y75: 0 | Z75: 0
G78: Undegraded, Cumulative Installed Capacity (kW)
B79: Customer Class | C79: Incentive Level | D79: Utility | E79: Technology | F79: Install Year | G79: 2013 | H79: 2014 | I79: 2015 | J79: 2016 | K79: 2017 | L79: 2018 | M79: 2019 | N79: 2020 | O79: 2021 | P79: 2022 | Q79: 2023 | R79: 2024 | S79: 2025 | T79: 2026 | U79: 2027 | V79: 2028 | W79: 2029 | X79: 2030 | Y79: 2031 | Z79: 2032 | AA79: 2033 | AB79: 2034 | AC79: 2035 | AD79: 2036 | AE79: 2037 | AF79: 2038 | AG79: 2039 | AH79: 2040 | AI79: 2041 | AJ79: System Lifetime
B80: Non-Residential | C80: Incentivized | D80: NVE North | E80: PV | F80: 2004 | G80: =IF(AND(G$79>=$F80,G$79<$F80+$AJ80),SUMIFS(Installations!$H$16:$H$223,Installations!$B$16:$B$223,Capacity!$B80,Installations!$C$16:$C$223,Capacity!$F80,Installations!$D$16:$D$223,Capacity!$E80,Installations!$E$16:$E$223,Capacity!$D80,Installations!$F$16:$F$223,Capacity!$C80),0) -> 0 | H80: =IF(AND(H$79>=$F80,H$79<$F80+$AJ80),SUMIFS(Installations!$H$16:$H$223,Installations!$B$16:$B$223,Capacity!$B80,Installations!$C$16:$C$223,Capacity!$F80,Installations!$D$16:$D$223,Capacity!$E80,Installations!$E$16:$E$223,Capacity!$D80,Installations!$F$16:$F$223,Capacity!$C80),0) -> 0 | I80: =IF(AND(I$79>=$F80,I$79<$F80+$AJ80),SUMIFS(Installations!$H$16:$H$223,Installations!$B$16:$B$223,Capacity!$B80,Installations!$C$16:$C$223,Capacity!$F80,Installations!$D$16:$D$223,Capacity!$E80,Installations!$E$16:$E$223,Capacity!$D80,Installations!$F$16:$F$223,Capacity!$C80),0) -> 0 | J80: =IF(AND(J$79>=$F80,J$79<$F80+$AJ80),SUMIFS(Installations!$H$16:$H$223,Installations!$B$16:$B$223,Capacity!$B80,Installations!$C$16:$C$223,Capacity!$F80,Installations!$D$16:$D$223,Capacity!$E80,Installations!$E$16:$E$223,Capacity!$D80,Installations!$F$16:$F$223,Capacity!$C80),0) -> 0 | K80: =IF(AND(K$79>=$F80,K$79<$F80+$AJ80),SUMIFS(Installations!$H$16:$H$223,Installations!$B$16:$B$223,Capacity!$B80,Installations!$C$16:$C$223,Capacity!$F80,Installations!$D$16:$D$223,Capacity!$E80,Installations!$E$16:$E$223,Capacity!$D80,Installations!$F$16:$F$223,Capacity!$C80),0) -> 0 | L80: =IF(AND(L$79>=$F80,L$79<$F80+$AJ80),SUMIFS(Installations!$H$16:$H$223,Installations!$B$16:$B$223,Capacity!$B80,Installations!$C$16:$C$223,Capacity!$F80,Installations!$D$16:$D$223,Capacity!$E80,Installations!$E$16:$E$223,Capacity!$D80,Installations!$F$16:$F$223,Capacity!$C80),0) -> 0 | M80: =IF(AND(M$79>=$F80,M$79<$F80+$AJ80),SUMIFS(Installations!$H$16:$H$223,Installations!$B$16:$B$223,Capacity!$B80,Installations!$C$16:$C$223,Capacity!$F80,Installations!$D$16:$D$223,Capacity!$E80,Installations!$E$16:$E$223,Capacity!$D80,Installations!$F$16:$F$223,Capacity!$C80),0) -> 0 | N80: =IF(AND(N$79>=$F80,N$79<$F80+$AJ80),SUMIFS(Installations!$H$16:$H$223,Installations!$B$16:$B$223,Capacity!$B80,Installations!$C$16:$C$223,Capacity!$F80,Installations!$D$16:$D$223,Capacity!$E80,Installations!$E$16:$E$223,Capacity!$D80,Installations!$F$16:$F$223,Capacity!$C80),0) -> 0 | O80: =IF(AND(O$79>=$F80,O$79<$F80+$AJ80),SUMIFS(Installations!$H$16:$H$223,Installations!$B$16:$B$223,Capacity!$B80,Installations!$C$16:$C$223,Capacity!$F80,Installations!$D$16:$D$223,Capacity!$E80,Installations!$E$16:$E$223,Capacity!$D80,Installations!$F$16:$F$223,Capacity!$C80),0) -> 0 | P80: =IF(AND(P$79>=$F80,P$79<$F80+$AJ80),SUMIFS(Installations!$H$16:$H$223,Installations!$B$16:$B$223,Capacity!$B80,Installations!$C$16:$C$223,Capacity!$F80,Installations!$D$16:$D$223,Capacity!$E80,Installations!$E$16:$E$223,Capacity!$D80,Installations!$F$16:$F$223,Capacity!$C80),0) -> 0 | Q80: =IF(AND(Q$79>=$F80,Q$79<$F80+$AJ80),SUMIFS(Installations!$H$16:$H$223,Installations!$B$16:$B$223,Capacity!$B80,Installations!$C$16:$C$223,Capacity!$F80,Installations!$D$16:$D$223,Capacity!$E80,Installations!$E$16:$E$223,Capacity!$D80,Installations!$F$16:$F$223,Capacity!$C80),0) -> 0 | R80: =IF(AND(R$79>=$F80,R$79<$F80+$AJ80),SUMIFS(Installations!$H$16:$H$223,Installations!$B$16:$B$223,Capacity!$B80,Installations!$C$16:$C$223,Capacity!$F80,Installations!$D$16:$D$223,Capacity!$E80,Installations!$E$16:$E$223,Capacity!$D80,Installations!$F$16:$F$223,Capacity!$C80),0) -> 0 | S80: =IF(AND(S$79>=$F80,S$79<$F80+$AJ80),SUMIFS(Installations!$H$16:$H$223,Installations!$B$16:$B$223,Capacity!$B80,Installations!$C$16:$C$223,Capacity!$F80,Installations!$D$16:$D$223,Capacity!$E80,Installations!$E$16:$E$223,Capacity!$D80,Installations!$F$16:$F$223,Capacity!$C80),0) -> 0 | T80: =IF(AND(T$79>=$F80,T$79<$F80+$AJ80),SUMIFS(Installations!$H$16:$H$223,Installations!$B$16:$B$223,Capacity!$B80,Installations!$C$16:$C$223,Capacity!$F80,Installations!$D$16:$D$223,Capacity!$E80,Installations!$E$16:$E$223,Capacity!$D80,Installations!$F$16:$F$223,Capacity!$C80),0) -> 0 | U80: =IF(AND(U$79>=$F80,U$79<$F80+$AJ80),SUMIFS(Installations!$H$16:$H$223,Installations!$B$16:$B$223,Capacity!$B80,Installations!$C$16:$C$223,Capacity!$F80,Installations!$D$16:$D$223,Capacity!$E80,Installations!$E$16:$E$223,Capacity!$D80,Installations!$F$16:$F$223,Capacity!$C80),0) -> 0 | V80: =IF(AND(V$79>=$F80,V$79<$F80+$AJ80),SUMIFS(Installations!$H$16:$H$223,Installations!$B$16:$B$223,Capacity!$B80,Installations!$C$16:$C$223,Capacity!$F80,Installations!$D$16:$D$223,Capacity!$E80,Installations!$E$16:$E$223,Capacity!$D80,Installations!$F$16:$F$223,Capacity!$C80),0) -> 0 | W80: =IF(AND(W$79>=$F80,W$79<$F80+$AJ80),SUMIFS(Installations!$H$16:$H$223,Installations!$B$16:$B$223,Capacity!$B80,Installations!$C$16:$C$223,Capacity!$F80,Installations!$D$16:$D$223,Capacity!$E80,Installations!$E$16:$E$223,Capacity!$D80,Installations!$F$16:$F$223,Capacity!$C80),0) -> 0 | X80: =IF(AND(X$79>=$F80,X$79<$F80+$AJ80),SUMIFS(Installations!$H$16:$H$223,Installations!$B$16:$B$223,Capacity!$B80,Installations!$C$16:$C$223,Capacity!$F80,Installations!$D$16:$D$223,Capacity!$E80,Installations!$E$16:$E$223,Capacity!$D80,Installations!$F$16:$F$223,Capacity!$C80),0) -> 0 | Y80: =IF(AND(Y$79>=$F80,Y$79<$F80+$AJ80),SUMIFS(Installations!$H$16:$H$223,Installations!$B$16:$B$223,Capacity!$B80,Installations!$C$16:$C$223,Capacity!$F80,Installations!$D$16:$D$223,Capacity!$E80,Installations!$E$16:$E$223,Capacity!$D80,Installations!$F$16:$F$223,Capacity!$C80),0) -> 0 | Z80: =IF(AND(Z$79>=$F80,Z$79<$F80+$AJ80),SUMIFS(Installations!$H$16:$H$223,Installations!$B$16:$B$223,Capacity!$B80,Installations!$C$16:$C$223,Capacity!$F80,Installations!$D$16:$D$223,Capacity!$E80,Installations!$E$16:$E$223,Capacity!$D80,Installations!$F$16:$F$223,Capacity!$C80),0) -> 0 | AA80: =IF(AND(AA$79>=$F80,AA$79<$F80+$AJ80),SUMIFS(Installations!$H$16:$H$223,Installations!$B$16:$B$223,Capacity!$B80,Installations!$C$16:$C$223,Capacity!$F80,Installations!$D$16:$D$223,Capacity!$E80,Installations!$E$16:$E$223,Capacity!$D80,Installations!$F$16:$F$223,Capacity!$C80),0) -> 0 | AB80: =IF(AND(AB$79>=$F80,AB$79<$F80+$AJ80),SUMIFS(Installations!$H$16:$H$223,Installations!$B$16:$B$223,Capacity!$B80,Installations!$C$16:$C$223,Capacity!$F80,Installations!$D$16:$D$223,Capacity!$E80,Installations!$E$16:$E$223,Capacity!$D80,Installations!$F$16:$F$223,Capacity!$C80),0) -> 0 | AC80: =IF(AND(AC$79>=$F80,AC$79<$F80+$AJ80),SUMIFS(Installations!$H$16:$H$223,Installations!$B$16:$B$223,Capacity!$B80,Installations!$C$16:$C$223,Capacity!$F80,Installations!$D$16:$D$223,Capacity!$E80,Installations!$E$16:$E$223,Capacity!$D80,Installations!$F$16:$F$223,Capacity!$C80),0) -> 0 | AD80: =IF(AND(AD$79>=$F80,AD$79<$F80+$AJ80),SUMIFS(Installations!$H$16:$H$223,Installations!$B$16:$B$223,Capacity!$B80,Installations!$C$16:$C$223,Capacity!$F80,Installations!$D$16:$D$223,Capacity!$E80,Installations!$E$16:$E$223,Capacity!$D80,Installations!$F$16:$F$223,Capacity!$C80),0) -> 0 | AE80: =IF(AND(AE$79>=$F80,AE$79<$F80+$AJ80),SUMIFS(Installations!$H$16:$H$223,Installations!$B$16:$B$223,Capacity!$B80,Installations!$C$16:$C$223,Capacity!$F80,Installations!$D$16:$D$223,Capacity!$E80,Installations!$E$16:$E$223,Capacity!$D80,Installations!$F$16:$F$223,Capacity!$C80),0) -> 0 | AF80: =IF(AND(AF$79>=$F80,AF$79<$F80+$AJ80),SUMIFS(Installations!$H$16:$H$223,Installations!$B$16:$B$223,Capacity!$B80,Installations!$C$16:$C$223,Capacity!$F80,Installations!$D$16:$D$223,Capacity!$E80,Installations!$E$16:$E$223,Capacity!$D80,Installations!$F$16:$F$223,Capacity!$C80),0) -> 0 | AG80: =IF(AND(AG$79>=$F80,AG$79<$F80+$AJ80),SUMIFS(Installations!$H$16:$H$223,Installations!$B$16:$B$223,Capacity!$B80,Installations!$C$16:$C$223,Capacity!$F80,Installations!$D$16:$D$223,Capacity!$E80,Installations!$E$16:$E$223,Capacity!$D80,Installations!$F$16:$F$223,Capacity!$C80),0) -> 0 | AH80: =IF(AND(AH$79>=$F80,AH$79<$F80+$AJ80),SUMIFS(Installations!$H$16:$H$223,Installations!$B$16:$B$223,Capacity!$B80,Installations!$C$16:$C$223,Capacity!$F80,Installations!$D$16:$D$223,Capacity!$E80,Installations!$E$16:$E$223,Capacity!$D80,Installations!$F$16:$F$223,Capacity!$C80),0) -> 0 | AI80: =IF(AND(AI$79>=$F80,AI$79<$F80+$AJ80),SUMIFS(Installations!$H$16:$H$223,Installations!$B$16:$B$223,Capacity!$B80,Installations!$C$16:$C$223,Capacity!$F80,Installations!$D$16:$D$223,Capacity!$E80,Installations!$E$16:$E$223,Capacity!$D80,Installations!$F$16:$F$223,Capacity!$C80),0) -> 0 | AJ80: =IF(E80="PV",PVSystemLifetime,windSystemLifetime) -> 25 | AK80: =IF(E80="Wind",IF(F80<2014,"Old Wind","New Wind"),"PV") -> PV
B81: Non-Residential | C81: Incentivized | D81: NVE North | E81: PV | F81: 2005 | G81: =IF(AND(G$79>=$F81,G$79<$F81+$AJ81),SUMIFS(Installations!$H$16:$H$223,Installations!$B$16:$B$223,Capacity!$B81,Installations!$C$16:$C$223,Capacity!$F81,Installations!$D$16:$D$223,Capacity!$E81,Installations!$E$16:$E$223,Capacity!$D81,Installations!$F$16:$F$223,Capacity!$C81),0) -> 28.03 | H81: =IF(AND(H$79>=$F81,H$79<$F81+$AJ81),SUMIFS(Installations!$H$16:$H$223,Installations!$B$16:$B$223,Capacity!$B81,Installations!$C$16:$C$223,Capacity!$F81,Installations!$D$16:$D$223,Capacity!$E81,Installations!$E$16:$E$223,Capacity!$D81,Installations!$F$16:$F$223,Capacity!$C81),0) -> 28.03 | I81: =IF(AND(I$79>=$F81,I$79<$F81+$AJ81),SUMIFS(Installations!$H$16:$H$223,Installations!$B$16:$B$223,Capacity!$B81,Installations!$C$16:$C$223,Capacity!$F81,Installations!$D$16:$D$223,Capacity!$E81,Installations!$E$16:$E$223,Capacity!$D81,Installations!$F$16:$F$223,Capacity!$C81),0) -> 28.03 | J81: =IF(AND(J$79>=$F81,J$79<$F81+$AJ81),SUMIFS(Installations!$H$16:$H$223,Installations!$B$16:$B$223,Capacity!$B81,Installations!$C$16:$C$223,Capacity!$F81,Installations!$D$16:$D$223,Capacity!$E81,Installations!$E$16:$E$223,Capacity!$D81,Installations!$F$16:$F$223,Capacity!$C81),0) -> 28.03 | K81: =IF(AND(K$79>=$F81,K$79<$F81+$AJ81),SUMIFS(Installations!$H$16:$H$223,Installations!$B$16:$B$223,Capacity!$B81,Installations!$C$16:$C$223,Capacity!$F81,Installations!$D$16:$D$223,Capacity!$E81,Installations!$E$16:$E$223,Capacity!$D81,Installations!$F$16:$F$223,Capacity!$C81),0) -> 28.03 | L81: =IF(AND(L$79>=$F81,L$79<$F81+$AJ81),SUMIFS(Installations!$H$16:$H$223,Installations!$B$16:$B$223,Capacity!$B81,Installations!$C$16:$C$223,Capacity!$F81,Installations!$D$16:$D$223,Capacity!$E81,Installations!$E$16:$E$223,Capacity!$D81,Installations!$F$16:$F$223,Capacity!$C81),0) -> 28.03 | M81: =IF(AND(M$79>=$F81,M$79<$F81+$AJ81),SUMIFS(Installations!$H$16:$H$223,Installations!$B$16:$B$223,Capacity!$B81,Installations!$C$16:$C$223,Capacity!$F81,Installations!$D$16:$D$223,Capacity!$E81,Installations!$E$16:$E$223,Capacity!$D81,Installations!$F$16:$F$223,Capacity!$C81),0) -> 28.03 | N81: =IF(AND(N$79>=$F81,N$79<$F81+$AJ81),SUMIFS(Installations!$H$16:$H$223,Installations!$B$16:$B$223,Capacity!$B81,Installations!$C$16:$C$223,Capacity!$F81,Installations!$D$16:$D$223,Capacity!$E81,Installations!$E$16:$E$223,Capacity!$D81,Installations!$F$16:$F$223,Capacity!$C81),0) -> 28.03 | O81: =IF(AND(O$79>=$F81,O$79<$F81+$AJ81),SUMIFS(Installations!$H$16:$H$223,Installations!$B$16:$B$223,Capacity!$B81,Installations!$C$16:$C$223,Capacity!$F81,Installations!$D$16:$D$223,Capacity!$E81,Installations!$E$16:$E$223,Capacity!$D81,Installations!$F$16:$F$223,Capacity!$C81),0) -> 28.03 | P81: =IF(AND(P$79>=$F81,P$79<$F81+$AJ81),SUMIFS(Installations!$H$16:$H$223,Installations!$B$16:$B$223,Capacity!$B81,Installations!$C$16:$C$223,Capacity!$F81,Installations!$D$16:$D$223,Capacity!$E81,Installations!$E$16:$E$223,Capacity!$D81,Installations!$F$16:$F$223,Capacity!$C81),0) -> 28.03 | Q81: =IF(AND(Q$79>=$F81,Q$79<$F81+$AJ81),SUMIFS(Installations!$H$16:$H$223,Installations!$B$16:$B$223,Capacity!$B81,Installations!$C$16:$C$223,Capacity!$F81,Installations!$D$16:$D$223,Capacity!$E81,Installations!$E$16:$E$223,Capacity!$D81,Installations!$F$16:$F$223,Capacity!$C81),0) -> 28.03 | R81: =IF(AND(R$79>=$F81,R$79<$F81+$AJ81),SUMIFS(Installations!$H$16:$H$223,Installations!$B$16:$B$223,Capacity!$B81,Installations!$C$16:$C$223,Capacity!$F81,Installations!$D$16:$D$223,Capacity!$E81,Installations!$E$16:$E$223,Capacity!$D81,Installations!$F$16:$F$223,Capacity!$C81),0) -> 28.03 | S81: =IF(AND(S$79>=$F81,S$79<$F81+$AJ81),SUMIFS(Installations!$H$16:$H$223,Installations!$B$16:$B$223,Capacity!$B81,Installations!$C$16:$C$223,Capacity!$F81,Installations!$D$16:$D$223,Capacity!$E81,Installations!$E$16:$E$223,Capacity!$D81,Installations!$F$16:$F$223,Capacity!$C81),0) -> 28.03 | T81: =IF(AND(T$79>=$F81,T$79<$F81+$AJ81),SUMIFS(Installations!$H$16:$H$223,Installations!$B$16:$B$223,Capacity!$B81,Installations!$C$16:$C$223,Capacity!$F81,Installations!$D$16:$D$223,Capacity!$E81,Installations!$E$16:$E$223,Capacity!$D81,Installations!$F$16:$F$223,Capacity!$C81),0) -> 28.03 | U81: =IF(AND(U$79>=$F81,U$79<$F81+$AJ81),SUMIFS(Installations!$H$16:$H$223,Installations!$B$16:$B$223,Capacity!$B81,Installations!$C$16:$C$223,Capacity!$F81,Installations!$D$16:$D$223,Capacity!$E81,Installations!$E$16:$E$223,Capacity!$D81,Installations!$F$16:$F$223,Capacity!$C81),0) -> 28.03 | V81: =IF(AND(V$79>=$F81,V$79<$F81+$AJ81),SUMIFS(Installations!$H$16:$H$223,Installations!$B$16:$B$223,Capacity!$B81,Installations!$C$16:$C$223,Capacity!$F81,Installations!$D$16:$D$223,Capacity!$E81,Installations!$E$16:$E$223,Capacity!$D81,Installations!$F$16:$F$223,Capacity!$C81),0) -> 28.03 | W81: =IF(AND(W$79>=$F81,W$79<$F81+$AJ81),SUMIFS(Installations!$H$16:$H$223,Installations!$B$16:$B$223,Capacity!$B81,Installations!$C$16:$C$223,Capacity!$F81,Installations!$D$16:$D$223,Capacity!$E81,Installations!$E$16:$E$223,Capacity!$D81,Installations!$F$16:$F$223,Capacity!$C81),0) -> 28.03 | X81: =IF(AND(X$79>=$F81,X$79<$F81+$AJ81),SUMIFS(Installations!$H$16:$H$223,Installations!$B$16:$B$223,Capacity!$B81,Installations!$C$16:$C$223,Capacity!$F81,Installations!$D$16:$D$223,Capacity!$E81,Installations!$E$16:$E$223,Capacity!$D81,Installations!$F$16:$F$223,Capacity!$C81),0) -> 0 | Y81: =IF(AND(Y$79>=$F81,Y$79<$F81+$AJ81),SUMIFS(Installations!$H$16:$H$223,Installations!$B$16:$B$223,Capacity!$B81,Installations!$C$16:$C$223,Capacity!$F81,Installations!$D$16:$D$223,Capacity!$E81,Installations!$E$16:$E$223,Capacity!$D81,Installations!$F$16:$F$223,Capacity!$C81),0) -> 0 | Z81: =IF(AND(Z$79>=$F81,Z$79<$F81+$AJ81),SUMIFS(Installations!$H$16:$H$223,Installations!$B$16:$B$223,Capacity!$B81,Installations!$C$16:$C$223,Capacity!$F81,Installations!$D$16:$D$223,Capacity!$E81,Installations!$E$16:$E$223,Capacity!$D81,Installations!$F$16:$F$223,Capacity!$C81),0) -> 0 | AA81: =IF(AND(AA$79>=$F81,AA$79<$F81+$AJ81),SUMIFS(Installations!$H$16:$H$223,Installations!$B$16:$B$223,Capacity!$B81,Installations!$C$16:$C$223,Capacity!$F81,Installations!$D$16:$D$223,Capacity!$E81,Installations!$E$16:$E$223,Capacity!$D81,Installations!$F$16:$F$223,Capacity!$C81),0) -> 0 | AB81: =IF(AND(AB$79>=$F81,AB$79<$F81+$AJ81),SUMIFS(Installations!$H$16:$H$223,Installations!$B$16:$B$223,Capacity!$B81,Installations!$C$16:$C$223,Capacity!$F81,Installations!$D$16:$D$223,Capacity!$E81,Installations!$E$16:$E$223,Capacity!$D81,Installations!$F$16:$F$223,Capacity!$C81),0) -> 0 | AC81: =IF(AND(AC$79>=$F81,AC$79<$F81+$AJ81),SUMIFS(Installations!$H$16:$H$223,Installations!$B$16:$B$223,Capacity!$B81,Installations!$C$16:$C$223,Capacity!$F81,Installations!$D$16:$D$223,Capacity!$E81,Installations!$E$16:$E$223,Capacity!$D81,Installations!$F$16:$F$223,Capacity!$C81),0) -> 0 | AD81: =IF(AND(AD$79>=$F81,AD$79<$F81+$AJ81),SUMIFS(Installations!$H$16:$H$223,Installations!$B$16:$B$223,Capacity!$B81,Installations!$C$16:$C$223,Capacity!$F81,Installations!$D$16:$D$223,Capacity!$E81,Installations!$E$16:$E$223,Capacity!$D81,Installations!$F$16:$F$223,Capacity!$C81),0) -> 0 | AE81: =IF(AND(AE$79>=$F81,AE$79<$F81+$AJ81),SUMIFS(Installations!$H$16:$H$223,Installations!$B$16:$B$223,Capacity!$B81,Installations!$C$16:$C$223,Capacity!$F81,Installations!$D$16:$D$223,Capacity!$E81,Installations!$E$16:$E$223,Capacity!$D81,Installations!$F$16:$F$223,Capacity!$C81),0) -> 0 | AF81: =IF(AND(AF$79>=$F81,AF$79<$F81+$AJ81),SUMIFS(Installations!$H$16:$H$223,Installations!$B$16:$B$223,Capacity!$B81,Installations!$C$16:$C$223,Capacity!$F81,Installations!$D$16:$D$223,Capacity!$E81,Installations!$E$16:$E$223,Capacity!$D81,Installations!$F$16:$F$223,Capacity!$C81),0) -> 0 | AG81: =IF(AND(AG$79>=$F81,AG$79<$F81+$AJ81),SUMIFS(Installations!$H$16:$H$223,Installations!$B$16:$B$223,Capacity!$B81,Installations!$C$16:$C$223,Capacity!$F81,Installations!$D$16:$D$223,Capacity!$E81,Installations!$E$16:$E$223,Capacity!$D81,Installations!$F$16:$F$223,Capacity!$C81),0) -> 0 | AH81: =IF(AND(AH$79>=$F81,AH$79<$F81+$AJ81),SUMIFS(Installations!$H$16:$H$223,Installations!$B$16:$B$223,Capacity!$B81,Installations!$C$16:$C$223,Capacity!$F81,Installations!$D$16:$D$223,Capacity!$E81,Installations!$E$16:$E$223,Capacity!$D81,Installations!$F$16:$F$223,Capacity!$C81),0) -> 0 | AI81: =IF(AND(AI$79>=$F81,AI$79<$F81+$AJ81),SUMIFS(Installations!$H$16:$H$223,Installations!$B$16:$B$223,Capacity!$B81,Installations!$C$16:$C$223,Capacity!$F81,Installations!$D$16:$D$223,Capacity!$E81,Installations!$E$16:$E$223,Capacity!$D81,Installations!$F$16:$F$223,Capacity!$C81),0) -> 0 | AJ81: 25 | AK81: PV
B82: Non-Residential | C82: Incentivized | D82: NVE North | E82: PV | F82: 2006 | G82: =IF(AND(G$79>=$F82,G$79<$F82+$AJ82),SUMIFS(Installations!$H$16:$H$223,Installations!$B$16:$B$223,Capacity!$B82,Installations!$C$16:$C$223,Capacity!$F82,Installations!$D$16:$D$223,Capacity!$E82,Installations!$E$16:$E$223,Capacity!$D82,Installations!$F$16:$F$223,Capacity!$C82),0) -> 38.282 | H82: =IF(AND(H$79>=$F82,H$79<$F82+$AJ82),SUMIFS(Installations!$H$16:$H$223,Installations!$B$16:$B$223,Capacity!$B82,Installations!$C$16:$C$223,Capacity!$F82,Installations!$D$16:$D$223,Capacity!$E82,Installations!$E$16:$E$223,Capacity!$D82,Installations!$F$16:$F$223,Capacity!$C82),0) -> 38.282 | I82: =IF(AND(I$79>=$F82,I$79<$F82+$AJ82),SUMIFS(Installations!$H$16:$H$223,Installations!$B$16:$B$223,Capacity!$B82,Installations!$C$16:$C$223,Capacity!$F82,Installations!$D$16:$D$223,Capacity!$E82,Installations!$E$16:$E$223,Capacity!$D82,Installations!$F$16:$F$223,Capacity!$C82),0) -> 38.282 | J82: =IF(AND(J$79>=$F82,J$79<$F82+$AJ82),SUMIFS(Installations!$H$16:$H$223,Installations!$B$16:$B$223,Capacity!$B82,Installations!$C$16:$C$223,Capacity!$F82,Installations!$D$16:$D$223,Capacity!$E82,Installations!$E$16:$E$223,Capacity!$D82,Installations!$F$16:$F$223,Capacity!$C82),0) -> 38.282 | K82: =IF(AND(K$79>=$F82,K$79<$F82+$AJ82),SUMIFS(Installations!$H$16:$H$223,Installations!$B$16:$B$223,Capacity!$B82,Installations!$C$16:$C$223,Capacity!$F82,Installations!$D$16:$D$223,Capacity!$E82,Installations!$E$16:$E$223,Capacity!$D82,Installations!$F$16:$F$223,Capacity!$C82),0) -> 38.282 | L82: =IF(AND(L$79>=$F82,L$79<$F82+$AJ82),SUMIFS(Installations!$H$16:$H$223,Installations!$B$16:$B$223,Capacity!$B82,Installations!$C$16:$C$223,Capacity!$F82,Installations!$D$16:$D$223,Capacity!$E82,Installations!$E$16:$E$223,Capacity!$D82,Installations!$F$16:$F$223,Capacity!$C82),0) -> 38.282 | M82: =IF(AND(M$79>=$F82,M$79<$F82+$AJ82),SUMIFS(Installations!$H$16:$H$223,Installations!$B$16:$B$223,Capacity!$B82,Installations!$C$16:$C$223,Capacity!$F82,Installations!$D$16:$D$223,Capacity!$E82,Installations!$E$16:$E$223,Capacity!$D82,Installations!$F$16:$F$223,Capacity!$C82),0) -> 38.282 | N82: =IF(AND(N$79>=$F82,N$79<$F82+$AJ82),SUMIFS(Installations!$H$16:$H$223,Installations!$B$16:$B$223,Capacity!$B82,Installations!$C$16:$C$223,Capacity!$F82,Installations!$D$16:$D$223,Capacity!$E82,Installations!$E$16:$E$223,Capacity!$D82,Installations!$F$16:$F$223,Capacity!$C82),0) -> 38.282 | O82: =IF(AND(O$79>=$F82,O$79<$F82+$AJ82),SUMIFS(Installations!$H$16:$H$223,Installations!$B$16:$B$223,Capacity!$B82,Installations!$C$16:$C$223,Capacity!$F82,Installations!$D$16:$D$223,Capacity!$E82,Installations!$E$16:$E$223,Capacity!$D82,Installations!$F$16:$F$223,Capacity!$C82),0) -> 38.282 | P82: =IF(AND(P$79>=$F82,P$79<$F82+$AJ82),SUMIFS(Installations!$H$16:$H$223,Installations!$B$16:$B$223,Capacity!$B82,Installations!$C$16:$C$223,Capacity!$F82,Installations!$D$16:$D$223,Capacity!$E82,Installations!$E$16:$E$223,Capacity!$D82,Installations!$F$16:$F$223,Capacity!$C82),0) -> 38.282 | Q82: =IF(AND(Q$79>=$F82,Q$79<$F82+$AJ82),SUMIFS(Installations!$H$16:$H$223,Installations!$B$16:$B$223,Capacity!$B82,Installations!$C$16:$C$223,Capacity!$F82,Installations!$D$16:$D$223,Capacity!$E82,Installations!$E$16:$E$223,Capacity!$D82,Installations!$F$16:$F$223,Capacity!$C82),0) -> 38.282 | R82: =IF(AND(R$79>=$F82,R$79<$F82+$AJ82),SUMIFS(Installations!$H$16:$H$223,Installations!$B$16:$B$223,Capacity!$B82,Installations!$C$16:$C$223,Capacity!$F82,Installations!$D$16:$D$223,Capacity!$E82,Installations!$E$16:$E$223,Capacity!$D82,Installations!$F$16:$F$223,Capacity!$C82),0) -> 38.282 | S82: =IF(AND(S$79>=$F82,S$79<$F82+$AJ82),SUMIFS(Installations!$H$16:$H$223,Installations!$B$16:$B$223,Capacity!$B82,Installations!$C$16:$C$223,Capacity!$F82,Installations!$D$16:$D$223,Capacity!$E82,Installations!$E$16:$E$223,Capacity!$D82,Installations!$F$16:$F$223,Capacity!$C82),0) -> 38.282 | T82: =IF(AND(T$79>=$F82,T$79<$F82+$AJ82),SUMIFS(Installations!$H$16:$H$223,Installations!$B$16:$B$223,Capacity!$B82,Installations!$C$16:$C$223,Capacity!$F82,Installations!$D$16:$D$223,Capacity!$E82,Installations!$E$16:$E$223,Capacity!$D82,Installations!$F$16:$F$223,Capacity!$C82),0) -> 38.282 | U82: =IF(AND(U$79>=$F82,U$79<$F82+$AJ82),SUMIFS(Installations!$H$16:$H$223,Installations!$B$16:$B$223,Capacity!$B82,Installations!$C$16:$C$223,Capacity!$F82,Installations!$D$16:$D$223,Capacity!$E82,Installations!$E$16:$E$223,Capacity!$D82,Installations!$F$16:$F$223,Capacity!$C82),0) -> 38.282 | V82: =IF(AND(V$79>=$F82,V$79<$F82+$AJ82),SUMIFS(Installations!$H$16:$H$223,Installations!$B$16:$B$223,Capacity!$B82,Installations!$C$16:$C$223,Capacity!$F82,Installations!$D$16:$D$223,Capacity!$E82,Installations!$E$16:$E$223,Capacity!$D82,Installations!$F$16:$F$223,Capacity!$C82),0) -> 38.282 | W82: =IF(AND(W$79>=$F82,W$79<$F82+$AJ82),SUMIFS(Installations!$H$16:$H$223,Installations!$B$16:$B$223,Capacity!$B82,Installations!$C$16:$C$223,Capacity!$F82,Installations!$D$16:$D$223,Capacity!$E82,Installations!$E$16:$E$223,Capacity!$D82,Installations!$F$16:$F$223,Capacity!$C82),0) -> 38.282 | X82: =IF(AND(X$79>=$F82,X$79<$F82+$AJ82),SUMIFS(Installations!$H$16:$H$223,Installations!$B$16:$B$223,Capacity!$B82,Installations!$C$16:$C$223,Capacity!$F82,Installations!$D$16:$D$223,Capacity!$E82,Installations!$E$16:$E$223,Capacity!$D82,Installations!$F$16:$F$223,Capacity!$C82),0) -> 38.282 | Y82: =IF(AND(Y$79>=$F82,Y$79<$F82+$AJ82),SUMIFS(Installations!$H$16:$H$223,Installations!$B$16:$B$223,Capacity!$B82,Installations!$C$16:$C$223,Capacity!$F82,Installations!$D$16:$D$223,Capacity!$E82,Installations!$E$16:$E$223,Capacity!$D82,Installations!$F$16:$F$223,Capacity!$C82),0) -> 0 | Z82: =IF(AND(Z$79>=$F82,Z$79<$F82+$AJ82),SUMIFS(Installations!$H$16:$H$223,Installations!$B$16:$B$223,Capacity!$B82,Installations!$C$16:$C$223,Capacity!$F82,Installations!$D$16:$D$223,Capacity!$E82,Installations!$E$16:$E$223,Capacity!$D82,Installations!$F$16:$F$223,Capacity!$C82),0) -> 0 | AA82: =IF(AND(AA$79>=$F82,AA$79<$F82+$AJ82),SUMIFS(Installations!$H$16:$H$223,Installations!$B$16:$B$223,Capacity!$B82,Installations!$C$16:$C$223,Capacity!$F82,Installations!$D$16:$D$223,Capacity!$E82,Installations!$E$16:$E$223,Capacity!$D82,Installations!$F$16:$F$223,Capacity!$C82),0) -> 0 | AB82: =IF(AND(AB$79>=$F82,AB$79<$F82+$AJ82),SUMIFS(Installations!$H$16:$H$223,Installations!$B$16:$B$223,Capacity!$B82,Installations!$C$16:$C$223,Capacity!$F82,Installations!$D$16:$D$223,Capacity!$E82,Installations!$E$16:$E$223,Capacity!$D82,Installations!$F$16:$F$223,Capacity!$C82),0) -> 0 | AC82: =IF(AND(AC$79>=$F82,AC$79<$F82+$AJ82),SUMIFS(Installations!$H$16:$H$223,Installations!$B$16:$B$223,Capacity!$B82,Installations!$C$16:$C$223,Capacity!$F82,Installations!$D$16:$D$223,Capacity!$E82,Installations!$E$16:$E$223,Capacity!$D82,Installations!$F$16:$F$223,Capacity!$C82),0) -> 0 | AD82: =IF(AND(AD$79>=$F82,AD$79<$F82+$AJ82),SUMIFS(Installations!$H$16:$H$223,Installations!$B$16:$B$223,Capacity!$B82,Installations!$C$16:$C$223,Capacity!$F82,Installations!$D$16:$D$223,Capacity!$E82,Installations!$E$16:$E$223,Capacity!$D82,Installations!$F$16:$F$223,Capacity!$C82),0) -> 0 | AE82: =IF(AND(AE$79>=$F82,AE$79<$F82+$AJ82),SUMIFS(Installations!$H$16:$H$223,Installations!$B$16:$B$223,Capacity!$B82,Installations!$C$16:$C$223,Capacity!$F82,Installations!$D$16:$D$223,Capacity!$E82,Installations!$E$16:$E$223,Capacity!$D82,Installations!$F$16:$F$223,Capacity!$C82),0) -> 0 | AF82: =IF(AND(AF$79>=$F82,AF$79<$F82+$AJ82),SUMIFS(Installations!$H$16:$H$223,Installations!$B$16:$B$223,Capacity!$B82,Installations!$C$16:$C$223,Capacity!$F82,Installations!$D$16:$D$223,Capacity!$E82,Installations!$E$16:$E$223,Capacity!$D82,Installations!$F$16:$F$223,Capacity!$C82),0) -> 0 | AG82: =IF(AND(AG$79>=$F82,AG$79<$F82+$AJ82),SUMIFS(Installations!$H$16:$H$223,Installations!$B$16:$B$223,Capacity!$B82,Installations!$C$16:$C$223,Capacity!$F82,Installations!$D$16:$D$223,Capacity!$E82,Installations!$E$16:$E$223,Capacity!$D82,Installations!$F$16:$F$223,Capacity!$C82),0) -> 0 | AH82: =IF(AND(AH$79>=$F82,AH$79<$F82+$AJ82),SUMIFS(Installations!$H$16:$H$223,Installations!$B$16:$B$223,Capacity!$B82,Installations!$C$16:$C$223,Capacity!$F82,Installations!$D$16:$D$223,Capacity!$E82,Installations!$E$16:$E$223,Capacity!$D82,Installations!$F$16:$F$223,Capacity!$C82),0) -> 0 | AI82: =IF(AND(AI$79>=$F82,AI$79<$F82+$AJ82),SUMIFS(Installations!$H$16:$H$223,Installations!$B$16:$B$223,Capacity!$B82,Installations!$C$16:$C$223,Capacity!$F82,Installations!$D$16:$D$223,Capacity!$E82,Installations!$E$16:$E$223,Capacity!$D82,Installations!$F$16:$F$223,Capacity!$C82),0) -> 0 | AJ82: 25 | AK82: PV
B83: Non-Residential | C83: Incentivized | D83: NVE North | E83: PV | F83: 2007 | G83: =IF(AND(G$79>=$F83,G$79<$F83+$AJ83),SUMIFS(Installations!$H$16:$H$223,Installations!$B$16:$B$223,Capacity!$B83,Installations!$C$16:$C$223,Capacity!$F83,Installations!$D$16:$D$223,Capacity!$E83,Installations!$E$16:$E$223,Capacity!$D83,Installations!$F$16:$F$223,Capacity!$C83),0) -> 20.246 | H83: =IF(AND(H$79>=$F83,H$79<$F83+$AJ83),SUMIFS(Installations!$H$16:$H$223,Installations!$B$16:$B$223,Capacity!$B83,Installations!$C$16:$C$223,Capacity!$F83,Installations!$D$16:$D$223,Capacity!$E83,Installations!$E$16:$E$223,Capacity!$D83,Installations!$F$16:$F$223,Capacity!$C83),0) -> 20.246 | I83: =IF(AND(I$79>=$F83,I$79<$F83+$AJ83),SUMIFS(Installations!$H$16:$H$223,Installations!$B$16:$B$223,Capacity!$B83,Installations!$C$16:$C$223,Capacity!$F83,Installations!$D$16:$D$223,Capacity!$E83,Installations!$E$16:$E$223,Capacity!$D83,Installations!$F$16:$F$223,Capacity!$C83),0) -> 20.246 | J83: =IF(AND(J$79>=$F83,J$79<$F83+$AJ83),SUMIFS(Installations!$H$16:$H$223,Installations!$B$16:$B$223,Capacity!$B83,Installations!$C$16:$C$223,Capacity!$F83,Installations!$D$16:$D$223,Capacity!$E83,Installations!$E$16:$E$223,Capacity!$D83,Installations!$F$16:$F$223,Capacity!$C83),0) -> 20.246 | K83: =IF(AND(K$79>=$F83,K$79<$F83+$AJ83),SUMIFS(Installations!$H$16:$H$223,Installations!$B$16:$B$223,Capacity!$B83,Installations!$C$16:$C$223,Capacity!$F83,Installations!$D$16:$D$223,Capacity!$E83,Installations!$E$16:$E$223,Capacity!$D83,Installations!$F$16:$F$223,Capacity!$C83),0) -> 20.246 | L83: =IF(AND(L$79>=$F83,L$79<$F83+$AJ83),SUMIFS(Installations!$H$16:$H$223,Installations!$B$16:$B$223,Capacity!$B83,Installations!$C$16:$C$223,Capacity!$F83,Installations!$D$16:$D$223,Capacity!$E83,Installations!$E$16:$E$223,Capacity!$D83,Installations!$F$16:$F$223,Capacity!$C83),0) -> 20.246 | M83: =IF(AND(M$79>=$F83,M$79<$F83+$AJ83),SUMIFS(Installations!$H$16:$H$223,Installations!$B$16:$B$223,Capacity!$B83,Installations!$C$16:$C$223,Capacity!$F83,Installations!$D$16:$D$223,Capacity!$E83,Installations!$E$16:$E$223,Capacity!$D83,Installations!$F$16:$F$223,Capacity!$C83),0) -> 20.246 | N83: =IF(AND(N$79>=$F83,N$79<$F83+$AJ83),SUMIFS(Installations!$H$16:$H$223,Installations!$B$16:$B$223,Capacity!$B83,Installations!$C$16:$C$223,Capacity!$F83,Installations!$D$16:$D$223,Capacity!$E83,Installations!$E$16:$E$223,Capacity!$D83,Installations!$F$16:$F$223,Capacity!$C83),0) -> 20.246 | O83: =IF(AND(O$79>=$F83,O$79<$F83+$AJ83),SUMIFS(Installations!$H$16:$H$223,Installations!$B$16:$B$223,Capacity!$B83,Installations!$C$16:$C$223,Capacity!$F83,Installations!$D$16:$D$223,Capacity!$E83,Installations!$E$16:$E$223,Capacity!$D83,Installations!$F$16:$F$223,Capacity!$C83),0) -> 20.246 | P83: =IF(AND(P$79>=$F83,P$79<$F83+$AJ83),SUMIFS(Installations!$H$16:$H$223,Installations!$B$16:$B$223,Capacity!$B83,Installations!$C$16:$C$223,Capacity!$F83,Installations!$D$16:$D$223,Capacity!$E83,Installations!$E$16:$E$223,Capacity!$D83,Installations!$F$16:$F$223,Capacity!$C83),0) -> 20.246 | Q83: =IF(AND(Q$79>=$F83,Q$79<$F83+$AJ83),SUMIFS(Installations!$H$16:$H$223,Installations!$B$16:$B$223,Capacity!$B83,Installations!$C$16:$C$223,Capacity!$F83,Installations!$D$16:$D$223,Capacity!$E83,Installations!$E$16:$E$223,Capacity!$D83,Installations!$F$16:$F$223,Capacity!$C83),0) -> 20.246 | R83: =IF(AND(R$79>=$F83,R$79<$F83+$AJ83),SUMIFS(Installations!$H$16:$H$223,Installations!$B$16:$B$223,Capacity!$B83,Installations!$C$16:$C$223,Capacity!$F83,Installations!$D$16:$D$223,Capacity!$E83,Installations!$E$16:$E$223,Capacity!$D83,Installations!$F$16:$F$223,Capacity!$C83),0) -> 20.246 | S83: =IF(AND(S$79>=$F83,S$79<$F83+$AJ83),SUMIFS(Installations!$H$16:$H$223,Installations!$B$16:$B$223,Capacity!$B83,Installations!$C$16:$C$223,Capacity!$F83,Installations!$D$16:$D$223,Capacity!$E83,Installations!$E$16:$E$223,Capacity!$D83,Installations!$F$16:$F$223,Capacity!$C83),0) -> 20.246 | T83: =IF(AND(T$79>=$F83,T$79<$F83+$AJ83),SUMIFS(Installations!$H$16:$H$223,Installations!$B$16:$B$223,Capacity!$B83,Installations!$C$16:$C$223,Capacity!$F83,Installations!$D$16:$D$223,Capacity!$E83,Installations!$E$16:$E$223,Capacity!$D83,Installations!$F$16:$F$223,Capacity!$C83),0) -> 20.246 | U83: =IF(AND(U$79>=$F83,U$79<$F83+$AJ83),SUMIFS(Installations!$H$16:$H$223,Installations!$B$16:$B$223,Capacity!$B83,Installations!$C$16:$C$223,Capacity!$F83,Installations!$D$16:$D$223,Capacity!$E83,Installations!$E$16:$E$223,Capacity!$D83,Installations!$F$16:$F$223,Capacity!$C83),0) -> 20.246 | V83: =IF(AND(V$79>=$F83,V$79<$F83+$AJ83),SUMIFS(Installations!$H$16:$H$223,Installations!$B$16:$B$223,Capacity!$B83,Installations!$C$16:$C$223,Capacity!$F83,Installations!$D$16:$D$223,Capacity!$E83,Installations!$E$16:$E$223,Capacity!$D83,Installations!$F$16:$F$223,Capacity!$C83),0) -> 20.246 | W83: =IF(AND(W$79>=$F83,W$79<$F83+$AJ83),SUMIFS(Installations!$H$16:$H$223,Installations!$B$16:$B$223,Capacity!$B83,Installations!$C$16:$C$223,Capacity!$F83,Installations!$D$16:$D$223,Capacity!$E83,Installations!$E$16:$E$223,Capacity!$D83,Installations!$F$16:$F$223,Capacity!$C83),0) -> 20.246 | X83: =IF(AND(X$79>=$F83,X$79<$F83+$AJ83),SUMIFS(Installations!$H$16:$H$223,Installations!$B$16:$B$223,Capacity!$B83,Installations!$C$16:$C$223,Capacity!$F83,Installations!$D$16:$D$223,Capacity!$E83,Installations!$E$16:$E$223,Capacity!$D83,Installations!$F$16:$F$223,Capacity!$C83),0) -> 20.246 | Y83: =IF(AND(Y$79>=$F83,Y$79<$F83+$AJ83),SUMIFS(Installations!$H$16:$H$223,Installations!$B$16:$B$223,Capacity!$B83,Installations!$C$16:$C$223,Capacity!$F83,Installations!$D$16:$D$223,Capacity!$E83,Installations!$E$16:$E$223,Capacity!$D83,Installations!$F$16:$F$223,Capacity!$C83),0) -> 20.246 | Z83: =IF(AND(Z$79>=$F83,Z$79<$F83+$AJ83),SUMIFS(Installations!$H$16:$H$223,Installations!$B$16:$B$223,Capacity!$B83,Installations!$C$16:$C$223,Capacity!$F83,Installations!$D$16:$D$223,Capacity!$E83,Installations!$E$16:$E$223,Capacity!$D83,Installations!$F$16:$F$223,Capacity!$C83),0) -> 0 | AA83: =IF(AND(AA$79>=$F83,AA$79<$F83+$AJ83),SUMIFS(Installations!$H$16:$H$223,Installations!$B$16:$B$223,Capacity!$B83,Installations!$C$16:$C$223,Capacity!$F83,Installations!$D$16:$D$223,Capacity!$E83,Installations!$E$16:$E$223,Capacity!$D83,Installations!$F$16:$F$223,Capacity!$C83),0) -> 0 | AB83: =IF(AND(AB$79>=$F83,AB$79<$F83+$AJ83),SUMIFS(Installations!$H$16:$H$223,Installations!$B$16:$B$223,Capacity!$B83,Installations!$C$16:$C$223,Capacity!$F83,Installations!$D$16:$D$223,Capacity!$E83,Installations!$E$16:$E$223,Capacity!$D83,Installations!$F$16:$F$223,Capacity!$C83),0) -> 0 | AC83: =IF(AND(AC$79>=$F83,AC$79<$F83+$AJ83),SUMIFS(Installations!$H$16:$H$223,Installations!$B$16:$B$223,Capacity!$B83,Installations!$C$16:$C$223,Capacity!$F83,Installations!$D$16:$D$223,Capacity!$E83,Installations!$E$16:$E$223,Capacity!$D83,Installations!$F$16:$F$223,Capacity!$C83),0) -> 0 | AD83: =IF(AND(AD$79>=$F83,AD$79<$F83+$AJ83),SUMIFS(Installations!$H$16:$H$223,Installations!$B$16:$B$223,Capacity!$B83,Installations!$C$16:$C$223,Capacity!$F83,Installations!$D$16:$D$223,Capacity!$E83,Installations!$E$16:$E$223,Capacity!$D83,Installations!$F$16:$F$223,Capacity!$C83),0) -> 0 | AE83: =IF(AND(AE$79>=$F83,AE$79<$F83+$AJ83),SUMIFS(Installations!$H$16:$H$223,Installations!$B$16:$B$223,Capacity!$B83,Installations!$C$16:$C$223,Capacity!$F83,Installations!$D$16:$D$223,Capacity!$E83,Installations!$E$16:$E$223,Capacity!$D83,Installations!$F$16:$F$223,Capacity!$C83),0) -> 0 | AF83: =IF(AND(AF$79>=$F83,AF$79<$F83+$AJ83),SUMIFS(Installations!$H$16:$H$223,Installations!$B$16:$B$223,Capacity!$B83,Installations!$C$16:$C$223,Capacity!$F83,Installations!$D$16:$D$223,Capacity!$E83,Installations!$E$16:$E$223,Capacity!$D83,Installations!$F$16:$F$223,Capacity!$C83),0) -> 0 | AG83: =IF(AND(AG$79>=$F83,AG$79<$F83+$AJ83),SUMIFS(Installations!$H$16:$H$223,Installations!$B$16:$B$223,Capacity!$B83,Installations!$C$16:$C$223,Capacity!$F83,Installations!$D$16:$D$223,Capacity!$E83,Installations!$E$16:$E$223,Capacity!$D83,Installations!$F$16:$F$223,Capacity!$C83),0) -> 0 | AH83: =IF(AND(AH$79>=$F83,AH$79<$F83+$AJ83),SUMIFS(Installations!$H$16:$H$223,Installations!$B$16:$B$223,Capacity!$B83,Installations!$C$16:$C$223,Capacity!$F83,Installations!$D$16:$D$223,Capacity!$E83,Installations!$E$16:$E$223,Capacity!$D83,Installations!$F$16:$F$223,Capacity!$C83),0) -> 0 | AI83: =IF(AND(AI$79>=$F83,AI$79<$F83+$AJ83),SUMIFS(Installations!$H$16:$H$223,Installations!$B$16:$B$223,Capacity!$B83,Installations!$C$16:$C$223,Capacity!$F83,Installations!$D$16:$D$223,Capacity!$E83,Installations!$E$16:$E$223,Capacity!$D83,Installations!$F$16:$F$223,Capacity!$C83),0) -> 0 | AJ83: 25 | AK83: PV
B84: Non-Residential | C84: Incentivized | D84: NVE North | E84: PV | F84: 2008 | G84: =IF(AND(G$79>=$F84,G$79<$F84+$AJ84),SUMIFS(Installations!$H$16:$H$223,Installations!$B$16:$B$223,Capacity!$B84,Installations!$C$16:$C$223,Capacity!$F84,Installations!$D$16:$D$223,Capacity!$E84,Installations!$E$16:$E$223,Capacity!$D84,Installations!$F$16:$F$223,Capacity!$C84),0) -> 200.341 | H84: =IF(AND(H$79>=$F84,H$79<$F84+$AJ84),SUMIFS(Installations!$H$16:$H$223,Installations!$B$16:$B$223,Capacity!$B84,Installations!$C$16:$C$223,Capacity!$F84,Installations!$D$16:$D$223,Capacity!$E84,Installations!$E$16:$E$223,Capacity!$D84,Installations!$F$16:$F$223,Capacity!$C84),0) -> 200.341 | I84: =IF(AND(I$79>=$F84,I$79<$F84+$AJ84),SUMIFS(Installations!$H$16:$H$223,Installations!$B$16:$B$223,Capacity!$B84,Installations!$C$16:$C$223,Capacity!$F84,Installations!$D$16:$D$223,Capacity!$E84,Installations!$E$16:$E$223,Capacity!$D84,Installations!$F$16:$F$223,Capacity!$C84),0) -> 200.341 | J84: =IF(AND(J$79>=$F84,J$79<$F84+$AJ84),SUMIFS(Installations!$H$16:$H$223,Installations!$B$16:$B$223,Capacity!$B84,Installations!$C$16:$C$223,Capacity!$F84,Installations!$D$16:$D$223,Capacity!$E84,Installations!$E$16:$E$223,Capacity!$D84,Installations!$F$16:$F$223,Capacity!$C84),0) -> 200.341 | K84: =IF(AND(K$79>=$F84,K$79<$F84+$AJ84),SUMIFS(Installations!$H$16:$H$223,Installations!$B$16:$B$223,Capacity!$B84,Installations!$C$16:$C$223,Capacity!$F84,Installations!$D$16:$D$223,Capacity!$E84,Installations!$E$16:$E$223,Capacity!$D84,Installations!$F$16:$F$223,Capacity!$C84),0) -> 200.341 | L84: =IF(AND(L$79>=$F84,L$79<$F84+$AJ84),SUMIFS(Installations!$H$16:$H$223,Installations!$B$16:$B$223,Capacity!$B84,Installations!$C$16:$C$223,Capacity!$F84,Installations!$D$16:$D$223,Capacity!$E84,Installations!$E$16:$E$223,Capacity!$D84,Installations!$F$16:$F$223,Capacity!$C84),0) -> 200.341 | M84: =IF(AND(M$79>=$F84,M$79<$F84+$AJ84),SUMIFS(Installations!$H$16:$H$223,Installations!$B$16:$B$223,Capacity!$B84,Installations!$C$16:$C$223,Capacity!$F84,Installations!$D$16:$D$223,Capacity!$E84,Installations!$E$16:$E$223,Capacity!$D84,Installations!$F$16:$F$223,Capacity!$C84),0) -> 200.341 | N84: =IF(AND(N$79>=$F84,N$79<$F84+$AJ84),SUMIFS(Installations!$H$16:$H$223,Installations!$B$16:$B$223,Capacity!$B84,Installations!$C$16:$C$223,Capacity!$F84,Installations!$D$16:$D$223,Capacity!$E84,Installations!$E$16:$E$223,Capacity!$D84,Installations!$F$16:$F$223,Capacity!$C84),0) -> 200.341 | O84: =IF(AND(O$79>=$F84,O$79<$F84+$AJ84),SUMIFS(Installations!$H$16:$H$223,Installations!$B$16:$B$223,Capacity!$B84,Installations!$C$16:$C$223,Capacity!$F84,Installations!$D$16:$D$223,Capacity!$E84,Installations!$E$16:$E$223,Capacity!$D84,Installations!$F$16:$F$223,Capacity!$C84),0) -> 200.341 | P84: =IF(AND(P$79>=$F84,P$79<$F84+$AJ84),SUMIFS(Installations!$H$16:$H$223,Installations!$B$16:$B$223,Capacity!$B84,Installations!$C$16:$C$223,Capacity!$F84,Installations!$D$16:$D$223,Capacity!$E84,Installations!$E$16:$E$223,Capacity!$D84,Installations!$F$16:$F$223,Capacity!$C84),0) -> 200.341 | Q84: =IF(AND(Q$79>=$F84,Q$79<$F84+$AJ84),SUMIFS(Installations!$H$16:$H$223,Installations!$B$16:$B$223,Capacity!$B84,Installations!$C$16:$C$223,Capacity!$F84,Installations!$D$16:$D$223,Capacity!$E84,Installations!$E$16:$E$223,Capacity!$D84,Installations!$F$16:$F$223,Capacity!$C84),0) -> 200.341 | R84: =IF(AND(R$79>=$F84,R$79<$F84+$AJ84),SUMIFS(Installations!$H$16:$H$223,Installations!$B$16:$B$223,Capacity!$B84,Installations!$C$16:$C$223,Capacity!$F84,Installations!$D$16:$D$223,Capacity!$E84,Installations!$E$16:$E$223,Capacity!$D84,Installations!$F$16:$F$223,Capacity!$C84),0) -> 200.341 | S84: =IF(AND(S$79>=$F84,S$79<$F84+$AJ84),SUMIFS(Installations!$H$16:$H$223,Installations!$B$16:$B$223,Capacity!$B84,Installations!$C$16:$C$223,Capacity!$F84,Installations!$D$16:$D$223,Capacity!$E84,Installations!$E$16:$E$223,Capacity!$D84,Installations!$F$16:$F$223,Capacity!$C84),0) -> 200.341 | T84: =IF(AND(T$79>=$F84,T$79<$F84+$AJ84),SUMIFS(Installations!$H$16:$H$223,Installations!$B$16:$B$223,Capacity!$B84,Installations!$C$16:$C$223,Capacity!$F84,Installations!$D$16:$D$223,Capacity!$E84,Installations!$E$16:$E$223,Capacity!$D84,Installations!$F$16:$F$223,Capacity!$C84),0) -> 200.341 | U84: =IF(AND(U$79>=$F84,U$79<$F84+$AJ84),SUMIFS(Installations!$H$16:$H$223,Installations!$B$16:$B$223,Capacity!$B84,Installations!$C$16:$C$223,Capacity!$F84,Installations!$D$16:$D$223,Capacity!$E84,Installations!$E$16:$E$223,Capacity!$D84,Installations!$F$16:$F$223,Capacity!$C84),0) -> 200.341 | V84: =IF(AND(V$79>=$F84,V$79<$F84+$AJ84),SUMIFS(Installations!$H$16:$H$223,Installations!$B$16:$B$223,Capacity!$B84,Installations!$C$16:$C$223,Capacity!$F84,Installations!$D$16:$D$223,Capacity!$E84,Installations!$E$16:$E$223,Capacity!$D84,Installations!$F$16:$F$223,Capacity!$C84),0) -> 200.341 | W84: =IF(AND(W$79>=$F84,W$79<$F84+$AJ84),SUMIFS(Installations!$H$16:$H$223,Installations!$B$16:$B$223,Capacity!$B84,Installations!$C$16:$C$223,Capacity!$F84,Installations!$D$16:$D$223,Capacity!$E84,Installations!$E$16:$E$223,Capacity!$D84,Installations!$F$16:$F$223,Capacity!$C84),0) -> 200.341 | X84: =IF(AND(X$79>=$F84,X$79<$F84+$AJ84),SUMIFS(Installations!$H$16:$H$223,Installations!$B$16:$B$223,Capacity!$B84,Installations!$C$16:$C$223,Capacity!$F84,Installations!$D$16:$D$223,Capacity!$E84,Installations!$E$16:$E$223,Capacity!$D84,Installations!$F$16:$F$223,Capacity!$C84),0) -> 200.341 | Y84: =IF(AND(Y$79>=$F84,Y$79<$F84+$AJ84),SUMIFS(Installations!$H$16:$H$223,Installations!$B$16:$B$223,Capacity!$B84,Installations!$C$16:$C$223,Capacity!$F84,Installations!$D$16:$D$223,Capacity!$E84,Installations!$E$16:$E$223,Capacity!$D84,Installations!$F$16:$F$223,Capacity!$C84),0) -> 200.341 | Z84: =IF(AND(Z$79>=$F84,Z$79<$F84+$AJ84),SUMIFS(Installations!$H$16:$H$223,Installations!$B$16:$B$223,Capacity!$B84,Installations!$C$16:$C$223,Capacity!$F84,Installations!$D$16:$D$223,Capacity!$E84,Installations!$E$16:$E$223,Capacity!$D84,Installations!$F$16:$F$223,Capacity!$C84),0) -> 200.341 | AA84: =IF(AND(AA$79>=$F84,AA$79<$F84+$AJ84),SUMIFS(Installations!$H$16:$H$223,Installations!$B$16:$B$223,Capacity!$B84,Installations!$C$16:$C$223,Capacity!$F84,Installations!$D$16:$D$223,Capacity!$E84,Installations!$E$16:$E$223,Capacity!$D84,Installations!$F$16:$F$223,Capacity!$C84),0) -> 0 | AB84: =IF(AND(AB$79>=$F84,AB$79<$F84+$AJ84),SUMIFS(Installations!$H$16:$H$223,Installations!$B$16:$B$223,Capacity!$B84,Installations!$C$16:$C$223,Capacity!$F84,Installations!$D$16:$D$223,Capacity!$E84,Installations!$E$16:$E$223,Capacity!$D84,Installations!$F$16:$F$223,Capacity!$C84),0) -> 0 | AC84: =IF(AND(AC$79>=$F84,AC$79<$F84+$AJ84),SUMIFS(Installations!$H$16:$H$223,Installations!$B$16:$B$223,Capacity!$B84,Installations!$C$16:$C$223,Capacity!$F84,Installations!$D$16:$D$223,Capacity!$E84,Installations!$E$16:$E$223,Capacity!$D84,Installations!$F$16:$F$223,Capacity!$C84),0) -> 0 | AD84: =IF(AND(AD$79>=$F84,AD$79<$F84+$AJ84),SUMIFS(Installations!$H$16:$H$223,Installations!$B$16:$B$223,Capacity!$B84,Installations!$C$16:$C$223,Capacity!$F84,Installations!$D$16:$D$223,Capacity!$E84,Installations!$E$16:$E$223,Capacity!$D84,Installations!$F$16:$F$223,Capacity!$C84),0) -> 0 | AE84: =IF(AND(AE$79>=$F84,AE$79<$F84+$AJ84),SUMIFS(Installations!$H$16:$H$223,Installations!$B$16:$B$223,Capacity!$B84,Installations!$C$16:$C$223,Capacity!$F84,Installations!$D$16:$D$223,Capacity!$E84,Installations!$E$16:$E$223,Capacity!$D84,Installations!$F$16:$F$223,Capacity!$C84),0) -> 0 | AF84: =IF(AND(AF$79>=$F84,AF$79<$F84+$AJ84),SUMIFS(Installations!$H$16:$H$223,Installations!$B$16:$B$223,Capacity!$B84,Installations!$C$16:$C$223,Capacity!$F84,Installations!$D$16:$D$223,Capacity!$E84,Installations!$E$16:$E$223,Capacity!$D84,Installations!$F$16:$F$223,Capacity!$C84),0) -> 0 | AG84: =IF(AND(AG$79>=$F84,AG$79<$F84+$AJ84),SUMIFS(Installations!$H$16:$H$223,Installations!$B$16:$B$223,Capacity!$B84,Installations!$C$16:$C$223,Capacity!$F84,Installations!$D$16:$D$223,Capacity!$E84,Installations!$E$16:$E$223,Capacity!$D84,Installations!$F$16:$F$223,Capacity!$C84),0) -> 0 | AH84: =IF(AND(AH$79>=$F84,AH$79<$F84+$AJ84),SUMIFS(Installations!$H$16:$H$223,Installations!$B$16:$B$223,Capacity!$B84,Installations!$C$16:$C$223,Capacity!$F84,Installations!$D$16:$D$223,Capacity!$E84,Installations!$E$16:$E$223,Capacity!$D84,Installations!$F$16:$F$223,Capacity!$C84),0) -> 0 | AI84: =IF(AND(AI$79>=$F84,AI$79<$F84+$AJ84),SUMIFS(Installations!$H$16:$H$223,Installations!$B$16:$B$223,Capacity!$B84,Installations!$C$16:$C$223,Capacity!$F84,Installations!$D$16:$D$223,Capacity!$E84,Installations!$E$16:$E$223,Capacity!$D84,Installations!$F$16:$F$223,Capacity!$C84),0) -> 0 | AJ84: 25 | AK84: PV
B85: Non-Residential | C85: Incentivized | D85: NVE North | E85: PV | F85: 2009 | G85: =IF(AND(G$79>=$F85,G$79<$F85+$AJ85),SUMIFS(Installations!$H$16:$H$223,Installations!$B$16:$B$223,Capacity!$B85,Installations!$C$16:$C$223,Capacity!$F85,Installations!$D$16:$D$223,Capacity!$E85,Installations!$E$16:$E$223,Capacity!$D85,Installations!$F$16:$F$223,Capacity!$C85),0) -> 327.886 | H85: =IF(AND(H$79>=$F85,H$79<$F85+$AJ85),SUMIFS(Installations!$H$16:$H$223,Installations!$B$16:$B$223,Capacity!$B85,Installations!$C$16:$C$223,Capacity!$F85,Installations!$D$16:$D$223,Capacity!$E85,Installations!$E$16:$E$223,Capacity!$D85,Installations!$F$16:$F$223,Capacity!$C85),0) -> 327.886 | I85: =IF(AND(I$79>=$F85,I$79<$F85+$AJ85),SUMIFS(Installations!$H$16:$H$223,Installations!$B$16:$B$223,Capacity!$B85,Installations!$C$16:$C$223,Capacity!$F85,Installations!$D$16:$D$223,Capacity!$E85,Installations!$E$16:$E$223,Capacity!$D85,Installations!$F$16:$F$223,Capacity!$C85),0) -> 327.886 | J85: =IF(AND(J$79>=$F85,J$79<$F85+$AJ85),SUMIFS(Installations!$H$16:$H$223,Installations!$B$16:$B$223,Capacity!$B85,Installations!$C$16:$C$223,Capacity!$F85,Installations!$D$16:$D$223,Capacity!$E85,Installations!$E$16:$E$223,Capacity!$D85,Installations!$F$16:$F$223,Capacity!$C85),0) -> 327.886 | K85: =IF(AND(K$79>=$F85,K$79<$F85+$AJ85),SUMIFS(Installations!$H$16:$H$223,Installations!$B$16:$B$223,Capacity!$B85,Installations!$C$16:$C$223,Capacity!$F85,Installations!$D$16:$D$223,Capacity!$E85,Installations!$E$16:$E$223,Capacity!$D85,Installations!$F$16:$F$223,Capacity!$C85),0) -> 327.886 | L85: =IF(AND(L$79>=$F85,L$79<$F85+$AJ85),SUMIFS(Installations!$H$16:$H$223,Installations!$B$16:$B$223,Capacity!$B85,Installations!$C$16:$C$223,Capacity!$F85,Installations!$D$16:$D$223,Capacity!$E85,Installations!$E$16:$E$223,Capacity!$D85,Installations!$F$16:$F$223,Capacity!$C85),0) -> 327.886 | M85: =IF(AND(M$79>=$F85,M$79<$F85+$AJ85),SUMIFS(Installations!$H$16:$H$223,Installations!$B$16:$B$223,Capacity!$B85,Installations!$C$16:$C$223,Capacity!$F85,Installations!$D$16:$D$223,Capacity!$E85,Installations!$E$16:$E$223,Capacity!$D85,Installations!$F$16:$F$223,Capacity!$C85),0) -> 327.886 | N85: =IF(AND(N$79>=$F85,N$79<$F85+$AJ85),SUMIFS(Installations!$H$16:$H$223,Installations!$B$16:$B$223,Capacity!$B85,Installations!$C$16:$C$223,Capacity!$F85,Installations!$D$16:$D$223,Capacity!$E85,Installations!$E$16:$E$223,Capacity!$D85,Installations!$F$16:$F$223,Capacity!$C85),0) -> 327.886 | O85: =IF(AND(O$79>=$F85,O$79<$F85+$AJ85),SUMIFS(Installations!$H$16:$H$223,Installations!$B$16:$B$223,Capacity!$B85,Installations!$C$16:$C$223,Capacity!$F85,Installations!$D$16:$D$223,Capacity!$E85,Installations!$E$16:$E$223,Capacity!$D85,Installations!$F$16:$F$223,Capacity!$C85),0) -> 327.886 | P85: =IF(AND(P$79>=$F85,P$79<$F85+$AJ85),SUMIFS(Installations!$H$16:$H$223,Installations!$B$16:$B$223,Capacity!$B85,Installations!$C$16:$C$223,Capacity!$F85,Installations!$D$16:$D$223,Capacity!$E85,Installations!$E$16:$E$223,Capacity!$D85,Installations!$F$16:$F$223,Capacity!$C85),0) -> 327.886 | Q85: =IF(AND(Q$79>=$F85,Q$79<$F85+$AJ85),SUMIFS(Installations!$H$16:$H$223,Installations!$B$16:$B$223,Capacity!$B85,Installations!$C$16:$C$223,Capacity!$F85,Installations!$D$16:$D$223,Capacity!$E85,Installations!$E$16:$E$223,Capacity!$D85,Installations!$F$16:$F$223,Capacity!$C85),0) -> 327.886 | R85: =IF(AND(R$79>=$F85,R$79<$F85+$AJ85),SUMIFS(Installations!$H$16:$H$223,Installations!$B$16:$B$223,Capacity!$B85,Installations!$C$16:$C$223,Capacity!$F85,Installations!$D$16:$D$223,Capacity!$E85,Installations!$E$16:$E$223,Capacity!$D85,Installations!$F$16:$F$223,Capacity!$C85),0) -> 327.886 | S85: =IF(AND(S$79>=$F85,S$79<$F85+$AJ85),SUMIFS(Installations!$H$16:$H$223,Installations!$B$16:$B$223,Capacity!$B85,Installations!$C$16:$C$223,Capacity!$F85,Installations!$D$16:$D$223,Capacity!$E85,Installations!$E$16:$E$223,Capacity!$D85,Installations!$F$16:$F$223,Capacity!$C85),0) -> 327.886 | T85: =IF(AND(T$79>=$F85,T$79<$F85+$AJ85),SUMIFS(Installations!$H$16:$H$223,Installations!$B$16:$B$223,Capacity!$B85,Installations!$C$16:$C$223,Capacity!$F85,Installations!$D$16:$D$223,Capacity!$E85,Installations!$E$16:$E$223,Capacity!$D85,Installations!$F$16:$F$223,Capacity!$C85),0) -> 327.886 | U85: =IF(AND(U$79>=$F85,U$79<$F85+$AJ85),SUMIFS(Installations!$H$16:$H$223,Installations!$B$16:$B$223,Capacity!$B85,Installations!$C$16:$C$223,Capacity!$F85,Installations!$D$16:$D$223,Capacity!$E85,Installations!$E$16:$E$223,Capacity!$D85,Installations!$F$16:$F$223,Capacity!$C85),0) -> 327.886 | V85: =IF(AND(V$79>=$F85,V$79<$F85+$AJ85),SUMIFS(Installations!$H$16:$H$223,Installations!$B$16:$B$223,Capacity!$B85,Installations!$C$16:$C$223,Capacity!$F85,Installations!$D$16:$D$223,Capacity!$E85,Installations!$E$16:$E$223,Capacity!$D85,Installations!$F$16:$F$223,Capacity!$C85),0) -> 327.886 | W85: =IF(AND(W$79>=$F85,W$79<$F85+$AJ85),SUMIFS(Installations!$H$16:$H$223,Installations!$B$16:$B$223,Capacity!$B85,Installations!$C$16:$C$223,Capacity!$F85,Installations!$D$16:$D$223,Capacity!$E85,Installations!$E$16:$E$223,Capacity!$D85,Installations!$F$16:$F$223,Capacity!$C85),0) -> 327.886 | X85: =IF(AND(X$79>=$F85,X$79<$F85+$AJ85),SUMIFS(Installations!$H$16:$H$223,Installations!$B$16:$B$223,Capacity!$B85,Installations!$C$16:$C$223,Capacity!$F85,Installations!$D$16:$D$223,Capacity!$E85,Installations!$E$16:$E$223,Capacity!$D85,Installations!$F$16:$F$223,Capacity!$C85),0) -> 327.886 | Y85: =IF(AND(Y$79>=$F85,Y$79<$F85+$AJ85),SUMIFS(Installations!$H$16:$H$223,Installations!$B$16:$B$223,Capacity!$B85,Installations!$C$16:$C$223,Capacity!$F85,Installations!$D$16:$D$223,Capacity!$E85,Installations!$E$16:$E$223,Capacity!$D85,Installations!$F$16:$F$223,Capacity!$C85),0) -> 327.886 | Z85: =IF(AND(Z$79>=$F85,Z$79<$F85+$AJ85),SUMIFS(Installations!$H$16:$H$223,Installations!$B$16:$B$223,Capacity!$B85,Installations!$C$16:$C$223,Capacity!$F85,Installations!$D$16:$D$223,Capacity!$E85,Installations!$E$16:$E$223,Capacity!$D85,Installations!$F$16:$F$223,Capacity!$C85),0) -> 327.886 | AA85: =IF(AND(AA$79>=$F85,AA$79<$F85+$AJ85),SUMIFS(Installations!$H$16:$H$223,Installations!$B$16:$B$223,Capacity!$B85,Installations!$C$16:$C$223,Capacity!$F85,Installations!$D$16:$D$223,Capacity!$E85,Installations!$E$16:$E$223,Capacity!$D85,Installations!$F$16:$F$223,Capacity!$C85),0) -> 327.886 | AB85: =IF(AND(AB$79>=$F85,AB$79<$F85+$AJ85),SUMIFS(Installations!$H$16:$H$223,Installations!$B$16:$B$223,Capacity!$B85,Installations!$C$16:$C$223,Capacity!$F85,Installations!$D$16:$D$223,Capacity!$E85,Installations!$E$16:$E$223,Capacity!$D85,Installations!$F$16:$F$223,Capacity!$C85),0) -> 0 | AC85: =IF(AND(AC$79>=$F85,AC$79<$F85+$AJ85),SUMIFS(Installations!$H$16:$H$223,Installations!$B$16:$B$223,Capacity!$B85,Installations!$C$16:$C$223,Capacity!$F85,Installations!$D$16:$D$223,Capacity!$E85,Installations!$E$16:$E$223,Capacity!$D85,Installations!$F$16:$F$223,Capacity!$C85),0) -> 0 | AD85: =IF(AND(AD$79>=$F85,AD$79<$F85+$AJ85),SUMIFS(Installations!$H$16:$H$223,Installations!$B$16:$B$223,Capacity!$B85,Installations!$C$16:$C$223,Capacity!$F85,Installations!$D$16:$D$223,Capacity!$E85,Installations!$E$16:$E$223,Capacity!$D85,Installations!$F$16:$F$223,Capacity!$C85),0) -> 0 | AE85: =IF(AND(AE$79>=$F85,AE$79<$F85+$AJ85),SUMIFS(Installations!$H$16:$H$223,Installations!$B$16:$B$223,Capacity!$B85,Installations!$C$16:$C$223,Capacity!$F85,Installations!$D$16:$D$223,Capacity!$E85,Installations!$E$16:$E$223,Capacity!$D85,Installations!$F$16:$F$223,Capacity!$C85),0) -> 0 | AF85: =IF(AND(AF$79>=$F85,AF$79<$F85+$AJ85),SUMIFS(Installations!$H$16:$H$223,Installations!$B$16:$B$223,Capacity!$B85,Installations!$C$16:$C$223,Capacity!$F85,Installations!$D$16:$D$223,Capacity!$E85,Installations!$E$16:$E$223,Capacity!$D85,Installations!$F$16:$F$223,Capacity!$C85),0) -> 0 | AG85: =IF(AND(AG$79>=$F85,AG$79<$F85+$AJ85),SUMIFS(Installations!$H$16:$H$223,Installations!$B$16:$B$223,Capacity!$B85,Installations!$C$16:$C$223,Capacity!$F85,Installations!$D$16:$D$223,Capacity!$E85,Installations!$E$16:$E$223,Capacity!$D85,Installations!$F$16:$F$223,Capacity!$C85),0) -> 0 | AH85: =IF(AND(AH$79>=$F85,AH$79<$F85+$AJ85),SUMIFS(Installations!$H$16:$H$223,Installations!$B$16:$B$223,Capacity!$B85,Installations!$C$16:$C$223,Capacity!$F85,Installations!$D$16:$D$223,Capacity!$E85,Installations!$E$16:$E$223,Capacity!$D85,Installations!$F$16:$F$223,Capacity!$C85),0) -> 0 | AI85: =IF(AND(AI$79>=$F85,AI$79<$F85+$AJ85),SUMIFS(Installations!$H$16:$H$223,Installations!$B$16:$B$223,Capacity!$B85,Installations!$C$16:$C$223,Capacity!$F85,Installations!$D$16:$D$223,Capacity!$E85,Installations!$E$16:$E$223,Capacity!$D85,Installations!$F$16:$F$223,Capacity!$C85),0) -> 0 | AJ85: 25 | AK85: PV
B86: Non-Residential | C86: Incentivized | D86: NVE North | E86: PV | F86: 2010 | G86: =IF(AND(G$79>=$F86,G$79<$F86+$AJ86),SUMIFS(Installations!$H$16:$H$223,Installations!$B$16:$B$223,Capacity!$B86,Installations!$C$16:$C$223,Capacity!$F86,Installations!$D$16:$D$223,Capacity!$E86,Installations!$E$16:$E$223,Capacity!$D86,Installations!$F$16:$F$223,Capacity!$C86),0) -> 1891.673 | H86: =IF(AND(H$79>=$F86,H$79<$F86+$AJ86),SUMIFS(Installations!$H$16:$H$223,Installations!$B$16:$B$223,Capacity!$B86,Installations!$C$16:$C$223,Capacity!$F86,Installations!$D$16:$D$223,Capacity!$E86,Installations!$E$16:$E$223,Capacity!$D86,Installations!$F$16:$F$223,Capacity!$C86),0) -> 1891.673 | I86: =IF(AND(I$79>=$F86,I$79<$F86+$AJ86),SUMIFS(Installations!$H$16:$H$223,Installations!$B$16:$B$223,Capacity!$B86,Installations!$C$16:$C$223,Capacity!$F86,Installations!$D$16:$D$223,Capacity!$E86,Installations!$E$16:$E$223,Capacity!$D86,Installations!$F$16:$F$223,Capacity!$C86),0) -> 1891.673 | J86: =IF(AND(J$79>=$F86,J$79<$F86+$AJ86),SUMIFS(Installations!$H$16:$H$223,Installations!$B$16:$B$223,Capacity!$B86,Installations!$C$16:$C$223,Capacity!$F86,Installations!$D$16:$D$223,Capacity!$E86,Installations!$E$16:$E$223,Capacity!$D86,Installations!$F$16:$F$223,Capacity!$C86),0) -> 1891.673 | K86: =IF(AND(K$79>=$F86,K$79<$F86+$AJ86),SUMIFS(Installations!$H$16:$H$223,Installations!$B$16:$B$223,Capacity!$B86,Installations!$C$16:$C$223,Capacity!$F86,Installations!$D$16:$D$223,Capacity!$E86,Installations!$E$16:$E$223,Capacity!$D86,Installations!$F$16:$F$223,Capacity!$C86),0) -> 1891.673 | L86: =IF(AND(L$79>=$F86,L$79<$F86+$AJ86),SUMIFS(Installations!$H$16:$H$223,Installations!$B$16:$B$223,Capacity!$B86,Installations!$C$16:$C$223,Capacity!$F86,Installations!$D$16:$D$223,Capacity!$E86,Installations!$E$16:$E$223,Capacity!$D86,Installations!$F$16:$F$223,Capacity!$C86),0) -> 1891.673 | M86: =IF(AND(M$79>=$F86,M$79<$F86+$AJ86),SUMIFS(Installations!$H$16:$H$223,Installations!$B$16:$B$223,Capacity!$B86,Installations!$C$16:$C$223,Capacity!$F86,Installations!$D$16:$D$223,Capacity!$E86,Installations!$E$16:$E$223,Capacity!$D86,Installations!$F$16:$F$223,Capacity!$C86),0) -> 1891.673 | N86: =IF(AND(N$79>=$F86,N$79<$F86+$AJ86),SUMIFS(Installations!$H$16:$H$223,Installations!$B$16:$B$223,Capacity!$B86,Installations!$C$16:$C$223,Capacity!$F86,Installations!$D$16:$D$223,Capacity!$E86,Installations!$E$16:$E$223,Capacity!$D86,Installations!$F$16:$F$223,Capacity!$C86),0) -> 1891.673 | O86: =IF(AND(O$79>=$F86,O$79<$F86+$AJ86),SUMIFS(Installations!$H$16:$H$223,Installations!$B$16:$B$223,Capacity!$B86,Installations!$C$16:$C$223,Capacity!$F86,Installations!$D$16:$D$223,Capacity!$E86,Installations!$E$16:$E$223,Capacity!$D86,Installations!$F$16:$F$223,Capacity!$C86),0) -> 1891.673 | P86: =IF(AND(P$79>=$F86,P$79<$F86+$AJ86),SUMIFS(Installations!$H$16:$H$223,Installations!$B$16:$B$223,Capacity!$B86,Installations!$C$16:$C$223,Capacity!$F86,Installations!$D$16:$D$223,Capacity!$E86,Installations!$E$16:$E$223,Capacity!$D86,Installations!$F$16:$F$223,Capacity!$C86),0) -> 1891.673 | Q86: =IF(AND(Q$79>=$F86,Q$79<$F86+$AJ86),SUMIFS(Installations!$H$16:$H$223,Installations!$B$16:$B$223,Capacity!$B86,Installations!$C$16:$C$223,Capacity!$F86,Installations!$D$16:$D$223,Capacity!$E86,Installations!$E$16:$E$223,Capacity!$D86,Installations!$F$16:$F$223,Capacity!$C86),0) -> 1891.673 | R86: =IF(AND(R$79>=$F86,R$79<$F86+$AJ86),SUMIFS(Installations!$H$16:$H$223,Installations!$B$16:$B$223,Capacity!$B86,Installations!$C$16:$C$223,Capacity!$F86,Installations!$D$16:$D$223,Capacity!$E86,Installations!$E$16:$E$223,Capacity!$D86,Installations!$F$16:$F$223,Capacity!$C86),0) -> 1891.673 | S86: =IF(AND(S$79>=$F86,S$79<$F86+$AJ86),SUMIFS(Installations!$H$16:$H$223,Installations!$B$16:$B$223,Capacity!$B86,Installations!$C$16:$C$223,Capacity!$F86,Installations!$D$16:$D$223,Capacity!$E86,Installations!$E$16:$E$223,Capacity!$D86,Installations!$F$16:$F$223,Capacity!$C86),0) -> 1891.673 | T86: =IF(AND(T$79>=$F86,T$79<$F86+$AJ86),SUMIFS(Installations!$H$16:$H$223,Installations!$B$16:$B$223,Capacity!$B86,Installations!$C$16:$C$223,Capacity!$F86,Installations!$D$16:$D$223,Capacity!$E86,Installations!$E$16:$E$223,Capacity!$D86,Installations!$F$16:$F$223,Capacity!$C86),0) -> 1891.673 | U86: =IF(AND(U$79>=$F86,U$79<$F86+$AJ86),SUMIFS(Installations!$H$16:$H$223,Installations!$B$16:$B$223,Capacity!$B86,Installations!$C$16:$C$223,Capacity!$F86,Installations!$D$16:$D$223,Capacity!$E86,Installations!$E$16:$E$223,Capacity!$D86,Installations!$F$16:$F$223,Capacity!$C86),0) -> 1891.673 | V86: =IF(AND(V$79>=$F86,V$79<$F86+$AJ86),SUMIFS(Installations!$H$16:$H$223,Installations!$B$16:$B$223,Capacity!$B86,Installations!$C$16:$C$223,Capacity!$F86,Installations!$D$16:$D$223,Capacity!$E86,Installations!$E$16:$E$223,Capacity!$D86,Installations!$F$16:$F$223,Capacity!$C86),0) -> 1891.673 | W86: =IF(AND(W$79>=$F86,W$79<$F86+$AJ86),SUMIFS(Installations!$H$16:$H$223,Installations!$B$16:$B$223,Capacity!$B86,Installations!$C$16:$C$223,Capacity!$F86,Installations!$D$16:$D$223,Capacity!$E86,Installations!$E$16:$E$223,Capacity!$D86,Installations!$F$16:$F$223,Capacity!$C86),0) -> 1891.673 | X86: =IF(AND(X$79>=$F86,X$79<$F86+$AJ86),SUMIFS(Installations!$H$16:$H$223,Installations!$B$16:$B$223,Capacity!$B86,Installations!$C$16:$C$223,Capacity!$F86,Installations!$D$16:$D$223,Capacity!$E86,Installations!$E$16:$E$223,Capacity!$D86,Installations!$F$16:$F$223,Capacity!$C86),0) -> 1891.673 | Y86: =IF(AND(Y$79>=$F86,Y$79<$F86+$AJ86),SUMIFS(Installations!$H$16:$H$223,Installations!$B$16:$B$223,Capacity!$B86,Installations!$C$16:$C$223,Capacity!$F86,Installations!$D$16:$D$223,Capacity!$E86,Installations!$E$16:$E$223,Capacity!$D86,Installations!$F$16:$F$223,Capacity!$C86),0) -> 1891.673 | Z86: =IF(AND(Z$79>=$F86,Z$79<$F86+$AJ86),SUMIFS(Installations!$H$16:$H$223,Installations!$B$16:$B$223,Capacity!$B86,Installations!$C$16:$C$223,Capacity!$F86,Installations!$D$16:$D$223,Capacity!$E86,Installations!$E$16:$E$223,Capacity!$D86,Installations!$F$16:$F$223,Capacity!$C86),0) -> 1891.673 | AA86: =IF(AND(AA$79>=$F86,AA$79<$F86+$AJ86),SUMIFS(Installations!$H$16:$H$223,Installations!$B$16:$B$223,Capacity!$B86,Installations!$C$16:$C$223,Capacity!$F86,Installations!$D$16:$D$223,Capacity!$E86,Installations!$E$16:$E$223,Capacity!$D86,Installations!$F$16:$F$223,Capacity!$C86),0) -> 1891.673 | AB86: =IF(AND(AB$79>=$F86,AB$79<$F86+$AJ86),SUMIFS(Installations!$H$16:$H$223,Installations!$B$16:$B$223,Capacity!$B86,Installations!$C$16:$C$223,Capacity!$F86,Installations!$D$16:$D$223,Capacity!$E86,Installations!$E$16:$E$223,Capacity!$D86,Installations!$F$16:$F$223,Capacity!$C86),0) -> 1891.673 | AC86: =IF(AND(AC$79>=$F86,AC$79<$F86+$AJ86),SUMIFS(Installations!$H$16:$H$223,Installations!$B$16:$B$223,Capacity!$B86,Installations!$C$16:$C$223,Capacity!$F86,Installations!$D$16:$D$223,Capacity!$E86,Installations!$E$16:$E$223,Capacity!$D86,Installations!$F$16:$F$223,Capacity!$C86),0) -> 0 | AD86: =IF(AND(AD$79>=$F86,AD$79<$F86+$AJ86),SUMIFS(Installations!$H$16:$H$223,Installations!$B$16:$B$223,Capacity!$B86,Installations!$C$16:$C$223,Capacity!$F86,Installations!$D$16:$D$223,Capacity!$E86,Installations!$E$16:$E$223,Capacity!$D86,Installations!$F$16:$F$223,Capacity!$C86),0) -> 0 | AE86: =IF(AND(AE$79>=$F86,AE$79<$F86+$AJ86),SUMIFS(Installations!$H$16:$H$223,Installations!$B$16:$B$223,Capacity!$B86,Installations!$C$16:$C$223,Capacity!$F86,Installations!$D$16:$D$223,Capacity!$E86,Installations!$E$16:$E$223,Capacity!$D86,Installations!$F$16:$F$223,Capacity!$C86),0) -> 0 | AF86: =IF(AND(AF$79>=$F86,AF$79<$F86+$AJ86),SUMIFS(Installations!$H$16:$H$223,Installations!$B$16:$B$223,Capacity!$B86,Installations!$C$16:$C$223,Capacity!$F86,Installations!$D$16:$D$223,Capacity!$E86,Installations!$E$16:$E$223,Capacity!$D86,Installations!$F$16:$F$223,Capacity!$C86),0) -> 0 | AG86: =IF(AND(AG$79>=$F86,AG$79<$F86+$AJ86),SUMIFS(Installations!$H$16:$H$223,Installations!$B$16:$B$223,Capacity!$B86,Installations!$C$16:$C$223,Capacity!$F86,Installations!$D$16:$D$223,Capacity!$E86,Installations!$E$16:$E$223,Capacity!$D86,Installations!$F$16:$F$223,Capacity!$C86),0) -> 0 | AH86: =IF(AND(AH$79>=$F86,AH$79<$F86+$AJ86),SUMIFS(Installations!$H$16:$H$223,Installations!$B$16:$B$223,Capacity!$B86,Installations!$C$16:$C$223,Capacity!$F86,Installations!$D$16:$D$223,Capacity!$E86,Installations!$E$16:$E$223,Capacity!$D86,Installations!$F$16:$F$223,Capacity!$C86),0) -> 0 | AI86: =IF(AND(AI$79>=$F86,AI$79<$F86+$AJ86),SUMIFS(Installations!$H$16:$H$223,Installations!$B$16:$B$223,Capacity!$B86,Installations!$C$16:$C$223,Capacity!$F86,Installations!$D$16:$D$223,Capacity!$E86,Installations!$E$16:$E$223,Capacity!$D86,Installations!$F$16:$F$223,Capacity!$C86),0) -> 0 | AJ86: 25 | AK86: PV
